Workbook

Sheet SheetInfo (hidden)
B2: SheetName | C2: TableID | D2: TableName | E2: NumberColumns
B3: Tab_A.1 | C3: Tab_A.1 | D3: Glossary | E3: =16384-COUNTIF(INDIRECT($B3&"!$24:$24"),"") -> 2
B4: Tab_B.1 | C4: Tab_B.1 | D4: Collisions by severity and year | E4: =16384-COUNTIF(INDIRECT($B4&"!$24:$24"),"") -> 
B5: Tab_B.2 | C5: Tab_B.2 | D5: Collisions by road class, speed limit and severity, 2016
B6: Tab_B.3 | C6: Tab_B.3 | D6: Collisions by road classification, speed limit, and severity, 2016
B7: Tab_B.4 | C7: Tab_B.4 | D7: Collisions involving cars by road class, vehicle location and year
B8: Tab_B.5 | C8: Tab_B.5 | D8: Collisions involving LGVs by road class, vehicle location and year
B9: Tab_B.6 | C9: Tab_B.6 | D9: Collisions involving HGVs by road class, vehicle location and year
B10: Tab_B.7 | C10: Tab_B.7 | D10: Collisions involving bus/coach by road class, vehicle location and year
B11: Tab_B.8 | C11: Tab_B.8 | D11: Collisions involving at least one motorcycle by road class, vehicle location and year
B12: Tab_B.9 | C12: Tab_B.9 | D12: Collisions involving pedal cycles by road class, vehicle location and year | E12: =16384-COUNTIF(INDIRECT($B12&"!$24:$24"),"") -> 
B13: Tab_B.10 | C13: Tab_B.10 | D13: Collisions involving agricultural vehicles by road class, vehicle location and year
B14: Tab_B.11 | C14: Tab_B.11 | D14: Collisions involving pedestrians and single vehicle by vehicle type and severity, 2016
B15: Tab_B.12 | C15: Tab_B.12 | D15: Collisions by road classification, road surface condition and light condition, 2016
B16: Tab_B.13 | C16: Tab_B.13 | D16: Collisions during darkness by road classification, weather condition and severity, 2016
B17: Tab_B.14 | C17: Tab_B.14 | D17: Collisions during daylight by road classification, weather condition, and severity, 2016
B18: Tab_B.15 | C18: Tab_B.15 | D18: Single vehicle collisions by object hit off carriageway, road classification and severity, 2016
B19: Tab_B.16 | C19: Tab_B.16 | D19: Collisions by region, severity and year
B20: Tab_B.17 | C20: Tab_B.17 | D20: Collisions by road classification, severity and year | E20: =16384-COUNTIF(INDIRECT($B20&"!$24:$24"),"") -> 
B21: Tab_B.18 | C21: Tab_B.18 | D21: Collisions by user type involved, severity and year
B22: Tab_B.19 | C22: Tab_B.19 | D22: Collisions by vulnerable user types involved, severity and year
B23: Tab_B.20 | C23: Tab_B.20 | D23: Collisions by non-motorised user types involved, severity and year
B24: Tab_B.21 | C24: Tab_B.21 | D24: Collisions by casualty age groups involved, severity and year
B25: Tab_B.22 | C25: Tab_B.22 | D25: Collisions by month and year
B26: Tab_B.23 | C26: Tab_B.23 | D26: Collisions by time period, day and year
B27: Tab_B.24 | C27: Tab_B.24 | D27: Collisions by road surface conditions, weather conditions and year
B28: Tab_B.25 | C28: Tab_B.25 | D28: Collisions by collision type and year
B29: Tab_B.26 | C29: Tab_B.26 | D29: KSI collisions from vehicles hitting objects off carriageway by year
B30: Tab_B.27 | C30: Tab_B.27 | D30: KSI collisions from vehicles hitting objects on carriageway by year
B31: Tab_B.28 | C31: Tab_B.28 | D31: Collisions from vehicles hitting objects off carriageway by year
B32: Tab_B.29 | C32: Tab_B.29 | D32: Collisions from vehicles hitting objects on carriageway by year
B33: Tab_B.30 | C33: Tab_B.30 | D33: Collisions involving single vehicles by severity and year
B34: Tab_B.31 | C34: Tab_B.31 | D34: Collisions involving HGVs by severity and year
B35: Tab_B.32 | C35: Tab_B.32 | D35: Collisions involving LGVs by severity and year
B36: Tab_B.33 | C36: Tab_B.33 | D36: Collisions involving young drivers (aged 17 – 24 years) by severity and year
B37: Tab_B.34 | C37: Tab_B.34 | D37: Collisions involving elderly drivers (aged 70 years and over) by severity and year
B38: Tab_B.35 | C38: Tab_B.35 | D38: Collisions involving towed caravans by severity and year
B39: Tab_B.36 | C39: Tab_B.36 | D39: Collisions by top 20 road names and year
B40: Tab_B.37 | C40: Tab_B.37 | D40: Fatal collisions by top 20 road names and year
B41: Tab_B.38 | C41: Tab_B.38 | D41: Fatal+Serious collisions by top 20 road names and year
B42: Tab_C.1 | C42: Tab_C.1 | D42: Casualties by severity and year
B43: Tab_C.2 | C43: Tab_C.2 | D43: Casualties by road classification, severity and year
B44: Tab_C.3 | C44: Tab_C.3 | D44: Casualty by road class, speed limit and severity, 2016
B45: Tab_C.4 | C45: Tab_C.4 | D45: Total casualties by casualty type, age and year
B46: Tab_C.5 | C46: Tab_C.5 | D46: Casualties involved in fatal collisions by casualty type, severity and year
B47: Tab_C.6 | C47: Tab_C.6 | D47: Casualties involved in serious collisions by casualty type and year
B48: Tab_C.7 | C48: Tab_C.7 | D48: Casualties involved in slight collisions by casualty type and year
B49: Tab_C.8 | C49: Tab_C.8 | D49: Male casualties by road classification and severity
B50: Tab_C.9 | C50: Tab_C.9 | D50: Female casualties by road classification and severity
B51: Tab_C.10 | C51: Tab_C.10 | D51: Casualties by age group, gender, severity and year
B52: Tab_C.11 | C52: Tab_C.11 | D52: Casualties involving seatbelt use by severity and year
B53: Tab_C.12 | C53: Tab_C.12 | D53: Casualties by region, casualty severity and year
B54: Tab_C.13 | C54: Tab_C.13 | D54: Casualties by casualty type, severity and year
B55: Tab_C.14 | C55: Tab_C.14 | D55: Casualties by vulnerable user type, severity and year
B56: Tab_C.15 | C56: Tab_C.15 | D56: Casualties by non-motorised user types, severity and year
B57: Tab_C.16 | C57: Tab_C.16 | D57: Casualties by age groups, severity and year
B58: Tab_C.17 | C58: Tab_C.17 | D58: Bus and coach occupant casualties by age, severity and year
B59: Tab_C.18 | C59: Tab_C.18 | D59: Car occupant casualties by age group, severity and year
B60: Tab_C.19 | C60: Tab_C.19 | D60: Other goods vehicle casualties by age group, severity and year
B61: Tab_C.20 | C61: Tab_C.20 | D61: Heavy goods vehicle occupant casualties by age group, severity and year
B62: Tab_C.21 | C62: Tab_C.21 | D62: Pedal cycle casualties by age group, severity and year
B63: Tab_C.22 | C63: Tab_C.22 | D63: Pedestrian casualties by age group, severity and year
B64: Tab_C.23 | C64: Tab_C.23 | D64: Motorcycle casualties by age group, severity and year
B65: Tab_C.24 | C65: Tab_C.24 | D65: Casualties by month and year
B66: Tab_C.25 | C66: Tab_C.25 | D66: Casualties by time period, day and year
B67: Tab_C.26 | C67: Tab_C.26 | D67: Casualties by road surface conditions, weather conditions and year | E67: =16384-COUNTIF(INDIRECT($B67&"!$24:$24"),"") -> 
B68: Tab_C.27 | C68: Tab_C.27 | D68: Casualties by collision type and year
B69: Tab_C.28 | C69: Tab_C.28 | D69: KSI casualties from vehicles hitting objects off carriageway by year
B70: Tab_C.29 | C70: Tab_C.29 | D70: KSI casualties from vehicles hitting objects on carriageway by year
B71: Tab_C.30 | C71: Tab_C.30 | D71: Casualties from vehicles hitting objects off carriageway by year
B72: Tab_C.31 | C72: Tab_C.31 | D72: Casualties from vehicles hitting objects on carriageway by year
B73: Tab_C.32 | C73: Tab_C.32 | D73: Casualties involving single vehicles by severity, casualty type and year
B74: Tab_C.33 | C74: Tab_C.33 | D74: Casualties involving heavy goods vehicles by severity, casualty type and year
B75: Tab_C.34 | C75: Tab_C.34 | D75: Casualties involving LGVs by severity, casualty type and year
B76: Tab_C.35 | C76: Tab_C.35 | D76: Casualties involving young drivers by severity, casualty type and year
B77: Tab_C.36 | C77: Tab_C.36 | D77: Casualties involving elderly drivers by severity, casualty type and year
B78: Tab_C.37 | C78: Tab_C.37 | D78: Casualties involving towed caravans by severity, casualty type and year
B79: Tab_C.38 | C79: Tab_C.38 | D79: Casualties by top 20 road names and year
B80: Tab_C.39 | C80: Tab_C.39 | D80: Fatally injured casualties by top 20 road names and year
B81: Tab_C.40 | C81: Tab_C.40 | D81: KSI casualties by top 20 road names and year
B82: Tab_D.1 | C82: Tab_D.1 | D82: Collision rates per 100 MVM by severity and year
B83: Tab_D.2 | C83: Tab_D.2 | D83: Casualty rates per 100 MVM by severity and year
B84: Tab_D.3 | C84: Tab_D.3 | D84: Collision user rates per 100 MVM by road user type, severity and year
B85: Tab_D.4 | C85: Tab_D.4 | D85: Casualty user rates per 100 MVM by road user type, severity and year
B86: Tab_D.5 | C86: Tab_D.5 | D86: Vehicle type rates per 100 MVM by vehicle user type, severity and year
B87: Tab_D.6 | C87: Tab_D.6 | D87: Total traffic (100 MVM) by top 40 road names and year
B88: Tab_D.7 | C88: Tab_D.7 | D88: Total casualties per 100 MVM by top 40 trafficked roads and year
B89: Tab_D.8 | C89: Tab_D.8 | D89: Total collisions per 100 MVM by top 40 trafficked roads and year
B90: Tab_D.9 | C90: Tab_D.9 | D90: Total casualties per 100 MVM by top 20 motorways and year
B91: Tab_D.10 | C91: Tab_D.10 | D91: Total collisions per 100 MVM by top 20 motorways and year
B92: Tab_D.11 | C92: Tab_D.11 | D92: Total casualties per 100 MVM by top 20 A-roads and year
B93: Tab_D.12 | C93: Tab_D.12 | D93: Total collisions per 100 MVM by top 20 A-roads and year
B94: Tab_D.13 | C94: Tab_D.13 | D94: Casualties per 100 MVM by road classification, severity and year
B95: Tab_D.14 | C95: Tab_D.14 | D95: Collisions per 100 MVM by road classification, severity and year
B96: Tab_D.15 | C96: Tab_D.15 | D96: KSI casualties per 100 MVM by top 40 trafficked road names and year
B97: Tab_D.16 | C97: Tab_D.16 | D97: KSI severity collisions per 100 MVM by top 40 trafficked road names and year
B98: Tab_D.17 | C98: Tab_D.17 | D98: KSI casualties per 100 MVM by top 20 motorways and year
B99: Tab_D.18 | C99: Tab_D.18 | D99: KSI severity collisions per 100 MVM by top 20 motorways and year
B100: Tab_D.19 | C100: Tab_D.19 | D100: KSI casualties per 100 MVM by top 20 A-roads and year
B101: Tab_D.20 | C101: Tab_D.20 | D101: KSI severity collisions per 100 MVM by top 20 A-roads and year
B102: Tab_E.1 | C102: Tab_E.1 | D102: Number of vehicles by collision type, severity and year
B103: Tab_E.2 | C103: Tab_E.2 | D103: Male and female drivers involved in collisions by vehicle type and year
B104: Tab_E.3 | C104: Tab_E.3 | D104: Vehicles involved in collisions by vehicle type, road classification and collision severity, 2016
B105: Tab_E.4 | C105: Tab_E.4 | D105: Vehicles involved in collisions by vehicle type and junction detail, 2016
B106: Tab_E.5 | C106: Tab_E.5 | D106: Vehicles skidding, overturning etc. by road surface condition and vehicle type, 2016
B107: Tab_E.6 | C107: Tab_E.6 | D107: Vehicles involved in collisions by vehicle type and manoeuvre, 2016
B108: Tab_E.7 | C108: Tab_E.7 | D108: KSI casualties by vehicle interaction and year
B109: Tab_E.8 | C109: Tab_E.8 | D109: Fatal and serious collisions by vehicle interaction and year
B110: Tab_E.9 | C110: Tab_E.9 | D110: Casualties by vehicle interaction and severity in 2016
B111: Tab_E.10 | C111: Tab_E.10 | D111: Collisions by vehicle interaction and severity in 2016
B112: Tab_E.11 | C112: Tab_E.11 | D112: Casualties by user type, vehicle age group and year
B113: Tab_E.12 | C113: Tab_E.12 | D113: Collisions by vehicle involved, vehicle age group involved and year
B114: Tab_E.13 | C114: Tab_E.13 | D114: Casualties involving at least one vehicle defect contributory factor by severity and year
B115: Tab_E.14 | C115: Tab_E.14 | D115: Collisions involving at least one vehicle defect contributory factor by severity and year
B116: Tab_F.1 | C116: Tab_F.1 | D116: Contributory factor group classification and codes
B117: Tab_F.2 | C117: Tab_F.2 | D117: Casualties involving contributory factors by severity, 2016
B118: Tab_F.3 | C118: Tab_F.3 | D118: Collisions involving contributory factors by severity, 2016
B119: Tab_F.4 | C119: Tab_F.4 | D119: Collisions involving contributory factors on Motorways by severity, 2016
B120: Tab_F.5 | C120: Tab_F.5 | D120: Collisions involving contributory factors on A-roads by severity, 2016
B121: Tab_F.6 | C121: Tab_F.6 | D121: Casualties involving contributory factors on Motorways by severity, 2016
B122: Tab_F.7 | C122: Tab_F.7 | D122: Casualties involving contributory factors on A-roads by severity, 2016
B123: Tab_F.8 | C123: Tab_F.8 | D123: Collisions involving contributory factors on A-road single carriageways by severity, 2016
B124: Tab_F.9 | C124: Tab_F.9 | D124: Collisions involving contributory factors on A-road dual carriageways by severity, 2016
B125: Tab_F.10 | C125: Tab_F.10 | D125: Casualties involving contributory factors on A-road single carriagways by severity, 2016
B126: Tab_F.11 | C126: Tab_F.11 | D126: Casualties involving contributory factors on A-road dual carriagways by severity, 2016
B127: Tab_F.12 | C127: Tab_F.12 | D127: Top 20 contributory factors for total collisions on Motorways by year
B128: Tab_F.13 | C128: Tab_F.13 | D128: Top 20 contributory factors for total collisions on A-roads by year
B129: Tab_F.14 | C129: Tab_F.14 | D129: Top 20 contributory factors for total collisions on A-road single carriageways by year | E129: =16384-COUNTIF(INDIRECT($B129&"!$24:$24"),"") -> 
B130: Tab_F.15 | C130: Tab_F.15 | D130: Top 20 contributory factors for total collisions on A-road dual carriageways by year
B131: Tab_F.16 | C131: Tab_F.16 | D131: Top 20 contributory factors for total casualties on Motorways by year
B132: Tab_F.17 | C132: Tab_F.17 | D132: Top 20 contributory factors for total casualties on A-roads by year
B133: Tab_F.18 | C133: Tab_F.18 | D133: Top 20 contributory factors for total casualties on A-road single carriageways by year
B134: Tab_F.19 | C134: Tab_F.19 | D134: Top 20 contributory factors for total casualties on A-road dual carriageways by year
B135: Tab_F.20 | C135: Tab_F.20 | D135: Top 20 contributory factors for casualties by severity and year
B136: Tab_F.21 | C136: Tab_F.21 | D136: Top 20 contributory factors for collisions by severity and year
B137: Tab_F.22 | C137: Tab_F.22 | D137: Casualties involving drivers or riders impaired by alcohol and/or drugs by road classification, severity and year
B138: Tab_F.23 | C138: Tab_F.23 | D138: Collisions involving drivers or riders impaired by alcohol and/or drugs by road classification, severity and year
B139: Tab_F.24 | C139: Tab_F.24 | D139: Casualties involving drivers or riders impaired by alcohol and/or drugs by top 20 road names and year
B140: Tab_F.25 | C140: Tab_F.25 | D140: Collisions involving drivers or riders impaired by alcohol and/or drugs by top 20 road names and year
B141: Tab_F.26 | C141: Tab_F.26 | D141: Casualties involving drivers or riders fatigued by road classification, severity and year
B142: Tab_F.27 | C142: Tab_F.27 | D142: Collisions involving drivers or riders fatigued by road classification, severity and year
B143: Tab_F.28 | C143: Tab_F.28 | D143: Casualties involving drivers or riders fatigued by top 20 road names and year
B144: Tab_F.29 | C144: Tab_F.29 | D144: Collisions involving drivers or riders fatigued by top 20 road names and year
B145: Tab_F.30 | C145: Tab_F.30 | D145: Casualties involving drivers or riders exceeding the speed limit by road classification, severity and year
B146: Tab_F.31 | C146: Tab_F.31 | D146: Collisions involving drivers or riders exceeding the speed limit by road classification, severity and year
B147: Tab_F.32 | C147: Tab_F.32 | D147: Casualties involving drivers or riders exceeding the speed limit by top 20 road names and year
B148: Tab_F.33 | C148: Tab_F.33 | D148: Collisions involving drivers or riders exceeding the speed limit by top 20 road names and year
B149: Tab_F.34 | C149: Tab_F.34 | D149: Casualties involving drivers or riders distracted by road classification, severity and year
B150: Tab_F.35 | C150: Tab_F.35 | D150: Collisions involving drivers or riders distracted by road classification, severity and year
B151: Tab_F.36 | C151: Tab_F.36 | D151: Casualties involving distracted drivers or riders by top 20 road names and year
B152: Tab_F.37 | C152: Tab_F.37 | D152: Collisions involving distracted drivers or riders by top 20 road names and year
B153: Tab_G.1 | C153: Tab_G.1 | D153: Fatally injured casualties by top 20 road names and year | E153: 12
B154: Tab_G.2 | C154: Tab_G.2 | D154: Fatal collisions by top 20 road names and year | E154: 12
B155: Tab_G.3 | C155: Tab_G.3 | D155: Fatally injured casualties by road classification and year | E155: 13
B156: Tab_G.4 | C156: Tab_G.4 | D156: Fatal collisions by road classification and year | E156: 13
B157: Tab_G.5 | C157: Tab_G.5 | D157: Top 20 contributory factors involving fatally injured casualties by year | E157: 12
B158: Tab_G.6 | C158: Tab_G.6 | D158: Male fatally injured casualties by casualty type, age and year | E158: 12
B159: Tab_G.7 | C159: Tab_G.7 | D159: Female fatally injured casualties by casualty type, age, and year | E159: 12
B160: Tab_G.8 | C160: Tab_G.8 | D160: Top 20 contributory factors involving fatal collisions by year | E160: 12
B161: Tab_G.9 | C161: Tab_G.9 | D161: Top 20 contributory factors for fatal collisions on Motorways by year | E161: 12
B162: Tab_G.10 | C162: Tab_G.10 | D162: Top 20 contributory factors for fatal collisions on A-roads by year | E162: 12
B163: Tab_G.11 | C163: Tab_G.11 | D163: Top 20 contributory factors for fatal collisions on A-road single carriageways by year | E163: 12
B164: Tab_G.12 | C164: Tab_G.12 | D164: Top 20 contributory factors for fatal collisions on A-road dual carriageways by year | E164: 12
B165: Tab_G.13 | C165: Tab_G.13 | D165: Fatally injured casualties by objects hit on carriageway and year | E165: 11
B166: Tab_G.14 | C166: Tab_G.14 | D166: Fatal collisions by objects hit on carriageway and year | E166: 11
B167: Tab_G.15 | C167: Tab_G.15 | D167: Fatally injured casualties by objects hit off carriageway and year | E167: 11
B168: Tab_G.16 | C168: Tab_G.16 | D168: Fatal collisions by objects hit off carriageway and year | E168: 11
B169: Tab_G.17 | C169: Tab_G.17 | D169: Fatally injured casualties by road condition, skidding and year | E169: 12
B170: Tab_G.18 | C170: Tab_G.18 | D170: Fatal collisions by road surface condition, skidding and year | E170: 12
B171: Tab_G.19 | C171: Tab_G.19 | D171: Fatally injured casualties by light conditions, road classification and year | E171: 12
B172: Tab_G.20 | C172: Tab_G.20 | D172: Fatal collisions by light conditions, road classification and year | E172: 12
B173: Tab_G.21 | C173: Tab_G.21 | D173: Fatally injured casualties by junction detail and year | E173: 11
B174: Tab_G.22 | C174: Tab_G.22 | D174: Fatal collisions by junction detail and year | E174: 11
B175: Tab_G.23 | C175: Tab_G.23 | D175: Fatally injured casualties involving hard shoulders or laybys by vehicle location and year | E175: 11
B176: Tab_G.24 | C176: Tab_G.24 | D176: Fatal collisions involving hard shoulders or laybys by vehicle location and year | E176: 11
B177: Tab_G.25 | C177: Tab_G.25 | D177: Fatally injured casualties by driver age group involved and year | E177: 12
B178: Tab_G.26 | C178: Tab_G.26 | D178: Fatal collisions by driver age group involved and year | E178: 12
B179: Tab_G.27 | C179: Tab_G.27 | D179: Fatally injured casualties by vehicle type involved and year | E179: 11
B180: Tab_G.28 | C180: Tab_G.28 | D180: Fatal collisions by vehicle type involved and year | E180: 11
B181: Tab_G.29 | C181: Tab_G.29 | D181: Fatally injured casualties by journey purpose, vehicle type and year | E181: 12
B182: Tab_G.30 | C182: Tab_G.30 | D182: Fatal collisions by journey purpose, vehicle type and year | E182: 12
B183: Tab_G.31 | C183: Tab_G.31 | D183: Fatally injured casualties by time of day and year | E183: 11
B184: Tab_G.32 | C184: Tab_G.32 | D184: Fatal collisions by time of day and year | E184: 11
B185: Tab_G.33 | C185: Tab_G.33 | D185: Fatally injured casualties by day of the week and year | E185: 11
B186: Tab_G.34 | C186: Tab_G.34 | D186: Fatal collisions by day of the week and year | E186: 11
B187: Tab_G.35 | C187: Tab_G.35 | D187: Fatally injured casualties by month and year | E187: 11
B188: Tab_G.36 | C188: Tab_G.36 | D188: Fatal collisions by month and year | E188: 11
B189: Tab_H.1 | C189: Tab_H.1 | D189: Seriously injured casualties by top 20 road names and year | E189: 12
B190: Tab_H.2 | C190: Tab_H.2 | D190: Serious collisions by top 20 road names and year | E190: 12
B191: Tab_H.3 | C191: Tab_H.3 | D191: Seriously injured casualties by road classification and year | E191: 13
B192: Tab_H.4 | C192: Tab_H.4 | D192: Serious collisions by road classification and year | E192: 13
B193: Tab_H.5 | C193: Tab_H.5 | D193: Top 20 contributory factors involving seriously injured casualties by year | E193: =16384-COUNTIF(INDIRECT($B193&"!$24:$24"),"") -> 12
B194: Tab_H.6 | C194: Tab_H.6 | D194: Seriously injured male casualties by casualty type, age and year | E194: 12
B195: Tab_H.7 | C195: Tab_H.7 | D195: Seriously injured female casualties by casualty type, age and year | E195: 12
B196: Tab_H.8 | C196: Tab_H.8 | D196: Top 20 contributory factors involving serious collisions by year | E196: 12
B197: Tab_H.9 | C197: Tab_H.9 | D197: Seriously injured casualties by objects hit on carriageway and year | E197: 11
B198: Tab_H.10 | C198: Tab_H.10 | D198: Serious collisions by objects hit on carriageway and year | E198: 11
B199: Tab_H.11 | C199: Tab_H.11 | D199: Seriously injured casualties by objects hit off carriageway and year | E199: 11
B200: Tab_H.12 | C200: Tab_H.12 | D200: Serious collisions by objects hit off carriageway and year | E200: 11
B201: Tab_H.13 | C201: Tab_H.13 | D201: Seriously injured casualties by road surface condition, skidding and year | E201: 12
... 263 more rows

Sheet Notes (hidden)
A1: Notes | D1: Comments
A3: 1 | B3: Table template needs to have 4 columns e.g. Road Classification Table
A4: 2 | B4: Add Equestrian to all non-motirised user tables
A5: 3 | B5: 042_005_APP_N_Cas_during_roadworks_VehType_Severity_yr - Table not there!
A6: 4 | B6: 042_009_APP_N_severity_at_RdWorks_NotAt_RdWorks_yr - Category blank for Not during Roadworks
A7: 5 | B7: 044_002_APP_O_Objects_hit_On_Carriag_by_roadtype_Severity_yr - Wrong Query
A8: 6 | B8: Tab_Q.5 - Casualties at junctions by vehicle type and year - Added Data missing or pout of range to 'Other'
A9: 7 | B9: Tab_Q.7 - Casualties at junctions by driver age, severity and year - Underage motorist has 2 seriously Inured
A10: 8 | B10: 046_002_App_P_Col_RoadNames_by_junction_detail_2013 - Table is over the 300 row limit and runs into the table below. Also, only data for 2013
A11: 9 | B11: Datasheet V has no data for 2015
A12: 10 | B12: Green Tabs - New tables added
A13: 11 | B13: Red Tabs - Issues with the tab
A14: 12 | B14: Smart Motorway Costs
A15: 13 | B15: Tab J.11 - 2015 Unknown value incorrect
A16: 14 | B16: 010_005_APP_C_HA Casualties by VehHitOff_2015 | D16: Changed Query 010_005_APP_C_HA Casualties by VehHitOff_2015
A17: 16 | B17: 010_007_APP_C_HA Casualties by VehHitOn_2015 | D17: Changed Query 010_007_APP_C_HA Casualties by VehHitOn_Year
A18: 18 | B18: 010_020_APP_C_HA_Casualties_By_Month_Yr | D18: Add to export list
A19: 19 | B19: 010_021_APP_C_HA_Casualties_By_DayofWeek_TimePeriod_Yr | D19: Add to export list
B20: CF Queries | D20: Need creating
B21: 062_011_APP_I_SlightlyIC_by VehTypeInv and yr | D21: Does this Query need removing??
B22: 062_016_Slight_CasType | D22: Remove Queries??
B23: 062_017_Slight_CasAgeBand | D23: Remove Queries??
B24: 062_018_Slight_CasAge | D24: Remove Queries??
B25: 062_019_Slight_DriverAgeInvol | D25: Remove Queries??
B26: 062_020_Slight_SingVeh_byVehType | D26: Remove Queries??
B27: 062_021_Slight_SingVeh_DriverAge | D27: Remove Queries??
B28: 062_023_Slight_TimeOfWeek_yr | D28: Remove Queries??
B29: 062_020_Slight_SingVeh_byVehType | D29: Is this the right Query?
B30: TAB M_5 and M_6 are duplicates
B31: 040_004_APP_M_Cas_WeatherType_VehType_Severity_2013 | D31: Changed Query to 2015
B32: 040_005A_Col_WeatherType_SkiddingCat_Yr | D32: Check Query and add to export list
B33: 042_005_APP_N_Cas_during_roadworks_VehType_Severity_yr | D33: CHANGED - Was wrong Query - showing Roadworks, Month,Severity
B34: 042_007A_Col_During_Roadworks_CasualtyClass_Severity_Yr | D34: CHECK QUERY
B35: 042_009_Cas_Severity_At_Rdworks_NotAt_Rdworks_Yr | D35: Casualty Query created
B36: 046_002_App_P_Col_RoadNames_by_junction_detail_2015 | D36: Changed Query to 2015 - 584 fields
B37: 046_005A_APP_P_Col_AtJunctionByDriverAge_Severity_Yr | D37: Check Query and add to export list
B38: 024_080_APP_H_HAColInv_TyresbyWeatherSkidSurface_Sev | D38: Correct Query needs adding to export list
B39: 052_001A_Col_Invol_PTW_Severity_Yr | D39: Add to export list
B40: 052_002A_Col_Invol_PTW_RdName_Yr | D40: Add to export list
B41: 052_003A_Col_Invol_PTW_CasAge_Severity_Yr | D41: Add to export list
B42: 052_005A_Col_Invol_PTW_RoadClass_Sev_Yr | D42: Add to export list
B43: 054_005_APP_T_cas_invol_HS_LB_CFs_yr | D43: Query 4497 rows
B44: 058_001_CasSeverity_ColType | D44: Add to export list
B46: Tab_Q.9 - Casualties at junctions by top 20 road names and junction detail, 2015 | D46: Query for Casualty and collisions needs creating | E46: [046_002_App_P_Col_RoadNames_by_junction_detail_2013] - Query Structure changed so now 'Junction type' = Column Headers; 'Year' = Row header, is actualy 2015 just didn’t change name so I didn’t have to update export/import tables
B47: 020_001_APP_F_HA_All_78CFS_by NumCol_and_AccSev | D47: Casualty query needs creating
B48: 020_002_APP_F_HA_All_78CFS_by NumCol and Total FS Year | D48: Casualty query needs creating
B49: 011_009A_VehInt_Fatal | D49: Check Query and add to export list
B50: 011_010A_VehInt_Serious | D50: Check Query and add to export list
B51: 020_006_APP_F_HA_Cas_InvolBoozeDrugsTop20RdNames_Yr | D51: Add to main dataset and export list
B52: 020_009_APP_F_HA_Cas_InvolFatigueByTop20RdNames_Yr | D52: Add to main dataset and export list
B53: 020_012_APP_F_HA_Cas_InvolSpeedingTop20RdNames_Yr | D53: Add to main dataset and export list
B54: 020_015_APP_F_HA_Cas_InvolDistractTop20RdNames_Yr | D54: Add to main dataset and export list

Sheet Table Inport (hidden)
B1: Sept_ExportList | D1: 300
B2: QueryName | C2: Inport Sheet | D2: Inport Location (cell) | E2: Title Location (Cell) | F2: File Location (Folder) | G2: File Combo (Folder+File_name)
B3: 008_001_APP_B_HA Collisions by Road Types_Sev_Year | C3: B_DataSheet | D3: B24 | E3: B23 | F3: B:\Projects\60546469 - SPaTS_ 1-281_RoadSafetyAnalysisAndReporting\3 - Work Packages\STATS19 2018\3 September Report\Appendix\db_Elements | G3: =F3&"\"&B3&".txt" -> B:\Projects\60546469 - SPaTS_ 1-281_RoadSafetyAnalysisAndReporting\3 - Work Packages\STATS19 2018\3 September Report\Appendix\db_Elements\008_001_APP_B_HA Collisions by Road Types_Sev_Year.txt
B4: 008_004_APP_B_HA Collisions by Month_Year | C4: B_DataSheet | D4: B324 | E4: B323 | F4: B:\Projects\60546469 - SPaTS_ 1-281_RoadSafetyAnalysisAndReporting\3 - Work Packages\STATS19 2018\3 September Report\Appendix\db_Elements | G4: =F4&"\"&B4&".txt" -> B:\Projects\60546469 - SPaTS_ 1-281_RoadSafetyAnalysisAndReporting\3 - Work Packages\STATS19 2018\3 September Report\Appendix\db_Elements\008_004_APP_B_HA Collisions by Month_Year.txt
B5: 008_005_APP_B_HA F_S Collisions by Month_Year | C5: B_DataSheet | D5: B624 | E5: B623 | F5: B:\Projects\60546469 - SPaTS_ 1-281_RoadSafetyAnalysisAndReporting\3 - Work Packages\STATS19 2018\3 September Report\Appendix\db_Elements | G5: B:\Projects\60546469 - SPaTS_ 1-281_RoadSafetyAnalysisAndReporting\3 - Work Packages\STATS19 2018\3 September Report\Appendix\db_Elements\008_005_APP_B_HA F_S Collisions by Month_Year.txt
B6: 008_006_APP_B_HA Collins by DayofWeek_TimePeriod_year | C6: B_DataSheet | D6: B924 | E6: B923 | F6: B:\Projects\60546469 - SPaTS_ 1-281_RoadSafetyAnalysisAndReporting\3 - Work Packages\STATS19 2018\3 September Report\Appendix\db_Elements | G6: B:\Projects\60546469 - SPaTS_ 1-281_RoadSafetyAnalysisAndReporting\3 - Work Packages\STATS19 2018\3 September Report\Appendix\db_Elements\008_006_APP_B_HA Collins by DayofWeek_TimePeriod_year.txt
B7: 008_007_APP_B_HA F_S_Collisions by DayofWeek_TimePeriod_year | C7: B_DataSheet | D7: B1224 | E7: B1223 | F7: B:\Projects\60546469 - SPaTS_ 1-281_RoadSafetyAnalysisAndReporting\3 - Work Packages\STATS19 2018\3 September Report\Appendix\db_Elements | G7: B:\Projects\60546469 - SPaTS_ 1-281_RoadSafetyAnalysisAndReporting\3 - Work Packages\STATS19 2018\3 September Report\Appendix\db_Elements\008_007_APP_B_HA F_S_Collisions by DayofWeek_TimePeriod_year.txt
B8: 008_008_APP_B_HA LighWeather Collisions_Year | C8: B_DataSheet | D8: B1524 | E8: B1523 | F8: B:\Projects\60546469 - SPaTS_ 1-281_RoadSafetyAnalysisAndReporting\3 - Work Packages\STATS19 2018\3 September Report\Appendix\db_Elements | G8: B:\Projects\60546469 - SPaTS_ 1-281_RoadSafetyAnalysisAndReporting\3 - Work Packages\STATS19 2018\3 September Report\Appendix\db_Elements\008_008_APP_B_HA LighWeather Collisions_Year.txt
B9: 008_010_APP_B_HA Collisions Inv_SingleVeh by Sev_Year | C9: B_DataSheet | D9: B1824 | E9: B1823 | F9: B:\Projects\60546469 - SPaTS_ 1-281_RoadSafetyAnalysisAndReporting\3 - Work Packages\STATS19 2018\3 September Report\Appendix\db_Elements | G9: B:\Projects\60546469 - SPaTS_ 1-281_RoadSafetyAnalysisAndReporting\3 - Work Packages\STATS19 2018\3 September Report\Appendix\db_Elements\008_010_APP_B_HA Collisions Inv_SingleVeh by Sev_Year.txt
B10: 008_011_APP_B_HA Collisions Inv_HGV by Sev_Year | C10: B_DataSheet | D10: B2124 | E10: B2123 | F10: B:\Projects\60546469 - SPaTS_ 1-281_RoadSafetyAnalysisAndReporting\3 - Work Packages\STATS19 2018\3 September Report\Appendix\db_Elements | G10: B:\Projects\60546469 - SPaTS_ 1-281_RoadSafetyAnalysisAndReporting\3 - Work Packages\STATS19 2018\3 September Report\Appendix\db_Elements\008_011_APP_B_HA Collisions Inv_HGV by Sev_Year.txt
B11: 008_012_APP_B_HA Collisions Inv_LightGV by Sev_Year | C11: B_DataSheet | D11: B2424 | E11: B2423 | F11: B:\Projects\60546469 - SPaTS_ 1-281_RoadSafetyAnalysisAndReporting\3 - Work Packages\STATS19 2018\3 September Report\Appendix\db_Elements | G11: B:\Projects\60546469 - SPaTS_ 1-281_RoadSafetyAnalysisAndReporting\3 - Work Packages\STATS19 2018\3 September Report\Appendix\db_Elements\008_012_APP_B_HA Collisions Inv_LightGV by Sev_Year.txt
B12: 008_013_APP_B_HA Collisions Inv_YoungMotorist by Sev_Year | C12: B_DataSheet | D12: B2724 | E12: B2723 | F12: B:\Projects\60546469 - SPaTS_ 1-281_RoadSafetyAnalysisAndReporting\3 - Work Packages\STATS19 2018\3 September Report\Appendix\db_Elements | G12: B:\Projects\60546469 - SPaTS_ 1-281_RoadSafetyAnalysisAndReporting\3 - Work Packages\STATS19 2018\3 September Report\Appendix\db_Elements\008_013_APP_B_HA Collisions Inv_YoungMotorist by Sev_Year.txt
B13: 008_014_APP_B_HA Collisions Inv_ElderlyMotorist by Sev_Year | C13: B_DataSheet | D13: B3024 | E13: B3023 | F13: B:\Projects\60546469 - SPaTS_ 1-281_RoadSafetyAnalysisAndReporting\3 - Work Packages\STATS19 2018\3 September Report\Appendix\db_Elements | G13: B:\Projects\60546469 - SPaTS_ 1-281_RoadSafetyAnalysisAndReporting\3 - Work Packages\STATS19 2018\3 September Report\Appendix\db_Elements\008_014_APP_B_HA Collisions Inv_ElderlyMotorist by Sev_Year.txt
B14: 008_015_APP_B_HA Collins Inv_TowCvan by Sev_Year | C14: B_DataSheet | D14: B3324 | E14: B3323 | F14: B:\Projects\60546469 - SPaTS_ 1-281_RoadSafetyAnalysisAndReporting\3 - Work Packages\STATS19 2018\3 September Report\Appendix\db_Elements | G14: B:\Projects\60546469 - SPaTS_ 1-281_RoadSafetyAnalysisAndReporting\3 - Work Packages\STATS19 2018\3 September Report\Appendix\db_Elements\008_015_APP_B_HA Collins Inv_TowCvan by Sev_Year.txt
B15: 008_18_APP_B_Collisions by collision Type | C15: B_DataSheet | D15: B3924 | E15: B3923 | F15: B:\Projects\60546469 - SPaTS_ 1-281_RoadSafetyAnalysisAndReporting\3 - Work Packages\STATS19 2018\3 September Report\Appendix\db_Elements | G15: B:\Projects\60546469 - SPaTS_ 1-281_RoadSafetyAnalysisAndReporting\3 - Work Packages\STATS19 2018\3 September Report\Appendix\db_Elements\008_18_APP_B_Collisions by collision Type.txt
B16: 008_019_ColsByCasInvovled | C16: B_DataSheet | D16: B4224 | E16: B4223 | F16: B:\Projects\60546469 - SPaTS_ 1-281_RoadSafetyAnalysisAndReporting\3 - Work Packages\STATS19 2018\3 September Report\Appendix\db_Elements | G16: B:\Projects\60546469 - SPaTS_ 1-281_RoadSafetyAnalysisAndReporting\3 - Work Packages\STATS19 2018\3 September Report\Appendix\db_Elements\008_019_ColsByCasInvovled.txt
B17: 008_020_ColsByCasAgeInvolved | C17: B_DataSheet | D17: B4524 | E17: B4523 | F17: B:\Projects\60546469 - SPaTS_ 1-281_RoadSafetyAnalysisAndReporting\3 - Work Packages\STATS19 2018\3 September Report\Appendix\db_Elements | G17: B:\Projects\60546469 - SPaTS_ 1-281_RoadSafetyAnalysisAndReporting\3 - Work Packages\STATS19 2018\3 September Report\Appendix\db_Elements\008_020_ColsByCasAgeInvolved.txt
B18: 008_021_ColsByObHitInInvolved | C18: B_DataSheet | D18: B4824 | E18: B4823 | F18: B:\Projects\60546469 - SPaTS_ 1-281_RoadSafetyAnalysisAndReporting\3 - Work Packages\STATS19 2018\3 September Report\Appendix\db_Elements | G18: =F18&"\"&B18&".txt" -> B:\Projects\60546469 - SPaTS_ 1-281_RoadSafetyAnalysisAndReporting\3 - Work Packages\STATS19 2018\3 September Report\Appendix\db_Elements\008_021_ColsByObHitInInvolved.txt
B19: 008_022_ColsByObHitOffInvolved | C19: B_DataSheet | D19: B5124 | E19: B5123 | F19: B:\Projects\60546469 - SPaTS_ 1-281_RoadSafetyAnalysisAndReporting\3 - Work Packages\STATS19 2018\3 September Report\Appendix\db_Elements | G19: B:\Projects\60546469 - SPaTS_ 1-281_RoadSafetyAnalysisAndReporting\3 - Work Packages\STATS19 2018\3 September Report\Appendix\db_Elements\008_022_ColsByObHitOffInvolved.txt
B20: 008_023_FatalCollisions_by_RoadAndYear | C20: B_DataSheet | D20: B5424 | E20: B5423 | F20: B:\Projects\60546469 - SPaTS_ 1-281_RoadSafetyAnalysisAndReporting\3 - Work Packages\STATS19 2018\3 September Report\Appendix\db_Elements | G20: B:\Projects\60546469 - SPaTS_ 1-281_RoadSafetyAnalysisAndReporting\3 - Work Packages\STATS19 2018\3 September Report\Appendix\db_Elements\008_023_FatalCollisions_by_RoadAndYear.txt
B21: 008_024_F_or_S_Collisions_by_RoadAndYear | C21: B_DataSheet | D21: B5724 | E21: B5723 | F21: B:\Projects\60546469 - SPaTS_ 1-281_RoadSafetyAnalysisAndReporting\3 - Work Packages\STATS19 2018\3 September Report\Appendix\db_Elements | G21: B:\Projects\60546469 - SPaTS_ 1-281_RoadSafetyAnalysisAndReporting\3 - Work Packages\STATS19 2018\3 September Report\Appendix\db_Elements\008_024_F_or_S_Collisions_by_RoadAndYear.txt
B22: Table C Collision_ RoadClass_Speedlimit_severity | C22: B_DataSheet | D22: B6024 | E22: B6023 | F22: B:\Projects\60546469 - SPaTS_ 1-281_RoadSafetyAnalysisAndReporting\3 - Work Packages\STATS19 2018\3 September Report\Appendix\db_Elements | G22: B:\Projects\60546469 - SPaTS_ 1-281_RoadSafetyAnalysisAndReporting\3 - Work Packages\STATS19 2018\3 September Report\Appendix\db_Elements\Table C Collision_ RoadClass_Speedlimit_severity.txt
B23: Table A_ collision by speed limit_ road type_ road class | C23: B_DataSheet | D23: B6324 | E23: B6323 | F23: B:\Projects\60546469 - SPaTS_ 1-281_RoadSafetyAnalysisAndReporting\3 - Work Packages\STATS19 2018\3 September Report\Appendix\db_Elements | G23: B:\Projects\60546469 - SPaTS_ 1-281_RoadSafetyAnalysisAndReporting\3 - Work Packages\STATS19 2018\3 September Report\Appendix\db_Elements\Table A_ collision by speed limit_ road type_ road class.txt
B24: Table Z1 result_collision_vehType_vehLocation | C24: B_DataSheet | D24: B6624 | E24: B6623 | F24: B:\Projects\60546469 - SPaTS_ 1-281_RoadSafetyAnalysisAndReporting\3 - Work Packages\STATS19 2018\3 September Report\Appendix\db_Elements | G24: B:\Projects\60546469 - SPaTS_ 1-281_RoadSafetyAnalysisAndReporting\3 - Work Packages\STATS19 2018\3 September Report\Appendix\db_Elements\Table Z1 result_collision_vehType_vehLocation.txt
B25: Table J_ resultof coll_singveh_ped | C25: B_DataSheet | D25: B6924 | E25: B6923 | F25: B:\Projects\60546469 - SPaTS_ 1-281_RoadSafetyAnalysisAndReporting\3 - Work Packages\STATS19 2018\3 September Report\Appendix\db_Elements | G25: B:\Projects\60546469 - SPaTS_ 1-281_RoadSafetyAnalysisAndReporting\3 - Work Packages\STATS19 2018\3 September Report\Appendix\db_Elements\Table J_ resultof coll_singveh_ped.txt
B26: Table J_ resultofcoll__1veh_ped | C26: B_DataSheet | D26: B7224 | E26: B7223 | F26: B:\Projects\60546469 - SPaTS_ 1-281_RoadSafetyAnalysisAndReporting\3 - Work Packages\STATS19 2018\3 September Report\Appendix\db_Elements | G26: B:\Projects\60546469 - SPaTS_ 1-281_RoadSafetyAnalysisAndReporting\3 - Work Packages\STATS19 2018\3 September Report\Appendix\db_Elements\Table J_ resultofcoll__1veh_ped.txt
B27: Table E_Col_ByLightCondition_SpeedLimit_RdSurface | C27: B_DataSheet | D27: B7524 | E27: B7523 | F27: B:\Projects\60546469 - SPaTS_ 1-281_RoadSafetyAnalysisAndReporting\3 - Work Packages\STATS19 2018\3 September Report\Appendix\db_Elements | G27: B:\Projects\60546469 - SPaTS_ 1-281_RoadSafetyAnalysisAndReporting\3 - Work Packages\STATS19 2018\3 September Report\Appendix\db_Elements\Table E_Col_ByLightCondition_SpeedLimit_RdSurface.txt
B28: Table G_ collisions _ LightConditionDark_Weathercondition | C28: B_DataSheet | D28: B7824 | E28: B7823 | F28: B:\Projects\60546469 - SPaTS_ 1-281_RoadSafetyAnalysisAndReporting\3 - Work Packages\STATS19 2018\3 September Report\Appendix\db_Elements | G28: B:\Projects\60546469 - SPaTS_ 1-281_RoadSafetyAnalysisAndReporting\3 - Work Packages\STATS19 2018\3 September Report\Appendix\db_Elements\Table G_ collisions _ LightConditionDark_Weathercondition.txt
B29: Table G_Col_LightWeatherCondition | C29: B_DataSheet | D29: B8124 | E29: B8123 | F29: B:\Projects\60546469 - SPaTS_ 1-281_RoadSafetyAnalysisAndReporting\3 - Work Packages\STATS19 2018\3 September Report\Appendix\db_Elements | G29: B:\Projects\60546469 - SPaTS_ 1-281_RoadSafetyAnalysisAndReporting\3 - Work Packages\STATS19 2018\3 September Report\Appendix\db_Elements\Table G_Col_LightWeatherCondition.txt
B30: Table I_result_collision_single_seve | C30: B_DataSheet | D30: B8424 | E30: B8423 | F30: B:\Projects\60546469 - SPaTS_ 1-281_RoadSafetyAnalysisAndReporting\3 - Work Packages\STATS19 2018\3 September Report\Appendix\db_Elements | G30: B:\Projects\60546469 - SPaTS_ 1-281_RoadSafetyAnalysisAndReporting\3 - Work Packages\STATS19 2018\3 September Report\Appendix\db_Elements\Table I_result_collision_single_seve.txt
B31: TableZ11_result_collosion_region | C31: B_DataSheet | D31: B8724 | E31: B8723 | F31: B:\Projects\60546469 - SPaTS_ 1-281_RoadSafetyAnalysisAndReporting\3 - Work Packages\STATS19 2018\3 September Report\Appendix\db_Elements | G31: B:\Projects\60546469 - SPaTS_ 1-281_RoadSafetyAnalysisAndReporting\3 - Work Packages\STATS19 2018\3 September Report\Appendix\db_Elements\TableZ11_result_collosion_region.txt
B32: 008_025_Cols_By_Severity_RdClass_Region | C32: B_DataSheet | D32: B9024 | E32: B9023 | F32: B:\Projects\60546469 - SPaTS_ 1-281_RoadSafetyAnalysisAndReporting\3 - Work Packages\STATS19 2018\3 September Report\Appendix\db_Elements | G32: B:\Projects\60546469 - SPaTS_ 1-281_RoadSafetyAnalysisAndReporting\3 - Work Packages\STATS19 2018\3 September Report\Appendix\db_Elements\008_025_Cols_By_Severity_RdClass_Region.txt
B33: 008_026_Cols_By_Severity_CasInvolved_Region | C33: B_DataSheet | D33: B9324 | E33: B9323 | F33: B:\Projects\60546469 - SPaTS_ 1-281_RoadSafetyAnalysisAndReporting\3 - Work Packages\STATS19 2018\3 September Report\Appendix\db_Elements | G33: B:\Projects\60546469 - SPaTS_ 1-281_RoadSafetyAnalysisAndReporting\3 - Work Packages\STATS19 2018\3 September Report\Appendix\db_Elements\008_026_Cols_By_Severity_CasInvolved_Region.txt
B34: 008_017_APP_B_HA Collisions by road name and year | C34: B_DataSheet | D34: B9624 | E34: B9623 | F34: B:\Projects\60546469 - SPaTS_ 1-281_RoadSafetyAnalysisAndReporting\3 - Work Packages\STATS19 2018\3 September Report\Appendix\db_Elements | G34: =F34&"\"&B34&".txt" -> B:\Projects\60546469 - SPaTS_ 1-281_RoadSafetyAnalysisAndReporting\3 - Work Packages\STATS19 2018\3 September Report\Appendix\db_Elements\008_017_APP_B_HA Collisions by road name and year.txt
B35: 010_001_APP_C_HA Casualties by Road Types_Sev_Year | C35: C_DataSheet | D35: B24 | E35: B23 | F35: B:\Projects\60546469 - SPaTS_ 1-281_RoadSafetyAnalysisAndReporting\3 - Work Packages\STATS19 2018\3 September Report\Appendix\db_Elements | G35: B:\Projects\60546469 - SPaTS_ 1-281_RoadSafetyAnalysisAndReporting\3 - Work Packages\STATS19 2018\3 September Report\Appendix\db_Elements\010_001_APP_C_HA Casualties by Road Types_Sev_Year.txt
B36: 010_002_APP_C_HA Casualties by Agegroup_Sev_Year | C36: C_DataSheet | D36: B324 | E36: B323 | F36: B:\Projects\60546469 - SPaTS_ 1-281_RoadSafetyAnalysisAndReporting\3 - Work Packages\STATS19 2018\3 September Report\Appendix\db_Elements | G36: B:\Projects\60546469 - SPaTS_ 1-281_RoadSafetyAnalysisAndReporting\3 - Work Packages\STATS19 2018\3 September Report\Appendix\db_Elements\010_002_APP_C_HA Casualties by Agegroup_Sev_Year.txt
B37: 010_003_APP_C_HA Casualties by Sev_CasType_Year | C37: C_DataSheet | D37: B624 | E37: B623 | F37: B:\Projects\60546469 - SPaTS_ 1-281_RoadSafetyAnalysisAndReporting\3 - Work Packages\STATS19 2018\3 September Report\Appendix\db_Elements | G37: B:\Projects\60546469 - SPaTS_ 1-281_RoadSafetyAnalysisAndReporting\3 - Work Packages\STATS19 2018\3 September Report\Appendix\db_Elements\010_003_APP_C_HA Casualties by Sev_CasType_Year.txt
B38: 010_004_APP_C_HA Casualties by CasType_Agegroup_2012 | C38: C_DataSheet | D38: B924 | E38: B923 | F38: B:\Projects\60546469 - SPaTS_ 1-281_RoadSafetyAnalysisAndReporting\3 - Work Packages\STATS19 2018\3 September Report\Appendix\db_Elements | G38: B:\Projects\60546469 - SPaTS_ 1-281_RoadSafetyAnalysisAndReporting\3 - Work Packages\STATS19 2018\3 September Report\Appendix\db_Elements\010_004_APP_C_HA Casualties by CasType_Agegroup_2012.txt
B39: 010_005_APP_C_HA Casualties by VehHitOff_2013 | C39: C_DataSheet | D39: B1224 | E39: B1223 | F39: B:\Projects\60546469 - SPaTS_ 1-281_RoadSafetyAnalysisAndReporting\3 - Work Packages\STATS19 2018\3 September Report\Appendix\db_Elements | G39: B:\Projects\60546469 - SPaTS_ 1-281_RoadSafetyAnalysisAndReporting\3 - Work Packages\STATS19 2018\3 September Report\Appendix\db_Elements\010_005_APP_C_HA Casualties by VehHitOff_2013.txt
B40: 010_005a_APP_C_HA vehicles by VehHitOff_2013 | C40: C_DataSheet | D40: B1524 | E40: B1523 | F40: B:\Projects\60546469 - SPaTS_ 1-281_RoadSafetyAnalysisAndReporting\3 - Work Packages\STATS19 2018\3 September Report\Appendix\db_Elements | G40: B:\Projects\60546469 - SPaTS_ 1-281_RoadSafetyAnalysisAndReporting\3 - Work Packages\STATS19 2018\3 September Report\Appendix\db_Elements\010_005a_APP_C_HA vehicles by VehHitOff_2013.txt
B41: 010_006_APP_C_HA KSI Casualties by VehHitOff_Year | C41: C_DataSheet | D41: B1824 | E41: B1823 | F41: B:\Projects\60546469 - SPaTS_ 1-281_RoadSafetyAnalysisAndReporting\3 - Work Packages\STATS19 2018\3 September Report\Appendix\db_Elements | G41: B:\Projects\60546469 - SPaTS_ 1-281_RoadSafetyAnalysisAndReporting\3 - Work Packages\STATS19 2018\3 September Report\Appendix\db_Elements\010_006_APP_C_HA KSI Casualties by VehHitOff_Year.txt
B42: 010_007_APP_C_HA Casualties by VehHitOn_2013 | C42: C_DataSheet | D42: B2124 | E42: B2123 | F42: B:\Projects\60546469 - SPaTS_ 1-281_RoadSafetyAnalysisAndReporting\3 - Work Packages\STATS19 2018\3 September Report\Appendix\db_Elements | G42: B:\Projects\60546469 - SPaTS_ 1-281_RoadSafetyAnalysisAndReporting\3 - Work Packages\STATS19 2018\3 September Report\Appendix\db_Elements\010_007_APP_C_HA Casualties by VehHitOn_2013.txt
B43: 010_007a_APP_C_HA vehicles by VehHitIn_2013 | C43: C_DataSheet | D43: B2424 | E43: B2423 | F43: B:\Projects\60546469 - SPaTS_ 1-281_RoadSafetyAnalysisAndReporting\3 - Work Packages\STATS19 2018\3 September Report\Appendix\db_Elements | G43: B:\Projects\60546469 - SPaTS_ 1-281_RoadSafetyAnalysisAndReporting\3 - Work Packages\STATS19 2018\3 September Report\Appendix\db_Elements\010_007a_APP_C_HA vehicles by VehHitIn_2013.txt
B44: 010_008_APP_C_HA KSI Casualties by VehHitOn_Year | C44: C_DataSheet | D44: B2724 | E44: B2723 | F44: B:\Projects\60546469 - SPaTS_ 1-281_RoadSafetyAnalysisAndReporting\3 - Work Packages\STATS19 2018\3 September Report\Appendix\db_Elements | G44: B:\Projects\60546469 - SPaTS_ 1-281_RoadSafetyAnalysisAndReporting\3 - Work Packages\STATS19 2018\3 September Report\Appendix\db_Elements\010_008_APP_C_HA KSI Casualties by VehHitOn_Year.txt
B45: 010_009_APP_C_HA Casualties Inv_SingleVehby CasType_Sev_Year | C45: C_DataSheet | D45: B3024 | E45: B3023 | F45: B:\Projects\60546469 - SPaTS_ 1-281_RoadSafetyAnalysisAndReporting\3 - Work Packages\STATS19 2018\3 September Report\Appendix\db_Elements | G45: B:\Projects\60546469 - SPaTS_ 1-281_RoadSafetyAnalysisAndReporting\3 - Work Packages\STATS19 2018\3 September Report\Appendix\db_Elements\010_009_APP_C_HA Casualties Inv_SingleVehby CasType_Sev_Year.txt
B46: 010_010_APP_C_HA Casualties Inv_HGVs by CasType_Sev_Year | C46: C_DataSheet | D46: B3324 | E46: B3323 | F46: B:\Projects\60546469 - SPaTS_ 1-281_RoadSafetyAnalysisAndReporting\3 - Work Packages\STATS19 2018\3 September Report\Appendix\db_Elements | G46: B:\Projects\60546469 - SPaTS_ 1-281_RoadSafetyAnalysisAndReporting\3 - Work Packages\STATS19 2018\3 September Report\Appendix\db_Elements\010_010_APP_C_HA Casualties Inv_HGVs by CasType_Sev_Year.txt
B47: 010_011_APP_C_HA Casualties Inv_LightGVs by CasType_Sev_Year | C47: C_DataSheet | D47: B3624 | E47: B3623 | F47: B:\Projects\60546469 - SPaTS_ 1-281_RoadSafetyAnalysisAndReporting\3 - Work Packages\STATS19 2018\3 September Report\Appendix\db_Elements | G47: B:\Projects\60546469 - SPaTS_ 1-281_RoadSafetyAnalysisAndReporting\3 - Work Packages\STATS19 2018\3 September Report\Appendix\db_Elements\010_011_APP_C_HA Casualties Inv_LightGVs by CasType_Sev_Year.txt
B48: 010_012_APP_C_HA Casualties Inv_YngMotor by CasType_Sev_Year | C48: C_DataSheet | D48: B3924 | E48: B3923 | F48: B:\Projects\60546469 - SPaTS_ 1-281_RoadSafetyAnalysisAndReporting\3 - Work Packages\STATS19 2018\3 September Report\Appendix\db_Elements | G48: B:\Projects\60546469 - SPaTS_ 1-281_RoadSafetyAnalysisAndReporting\3 - Work Packages\STATS19 2018\3 September Report\Appendix\db_Elements\010_012_APP_C_HA Casualties Inv_YngMotor by CasType_Sev_Year.txt
B49: 010_013_APP_C_HACasualtiesInv_ElderlyMotorbyCasType_Sev_Year | C49: C_DataSheet | D49: B4224 | E49: B4223 | F49: B:\Projects\60546469 - SPaTS_ 1-281_RoadSafetyAnalysisAndReporting\3 - Work Packages\STATS19 2018\3 September Report\Appendix\db_Elements | G49: B:\Projects\60546469 - SPaTS_ 1-281_RoadSafetyAnalysisAndReporting\3 - Work Packages\STATS19 2018\3 September Report\Appendix\db_Elements\010_013_APP_C_HACasualtiesInv_ElderlyMotorbyCasType_Sev_Year.txt
B50: 010_014_APP_C_HACasualtiesInv_TowedCaravenbyCasType_Sev_Year | C50: C_DataSheet | D50: B4524 | E50: B4523 | F50: B:\Projects\60546469 - SPaTS_ 1-281_RoadSafetyAnalysisAndReporting\3 - Work Packages\STATS19 2018\3 September Report\Appendix\db_Elements | G50: B:\Projects\60546469 - SPaTS_ 1-281_RoadSafetyAnalysisAndReporting\3 - Work Packages\STATS19 2018\3 September Report\Appendix\db_Elements\010_014_APP_C_HACasualtiesInv_TowedCaravenbyCasType_Sev_Year.txt
B51: 010_016_APP_C_HA Killed Casualties by Road Name_Year | C51: C_DataSheet | D51: B5124 | E51: B5123 | F51: B:\Projects\60546469 - SPaTS_ 1-281_RoadSafetyAnalysisAndReporting\3 - Work Packages\STATS19 2018\3 September Report\Appendix\db_Elements | G51: B:\Projects\60546469 - SPaTS_ 1-281_RoadSafetyAnalysisAndReporting\3 - Work Packages\STATS19 2018\3 September Report\Appendix\db_Elements\010_016_APP_C_HA Killed Casualties by Road Name_Year.txt
B52: 010_017_APP_C_HA KSI Casualties by Road Name_Year | C52: C_DataSheet | D52: B5424 | E52: B5423 | F52: B:\Projects\60546469 - SPaTS_ 1-281_RoadSafetyAnalysisAndReporting\3 - Work Packages\STATS19 2018\3 September Report\Appendix\db_Elements | G52: B:\Projects\60546469 - SPaTS_ 1-281_RoadSafetyAnalysisAndReporting\3 - Work Packages\STATS19 2018\3 September Report\Appendix\db_Elements\010_017_APP_C_HA KSI Casualties by Road Name_Year.txt
B53: 010_018_APP_C_HA_Cas by collision type | C53: C_DataSheet | D53: B5724 | E53: B5723 | F53: B:\Projects\60546469 - SPaTS_ 1-281_RoadSafetyAnalysisAndReporting\3 - Work Packages\STATS19 2018\3 September Report\Appendix\db_Elements | G53: B:\Projects\60546469 - SPaTS_ 1-281_RoadSafetyAnalysisAndReporting\3 - Work Packages\STATS19 2018\3 September Report\Appendix\db_Elements\010_018_APP_C_HA_Cas by collision type.txt
B54: 010_019_APP_C_HA_SurfaceWeatherCas_Year | C54: C_DataSheet | D54: B6024 | E54: B6023 | F54: B:\Projects\60546469 - SPaTS_ 1-281_RoadSafetyAnalysisAndReporting\3 - Work Packages\STATS19 2018\3 September Report\Appendix\db_Elements | G54: B:\Projects\60546469 - SPaTS_ 1-281_RoadSafetyAnalysisAndReporting\3 - Work Packages\STATS19 2018\3 September Report\Appendix\db_Elements\010_019_APP_C_HA_SurfaceWeatherCas_Year.txt
B55: 010_020_APP_C_HA_Casualties_By_Month_Yr | C55: C_DataSheet | D55: B6324 | E55: B6323 | F55: B:\Projects\60546469 - SPaTS_ 1-281_RoadSafetyAnalysisAndReporting\3 - Work Packages\STATS19 2018\3 September Report\Appendix\db_Elements | G55: B:\Projects\60546469 - SPaTS_ 1-281_RoadSafetyAnalysisAndReporting\3 - Work Packages\STATS19 2018\3 September Report\Appendix\db_Elements\010_020_APP_C_HA_Casualties_By_Month_Yr.txt
B56: 010_021_APP_C_HA_Casualties_By_DayofWeek_TimePeriod_Yr | C56: C_DataSheet | D56: B6624 | E56: B6623 | F56: B:\Projects\60546469 - SPaTS_ 1-281_RoadSafetyAnalysisAndReporting\3 - Work Packages\STATS19 2018\3 September Report\Appendix\db_Elements | G56: B:\Projects\60546469 - SPaTS_ 1-281_RoadSafetyAnalysisAndReporting\3 - Work Packages\STATS19 2018\3 September Report\Appendix\db_Elements\010_021_APP_C_HA_Casualties_By_DayofWeek_TimePeriod_Yr.txt
B57: Table C1_casul_Speedlimit_severity | C57: C_DataSheet | D57: B6924 | E57: B6923 | F57: B:\Projects\60546469 - SPaTS_ 1-281_RoadSafetyAnalysisAndReporting\3 - Work Packages\STATS19 2018\3 September Report\Appendix\db_Elements | G57: B:\Projects\60546469 - SPaTS_ 1-281_RoadSafetyAnalysisAndReporting\3 - Work Packages\STATS19 2018\3 September Report\Appendix\db_Elements\Table C1_casul_Speedlimit_severity.txt
B58: Table Q2_Total_Casu_age_casType | C58: C_DataSheet | D58: B7224 | E58: B7223 | F58: B:\Projects\60546469 - SPaTS_ 1-281_RoadSafetyAnalysisAndReporting\3 - Work Packages\STATS19 2018\3 September Report\Appendix\db_Elements | G58: B:\Projects\60546469 - SPaTS_ 1-281_RoadSafetyAnalysisAndReporting\3 - Work Packages\STATS19 2018\3 September Report\Appendix\db_Elements\Table Q2_Total_Casu_age_casType.txt
B59: Table R&S&T_casualty_accidet_severity_type | C59: C_DataSheet | D59: B7524 | E59: B7523 | F59: B:\Projects\60546469 - SPaTS_ 1-281_RoadSafetyAnalysisAndReporting\3 - Work Packages\STATS19 2018\3 September Report\Appendix\db_Elements | G59: B:\Projects\60546469 - SPaTS_ 1-281_RoadSafetyAnalysisAndReporting\3 - Work Packages\STATS19 2018\3 September Report\Appendix\db_Elements\Table R&S&T_casualty_accidet_severity_type.txt
B60: datasheet15_resultcas_roadtype_gender | C60: C_DataSheet | D60: B7824 | E60: B7823 | F60: B:\Projects\60546469 - SPaTS_ 1-281_RoadSafetyAnalysisAndReporting\3 - Work Packages\STATS19 2018\3 September Report\Appendix\db_Elements | G60: B:\Projects\60546469 - SPaTS_ 1-281_RoadSafetyAnalysisAndReporting\3 - Work Packages\STATS19 2018\3 September Report\Appendix\db_Elements\datasheet15_resultcas_roadtype_gender.txt
B61: Table P_result cas_age_gender | C61: C_DataSheet | D61: B8124 | E61: B8123 | F61: B:\Projects\60546469 - SPaTS_ 1-281_RoadSafetyAnalysisAndReporting\3 - Work Packages\STATS19 2018\3 September Report\Appendix\db_Elements | G61: B:\Projects\60546469 - SPaTS_ 1-281_RoadSafetyAnalysisAndReporting\3 - Work Packages\STATS19 2018\3 September Report\Appendix\db_Elements\Table P_result cas_age_gender.txt
B62: Table W_Result_seatbelt_inuse | C62: C_DataSheet | D62: B8424 | E62: B8423 | F62: B:\Projects\60546469 - SPaTS_ 1-281_RoadSafetyAnalysisAndReporting\3 - Work Packages\STATS19 2018\3 September Report\Appendix\db_Elements | G62: B:\Projects\60546469 - SPaTS_ 1-281_RoadSafetyAnalysisAndReporting\3 - Work Packages\STATS19 2018\3 September Report\Appendix\db_Elements\Table W_Result_seatbelt_inuse.txt
B63: Table Z10_result_casualty_region | C63: C_DataSheet | D63: B8724 | E63: B8723 | F63: B:\Projects\60546469 - SPaTS_ 1-281_RoadSafetyAnalysisAndReporting\3 - Work Packages\STATS19 2018\3 September Report\Appendix\db_Elements | G63: B:\Projects\60546469 - SPaTS_ 1-281_RoadSafetyAnalysisAndReporting\3 - Work Packages\STATS19 2018\3 September Report\Appendix\db_Elements\Table Z10_result_casualty_region.txt
B64: 010_023_APP_C_HA_Casualties_By_Severity_Region_RdClass | C64: C_DataSheet | D64: B9024 | E64: B9023 | F64: B:\Projects\60546469 - SPaTS_ 1-281_RoadSafetyAnalysisAndReporting\3 - Work Packages\STATS19 2018\3 September Report\Appendix\db_Elements | G64: B:\Projects\60546469 - SPaTS_ 1-281_RoadSafetyAnalysisAndReporting\3 - Work Packages\STATS19 2018\3 September Report\Appendix\db_Elements\010_023_APP_C_HA_Casualties_By_Severity_Region_RdClass.txt
B65: 010_024_APP_C_HA_Casualties_By_Severity_Region_CasType | C65: C_DataSheet | D65: B9324 | E65: B9323 | F65: B:\Projects\60546469 - SPaTS_ 1-281_RoadSafetyAnalysisAndReporting\3 - Work Packages\STATS19 2018\3 September Report\Appendix\db_Elements | G65: B:\Projects\60546469 - SPaTS_ 1-281_RoadSafetyAnalysisAndReporting\3 - Work Packages\STATS19 2018\3 September Report\Appendix\db_Elements\010_024_APP_C_HA_Casualties_By_Severity_Region_CasType.txt
B66: 010_015_APP_C_HA Casualties by Road Name_Year | C66: C_DataSheet | D66: B9624 | E66: B9623 | F66: B:\Projects\60546469 - SPaTS_ 1-281_RoadSafetyAnalysisAndReporting\3 - Work Packages\STATS19 2018\3 September Report\Appendix\db_Elements | G66: =F66&"\"&B66&".txt" -> B:\Projects\60546469 - SPaTS_ 1-281_RoadSafetyAnalysisAndReporting\3 - Work Packages\STATS19 2018\3 September Report\Appendix\db_Elements\010_015_APP_C_HA Casualties by Road Name_Year.txt
B67: 016_001_Traffic_Volumes_Rname_Year | C67: D_DataSheet | D67: B24 | E67: B23 | F67: B:\Projects\60546469 - SPaTS_ 1-281_RoadSafetyAnalysisAndReporting\3 - Work Packages\STATS19 2018\3 September Report\Appendix\db_Elements | G67: =F67&"\"&B67&".txt" -> B:\Projects\60546469 - SPaTS_ 1-281_RoadSafetyAnalysisAndReporting\3 - Work Packages\STATS19 2018\3 September Report\Appendix\db_Elements\016_001_Traffic_Volumes_Rname_Year.txt
B68: 016_003_RdClass_Traffic_Volumes_Rname_Year | C68: D_DataSheet | D68: B324 | E68: B323 | F68: B:\Projects\60546469 - SPaTS_ 1-281_RoadSafetyAnalysisAndReporting\3 - Work Packages\STATS19 2018\3 September Report\Appendix\db_Elements | G68: =F68&"\"&B68&".txt" -> B:\Projects\60546469 - SPaTS_ 1-281_RoadSafetyAnalysisAndReporting\3 - Work Packages\STATS19 2018\3 September Report\Appendix\db_Elements\016_003_RdClass_Traffic_Volumes_Rname_Year.txt
B69: 014_007_Traffic_VehType_Year | C69: D_DataSheet | D69: B624 | E69: B623 | F69: B:\Projects\60546469 - SPaTS_ 1-281_RoadSafetyAnalysisAndReporting\3 - Work Packages\STATS19 2018\3 September Report\Appendix\db_Elements | G69: =F69&"\"&B69&".txt" -> B:\Projects\60546469 - SPaTS_ 1-281_RoadSafetyAnalysisAndReporting\3 - Work Packages\STATS19 2018\3 September Report\Appendix\db_Elements\014_007_Traffic_VehType_Year.txt
B70: Traffic_By_Region | C70: D_DataSheet | D70: B924 | E70: B923 | F70: B:\Projects\60546469 - SPaTS_ 1-281_RoadSafetyAnalysisAndReporting\3 - Work Packages\STATS19 2018\3 September Report\Appendix\db_Elements | G70: =F70&"\"&B70&".txt" -> B:\Projects\60546469 - SPaTS_ 1-281_RoadSafetyAnalysisAndReporting\3 - Work Packages\STATS19 2018\3 September Report\Appendix\db_Elements\Traffic_By_Region.txt
B71: 011_009_VehInt_Killed | C71: E_DataSheet | D71: B24 | E71: B23 | F71: B:\Projects\60546469 - SPaTS_ 1-281_RoadSafetyAnalysisAndReporting\3 - Work Packages\STATS19 2018\3 September Report\Appendix\db_Elements | G71: B:\Projects\60546469 - SPaTS_ 1-281_RoadSafetyAnalysisAndReporting\3 - Work Packages\STATS19 2018\3 September Report\Appendix\db_Elements\011_009_VehInt_Killed.txt
B72: 011_010_VehInt_SI | C72: E_DataSheet | D72: B324 | E72: B323 | F72: B:\Projects\60546469 - SPaTS_ 1-281_RoadSafetyAnalysisAndReporting\3 - Work Packages\STATS19 2018\3 September Report\Appendix\db_Elements | G72: =F72&"\"&B72&".txt" -> B:\Projects\60546469 - SPaTS_ 1-281_RoadSafetyAnalysisAndReporting\3 - Work Packages\STATS19 2018\3 September Report\Appendix\db_Elements\011_010_VehInt_SI.txt
B73: 011_011_APP_E_VehInt_KSI_VehCount | C73: E_DataSheet | D73: B624 | E73: B623 | F73: B:\Projects\60546469 - SPaTS_ 1-281_RoadSafetyAnalysisAndReporting\3 - Work Packages\STATS19 2018\3 September Report\Appendix\db_Elements | G73: B:\Projects\60546469 - SPaTS_ 1-281_RoadSafetyAnalysisAndReporting\3 - Work Packages\STATS19 2018\3 September Report\Appendix\db_Elements\011_011_APP_E_VehInt_KSI_VehCount.txt
B74: 012_001_HA_Veh Inv by Acc Sev_VehType_Year | C74: E_DataSheet | D74: B924 | E74: B923 | F74: B:\Projects\60546469 - SPaTS_ 1-281_RoadSafetyAnalysisAndReporting\3 - Work Packages\STATS19 2018\3 September Report\Appendix\db_Elements | G74: B:\Projects\60546469 - SPaTS_ 1-281_RoadSafetyAnalysisAndReporting\3 - Work Packages\STATS19 2018\3 September Report\Appendix\db_Elements\012_001_HA_Veh Inv by Acc Sev_VehType_Year.txt
B75: 012_002_Cas by_VehInt_serv_1yr | C75: E_DataSheet | D75: B1224 | E75: B1223 | F75: B:\Projects\60546469 - SPaTS_ 1-281_RoadSafetyAnalysisAndReporting\3 - Work Packages\STATS19 2018\3 September Report\Appendix\db_Elements | G75: B:\Projects\60546469 - SPaTS_ 1-281_RoadSafetyAnalysisAndReporting\3 - Work Packages\STATS19 2018\3 September Report\Appendix\db_Elements\012_002_Cas by_VehInt_serv_1yr.txt
B76: 012_003_APP_E_VehInt_VehCount_1Yr | C76: E_DataSheet | D76: B1524 | E76: B1523 | F76: B:\Projects\60546469 - SPaTS_ 1-281_RoadSafetyAnalysisAndReporting\3 - Work Packages\STATS19 2018\3 September Report\Appendix\db_Elements | G76: B:\Projects\60546469 - SPaTS_ 1-281_RoadSafetyAnalysisAndReporting\3 - Work Packages\STATS19 2018\3 September Report\Appendix\db_Elements\012_003_APP_E_VehInt_VehCount_1Yr.txt
B77: 012_004_Col by_VehInt_serv_1yr | C77: E_DataSheet | D77: B1824 | E77: B1823 | F77: B:\Projects\60546469 - SPaTS_ 1-281_RoadSafetyAnalysisAndReporting\3 - Work Packages\STATS19 2018\3 September Report\Appendix\db_Elements | G77: B:\Projects\60546469 - SPaTS_ 1-281_RoadSafetyAnalysisAndReporting\3 - Work Packages\STATS19 2018\3 September Report\Appendix\db_Elements\012_004_Col by_VehInt_serv_1yr.txt
B78: 104_112_Cas_by_type_AgeVehicle | C78: E_DataSheet | D78: B2124 | E78: B2123 | F78: B:\Projects\60546469 - SPaTS_ 1-281_RoadSafetyAnalysisAndReporting\3 - Work Packages\STATS19 2018\3 September Report\Appendix\db_Elements | G78: B:\Projects\60546469 - SPaTS_ 1-281_RoadSafetyAnalysisAndReporting\3 - Work Packages\STATS19 2018\3 September Report\Appendix\db_Elements\104_112_Cas_by_type_AgeVehicle.txt
B79: 104_114_Col_VehTypeVehAgeSeverityYr | C79: E_DataSheet | D79: B2424 | E79: B2423 | F79: B:\Projects\60546469 - SPaTS_ 1-281_RoadSafetyAnalysisAndReporting\3 - Work Packages\STATS19 2018\3 September Report\Appendix\db_Elements | G79: B:\Projects\60546469 - SPaTS_ 1-281_RoadSafetyAnalysisAndReporting\3 - Work Packages\STATS19 2018\3 September Report\Appendix\db_Elements\104_114_Col_VehTypeVehAgeSeverityYr.txt
B80: 104_109 Cas by vehDefect ayears | C80: E_DataSheet | D80: B2724 | E80: B2723 | F80: B:\Projects\60546469 - SPaTS_ 1-281_RoadSafetyAnalysisAndReporting\3 - Work Packages\STATS19 2018\3 September Report\Appendix\db_Elements | G80: B:\Projects\60546469 - SPaTS_ 1-281_RoadSafetyAnalysisAndReporting\3 - Work Packages\STATS19 2018\3 September Report\Appendix\db_Elements\104_109 Cas by vehDefect ayears.txt
B81: 104_109a Cols by vehDefect ayears | C81: E_DataSheet | D81: B3024 | E81: B3023 | F81: B:\Projects\60546469 - SPaTS_ 1-281_RoadSafetyAnalysisAndReporting\3 - Work Packages\STATS19 2018\3 September Report\Appendix\db_Elements | G81: B:\Projects\60546469 - SPaTS_ 1-281_RoadSafetyAnalysisAndReporting\3 - Work Packages\STATS19 2018\3 September Report\Appendix\db_Elements\104_109a Cols by vehDefect ayears.txt
B82: 011_009A_VehInt_Fatal | C82: E_DataSheet | D82: B3324 | E82: B3323 | F82: B:\Projects\60546469 - SPaTS_ 1-281_RoadSafetyAnalysisAndReporting\3 - Work Packages\STATS19 2018\3 September Report\Appendix\db_Elements | G82: B:\Projects\60546469 - SPaTS_ 1-281_RoadSafetyAnalysisAndReporting\3 - Work Packages\STATS19 2018\3 September Report\Appendix\db_Elements\011_009A_VehInt_Fatal.txt
B83: 011_010A_VehInt_Serious | C83: E_DataSheet | D83: B3624 | E83: B3623 | F83: B:\Projects\60546469 - SPaTS_ 1-281_RoadSafetyAnalysisAndReporting\3 - Work Packages\STATS19 2018\3 September Report\Appendix\db_Elements | G83: B:\Projects\60546469 - SPaTS_ 1-281_RoadSafetyAnalysisAndReporting\3 - Work Packages\STATS19 2018\3 September Report\Appendix\db_Elements\011_010A_VehInt_Serious.txt
B84: Table U_Male and Female Drivers | C84: E_DataSheet | D84: B3924 | E84: B3923 | F84: B:\Projects\60546469 - SPaTS_ 1-281_RoadSafetyAnalysisAndReporting\3 - Work Packages\STATS19 2018\3 September Report\Appendix\db_Elements | G84: B:\Projects\60546469 - SPaTS_ 1-281_RoadSafetyAnalysisAndReporting\3 - Work Packages\STATS19 2018\3 September Report\Appendix\db_Elements\Table U_Male and Female Drivers.txt
B85: Table K_resultcolli_vehNo_vehtype | C85: E_DataSheet | D85: B4224 | E85: B4223 | F85: B:\Projects\60546469 - SPaTS_ 1-281_RoadSafetyAnalysisAndReporting\3 - Work Packages\STATS19 2018\3 September Report\Appendix\db_Elements | G85: B:\Projects\60546469 - SPaTS_ 1-281_RoadSafetyAnalysisAndReporting\3 - Work Packages\STATS19 2018\3 September Report\Appendix\db_Elements\Table K_resultcolli_vehNo_vehtype.txt
B86: Table L_resultcolli_veh_junction | C86: E_DataSheet | D86: B4524 | E86: B4523 | F86: B:\Projects\60546469 - SPaTS_ 1-281_RoadSafetyAnalysisAndReporting\3 - Work Packages\STATS19 2018\3 September Report\Appendix\db_Elements | G86: B:\Projects\60546469 - SPaTS_ 1-281_RoadSafetyAnalysisAndReporting\3 - Work Packages\STATS19 2018\3 September Report\Appendix\db_Elements\Table L_resultcolli_veh_junction.txt
B87: Table N_resultcolli_veh_surface | C87: E_DataSheet | D87: B4824 | E87: B4823 | F87: B:\Projects\60546469 - SPaTS_ 1-281_RoadSafetyAnalysisAndReporting\3 - Work Packages\STATS19 2018\3 September Report\Appendix\db_Elements | G87: B:\Projects\60546469 - SPaTS_ 1-281_RoadSafetyAnalysisAndReporting\3 - Work Packages\STATS19 2018\3 September Report\Appendix\db_Elements\Table N_resultcolli_veh_surface.txt
B88: Table O_result of vehtype_manv | C88: E_DataSheet | D88: B5124 | E88: B5123 | F88: B:\Projects\60546469 - SPaTS_ 1-281_RoadSafetyAnalysisAndReporting\3 - Work Packages\STATS19 2018\3 September Report\Appendix\db_Elements | G88: B:\Projects\60546469 - SPaTS_ 1-281_RoadSafetyAnalysisAndReporting\3 - Work Packages\STATS19 2018\3 September Report\Appendix\db_Elements\Table O_result of vehtype_manv.txt
B89: 012_005_HA_Veh_InvBySevRegion | C89: E_DataSheet | D89: B5424 | E89: B5423 | F89: B:\Projects\60546469 - SPaTS_ 1-281_RoadSafetyAnalysisAndReporting\3 - Work Packages\STATS19 2018\3 September Report\Appendix\db_Elements | G89: B:\Projects\60546469 - SPaTS_ 1-281_RoadSafetyAnalysisAndReporting\3 - Work Packages\STATS19 2018\3 September Report\Appendix\db_Elements\012_005_HA_Veh_InvBySevRegion.txt
B90: 020_001_APP_F_HA_All_78CFS_by NumCol_and_AccSev | C90: F_DataSheet | D90: B24 | E90: B23 | F90: B:\Projects\60546469 - SPaTS_ 1-281_RoadSafetyAnalysisAndReporting\3 - Work Packages\STATS19 2018\3 September Report\Appendix\db_Elements | G90: B:\Projects\60546469 - SPaTS_ 1-281_RoadSafetyAnalysisAndReporting\3 - Work Packages\STATS19 2018\3 September Report\Appendix\db_Elements\020_001_APP_F_HA_All_78CFS_by NumCol_and_AccSev.txt
B91: 020_002_APP_F_HA_All_78CFS_by NumCol and Total FS Year 2013 | C91: F_DataSheet | D91: B324 | E91: B323 | F91: B:\Projects\60546469 - SPaTS_ 1-281_RoadSafetyAnalysisAndReporting\3 - Work Packages\STATS19 2018\3 September Report\Appendix\db_Elements | G91: B:\Projects\60546469 - SPaTS_ 1-281_RoadSafetyAnalysisAndReporting\3 - Work Packages\STATS19 2018\3 September Report\Appendix\db_Elements\020_002_APP_F_HA_All_78CFS_by NumCol and Total FS Year 2013.txt
B92: 020_004_APP_F_HA_Casu involving Booze and Drugs By Sev_Year | C92: F_DataSheet | D92: B624 | E92: B623 | F92: B:\Projects\60546469 - SPaTS_ 1-281_RoadSafetyAnalysisAndReporting\3 - Work Packages\STATS19 2018\3 September Report\Appendix\db_Elements | G92: B:\Projects\60546469 - SPaTS_ 1-281_RoadSafetyAnalysisAndReporting\3 - Work Packages\STATS19 2018\3 September Report\Appendix\db_Elements\020_004_APP_F_HA_Casu involving Booze and Drugs By Sev_Year.txt
B93: 020_005_APP_F_HA_Col involving Booze and Drugs By Sev_Year | C93: F_DataSheet | D93: B924 | E93: B923 | F93: B:\Projects\60546469 - SPaTS_ 1-281_RoadSafetyAnalysisAndReporting\3 - Work Packages\STATS19 2018\3 September Report\Appendix\db_Elements | G93: B:\Projects\60546469 - SPaTS_ 1-281_RoadSafetyAnalysisAndReporting\3 - Work Packages\STATS19 2018\3 September Report\Appendix\db_Elements\020_005_APP_F_HA_Col involving Booze and Drugs By Sev_Year.txt
B94: 020_006_APP_F_HA_Col invol BoozeDrugs By Top10Rnames_Year | C94: F_DataSheet | D94: B1224 | E94: B1223 | F94: B:\Projects\60546469 - SPaTS_ 1-281_RoadSafetyAnalysisAndReporting\3 - Work Packages\STATS19 2018\3 September Report\Appendix\db_Elements | G94: B:\Projects\60546469 - SPaTS_ 1-281_RoadSafetyAnalysisAndReporting\3 - Work Packages\STATS19 2018\3 September Report\Appendix\db_Elements\020_006_APP_F_HA_Col invol BoozeDrugs By Top10Rnames_Year.txt
B95: 020_007_APP_F_HA_CasualtiesInvolvingFatigueBy RtypeSev_Year | C95: F_DataSheet | D95: B1524 | E95: B1523 | F95: B:\Projects\60546469 - SPaTS_ 1-281_RoadSafetyAnalysisAndReporting\3 - Work Packages\STATS19 2018\3 September Report\Appendix\db_Elements | G95: B:\Projects\60546469 - SPaTS_ 1-281_RoadSafetyAnalysisAndReporting\3 - Work Packages\STATS19 2018\3 September Report\Appendix\db_Elements\020_007_APP_F_HA_CasualtiesInvolvingFatigueBy RtypeSev_Year.txt
B96: 020_008_APP_F_HA_Col involving Fatigue By RtypeSev_Year | C96: F_DataSheet | D96: B1824 | E96: B1823 | F96: B:\Projects\60546469 - SPaTS_ 1-281_RoadSafetyAnalysisAndReporting\3 - Work Packages\STATS19 2018\3 September Report\Appendix\db_Elements | G96: B:\Projects\60546469 - SPaTS_ 1-281_RoadSafetyAnalysisAndReporting\3 - Work Packages\STATS19 2018\3 September Report\Appendix\db_Elements\020_008_APP_F_HA_Col involving Fatigue By RtypeSev_Year.txt
B97: 020_009_APP_F_HA_Col invol Fatigue By Top10Rnames_Year | C97: F_DataSheet | D97: B2124 | E97: B2123 | F97: B:\Projects\60546469 - SPaTS_ 1-281_RoadSafetyAnalysisAndReporting\3 - Work Packages\STATS19 2018\3 September Report\Appendix\db_Elements | G97: B:\Projects\60546469 - SPaTS_ 1-281_RoadSafetyAnalysisAndReporting\3 - Work Packages\STATS19 2018\3 September Report\Appendix\db_Elements\020_009_APP_F_HA_Col invol Fatigue By Top10Rnames_Year.txt
B98: 020_010_APP_F_HA_Cas involving Speed By Sev_SpeedLimit_Year | C98: F_DataSheet | D98: B2424 | E98: B2423 | F98: B:\Projects\60546469 - SPaTS_ 1-281_RoadSafetyAnalysisAndReporting\3 - Work Packages\STATS19 2018\3 September Report\Appendix\db_Elements | G98: B:\Projects\60546469 - SPaTS_ 1-281_RoadSafetyAnalysisAndReporting\3 - Work Packages\STATS19 2018\3 September Report\Appendix\db_Elements\020_010_APP_F_HA_Cas involving Speed By Sev_SpeedLimit_Year.txt
B99: 020_011_APP_F_HA_Cols involving Speed By Sev_SpeedLimit_Year | C99: F_DataSheet | D99: B2724 | E99: B2723 | F99: B:\Projects\60546469 - SPaTS_ 1-281_RoadSafetyAnalysisAndReporting\3 - Work Packages\STATS19 2018\3 September Report\Appendix\db_Elements | G99: B:\Projects\60546469 - SPaTS_ 1-281_RoadSafetyAnalysisAndReporting\3 - Work Packages\STATS19 2018\3 September Report\Appendix\db_Elements\020_011_APP_F_HA_Cols involving Speed By Sev_SpeedLimit_Year.txt
B100: 020_012_APP_F_HA_Col invol Speeding By Top10Rnames_Year | C100: F_DataSheet | D100: B3024 | E100: B3023 | F100: B:\Projects\60546469 - SPaTS_ 1-281_RoadSafetyAnalysisAndReporting\3 - Work Packages\STATS19 2018\3 September Report\Appendix\db_Elements | G100: B:\Projects\60546469 - SPaTS_ 1-281_RoadSafetyAnalysisAndReporting\3 - Work Packages\STATS19 2018\3 September Report\Appendix\db_Elements\020_012_APP_F_HA_Col invol Speeding By Top10Rnames_Year.txt
B101: 020_013_APP_F_HA_CasualtiesinvolvingDistractionBy Sev_Year | C101: F_DataSheet | D101: B3324 | E101: B3323 | F101: B:\Projects\60546469 - SPaTS_ 1-281_RoadSafetyAnalysisAndReporting\3 - Work Packages\STATS19 2018\3 September Report\Appendix\db_Elements | G101: B:\Projects\60546469 - SPaTS_ 1-281_RoadSafetyAnalysisAndReporting\3 - Work Packages\STATS19 2018\3 September Report\Appendix\db_Elements\020_013_APP_F_HA_CasualtiesinvolvingDistractionBy Sev_Year.txt
B102: 020_014_APP_F_HA_Cols involving Distraction By Sev_Year | C102: F_DataSheet | D102: B3624 | E102: B3623 | F102: B:\Projects\60546469 - SPaTS_ 1-281_RoadSafetyAnalysisAndReporting\3 - Work Packages\STATS19 2018\3 September Report\Appendix\db_Elements | G102: B:\Projects\60546469 - SPaTS_ 1-281_RoadSafetyAnalysisAndReporting\3 - Work Packages\STATS19 2018\3 September Report\Appendix\db_Elements\020_014_APP_F_HA_Cols involving Distraction By Sev_Year.txt
B103: 020_015_APP_F_HA_Col invol Distract By Top10Rnames_Year | C103: F_DataSheet | D103: B3924 | E103: B3923 | F103: B:\Projects\60546469 - SPaTS_ 1-281_RoadSafetyAnalysisAndReporting\3 - Work Packages\STATS19 2018\3 September Report\Appendix\db_Elements | G103: B:\Projects\60546469 - SPaTS_ 1-281_RoadSafetyAnalysisAndReporting\3 - Work Packages\STATS19 2018\3 September Report\Appendix\db_Elements\020_015_APP_F_HA_Col invol Distract By Top10Rnames_Year.txt
B104: 020_006_APP_F_HA_Cas_InvolBoozeDrugsTop20RdNames_Yr | C104: F_DataSheet | D104: B4224 | E104: B4223 | F104: B:\Projects\60546469 - SPaTS_ 1-281_RoadSafetyAnalysisAndReporting\3 - Work Packages\STATS19 2018\3 September Report\Appendix\db_Elements | G104: B:\Projects\60546469 - SPaTS_ 1-281_RoadSafetyAnalysisAndReporting\3 - Work Packages\STATS19 2018\3 September Report\Appendix\db_Elements\020_006_APP_F_HA_Cas_InvolBoozeDrugsTop20RdNames_Yr.txt
B105: 020_009_APP_F_HA_Cas_InvolFatigueByTop20RdNames_Yr | C105: F_DataSheet | D105: B4524 | E105: B4523 | F105: B:\Projects\60546469 - SPaTS_ 1-281_RoadSafetyAnalysisAndReporting\3 - Work Packages\STATS19 2018\3 September Report\Appendix\db_Elements | G105: B:\Projects\60546469 - SPaTS_ 1-281_RoadSafetyAnalysisAndReporting\3 - Work Packages\STATS19 2018\3 September Report\Appendix\db_Elements\020_009_APP_F_HA_Cas_InvolFatigueByTop20RdNames_Yr.txt
B106: 020_012_APP_F_HA_Cas_InvolSpeedingTop20RdNames_Yr | C106: F_DataSheet | D106: B4824 | E106: B4823 | F106: B:\Projects\60546469 - SPaTS_ 1-281_RoadSafetyAnalysisAndReporting\3 - Work Packages\STATS19 2018\3 September Report\Appendix\db_Elements | G106: B:\Projects\60546469 - SPaTS_ 1-281_RoadSafetyAnalysisAndReporting\3 - Work Packages\STATS19 2018\3 September Report\Appendix\db_Elements\020_012_APP_F_HA_Cas_InvolSpeedingTop20RdNames_Yr.txt
B107: 020_015_APP_F_HA_Cas_InvolDistractTop20RdNames_Yr | C107: F_DataSheet | D107: B5124 | E107: B5123 | F107: B:\Projects\60546469 - SPaTS_ 1-281_RoadSafetyAnalysisAndReporting\3 - Work Packages\STATS19 2018\3 September Report\Appendix\db_Elements | G107: B:\Projects\60546469 - SPaTS_ 1-281_RoadSafetyAnalysisAndReporting\3 - Work Packages\STATS19 2018\3 September Report\Appendix\db_Elements\020_015_APP_F_HA_Cas_InvolDistractTop20RdNames_Yr.txt
B108: 020_001a_APP_F_HA_All_78CFS_by NumCas_and_AccSev | C108: F_DataSheet | D108: B5424 | E108: B5423 | F108: B:\Projects\60546469 - SPaTS_ 1-281_RoadSafetyAnalysisAndReporting\3 - Work Packages\STATS19 2018\3 September Report\Appendix\db_Elements | G108: B:\Projects\60546469 - SPaTS_ 1-281_RoadSafetyAnalysisAndReporting\3 - Work Packages\STATS19 2018\3 September Report\Appendix\db_Elements\020_001a_APP_F_HA_All_78CFS_by NumCas_and_AccSev.txt
B109: 020_002_APP_F_HA_All_78CFS_by NumCasSeverityandYear | C109: F_DataSheet | D109: B5724 | E109: B5723 | F109: B:\Projects\60546469 - SPaTS_ 1-281_RoadSafetyAnalysisAndReporting\3 - Work Packages\STATS19 2018\3 September Report\Appendix\db_Elements | G109: B:\Projects\60546469 - SPaTS_ 1-281_RoadSafetyAnalysisAndReporting\3 - Work Packages\STATS19 2018\3 September Report\Appendix\db_Elements\020_002_APP_F_HA_All_78CFS_by NumCasSeverityandYear.txt
B110: Table Z13&Z14_collision_CF_RoadClass_2015 | C110: F_DataSheet | D110: B6024 | E110: B6023 | F110: B:\Projects\60546469 - SPaTS_ 1-281_RoadSafetyAnalysisAndReporting\3 - Work Packages\STATS19 2018\3 September Report\Appendix\db_Elements | G110: B:\Projects\60546469 - SPaTS_ 1-281_RoadSafetyAnalysisAndReporting\3 - Work Packages\STATS19 2018\3 September Report\Appendix\db_Elements\Table Z13&Z14_collision_CF_RoadClass_2015.txt
B111: Table Z16_Result_casualty_CF_2015 | C111: F_DataSheet | D111: B6324 | E111: B6323 | F111: B:\Projects\60546469 - SPaTS_ 1-281_RoadSafetyAnalysisAndReporting\3 - Work Packages\STATS19 2018\3 September Report\Appendix\db_Elements | G111: B:\Projects\60546469 - SPaTS_ 1-281_RoadSafetyAnalysisAndReporting\3 - Work Packages\STATS19 2018\3 September Report\Appendix\db_Elements\Table Z16_Result_casualty_CF_2015.txt
B112: Table Z20&Z21_ Result_Collision_CF_2015 | C112: F_DataSheet | D112: B6624 | E112: B6623 | F112: B:\Projects\60546469 - SPaTS_ 1-281_RoadSafetyAnalysisAndReporting\3 - Work Packages\STATS19 2018\3 September Report\Appendix\db_Elements | G112: B:\Projects\60546469 - SPaTS_ 1-281_RoadSafetyAnalysisAndReporting\3 - Work Packages\STATS19 2018\3 September Report\Appendix\db_Elements\Table Z20&Z21_ Result_Collision_CF_2015.txt
B113: Table Z24&Z25_casualty_CF_RoadType_2015 | C113: F_DataSheet | D113: B6924 | E113: B6923 | F113: B:\Projects\60546469 - SPaTS_ 1-281_RoadSafetyAnalysisAndReporting\3 - Work Packages\STATS19 2018\3 September Report\Appendix\db_Elements | G113: B:\Projects\60546469 - SPaTS_ 1-281_RoadSafetyAnalysisAndReporting\3 - Work Packages\STATS19 2018\3 September Report\Appendix\db_Elements\Table Z24&Z25_casualty_CF_RoadType_2015.txt
B114: Total_Top20Motorway_CF_Collisions | C114: F_DataSheet | D114: B7224 | E114: B7223 | F114: B:\Projects\60546469 - SPaTS_ 1-281_RoadSafetyAnalysisAndReporting\3 - Work Packages\STATS19 2018\3 September Report\Appendix\db_Elements | G114: B:\Projects\60546469 - SPaTS_ 1-281_RoadSafetyAnalysisAndReporting\3 - Work Packages\STATS19 2018\3 September Report\Appendix\db_Elements\Total_Top20Motorway_CF_Collisions.txt
B115: Total_Top20ARoad_CF_Collisions | C115: F_DataSheet | D115: B7524 | E115: B7523 | F115: B:\Projects\60546469 - SPaTS_ 1-281_RoadSafetyAnalysisAndReporting\3 - Work Packages\STATS19 2018\3 September Report\Appendix\db_Elements | G115: B:\Projects\60546469 - SPaTS_ 1-281_RoadSafetyAnalysisAndReporting\3 - Work Packages\STATS19 2018\3 September Report\Appendix\db_Elements\Total_Top20ARoad_CF_Collisions.txt
B116: Total_Top20ARoad_SingleCarriageway_CF_Collisions | C116: F_DataSheet | D116: B7824 | E116: B7823 | F116: B:\Projects\60546469 - SPaTS_ 1-281_RoadSafetyAnalysisAndReporting\3 - Work Packages\STATS19 2018\3 September Report\Appendix\db_Elements | G116: B:\Projects\60546469 - SPaTS_ 1-281_RoadSafetyAnalysisAndReporting\3 - Work Packages\STATS19 2018\3 September Report\Appendix\db_Elements\Total_Top20ARoad_SingleCarriageway_CF_Collisions.txt
B117: Total_Top20ARoad_DualCarriageway_CF_Collisions | C117: F_DataSheet | D117: B8124 | E117: B8123 | F117: B:\Projects\60546469 - SPaTS_ 1-281_RoadSafetyAnalysisAndReporting\3 - Work Packages\STATS19 2018\3 September Report\Appendix\db_Elements | G117: B:\Projects\60546469 - SPaTS_ 1-281_RoadSafetyAnalysisAndReporting\3 - Work Packages\STATS19 2018\3 September Report\Appendix\db_Elements\Total_Top20ARoad_DualCarriageway_CF_Collisions.txt
B118: Total_Top20Motorway_CF_Casualties | C118: F_DataSheet | D118: B8424 | E118: B8423 | F118: B:\Projects\60546469 - SPaTS_ 1-281_RoadSafetyAnalysisAndReporting\3 - Work Packages\STATS19 2018\3 September Report\Appendix\db_Elements | G118: B:\Projects\60546469 - SPaTS_ 1-281_RoadSafetyAnalysisAndReporting\3 - Work Packages\STATS19 2018\3 September Report\Appendix\db_Elements\Total_Top20Motorway_CF_Casualties.txt
B119: Total_Top20ARoad_CF_Casualites | C119: F_DataSheet | D119: B8724 | E119: B8723 | F119: B:\Projects\60546469 - SPaTS_ 1-281_RoadSafetyAnalysisAndReporting\3 - Work Packages\STATS19 2018\3 September Report\Appendix\db_Elements | G119: B:\Projects\60546469 - SPaTS_ 1-281_RoadSafetyAnalysisAndReporting\3 - Work Packages\STATS19 2018\3 September Report\Appendix\db_Elements\Total_Top20ARoad_CF_Casualites.txt
B120: Total_Top20ARoad_SingleCarriageway_CF_Casualties | C120: F_DataSheet | D120: B9024 | E120: B9023 | F120: B:\Projects\60546469 - SPaTS_ 1-281_RoadSafetyAnalysisAndReporting\3 - Work Packages\STATS19 2018\3 September Report\Appendix\db_Elements | G120: B:\Projects\60546469 - SPaTS_ 1-281_RoadSafetyAnalysisAndReporting\3 - Work Packages\STATS19 2018\3 September Report\Appendix\db_Elements\Total_Top20ARoad_SingleCarriageway_CF_Casualties.txt
B121: Total_Top20ARoad_DualCarriageway_CF_Casualties | C121: F_DataSheet | D121: B9324 | E121: B9323 | F121: B:\Projects\60546469 - SPaTS_ 1-281_RoadSafetyAnalysisAndReporting\3 - Work Packages\STATS19 2018\3 September Report\Appendix\db_Elements | G121: B:\Projects\60546469 - SPaTS_ 1-281_RoadSafetyAnalysisAndReporting\3 - Work Packages\STATS19 2018\3 September Report\Appendix\db_Elements\Total_Top20ARoad_DualCarriageway_CF_Casualties.txt
B122: 002_007_CF | C122: F_DataSheet | D122: B9624 | E122: B9623 | F122: B:\Projects\60546469 - SPaTS_ 1-281_RoadSafetyAnalysisAndReporting\3 - Work Packages\STATS19 2018\3 September Report\Appendix\db_Elements | G122: B:\Projects\60546469 - SPaTS_ 1-281_RoadSafetyAnalysisAndReporting\3 - Work Packages\STATS19 2018\3 September Report\Appendix\db_Elements\002_007_CF.txt
B123: 030_001_APP_H_Fat by road name and year | C123: G_DataSheet | D123: B24 | E123: B23 | F123: B:\Projects\60546469 - SPaTS_ 1-281_RoadSafetyAnalysisAndReporting\3 - Work Packages\STATS19 2018\3 September Report\Appendix\db_Elements | G123: B:\Projects\60546469 - SPaTS_ 1-281_RoadSafetyAnalysisAndReporting\3 - Work Packages\STATS19 2018\3 September Report\Appendix\db_Elements\030_001_APP_H_Fat by road name and year.txt
B124: 030_002_APP_H_Fatalities by road type and year | C124: G_DataSheet | D124: B324 | E124: B323 | F124: B:\Projects\60546469 - SPaTS_ 1-281_RoadSafetyAnalysisAndReporting\3 - Work Packages\STATS19 2018\3 September Report\Appendix\db_Elements | G124: B:\Projects\60546469 - SPaTS_ 1-281_RoadSafetyAnalysisAndReporting\3 - Work Packages\STATS19 2018\3 September Report\Appendix\db_Elements\030_002_APP_H_Fatalities by road type and year.txt
B125: 030_003_APP_H_Fatal Collisions_Rapid_CF ANALYSIS | C125: G_DataSheet | D125: B624 | E125: B623 | F125: B:\Projects\60546469 - SPaTS_ 1-281_RoadSafetyAnalysisAndReporting\3 - Work Packages\STATS19 2018\3 September Report\Appendix\db_Elements | G125: B:\Projects\60546469 - SPaTS_ 1-281_RoadSafetyAnalysisAndReporting\3 - Work Packages\STATS19 2018\3 September Report\Appendix\db_Elements\030_003_APP_H_Fatal Collisions_Rapid_CF ANALYSIS.txt
B126: 030_004_APP_H_Fat_by object hit on carr and year | C126: G_DataSheet | D126: B924 | E126: B923 | F126: B:\Projects\60546469 - SPaTS_ 1-281_RoadSafetyAnalysisAndReporting\3 - Work Packages\STATS19 2018\3 September Report\Appendix\db_Elements | G126: B:\Projects\60546469 - SPaTS_ 1-281_RoadSafetyAnalysisAndReporting\3 - Work Packages\STATS19 2018\3 September Report\Appendix\db_Elements\030_004_APP_H_Fat_by object hit on carr and year.txt
B127: 030_005_APP_H_Fat_by object hit off carr and year | C127: G_DataSheet | D127: B1224 | E127: B1223 | F127: B:\Projects\60546469 - SPaTS_ 1-281_RoadSafetyAnalysisAndReporting\3 - Work Packages\STATS19 2018\3 September Report\Appendix\db_Elements | G127: B:\Projects\60546469 - SPaTS_ 1-281_RoadSafetyAnalysisAndReporting\3 - Work Packages\STATS19 2018\3 September Report\Appendix\db_Elements\030_005_APP_H_Fat_by object hit off carr and year.txt
B128: 030_006_APP_H_Fat_WetSkidd_RdCondit_Yr | C128: G_DataSheet | D128: B1524 | E128: B1523 | F128: B:\Projects\60546469 - SPaTS_ 1-281_RoadSafetyAnalysisAndReporting\3 - Work Packages\STATS19 2018\3 September Report\Appendix\db_Elements | G128: B:\Projects\60546469 - SPaTS_ 1-281_RoadSafetyAnalysisAndReporting\3 - Work Packages\STATS19 2018\3 September Report\Appendix\db_Elements\030_006_APP_H_Fat_WetSkidd_RdCondit_Yr.txt
B129: 030_007_APP_H_Fat_light condition road classification | C129: G_DataSheet | D129: B1824 | E129: B1823 | F129: B:\Projects\60546469 - SPaTS_ 1-281_RoadSafetyAnalysisAndReporting\3 - Work Packages\STATS19 2018\3 September Report\Appendix\db_Elements | G129: B:\Projects\60546469 - SPaTS_ 1-281_RoadSafetyAnalysisAndReporting\3 - Work Packages\STATS19 2018\3 September Report\Appendix\db_Elements\030_007_APP_H_Fat_light condition road classification.txt
B130: 030_008_APP_H_Fat_Junction detail and yr | C130: G_DataSheet | D130: B2124 | E130: B2123 | F130: B:\Projects\60546469 - SPaTS_ 1-281_RoadSafetyAnalysisAndReporting\3 - Work Packages\STATS19 2018\3 September Report\Appendix\db_Elements | G130: B:\Projects\60546469 - SPaTS_ 1-281_RoadSafetyAnalysisAndReporting\3 - Work Packages\STATS19 2018\3 September Report\Appendix\db_Elements\030_008_APP_H_Fat_Junction detail and yr.txt
B131: 030_009_APP_H_Fat_involving hardSH_lybysby location and yr | C131: G_DataSheet | D131: B2424 | E131: B2423 | F131: B:\Projects\60546469 - SPaTS_ 1-281_RoadSafetyAnalysisAndReporting\3 - Work Packages\STATS19 2018\3 September Report\Appendix\db_Elements | G131: B:\Projects\60546469 - SPaTS_ 1-281_RoadSafetyAnalysisAndReporting\3 - Work Packages\STATS19 2018\3 September Report\Appendix\db_Elements\030_009_APP_H_Fat_involving hardSH_lybysby location and yr.txt
B132: 030_010_APP_H_Fat_by driverAgeGroupInv and yr | C132: G_DataSheet | D132: B2724 | E132: B2723 | F132: B:\Projects\60546469 - SPaTS_ 1-281_RoadSafetyAnalysisAndReporting\3 - Work Packages\STATS19 2018\3 September Report\Appendix\db_Elements | G132: B:\Projects\60546469 - SPaTS_ 1-281_RoadSafetyAnalysisAndReporting\3 - Work Packages\STATS19 2018\3 September Report\Appendix\db_Elements\030_010_APP_H_Fat_by driverAgeGroupInv and yr.txt
B133: 030_011_APP_H_Fat_by VehTypeInv and yr | C133: G_DataSheet | D133: B3024 | E133: B3023 | F133: B:\Projects\60546469 - SPaTS_ 1-281_RoadSafetyAnalysisAndReporting\3 - Work Packages\STATS19 2018\3 September Report\Appendix\db_Elements | G133: B:\Projects\60546469 - SPaTS_ 1-281_RoadSafetyAnalysisAndReporting\3 - Work Packages\STATS19 2018\3 September Report\Appendix\db_Elements\030_011_APP_H_Fat_by VehTypeInv and yr.txt
B134: 030_012_APP_H_Fat_JourneyPurpose and Yr | C134: G_DataSheet | D134: B3324 | E134: B3323 | F134: B:\Projects\60546469 - SPaTS_ 1-281_RoadSafetyAnalysisAndReporting\3 - Work Packages\STATS19 2018\3 September Report\Appendix\db_Elements | G134: B:\Projects\60546469 - SPaTS_ 1-281_RoadSafetyAnalysisAndReporting\3 - Work Packages\STATS19 2018\3 September Report\Appendix\db_Elements\030_012_APP_H_Fat_JourneyPurpose and Yr.txt
B135: 030_013_APP_H_Fatalities by time of day_Yr | C135: G_DataSheet | D135: B3624 | E135: B3623 | F135: B:\Projects\60546469 - SPaTS_ 1-281_RoadSafetyAnalysisAndReporting\3 - Work Packages\STATS19 2018\3 September Report\Appendix\db_Elements | G135: B:\Projects\60546469 - SPaTS_ 1-281_RoadSafetyAnalysisAndReporting\3 - Work Packages\STATS19 2018\3 September Report\Appendix\db_Elements\030_013_APP_H_Fatalities by time of day_Yr.txt
B136: 030_014_APP_H_Fatalities by day of week_Yr | C136: G_DataSheet | D136: B3924 | E136: B3923 | F136: B:\Projects\60546469 - SPaTS_ 1-281_RoadSafetyAnalysisAndReporting\3 - Work Packages\STATS19 2018\3 September Report\Appendix\db_Elements | G136: =F136&"\"&B136&".txt" -> B:\Projects\60546469 - SPaTS_ 1-281_RoadSafetyAnalysisAndReporting\3 - Work Packages\STATS19 2018\3 September Report\Appendix\db_Elements\030_014_APP_H_Fatalities by day of week_Yr.txt
B137: 030_015_APP_H_Fatalities by month of year_Yr | C137: G_DataSheet | D137: B4224 | E137: B4223 | F137: B:\Projects\60546469 - SPaTS_ 1-281_RoadSafetyAnalysisAndReporting\3 - Work Packages\STATS19 2018\3 September Report\Appendix\db_Elements | G137: B:\Projects\60546469 - SPaTS_ 1-281_RoadSafetyAnalysisAndReporting\3 - Work Packages\STATS19 2018\3 September Report\Appendix\db_Elements\030_015_APP_H_Fatalities by month of year_Yr.txt
B138: 030_016_APP_H_CF fatal col by yr | C138: G_DataSheet | D138: B4524 | E138: B4523 | F138: B:\Projects\60546469 - SPaTS_ 1-281_RoadSafetyAnalysisAndReporting\3 - Work Packages\STATS19 2018\3 September Report\Appendix\db_Elements | G138: B:\Projects\60546469 - SPaTS_ 1-281_RoadSafetyAnalysisAndReporting\3 - Work Packages\STATS19 2018\3 September Report\Appendix\db_Elements\030_016_APP_H_CF fatal col by yr.txt
B139: 030_017_Fatal driver age invovled | C139: G_DataSheet | D139: B4824 | E139: B4823 | F139: B:\Projects\60546469 - SPaTS_ 1-281_RoadSafetyAnalysisAndReporting\3 - Work Packages\STATS19 2018\3 September Report\Appendix\db_Elements | G139: B:\Projects\60546469 - SPaTS_ 1-281_RoadSafetyAnalysisAndReporting\3 - Work Packages\STATS19 2018\3 September Report\Appendix\db_Elements\030_017_Fatal driver age invovled.txt
B140: 030_018_Fatalities by cas age | C140: G_DataSheet | D140: B5124 | E140: B5123 | F140: B:\Projects\60546469 - SPaTS_ 1-281_RoadSafetyAnalysisAndReporting\3 - Work Packages\STATS19 2018\3 September Report\Appendix\db_Elements | G140: B:\Projects\60546469 - SPaTS_ 1-281_RoadSafetyAnalysisAndReporting\3 - Work Packages\STATS19 2018\3 September Report\Appendix\db_Elements\030_018_Fatalities by cas age.txt
B141: 030_019_Fatalities by cas age band | C141: G_DataSheet | D141: B5424 | E141: B5423 | F141: B:\Projects\60546469 - SPaTS_ 1-281_RoadSafetyAnalysisAndReporting\3 - Work Packages\STATS19 2018\3 September Report\Appendix\db_Elements | G141: B:\Projects\60546469 - SPaTS_ 1-281_RoadSafetyAnalysisAndReporting\3 - Work Packages\STATS19 2018\3 September Report\Appendix\db_Elements\030_019_Fatalities by cas age band.txt
B142: 030_020_Fatalities by cas type | C142: G_DataSheet | D142: B5724 | E142: B5723 | F142: B:\Projects\60546469 - SPaTS_ 1-281_RoadSafetyAnalysisAndReporting\3 - Work Packages\STATS19 2018\3 September Report\Appendix\db_Elements | G142: B:\Projects\60546469 - SPaTS_ 1-281_RoadSafetyAnalysisAndReporting\3 - Work Packages\STATS19 2018\3 September Report\Appendix\db_Elements\030_020_Fatalities by cas type.txt
B143: 030_021_Fatalities by area and region | C143: G_DataSheet | D143: B6024 | E143: B6023 | F143: B:\Projects\60546469 - SPaTS_ 1-281_RoadSafetyAnalysisAndReporting\3 - Work Packages\STATS19 2018\3 September Report\Appendix\db_Elements | G143: B:\Projects\60546469 - SPaTS_ 1-281_RoadSafetyAnalysisAndReporting\3 - Work Packages\STATS19 2018\3 September Report\Appendix\db_Elements\030_021_Fatalities by area and region.txt
B144: 030_022_Fatalities_by_single_vehicle_invovled | C144: G_DataSheet | D144: B6324 | E144: B6323 | F144: B:\Projects\60546469 - SPaTS_ 1-281_RoadSafetyAnalysisAndReporting\3 - Work Packages\STATS19 2018\3 September Report\Appendix\db_Elements | G144: B:\Projects\60546469 - SPaTS_ 1-281_RoadSafetyAnalysisAndReporting\3 - Work Packages\STATS19 2018\3 September Report\Appendix\db_Elements\030_022_Fatalities_by_single_vehicle_invovled.txt
B145: 030_023_Fatal singelVeh_driverAge | C145: G_DataSheet | D145: B6624 | E145: B6623 | F145: B:\Projects\60546469 - SPaTS_ 1-281_RoadSafetyAnalysisAndReporting\3 - Work Packages\STATS19 2018\3 September Report\Appendix\db_Elements | G145: B:\Projects\60546469 - SPaTS_ 1-281_RoadSafetyAnalysisAndReporting\3 - Work Packages\STATS19 2018\3 September Report\Appendix\db_Elements\030_023_Fatal singelVeh_driverAge.txt
B146: 030_024_Fatalies_SinVeh_by VehType | C146: G_DataSheet | D146: B6924 | E146: B6923 | F146: B:\Projects\60546469 - SPaTS_ 1-281_RoadSafetyAnalysisAndReporting\3 - Work Packages\STATS19 2018\3 September Report\Appendix\db_Elements | G146: B:\Projects\60546469 - SPaTS_ 1-281_RoadSafetyAnalysisAndReporting\3 - Work Packages\STATS19 2018\3 September Report\Appendix\db_Elements\030_024_Fatalies_SinVeh_by VehType.txt
B147: 030_025_Fatal_singleVeh_Cfs | C147: G_DataSheet | D147: B7224 | E147: B7223 | F147: B:\Projects\60546469 - SPaTS_ 1-281_RoadSafetyAnalysisAndReporting\3 - Work Packages\STATS19 2018\3 September Report\Appendix\db_Elements | G147: B:\Projects\60546469 - SPaTS_ 1-281_RoadSafetyAnalysisAndReporting\3 - Work Packages\STATS19 2018\3 September Report\Appendix\db_Elements\030_025_Fatal_singleVeh_Cfs.txt
B148: 030_026_fatal_TimeOfWeek_yr | C148: G_DataSheet | D148: B7524 | E148: B7523 | F148: B:\Projects\60546469 - SPaTS_ 1-281_RoadSafetyAnalysisAndReporting\3 - Work Packages\STATS19 2018\3 September Report\Appendix\db_Elements | G148: B:\Projects\60546469 - SPaTS_ 1-281_RoadSafetyAnalysisAndReporting\3 - Work Packages\STATS19 2018\3 September Report\Appendix\db_Elements\030_026_fatal_TimeOfWeek_yr.txt
B149: 030_001A_Fatal_Collisons_Road_Name_and_Year | C149: G_DataSheet | D149: B7824 | E149: B7823 | F149: B:\Projects\60546469 - SPaTS_ 1-281_RoadSafetyAnalysisAndReporting\3 - Work Packages\STATS19 2018\3 September Report\Appendix\db_Elements | G149: B:\Projects\60546469 - SPaTS_ 1-281_RoadSafetyAnalysisAndReporting\3 - Work Packages\STATS19 2018\3 September Report\Appendix\db_Elements\030_001A_Fatal_Collisons_Road_Name_and_Year.txt
B150: 030_002A_Fatal_collision_roadtype_year | C150: G_DataSheet | D150: B8124 | E150: B8123 | F150: B:\Projects\60546469 - SPaTS_ 1-281_RoadSafetyAnalysisAndReporting\3 - Work Packages\STATS19 2018\3 September Report\Appendix\db_Elements | G150: B:\Projects\60546469 - SPaTS_ 1-281_RoadSafetyAnalysisAndReporting\3 - Work Packages\STATS19 2018\3 September Report\Appendix\db_Elements\030_002A_Fatal_collision_roadtype_year.txt
B151: 030_004A_Fatal_Object_Hit_On_Carr_and_yr | C151: G_DataSheet | D151: B8424 | E151: B8423 | F151: B:\Projects\60546469 - SPaTS_ 1-281_RoadSafetyAnalysisAndReporting\3 - Work Packages\STATS19 2018\3 September Report\Appendix\db_Elements | G151: B:\Projects\60546469 - SPaTS_ 1-281_RoadSafetyAnalysisAndReporting\3 - Work Packages\STATS19 2018\3 September Report\Appendix\db_Elements\030_004A_Fatal_Object_Hit_On_Carr_and_yr.txt
B152: 030_005A_Fat_Object_Hit_Off_Carr_And_Yr | C152: G_DataSheet | D152: B8724 | E152: B8723 | F152: B:\Projects\60546469 - SPaTS_ 1-281_RoadSafetyAnalysisAndReporting\3 - Work Packages\STATS19 2018\3 September Report\Appendix\db_Elements | G152: B:\Projects\60546469 - SPaTS_ 1-281_RoadSafetyAnalysisAndReporting\3 - Work Packages\STATS19 2018\3 September Report\Appendix\db_Elements\030_005A_Fat_Object_Hit_Off_Carr_And_Yr.txt
B153: 030_006A_Fat_WetSkidd_RdCondit_Collisions_Yr | C153: G_DataSheet | D153: B9024 | E153: B9023 | F153: B:\Projects\60546469 - SPaTS_ 1-281_RoadSafetyAnalysisAndReporting\3 - Work Packages\STATS19 2018\3 September Report\Appendix\db_Elements | G153: B:\Projects\60546469 - SPaTS_ 1-281_RoadSafetyAnalysisAndReporting\3 - Work Packages\STATS19 2018\3 September Report\Appendix\db_Elements\030_006A_Fat_WetSkidd_RdCondit_Collisions_Yr.txt
B154: 030_007A_Fat_LightCondition_RoadClassification_yr | C154: G_DataSheet | D154: B9324 | E154: B9323 | F154: B:\Projects\60546469 - SPaTS_ 1-281_RoadSafetyAnalysisAndReporting\3 - Work Packages\STATS19 2018\3 September Report\Appendix\db_Elements | G154: B:\Projects\60546469 - SPaTS_ 1-281_RoadSafetyAnalysisAndReporting\3 - Work Packages\STATS19 2018\3 September Report\Appendix\db_Elements\030_007A_Fat_LightCondition_RoadClassification_yr.txt
B155: 030_008A_Fat_Junction_Detail_And_Yr | C155: G_DataSheet | D155: B9624 | E155: B9623 | F155: B:\Projects\60546469 - SPaTS_ 1-281_RoadSafetyAnalysisAndReporting\3 - Work Packages\STATS19 2018\3 September Report\Appendix\db_Elements | G155: B:\Projects\60546469 - SPaTS_ 1-281_RoadSafetyAnalysisAndReporting\3 - Work Packages\STATS19 2018\3 September Report\Appendix\db_Elements\030_008A_Fat_Junction_Detail_And_Yr.txt
B156: 030_009A_Fat_Involvinghardsh_lybyLocation_yr | C156: G_DataSheet | D156: B9924 | E156: B9923 | F156: B:\Projects\60546469 - SPaTS_ 1-281_RoadSafetyAnalysisAndReporting\3 - Work Packages\STATS19 2018\3 September Report\Appendix\db_Elements | G156: B:\Projects\60546469 - SPaTS_ 1-281_RoadSafetyAnalysisAndReporting\3 - Work Packages\STATS19 2018\3 September Report\Appendix\db_Elements\030_009A_Fat_Involvinghardsh_lybyLocation_yr.txt
B157: 030_010A_Fat_ByDriverAgeGroup_Yr | C157: G_DataSheet | D157: B10224 | E157: B10223 | F157: B:\Projects\60546469 - SPaTS_ 1-281_RoadSafetyAnalysisAndReporting\3 - Work Packages\STATS19 2018\3 September Report\Appendix\db_Elements | G157: B:\Projects\60546469 - SPaTS_ 1-281_RoadSafetyAnalysisAndReporting\3 - Work Packages\STATS19 2018\3 September Report\Appendix\db_Elements\030_010A_Fat_ByDriverAgeGroup_Yr.txt
B158: 030_012A_Fat_JourneyPurpose_Yr | C158: G_DataSheet | D158: B10524 | E158: B10523 | F158: B:\Projects\60546469 - SPaTS_ 1-281_RoadSafetyAnalysisAndReporting\3 - Work Packages\STATS19 2018\3 September Report\Appendix\db_Elements | G158: B:\Projects\60546469 - SPaTS_ 1-281_RoadSafetyAnalysisAndReporting\3 - Work Packages\STATS19 2018\3 September Report\Appendix\db_Elements\030_012A_Fat_JourneyPurpose_Yr.txt
B159: 030_011A_Fat_by_VehicleTypeInv_and_yr | C159: G_DataSheet | D159: B10824 | E159: B10823 | F159: B:\Projects\60546469 - SPaTS_ 1-281_RoadSafetyAnalysisAndReporting\3 - Work Packages\STATS19 2018\3 September Report\Appendix\db_Elements | G159: B:\Projects\60546469 - SPaTS_ 1-281_RoadSafetyAnalysisAndReporting\3 - Work Packages\STATS19 2018\3 September Report\Appendix\db_Elements\030_011A_Fat_by_VehicleTypeInv_and_yr.txt
B160: 030_013A_Fatalities_By_TimeOfDay_Yr | C160: G_DataSheet | D160: B11124 | E160: B11123 | F160: B:\Projects\60546469 - SPaTS_ 1-281_RoadSafetyAnalysisAndReporting\3 - Work Packages\STATS19 2018\3 September Report\Appendix\db_Elements | G160: B:\Projects\60546469 - SPaTS_ 1-281_RoadSafetyAnalysisAndReporting\3 - Work Packages\STATS19 2018\3 September Report\Appendix\db_Elements\030_013A_Fatalities_By_TimeOfDay_Yr.txt
B161: 030_014A_Fatalities_By_DayOfWeek_Yr | C161: G_DataSheet | D161: B11424 | E161: B11423 | F161: B:\Projects\60546469 - SPaTS_ 1-281_RoadSafetyAnalysisAndReporting\3 - Work Packages\STATS19 2018\3 September Report\Appendix\db_Elements | G161: B:\Projects\60546469 - SPaTS_ 1-281_RoadSafetyAnalysisAndReporting\3 - Work Packages\STATS19 2018\3 September Report\Appendix\db_Elements\030_014A_Fatalities_By_DayOfWeek_Yr.txt
B162: 030_015A_Fatalities_By_MonthOfYear_Yr | C162: G_DataSheet | D162: B11724 | E162: B11723 | F162: B:\Projects\60546469 - SPaTS_ 1-281_RoadSafetyAnalysisAndReporting\3 - Work Packages\STATS19 2018\3 September Report\Appendix\db_Elements | G162: B:\Projects\60546469 - SPaTS_ 1-281_RoadSafetyAnalysisAndReporting\3 - Work Packages\STATS19 2018\3 September Report\Appendix\db_Elements\030_015A_Fatalities_By_MonthOfYear_Yr.txt
B163: 030_003a_APP_H_Fatal_cas_Rapid_CF ANALYSIS | C163: G_DataSheet | D163: B12024 | E163: B12023 | F163: B:\Projects\60546469 - SPaTS_ 1-281_RoadSafetyAnalysisAndReporting\3 - Work Packages\STATS19 2018\3 September Report\Appendix\db_Elements | G163: B:\Projects\60546469 - SPaTS_ 1-281_RoadSafetyAnalysisAndReporting\3 - Work Packages\STATS19 2018\3 September Report\Appendix\db_Elements\030_003a_APP_H_Fatal_cas_Rapid_CF ANALYSIS.txt
B164: datasheet14_age_gender_cas type | C164: G_DataSheet | D164: B12324 | E164: B12323 | F164: B:\Projects\60546469 - SPaTS_ 1-281_RoadSafetyAnalysisAndReporting\3 - Work Packages\STATS19 2018\3 September Report\Appendix\db_Elements | G164: B:\Projects\60546469 - SPaTS_ 1-281_RoadSafetyAnalysisAndReporting\3 - Work Packages\STATS19 2018\3 September Report\Appendix\db_Elements\datasheet14_age_gender_cas type.txt
B165: Top20Motorway_CF_Fatal_Collisions | C165: G_DataSheet | D165: B12624 | E165: B12623 | F165: B:\Projects\60546469 - SPaTS_ 1-281_RoadSafetyAnalysisAndReporting\3 - Work Packages\STATS19 2018\3 September Report\Appendix\db_Elements | G165: B:\Projects\60546469 - SPaTS_ 1-281_RoadSafetyAnalysisAndReporting\3 - Work Packages\STATS19 2018\3 September Report\Appendix\db_Elements\Top20Motorway_CF_Fatal_Collisions.txt
B166: Top20ARoad_CF_Fatal_Collisions | C166: G_DataSheet | D166: B12924 | E166: B12923 | F166: B:\Projects\60546469 - SPaTS_ 1-281_RoadSafetyAnalysisAndReporting\3 - Work Packages\STATS19 2018\3 September Report\Appendix\db_Elements | G166: B:\Projects\60546469 - SPaTS_ 1-281_RoadSafetyAnalysisAndReporting\3 - Work Packages\STATS19 2018\3 September Report\Appendix\db_Elements\Top20ARoad_CF_Fatal_Collisions.txt
B167: Top20ARoad_SingleCarriageway_CF_Fatal_Collisions | C167: G_DataSheet | D167: B13224 | E167: B13223 | F167: B:\Projects\60546469 - SPaTS_ 1-281_RoadSafetyAnalysisAndReporting\3 - Work Packages\STATS19 2018\3 September Report\Appendix\db_Elements | G167: B:\Projects\60546469 - SPaTS_ 1-281_RoadSafetyAnalysisAndReporting\3 - Work Packages\STATS19 2018\3 September Report\Appendix\db_Elements\Top20ARoad_SingleCarriageway_CF_Fatal_Collisions.txt
B168: Top20ARoad_DualCarriageway_CF_Fatal_Collisions | C168: G_DataSheet | D168: B13524 | E168: B13523 | F168: B:\Projects\60546469 - SPaTS_ 1-281_RoadSafetyAnalysisAndReporting\3 - Work Packages\STATS19 2018\3 September Report\Appendix\db_Elements | G168: B:\Projects\60546469 - SPaTS_ 1-281_RoadSafetyAnalysisAndReporting\3 - Work Packages\STATS19 2018\3 September Report\Appendix\db_Elements\Top20ARoad_DualCarriageway_CF_Fatal_Collisions.txt
B169: 032_001_APP_I_SIC by road name and year | C169: H_DataSheet | D169: B24 | E169: B23 | F169: B:\Projects\60546469 - SPaTS_ 1-281_RoadSafetyAnalysisAndReporting\3 - Work Packages\STATS19 2018\3 September Report\Appendix\db_Elements | G169: B:\Projects\60546469 - SPaTS_ 1-281_RoadSafetyAnalysisAndReporting\3 - Work Packages\STATS19 2018\3 September Report\Appendix\db_Elements\032_001_APP_I_SIC by road name and year.txt
B170: 032_002_APP_I_SIC by road type and year | C170: H_DataSheet | D170: B324 | E170: B323 | F170: B:\Projects\60546469 - SPaTS_ 1-281_RoadSafetyAnalysisAndReporting\3 - Work Packages\STATS19 2018\3 September Report\Appendix\db_Elements | G170: B:\Projects\60546469 - SPaTS_ 1-281_RoadSafetyAnalysisAndReporting\3 - Work Packages\STATS19 2018\3 September Report\Appendix\db_Elements\032_002_APP_I_SIC by road type and year.txt
B171: 032_003_01_SIC_col_Cfs | C171: H_DataSheet | D171: B624 | E171: B623 | F171: B:\Projects\60546469 - SPaTS_ 1-281_RoadSafetyAnalysisAndReporting\3 - Work Packages\STATS19 2018\3 September Report\Appendix\db_Elements | G171: B:\Projects\60546469 - SPaTS_ 1-281_RoadSafetyAnalysisAndReporting\3 - Work Packages\STATS19 2018\3 September Report\Appendix\db_Elements\032_003_01_SIC_col_Cfs.txt
B172: 032_004_APP_I_SIC_by object hit on carr and year | C172: H_DataSheet | D172: B924 | E172: B923 | F172: B:\Projects\60546469 - SPaTS_ 1-281_RoadSafetyAnalysisAndReporting\3 - Work Packages\STATS19 2018\3 September Report\Appendix\db_Elements | G172: B:\Projects\60546469 - SPaTS_ 1-281_RoadSafetyAnalysisAndReporting\3 - Work Packages\STATS19 2018\3 September Report\Appendix\db_Elements\032_004_APP_I_SIC_by object hit on carr and year.txt
B173: 032_005_APP_I_SIC_by object hit off carr and year | C173: H_DataSheet | D173: B1224 | E173: B1223 | F173: B:\Projects\60546469 - SPaTS_ 1-281_RoadSafetyAnalysisAndReporting\3 - Work Packages\STATS19 2018\3 September Report\Appendix\db_Elements | G173: B:\Projects\60546469 - SPaTS_ 1-281_RoadSafetyAnalysisAndReporting\3 - Work Packages\STATS19 2018\3 September Report\Appendix\db_Elements\032_005_APP_I_SIC_by object hit off carr and year.txt
B174: 032_006_APP_I_SIC_RdConditino_Skidding_yr | C174: H_DataSheet | D174: B1524 | E174: B1523 | F174: B:\Projects\60546469 - SPaTS_ 1-281_RoadSafetyAnalysisAndReporting\3 - Work Packages\STATS19 2018\3 September Report\Appendix\db_Elements | G174: B:\Projects\60546469 - SPaTS_ 1-281_RoadSafetyAnalysisAndReporting\3 - Work Packages\STATS19 2018\3 September Report\Appendix\db_Elements\032_006_APP_I_SIC_RdConditino_Skidding_yr.txt
B175: 032_007_APP_I_SIC_lightCondition_RdClass_yr | C175: H_DataSheet | D175: B1824 | E175: B1823 | F175: B:\Projects\60546469 - SPaTS_ 1-281_RoadSafetyAnalysisAndReporting\3 - Work Packages\STATS19 2018\3 September Report\Appendix\db_Elements | G175: B:\Projects\60546469 - SPaTS_ 1-281_RoadSafetyAnalysisAndReporting\3 - Work Packages\STATS19 2018\3 September Report\Appendix\db_Elements\032_007_APP_I_SIC_lightCondition_RdClass_yr.txt
B176: 032_008_APP_I_SIC_JunctionDetail_yr | C176: H_DataSheet | D176: B2124 | E176: B2123 | F176: B:\Projects\60546469 - SPaTS_ 1-281_RoadSafetyAnalysisAndReporting\3 - Work Packages\STATS19 2018\3 September Report\Appendix\db_Elements | G176: B:\Projects\60546469 - SPaTS_ 1-281_RoadSafetyAnalysisAndReporting\3 - Work Packages\STATS19 2018\3 September Report\Appendix\db_Elements\032_008_APP_I_SIC_JunctionDetail_yr.txt
B177: 032_009_APP_I_SIC_involving hardSH_lybysby location and yr | C177: H_DataSheet | D177: B2424 | E177: B2423 | F177: B:\Projects\60546469 - SPaTS_ 1-281_RoadSafetyAnalysisAndReporting\3 - Work Packages\STATS19 2018\3 September Report\Appendix\db_Elements | G177: B:\Projects\60546469 - SPaTS_ 1-281_RoadSafetyAnalysisAndReporting\3 - Work Packages\STATS19 2018\3 September Report\Appendix\db_Elements\032_009_APP_I_SIC_involving hardSH_lybysby location and yr.txt
B178: 032_010_APP_I_SIC_by driverAgeGroupInv and yr | C178: H_DataSheet | D178: B2724 | E178: B2723 | F178: B:\Projects\60546469 - SPaTS_ 1-281_RoadSafetyAnalysisAndReporting\3 - Work Packages\STATS19 2018\3 September Report\Appendix\db_Elements | G178: B:\Projects\60546469 - SPaTS_ 1-281_RoadSafetyAnalysisAndReporting\3 - Work Packages\STATS19 2018\3 September Report\Appendix\db_Elements\032_010_APP_I_SIC_by driverAgeGroupInv and yr.txt
B179: 032_011_APP_I_SIC_by VehTypeInv and yr | C179: H_DataSheet | D179: B3024 | E179: B3023 | F179: B:\Projects\60546469 - SPaTS_ 1-281_RoadSafetyAnalysisAndReporting\3 - Work Packages\STATS19 2018\3 September Report\Appendix\db_Elements | G179: B:\Projects\60546469 - SPaTS_ 1-281_RoadSafetyAnalysisAndReporting\3 - Work Packages\STATS19 2018\3 September Report\Appendix\db_Elements\032_011_APP_I_SIC_by VehTypeInv and yr.txt
B180: 032_012_APP_I_SIC_by JourneyPurposeInv and yr | C180: H_DataSheet | D180: B3324 | E180: B3323 | F180: B:\Projects\60546469 - SPaTS_ 1-281_RoadSafetyAnalysisAndReporting\3 - Work Packages\STATS19 2018\3 September Report\Appendix\db_Elements | G180: B:\Projects\60546469 - SPaTS_ 1-281_RoadSafetyAnalysisAndReporting\3 - Work Packages\STATS19 2018\3 September Report\Appendix\db_Elements\032_012_APP_I_SIC_by JourneyPurposeInv and yr.txt
B181: 032_013_APP_I_SIC by time of day_Yr | C181: H_DataSheet | D181: B3624 | E181: B3623 | F181: B:\Projects\60546469 - SPaTS_ 1-281_RoadSafetyAnalysisAndReporting\3 - Work Packages\STATS19 2018\3 September Report\Appendix\db_Elements | G181: B:\Projects\60546469 - SPaTS_ 1-281_RoadSafetyAnalysisAndReporting\3 - Work Packages\STATS19 2018\3 September Report\Appendix\db_Elements\032_013_APP_I_SIC by time of day_Yr.txt
B182: 032_014_APP_I_SIC by day of week_Yr | C182: H_DataSheet | D182: B3924 | E182: B3923 | F182: B:\Projects\60546469 - SPaTS_ 1-281_RoadSafetyAnalysisAndReporting\3 - Work Packages\STATS19 2018\3 September Report\Appendix\db_Elements | G182: B:\Projects\60546469 - SPaTS_ 1-281_RoadSafetyAnalysisAndReporting\3 - Work Packages\STATS19 2018\3 September Report\Appendix\db_Elements\032_014_APP_I_SIC by day of week_Yr.txt
B183: 032_015_APP_I_SIC by month of year_Yr | C183: H_DataSheet | D183: B4224 | E183: B4223 | F183: B:\Projects\60546469 - SPaTS_ 1-281_RoadSafetyAnalysisAndReporting\3 - Work Packages\STATS19 2018\3 September Report\Appendix\db_Elements | G183: B:\Projects\60546469 - SPaTS_ 1-281_RoadSafetyAnalysisAndReporting\3 - Work Packages\STATS19 2018\3 September Report\Appendix\db_Elements\032_015_APP_I_SIC by month of year_Yr.txt
B184: 032_016_SIC_driverAge_invovled | C184: H_DataSheet | D184: B4524 | E184: B4523 | F184: B:\Projects\60546469 - SPaTS_ 1-281_RoadSafetyAnalysisAndReporting\3 - Work Packages\STATS19 2018\3 September Report\Appendix\db_Elements | G184: B:\Projects\60546469 - SPaTS_ 1-281_RoadSafetyAnalysisAndReporting\3 - Work Packages\STATS19 2018\3 September Report\Appendix\db_Elements\032_016_SIC_driverAge_invovled.txt
B185: 032_017_SIC_CasAgeBand | C185: H_DataSheet | D185: B4824 | E185: B4823 | F185: B:\Projects\60546469 - SPaTS_ 1-281_RoadSafetyAnalysisAndReporting\3 - Work Packages\STATS19 2018\3 September Report\Appendix\db_Elements | G185: B:\Projects\60546469 - SPaTS_ 1-281_RoadSafetyAnalysisAndReporting\3 - Work Packages\STATS19 2018\3 September Report\Appendix\db_Elements\032_017_SIC_CasAgeBand.txt
B186: 032_018_SIC_CasAge | C186: H_DataSheet | D186: B5124 | E186: B5123 | F186: B:\Projects\60546469 - SPaTS_ 1-281_RoadSafetyAnalysisAndReporting\3 - Work Packages\STATS19 2018\3 September Report\Appendix\db_Elements | G186: B:\Projects\60546469 - SPaTS_ 1-281_RoadSafetyAnalysisAndReporting\3 - Work Packages\STATS19 2018\3 September Report\Appendix\db_Elements\032_018_SIC_CasAge.txt
B187: 032_019_SIC_CasType | C187: H_DataSheet | D187: B5424 | E187: B5423 | F187: B:\Projects\60546469 - SPaTS_ 1-281_RoadSafetyAnalysisAndReporting\3 - Work Packages\STATS19 2018\3 September Report\Appendix\db_Elements | G187: B:\Projects\60546469 - SPaTS_ 1-281_RoadSafetyAnalysisAndReporting\3 - Work Packages\STATS19 2018\3 September Report\Appendix\db_Elements\032_019_SIC_CasType.txt
B188: 032_020_SIC_SingleVeh_driverAge | C188: H_DataSheet | D188: B5724 | E188: B5723 | F188: B:\Projects\60546469 - SPaTS_ 1-281_RoadSafetyAnalysisAndReporting\3 - Work Packages\STATS19 2018\3 September Report\Appendix\db_Elements | G188: B:\Projects\60546469 - SPaTS_ 1-281_RoadSafetyAnalysisAndReporting\3 - Work Packages\STATS19 2018\3 September Report\Appendix\db_Elements\032_020_SIC_SingleVeh_driverAge.txt
B189: 032_021_SIC_singVeh_byVehType | C189: H_DataSheet | D189: B6024 | E189: B6023 | F189: B:\Projects\60546469 - SPaTS_ 1-281_RoadSafetyAnalysisAndReporting\3 - Work Packages\STATS19 2018\3 September Report\Appendix\db_Elements | G189: B:\Projects\60546469 - SPaTS_ 1-281_RoadSafetyAnalysisAndReporting\3 - Work Packages\STATS19 2018\3 September Report\Appendix\db_Elements\032_021_SIC_singVeh_byVehType.txt
B190: 032_022__SIC_SingleVeh_CFs | C190: H_DataSheet | D190: B6324 | E190: B6323 | F190: B:\Projects\60546469 - SPaTS_ 1-281_RoadSafetyAnalysisAndReporting\3 - Work Packages\STATS19 2018\3 September Report\Appendix\db_Elements | G190: B:\Projects\60546469 - SPaTS_ 1-281_RoadSafetyAnalysisAndReporting\3 - Work Packages\STATS19 2018\3 September Report\Appendix\db_Elements\032_022__SIC_SingleVeh_CFs.txt
B191: 032_023_SIC_timeOfWeek_yr | C191: H_DataSheet | D191: B6624 | E191: B6623 | F191: B:\Projects\60546469 - SPaTS_ 1-281_RoadSafetyAnalysisAndReporting\3 - Work Packages\STATS19 2018\3 September Report\Appendix\db_Elements | G191: B:\Projects\60546469 - SPaTS_ 1-281_RoadSafetyAnalysisAndReporting\3 - Work Packages\STATS19 2018\3 September Report\Appendix\db_Elements\032_023_SIC_timeOfWeek_yr.txt
B192: 032_001A_SeriousCollision_By_Top20RoadNames_Yr | C192: H_DataSheet | D192: B6924 | E192: B6923 | F192: B:\Projects\60546469 - SPaTS_ 1-281_RoadSafetyAnalysisAndReporting\3 - Work Packages\STATS19 2018\3 September Report\Appendix\db_Elements | G192: B:\Projects\60546469 - SPaTS_ 1-281_RoadSafetyAnalysisAndReporting\3 - Work Packages\STATS19 2018\3 September Report\Appendix\db_Elements\032_001A_SeriousCollision_By_Top20RoadNames_Yr.txt
B193: 032_004A_Serious_Collision_By_OjectHitOnCarr_Yr | C193: H_DataSheet | D193: B7224 | E193: B7223 | F193: B:\Projects\60546469 - SPaTS_ 1-281_RoadSafetyAnalysisAndReporting\3 - Work Packages\STATS19 2018\3 September Report\Appendix\db_Elements | G193: B:\Projects\60546469 - SPaTS_ 1-281_RoadSafetyAnalysisAndReporting\3 - Work Packages\STATS19 2018\3 September Report\Appendix\db_Elements\032_004A_Serious_Collision_By_OjectHitOnCarr_Yr.txt
B194: 032_005A_Serious_Collisions_By_ObjectHitOffCarr_Yr | C194: H_DataSheet | D194: B7524 | E194: B7523 | F194: B:\Projects\60546469 - SPaTS_ 1-281_RoadSafetyAnalysisAndReporting\3 - Work Packages\STATS19 2018\3 September Report\Appendix\db_Elements | G194: B:\Projects\60546469 - SPaTS_ 1-281_RoadSafetyAnalysisAndReporting\3 - Work Packages\STATS19 2018\3 September Report\Appendix\db_Elements\032_005A_Serious_Collisions_By_ObjectHitOffCarr_Yr.txt
B195: 032_006A_Serious_Collisions_RdCondition_Skidding_Yr | C195: H_DataSheet | D195: B7824 | E195: B7823 | F195: B:\Projects\60546469 - SPaTS_ 1-281_RoadSafetyAnalysisAndReporting\3 - Work Packages\STATS19 2018\3 September Report\Appendix\db_Elements | G195: B:\Projects\60546469 - SPaTS_ 1-281_RoadSafetyAnalysisAndReporting\3 - Work Packages\STATS19 2018\3 September Report\Appendix\db_Elements\032_006A_Serious_Collisions_RdCondition_Skidding_Yr.txt
B196: 032_007A_Serious_Collisions_LightCondition_RdClass_Yr | C196: H_DataSheet | D196: B8124 | E196: B8123 | F196: B:\Projects\60546469 - SPaTS_ 1-281_RoadSafetyAnalysisAndReporting\3 - Work Packages\STATS19 2018\3 September Report\Appendix\db_Elements | G196: B:\Projects\60546469 - SPaTS_ 1-281_RoadSafetyAnalysisAndReporting\3 - Work Packages\STATS19 2018\3 September Report\Appendix\db_Elements\032_007A_Serious_Collisions_LightCondition_RdClass_Yr.txt
B197: 032_008A_Serious_Collisions_JunctionDetail_Yr | C197: H_DataSheet | D197: B8424 | E197: B8423 | F197: B:\Projects\60546469 - SPaTS_ 1-281_RoadSafetyAnalysisAndReporting\3 - Work Packages\STATS19 2018\3 September Report\Appendix\db_Elements | G197: B:\Projects\60546469 - SPaTS_ 1-281_RoadSafetyAnalysisAndReporting\3 - Work Packages\STATS19 2018\3 September Report\Appendix\db_Elements\032_008A_Serious_Collisions_JunctionDetail_Yr.txt
B198: 032_009A_Serious_Collisions_InvHardsh_LybyLocation_Yr | C198: H_DataSheet | D198: B8724 | E198: B8723 | F198: B:\Projects\60546469 - SPaTS_ 1-281_RoadSafetyAnalysisAndReporting\3 - Work Packages\STATS19 2018\3 September Report\Appendix\db_Elements | G198: B:\Projects\60546469 - SPaTS_ 1-281_RoadSafetyAnalysisAndReporting\3 - Work Packages\STATS19 2018\3 September Report\Appendix\db_Elements\032_009A_Serious_Collisions_InvHardsh_LybyLocation_Yr.txt
B199: 032_010A_Serious_Collisions_DriverAgeGroupInv_Yr | C199: H_DataSheet | D199: B9024 | E199: B9023 | F199: B:\Projects\60546469 - SPaTS_ 1-281_RoadSafetyAnalysisAndReporting\3 - Work Packages\STATS19 2018\3 September Report\Appendix\db_Elements | G199: B:\Projects\60546469 - SPaTS_ 1-281_RoadSafetyAnalysisAndReporting\3 - Work Packages\STATS19 2018\3 September Report\Appendix\db_Elements\032_010A_Serious_Collisions_DriverAgeGroupInv_Yr.txt
B200: 032_011A_Serious_Collisions_VehTypeInv_Yr | C200: H_DataSheet | D200: B9324 | E200: B9323 | F200: B:\Projects\60546469 - SPaTS_ 1-281_RoadSafetyAnalysisAndReporting\3 - Work Packages\STATS19 2018\3 September Report\Appendix\db_Elements | G200: =F200&"\"&B200&".txt" -> B:\Projects\60546469 - SPaTS_ 1-281_RoadSafetyAnalysisAndReporting\3 - Work Packages\STATS19 2018\3 September Report\Appendix\db_Elements\032_011A_Serious_Collisions_VehTypeInv_Yr.txt
... 283 more rows

Sheet TableProperties (hidden)
A1: Table Properties | B1: Coulmn width
B2: 0.5
A3: Cat 1 | B3: 10
A4: Cat2 | B4: 10
A5: Cat3 | B5: 10
A6: 2005 | B6: 10
A7: 2006 | B7: 10
A8: 2007 | B8: 10
A9: 2008 | B9: 10
A10: 2009 | B10: 10
A11: 2010 | B11: 10
A12: 2011 | B12: 10
A13: 2012 | B13: 10
A14: 2013 | B14: 10
A15: 2014 | B15: 10
A16: 2015 | B16: 10
A17: 2016 | B17: 10
A18: 2017 | B18: 10
A19: 2018 | B19: 10
A20: 2019 | B20: 10
A21: 2020 | B21: 10
A22: BSL (2005-2009) | B22: 12.15
A23: Road Classification | B23: 12.7
A24: Collision Severity | B24: 14.7
A25: Casualty severity | B25: 16
A26: Road Type | B26: 18.6
A27: Road Class | B27: 9.5
A28: Road user type | B28: 24
A29: Vulnerable road user type | B29: 15.3
A30: Non-motorised road user type | B30: 15.3
A31: Quarter | B31: 8
A32: Month | B32: 6.5
A33: Weekday | B33: 12
A34: Grouped Time | B34: 14
A35: Road Surface Condition | B35: 22
A36: Weather | B36: 15
A37: Collision Type | B37: 19.5
A38: Object hit off carriageway | B38: 31
A39: Object hit on carriageway | B39: 31
A40: Number of vehicles | B40: 11
A41: No. | B41: 4
A42: Road | B42: 10
A43: Casualty age group | B43: 15
A44: Length | B44: 10
A45: Journey Purpose | B45: 27
A46: Vehicle Type | B46: 16
A47: Grouped Time | B47: 14
A48: CF Involvement | B48: 15
A49: Length (miles) | B49: 13

Sheet Sheet_Template (hidden)
A7: Casualty report Appendix
A8: Table_B.1
A9: Collisions by road classification, severity and year
I11: # columns | J11: ####
A12: Date updated
A13: 2016-09-20
A14: Input Year
A15: =Cover!$N$18 -> 2018
A16: Baseline Years
A17: =Cover!$N$20&"-"&Cover!$N$21 -> 2005-2009
A19: Link to Contents
B22: =A8&" - "&A9 -> Table_B.1 - Collisions by road classification, severity and year
M23: =K24&" change from" -> 2018 change from
B24: Cat 1 | C24: Cat2 | D24: Cat3 | E24: ="BSL ("&A17&")" -> BSL (2005-2009) | F24: =G24-1 -> 2013 | G24: =H24-1 -> 2014 | H24: =I24-1 -> 2015 | I24: =J24-1 -> 2016 | J24: =K24-1 -> 2017 | K24: =A15 -> 2018 | L24: =E24 -> BSL (2005-2009) | M24: =I24 -> 2016 | N24: =J24 -> 2017
B25: Ob1.1 | C25: Ob2.1 | D25: Ob3.1 | E25: 2000 | F25: 101 | G25: 102 | H25: 103 | I25: 104 | J25: 105 | K25: 106 | L25: =IF(E25>15,(K25-E25)/E25,"-") -> -0.947 | M25: =IF(I25>15,(K25-I25)/I25,"-") -> 0.01923076923 | N25: =IF(J25>15,(K25-J25)/J25,"-") -> 0.009523809524
B26: Ob1.2 | C26: Ob2.2 | D26: Ob3.2 | E26: 100 | F26: 101 | G26: 1000 | H26: 103 | I26: 104 | J26: 105 | K26: 5 | L26: =IF(E26>15,(K26-E26)/E26,"-") -> -0.95 | M26: =IF(I26>15,(K26-I26)/I26,"-") -> -0.9519230769 | N26: =IF(J26>15,(K26-J26)/J26,"-") -> -0.9523809524
B27: Ob1.3 | C27: Ob2.3 | D27: Ob3.3 | E27: 50000 | F27: 101 | G27: 99000 | H27: 103 | I27: 104 | J27: 500 | K27: 900 | L27: -0.982 | M27: =IF(I27>15,(K27-I27)/I27,"-") -> 7.653846154 | N27: 0.8
B28: Ob1.4 | C28: Ob2.4 | D28: Ob3.4 | E28: 76 | F28: 101 | G28: 102 | H28: 103 | I28: 104 | J28: 105 | K28: 106 | L28: 0.3947368421 | M28: 0.01923076923 | N28: 0.009523809524
B29: Ob1.5 | C29: Ob2.5 | D29: Ob3.5 | E29: 76 | F29: 101 | G29: 102 | H29: 103 | I29: 104 | J29: 105 | K29: 106 | L29: 0.3947368421 | M29: 0.01923076923 | N29: 0.009523809524
B30: Ob1.6 | C30: Ob2.6 | D30: Ob3.6 | E30: 100 | F30: 101 | G30: 102 | H30: 103 | I30: 104 | J30: 105 | K30: 106 | L30: 0.06 | M30: 0.01923076923 | N30: 0.009523809524
B31: Ob1.7 | C31: Ob2.7 | D31: Ob3.7 | E31: 100 | F31: 101 | G31: 102 | H31: 103 | I31: 104 | J31: 15 | K31: 106 | L31: 0.06 | M31: 0.01923076923 | N31: -
B32: Ob1.8 | C32: Ob2.8 | D32: Ob3.8 | E32: 100 | F32: 101 | G32: 102 | H32: 103 | I32: 104 | J32: 105 | K32: 106 | L32: 0.06 | M32: 0.01923076923 | N32: 0.009523809524
B33: Ob1.9 | C33: Ob2.9 | D33: Ob3.9 | E33: 100 | F33: 101 | G33: 102 | H33: 103 | I33: 104 | J33: 105 | K33: 106 | L33: 0.06 | M33: 0.01923076923 | N33: 0.009523809524
B34: Ob1.10 | C34: Ob2.10 | D34: Ob3.10 | E34: 100 | F34: 101 | G34: 102 | H34: 103 | I34: 104 | J34: 105 | K34: 106 | L34: 0.06 | M34: 0.01923076923 | N34: 0.009523809524
B36: Notes:
B37: a) Please add or remove as appropriate
B38: b) Please add or remove as appropriate
B39: c) Please add or remove as appropriate

Sheet List (hidden)
A1: Please select Input Year | B1: Please select Input Year From | C1: Please select Input Year To | D1: Please select BSL Start Year | E1: Please select BSL End Year | J1: Current Year | K1: Date updated
A2: 2005 | B2: 2005 | C2: 2005 | D2: 2005 | E2: 2005 | J2: 2018 | K2: 2020-02-12
A3: 2006 | B3: 2006 | C3: 2006 | D3: 2006 | E3: 2006
A4: 2007 | B4: 2007 | C4: 2007 | D4: 2007 | E4: 2007
A5: 2008 | B5: 2008 | C5: 2008 | D5: 2008 | E5: 2008
A6: 2009 | B6: 2009 | C6: 2009 | D6: 2009 | E6: 2009
A7: 2010 | B7: 2010 | C7: 2010 | D7: 2010 | E7: 2010
A8: 2011 | B8: 2011 | C8: 2011 | D8: 2011 | E8: 2011
A9: 2012 | B9: 2012 | C9: 2012 | D9: 2012 | E9: 2012
A10: 2013 | B10: 2013 | C10: 2013 | D10: 2013 | E10: 2013
A11: 2014 | B11: 2014 | C11: 2014 | D11: 2014 | E11: 2014
A12: 2015 | B12: 2015 | C12: 2015 | D12: 2015 | E12: 2015
A13: 2016 | B13: 2016 | C13: 2016 | D13: 2016 | E13: 2016
A14: 2017 | B14: 2017 | C14: 2017 | D14: 2017 | E14: 2017
A15: 2018 | B15: 2018 | C15: 2018 | D15: 2018 | E15: 2018

Sheet Cover
A7: Reported Road Casualties on the Strategic Network 2018:
A8: Appendix
A10: Issue
A11: 1
A13: Link to Document Control
A15: Link to Contents
A17: Document variables | M17: DropDownCell | N17: DropValue
A18: Input Year | D18: Some tables have fixed values and will therefore not be updated to reflect user inputs. The title of a table indicates if it is a fixed year table. | M18: 15 | N18: =INDEX(List_InYear,M18,1) -> 2018
A20: Baseline Start Year | M20: 2 | N20: =INDEX(List_BSLYrStart,M20,1) -> 2005 | O20: Year_Diff | P20: =M21-M20 -> 4 | Q20: =IF(P20<0,0,1) -> 1
A21: Baseline End Year | D21: =IF(P20<0,"Please selecet a value greater than or equal to the BSL Start Year", "") ->  | M21: 6 | N21: =INDEX(List_BSLYrEnd,M21,1) -> 2009
M22: Previously Calculated Values
D23: =IF(O26=1,"","Please update data tables, values selected do not match those used on data tables") ->  | M23: InYear | N23: 2018 | O23: =N23=N18 -> TRUE
M24: BSLstart | N24: 2005 | O24: =N24=N20 -> TRUE
M25: BSLend | N25: 2009 | O25: =N25=N21 -> TRUE
O26: =O23*O24*O25 -> 1

Sheet Doc_Control
A6: Document Control
A7: Document Title | B7: Reported Road Casualties on the Strategic Network 2015: Appendix
A8: Author | B8: Amanda Lowe/ AECOM
A9: Owner | B9: Stuart Lovatt
A10: Distribution | B10: NPPD SAPT
A11: Document Status | B11: Issue
A13: Revision History
A14: Version | B14: Date | C14: Description | D14: Author
A15: 1 | B15: 2020-02-12 | C15: Issue | D15: AECOM
A19: The original format of this document is copyright to Highways England
A21: Link to Cover
A23: Link to Contents

Sheet Contents
A7: Link to Cover
A9: Link to Document Control
A11: Contents | B11: Only contains severity tables G to J. Tables that are greyed out can be found in other appendices files
A12: Category | B12: Table | C12: Table Name
B13: Tab_A.1 | C13: Glossary | D13: 1
A14: Collisions Statistics
B15: Tab_B.1 | C15: Collisions by severity and year | D15: 0
B16: Tab_B.2 | C16: Collisions by road class, speed limit and severity, 2018 | D16: 0
B17: Tab_B.3 | C17: Collisions by road classification, speed limit, and severity, 2018 | D17: 0
B18: Tab_B.4 | C18: Collisions involving cars by road class, vehicle location and year | D18: 0
B19: Tab_B.5 | C19: Collisions involving LGVs by road class, vehicle location and year | D19: 0
B20: Tab_B.6 | C20: Collisions involving HGVs by road class, vehicle location and year | D20: 0
B21: Tab_B.7 | C21: Collisions involving bus/coach by road class, vehicle location and year | D21: 0
B22: Tab_B.8 | C22: Collisions involving at least one motorcycle by road class, vehicle location and year | D22: 0
B23: Tab_B.9 | C23: Collisions involving pedal cycles by road class, vehicle location and year | D23: 0
B24: Tab_B.10 | C24: Collisions involving agricultural vehicles by road class, vehicle location and year | D24: 0
B25: Tab_B.11 | C25: Collisions involving pedestrians and single vehicle by vehicle type and severity, 2018 | D25: 0
B26: Tab_B.12 | C26: Collisions by road classification, road surface condition and light condition, 2018 | D26: 0
B27: Tab_B.13 | C27: Collisions during darkness by road classification, weather condition and severity, 2018 | D27: 0
B28: Tab_B.14 | C28: Collisions during daylight by road classification, weather condition, and severity, 2018 | D28: 0
B29: Tab_B.15 | C29: Single vehicle collisions by object hit off carriageway, road classification and severity, 2018 | D29: 0
B30: Tab_B.16 | C30: Collisions by region, severity and year | D30: 0
B31: Tab_B.17 | C31: Collisions by road classification, severity and year | D31: 0
B32: Tab_B.18 | C32: Collisions by user type involved, severity and year | D32: 0
B33: Tab_B.19 | C33: Collisions by vulnerable user types involved, severity and year | D33: 0
B34: Tab_B.20 | C34: Collisions by non-motorised user types involved, severity and year | D34: 0
B35: Tab_B.21 | C35: Collisions by casualty age groups involved, severity and year | D35: 0
B36: Tab_B.22 | C36: Collisions by month and year | D36: 0
B37: Tab_B.23 | C37: Collisions by time period, day and year | D37: 0
B38: Tab_B.24 | C38: Collisions by road surface conditions, weather conditions and year | D38: 0
B39: Tab_B.25 | C39: Collisions by collision type and year | D39: 0
B40: Tab_B.26 | C40: KSI collisions from vehicles hitting objects off carriageway by year | D40: 0
B41: Tab_B.27 | C41: KSI collisions from vehicles hitting objects on carriageway by year | D41: 0
B42: Tab_B.28 | C42: Collisions from vehicles hitting objects off carriageway by year | D42: 0
B43: Tab_B.29 | C43: Collisions from vehicles hitting objects on carriageway by year | D43: 0
B44: Tab_B.30 | C44: Collisions involving single vehicles by severity and year | D44: 0
B45: Tab_B.31 | C45: Collisions involving HGVs by severity and year | D45: 0
B46: Tab_B.32 | C46: Collisions involving LGVs by severity and year | D46: 0
B47: Tab_B.33 | C47: Collisions involving young drivers (aged 17 – 24 years) by severity and year | D47: 0
B48: Tab_B.34 | C48: Collisions involving elderly drivers (aged 70 years and over) by severity and year | D48: 0
B49: Tab_B.35 | C49: Collisions involving towed caravans by severity and year | D49: 0
B50: Tab_B.36 | C50: Collisions by top 20 road names and year | D50: 0
B51: Tab_B.37 | C51: Fatal collisions by top 20 road names and year | D51: 0
B52: Tab_B.38 | C52: Fatal+Serious collisions by top 20 road names and year | D52: 0
A53: Casualty Statistics
B54: Tab_C.1 | C54: Casualties by severity and year | D54: 0
B55: Tab_C.2 | C55: Casualties by road classification, severity and year | D55: 0
B56: Tab_C.3 | C56: Casualty by road class, speed limit and severity, 2018 | D56: 0
B57: Tab_C.4 | C57: Total casualties by casualty type, age and year | D57: 0
B58: Tab_C.5 | C58: Casualties involved in fatal collisions by casualty type, severity and year | D58: 0
B59: Tab_C.6 | C59: Casualties involved in serious collisions by casualty type and year | D59: 0
B60: Tab_C.7 | C60: Casualties involved in slight collisions by casualty type and year | D60: 0
B61: Tab_C.8 | C61: Male casualties by road classification and severity | D61: 0
B62: Tab_C.9 | C62: Female casualties by road classification and severity | D62: 0
B63: Tab_C.10 | C63: Casualties by age group, gender, severity and year | D63: 0
B64: Tab_C.11 | C64: Casualties involving seatbelt use by severity and year | D64: 0
B65: Tab_C.12 | C65: Casualties by region, casualty severity and year | D65: 0
B66: Tab_C.13 | C66: Casualties by casualty type, severity and year | D66: 0
B67: Tab_C.14 | C67: Casualties by vulnerable user type, severity and year | D67: 0
B68: Tab_C.15 | C68: Casualties by non-motorised user types, severity and year | D68: 0
B69: Tab_C.16 | C69: Casualties by age groups, severity and year | D69: 0
B70: Tab_C.17 | C70: Bus and coach occupant casualties by age, severity and year | D70: 0
B71: Tab_C.18 | C71: Car occupant casualties by age group, severity and year | D71: 0
B72: Tab_C.19 | C72: Other goods vehicle casualties by age group, severity and year | D72: 0
B73: Tab_C.20 | C73: Heavy goods vehicle occupant casualties by age group, severity and year | D73: 0
B74: Tab_C.21 | C74: Pedal cycle casualties by age group, severity and year | D74: 0
B75: Tab_C.22 | C75: Pedestrian casualties by age group, severity and year | D75: 0
B76: Tab_C.23 | C76: Motorcycle casualties by age group, severity and year | D76: 0
B77: Tab_C.24 | C77: Casualties by month and year | D77: 0
B78: Tab_C.25 | C78: Casualties by time period, day and year | D78: 0
B79: Tab_C.26 | C79: Casualties by road surface conditions, weather conditions and year | D79: 0
B80: Tab_C.27 | C80: Casualties by collision type and year | D80: 0
B81: Tab_C.28 | C81: KSI casualties from vehicles hitting objects off carriageway by year | D81: 0
B82: Tab_C.29 | C82: KSI casualties from vehicles hitting objects on carriageway by year | D82: 0
B83: Tab_C.30 | C83: Casualties from vehicles hitting objects off carriageway by year | D83: 0
B84: Tab_C.31 | C84: Casualties from vehicles hitting objects on carriageway by year | D84: 0
B85: Tab_C.32 | C85: Casualties involving single vehicles by severity, casualty type and year | D85: 0
B86: Tab_C.33 | C86: Casualties involving heavy goods vehicles by severity, casualty type and year | D86: 0
B87: Tab_C.34 | C87: Casualties involving LGVs by severity, casualty type and year | D87: 0
B88: Tab_C.35 | C88: Casualties involving young drivers by severity, casualty type and year | D88: 0
B89: Tab_C.36 | C89: Casualties involving elderly drivers by severity, casualty type and year | D89: 0
B90: Tab_C.37 | C90: Casualties involving towed caravans by severity, casualty type and year | D90: 0
B91: Tab_C.38 | C91: Casualties by top 20 road names and year | D91: 0
B92: Tab_C.39 | C92: Fatally injured casualties by top 20 road names and year | D92: 0
B93: Tab_C.40 | C93: KSI casualties by top 20 road names and year | D93: 0
A94: Casualty Rate Statistics
B95: Tab_D.1 | C95: Collision rates per 100 MVM by severity and year | D95: 0
B96: Tab_D.2 | C96: Casualty rates per 100 MVM by severity and year | D96: 0
B97: Tab_D.3 | C97: Collision user rates per 100 MVM by road user type, severity and year | D97: 0
B98: Tab_D.4 | C98: Casualty user rates per 100 MVM by road user type, severity and year | D98: 0
B99: Tab_D.5 | C99: Vehicle type rates per 100 MVM by vehicle user type, severity and year | D99: 0
B100: Tab_D.6 | C100: Total traffic (100 MVM) by top 40 road names and year | D100: 0
B101: Tab_D.7 | C101: Total casualties per 100 MVM by top 40 trafficked roads and year | D101: 0
B102: Tab_D.8 | C102: Total collisions per 100 MVM by top 40 trafficked roads and year | D102: 0
B103: Tab_D.9 | C103: Total casualties per 100 MVM by top 20 motorways and year | D103: 0
B104: Tab_D.10 | C104: Total collisions per 100 MVM by top 20 motorways and year | D104: 0
B105: Tab_D.11 | C105: Total casualties per 100 MVM by top 20 A-roads and year | D105: 0
B106: Tab_D.12 | C106: Total collisions per 100 MVM by top 20 A-roads and year | D106: 0
B107: Tab_D.13 | C107: Casualties per 100 MVM by road classification, severity and year | D107: 0
B108: Tab_D.14 | C108: Collisions per 100 MVM by road classification, severity and year | D108: 0
B109: Tab_D.15 | C109: KSI casualties per 100 MVM by top 40 trafficked road names and year | D109: 0
B110: Tab_D.16 | C110: KSI severity collisions per 100 MVM by top 40 trafficked road names and year | D110: 0
B111: Tab_D.17 | C111: KSI casualties per 100 MVM by top 20 motorways and year | D111: 0
B112: Tab_D.18 | C112: KSI severity collisions per 100 MVM by top 20 motorways and year | D112: 0
B113: Tab_D.19 | C113: KSI casualties per 100 MVM by top 20 A-roads and year | D113: 0
B114: Tab_D.20 | C114: KSI severity collisions per 100 MVM by top 20 A-roads and year | D114: 0
A115: Vehicle Statistics
B116: Tab_E.1 | C116: Number of vehicles by collision type, severity and year | D116: 0
B117: Tab_E.2 | C117: Male and female drivers involved in collisions by vehicle type and year | D117: 0
B118: Tab_E.3 | C118: Vehicles involved in collisions by vehicle type, road classification and collision severity, 2018 | D118: 0
B119: Tab_E.4 | C119: Vehicles involved in collisions by vehicle type and junction detail, 2018 | D119: 0
B120: Tab_E.5 | C120: Vehicles skidding, overturning etc. by road surface condition and vehicle type, 2018 | D120: 0
B121: Tab_E.6 | C121: Vehicles involved in collisions by vehicle type and manoeuvre, 2018 | D121: 0
B122: Tab_E.7 | C122: KSI casualties by vehicle interaction and year | D122: 0
B123: Tab_E.8 | C123: Fatal and serious collisions by vehicle interaction and year | D123: 0
B124: Tab_E.9 | C124: Casualties by vehicle interaction and severity in 2018 | D124: 0
B125: Tab_E.10 | C125: Collisions by vehicle interaction and severity in 2018 | D125: 0
B126: Tab_E.11 | C126: Casualties by user type, vehicle age group and year | D126: 0
B127: Tab_E.12 | C127: Collisions by vehicle involved, vehicle age group involved and year | D127: 0
B128: Tab_E.13 | C128: Casualties involving at least one vehicle defect contributory factor by severity and year | D128: 0
B129: Tab_E.14 | C129: Collisions involving at least one vehicle defect contributory factor by severity and year | D129: 0
A130: Contributory Factor Statistics
B131: Tab_F.1 | C131: Contributory factor group classification and codes | D131: 0
B132: Tab_F.2 | C132: Casualties involving contributory factors by severity, 2018 | D132: 0
B133: Tab_F.3 | C133: Collisions involving contributory factors by severity, 2018 | D133: 0
B134: Tab_F.4 | C134: Collisions involving contributory factors on Motorways by severity, 2018 | D134: 0
B135: Tab_F.5 | C135: Collisions involving contributory factors on A-roads by severity, 2018 | D135: 0
B136: Tab_F.6 | C136: Casualties involving contributory factors on Motorways by severity, 2018 | D136: 0
B137: Tab_F.7 | C137: Casualties involving contributory factors on A-roads by severity, 2018 | D137: 0
B138: Tab_F.8 | C138: Collisions involving contributory factors on A-road single carriageways by severity, 2018 | D138: 0
B139: Tab_F.9 | C139: Collisions involving contributory factors on A-road dual carriageways by severity, 2018 | D139: 0
B140: Tab_F.10 | C140: Casualties involving contributory factors on A-road single carriagways by severity, 2018 | D140: 0
B141: Tab_F.11 | C141: Casualties involving contributory factors on A-road dual carriagways by severity, 2018 | D141: 0
B142: Tab_F.12 | C142: Top 20 contributory factors for total collisions on Motorways by year | D142: 0
B143: Tab_F.13 | C143: Top 20 contributory factors for total collisions on A-roads by year | D143: 0
B144: Tab_F.14 | C144: Top 20 contributory factors for total collisions on A-road single carriageways by year | D144: 0
B145: Tab_F.15 | C145: Top 20 contributory factors for total collisions on A-road dual carriageways by year | D145: 0
B146: Tab_F.16 | C146: Top 20 contributory factors for total casualties on Motorways by year | D146: 0
B147: Tab_F.17 | C147: Top 20 contributory factors for total casualties on A-roads by year | D147: 0
B148: Tab_F.18 | C148: Top 20 contributory factors for total casualties on A-road single carriageways by year | D148: 0
B149: Tab_F.19 | C149: Top 20 contributory factors for total casualties on A-road dual carriageways by year | D149: 0
B150: Tab_F.20 | C150: Top 20 contributory factors for casualties by severity and year | D150: 0
B151: Tab_F.21 | C151: Top 20 contributory factors for collisions by severity and year | D151: 0
B152: Tab_F.22 | C152: Casualties involving drivers or riders impaired by alcohol and/or drugs by road classification, severity and year | D152: 0
B153: Tab_F.23 | C153: Collisions involving drivers or riders impaired by alcohol and/or drugs by road classification, severity and year | D153: 0
B154: Tab_F.24 | C154: Casualties involving drivers or riders impaired by alcohol and/or drugs by top 20 road names and year | D154: 0
B155: Tab_F.25 | C155: Collisions involving drivers or riders impaired by alcohol and/or drugs by top 20 road names and year | D155: 0
B156: Tab_F.26 | C156: Casualties involving drivers or riders fatigued by road classification, severity and year | D156: 0
B157: Tab_F.27 | C157: Collisions involving drivers or riders fatigued by road classification, severity and year | D157: 0
B158: Tab_F.28 | C158: Casualties involving drivers or riders fatigued by top 20 road names and year | D158: 0
B159: Tab_F.29 | C159: Collisions involving drivers or riders fatigued by top 20 road names and year | D159: 0
B160: Tab_F.30 | C160: Casualties involving drivers or riders exceeding the speed limit by road classification, severity and year | D160: 0
B161: Tab_F.31 | C161: Collisions involving drivers or riders exceeding the speed limit by road classification, severity and year | D161: 0
B162: Tab_F.32 | C162: Casualties involving drivers or riders exceeding the speed limit by top 20 road names and year | D162: 0
B163: Tab_F.33 | C163: Collisions involving drivers or riders exceeding the speed limit by top 20 road names and year | D163: 0
B164: Tab_F.34 | C164: Casualties involving drivers or riders distracted by road classification, severity and year | D164: 0
B165: Tab_F.35 | C165: Collisions involving drivers or riders distracted by road classification, severity and year | D165: 0
B166: Tab_F.36 | C166: Casualties involving distracted drivers or riders by top 20 road names and year | D166: 0
B167: Tab_F.37 | C167: Collisions involving distracted drivers or riders by top 20 road names and year | D167: 0
A168: Fatalities
B169: Tab_G.1 | C169: =INDIRECT($B169&"!A9") -> Fatally injured casualties by top 20 road names and year | D169: 1
B170: Tab_G.2 | C170: =INDIRECT($B170&"!A9") -> Fatal collisions by top 20 road names and year | D170: 1
B171: Tab_G.3 | C171: Fatally injured casualties by road classification and year | D171: 1
B172: Tab_G.4 | C172: Fatal collisions by road classification and year | D172: 1
B173: Tab_G.5 | C173: Top 20 contributory factors involving fatally injured casualties by year | D173: 1
B174: Tab_G.6 | C174: Male fatally injured casualties by casualty type, age and year | D174: 1
B175: Tab_G.7 | C175: Female fatally injured casualties by casualty type, age, and year | D175: 1
B176: Tab_G.8 | C176: Top 20 contributory factors involving fatal collisions by year | D176: 1
B177: Tab_G.9 | C177: Top 20 contributory factors for fatal collisions on Motorways by year | D177: 1
B178: Tab_G.10 | C178: Top 20 contributory factors for fatal collisions on A-roads by year | D178: 1
B179: Tab_G.11 | C179: Top 20 contributory factors for fatal collisions on A-road single carriageways by year | D179: 1
B180: Tab_G.12 | C180: Top 20 contributory factors for fatal collisions on A-road dual carriageways by year | D180: 1
B181: Tab_G.13 | C181: Fatally injured casualties by objects hit on carriageway and year | D181: 1
B182: Tab_G.14 | C182: Fatal collisions by objects hit on carriageway and year | D182: 1
B183: Tab_G.15 | C183: Fatally injured casualties by objects hit off carriageway and year | D183: 1
B184: Tab_G.16 | C184: Fatal collisions by objects hit off carriageway and year | D184: 1
B185: Tab_G.17 | C185: Fatally injured casualties by road condition, skidding and year | D185: 1
B186: Tab_G.18 | C186: Fatal collisions by road surface condition, skidding and year | D186: 1
B187: Tab_G.19 | C187: Fatally injured casualties by light conditions, road classification and year | D187: 1
B188: Tab_G.20 | C188: Fatal collisions by light conditions, road classification and year | D188: 1
B189: Tab_G.21 | C189: Fatally injured casualties by junction detail and year | D189: 1
B190: Tab_G.22 | C190: Fatal collisions by junction detail and year | D190: 1
B191: Tab_G.23 | C191: Fatally injured casualties involving hard shoulders or laybys by vehicle location and year | D191: 1
B192: Tab_G.24 | C192: Fatal collisions involving hard shoulders or laybys by vehicle location and year | D192: 1
B193: Tab_G.25 | C193: Fatally injured casualties by driver age group involved and year | D193: 1
B194: Tab_G.26 | C194: Fatal collisions by driver age group involved and year | D194: 1
B195: Tab_G.27 | C195: Fatally injured casualties by vehicle type involved and year | D195: 1
B196: Tab_G.28 | C196: Fatal collisions by vehicle type involved and year | D196: 1
B197: Tab_G.29 | C197: Fatally injured casualties by journey purpose, vehicle type and year | D197: 1
B198: Tab_G.30 | C198: Fatal collisions by journey purpose, vehicle type and year | D198: 1
B199: Tab_G.31 | C199: Fatally injured casualties by time of day and year | D199: 1
B200: Tab_G.32 | C200: Fatal collisions by time of day and year | D200: 1
B201: Tab_G.33 | C201: Fatally injured casualties by day of the week and year | D201: 1
B202: Tab_G.34 | C202: Fatal collisions by day of the week and year | D202: 1
B203: Tab_G.35 | C203: Fatally injured casualties by month and year | D203: 1
B204: Tab_G.36 | C204: Fatal collisions by month and year | D204: 1
A205: Seriously Injured
B206: Tab_H.1 | C206: Seriously injured casualties by top 20 road names and year | D206: 1
B207: Tab_H.2 | C207: Serious collisions by top 20 road names and year | D207: 1
B208: Tab_H.3 | C208: Seriously injured casualties by road classification and year | D208: 1
... 303 more rows

Sheet Tab_A.1
A7: Casualty report Appendix
A8: Tab_A.1
A9: Glossary
A12: Date updated
A13: =List!K2 -> 2020-02-12
A14: Input Year
A15: =Cover!$N$18 -> 2018
A17: Link to Contents
B20: =A8&" - "&A9 -> Tab_A.1 - Glossary
B21: Adults | C21: Person aged 16 years and over (except where otherwise stated)
B22: Baseline average | C22: Average of values between the year 2005 and 2009. (2005–2009 baseline average)
B23: Built-up roads | C23: Roads with speed limits of 40mph or less
B24: Buses and coaches | C24: Vehicle equipped to carry 17 or more passengers regardless of use
B25: Cars | C25: Includes cars, private hire cars and private taxis
B26: Collisions | C26: See “Personal injury collisions”
B27: Dual carriageway | C27: Road where two opposing directions of traffic are separated by a physical barrier. For context of this report only; roundabouts, slip roads and one way streets are classed as.
B28: Fatal collision | C28: A collision where at least one person was killed.
B29: Goods vehicles (GV) | C29: Includes all weight categories of goods vehicles unless stated otherwise
B30: Head on collision | C30: A collision involving at least two vehicles moving in opposite directions at point of impact, where both vehicles first point of impact was recorded as “Front”. For example, the front of vehicle 1 moving North to South collides with the front of vehicle 2 moving South to North. Vehicles that were parked, or where the vehicle movement was unknown are not included.
B31: HGV | C31: Heavy goods vehicle; classed as goods vehicle with known weight over 3.5 tonnes respectively.
B32: Junction collision | C32: A collision recorded as occurring within 20m of a junction.
B33: Killed | C33: Human casualties who sustained injuries which caused death less than 30 days after the collision. Confirmed suicides are excluded. Also referred to as fatalities.
B34: KSI | C34: Killed or seriously injured
B35: LGV (Other GV) | C35: Light weight goods vehicle; classed as goods vehicle with known weight equal to or less than 3.5tonnes and those GVs without a classification within STATS19 data.
B36: Motorcycle | C36: Includes all engine capacities of powered two wheelers or motorcycles.
B37: Motorways | C37: Motorway and A(M) roads.
B38: Non built-up roads | C38: Roads with speed limits of 50mph or more.
B39: Other vehicles | C39: Other vehicles include ambulances, fire engines, trams, refuse vehicles, road rollers, agricultural vehicles, excavators, mobile cranes, tower wagons, army tanks, pedestrian-controlled vehicles with a motor. Other non-motor vehicles include those drawn by animals, ridden horses, invalid carriages, etc.
B40: Overtake collision | C40: A collision involving at least one vehicle recorded as overtaking another vehicle.
B41: Pedal cyclist collision | C41: A collision involving at least one pedal cyclist casualty.
B42: Pedestrian collision | C42: A collision involving at least one pedestrian casualty.
B43: Personal injury collisions (PIC) | C43: Collisions resulting in at least one casualty of any severity.
B44: Referenced Network | C44: The definitive network against which collision and casualty trends will be monitored. From 2016, the referenced network will be that at 1st January and will be updated annually to capture changes on the SRN in a timely manner. Pre-2016 was a fixed reference network taken in December 2010.
B45: Serious collision | C45: Collision involving at least one casualty who is seriously injured with no casualties killed.
B46: Seriously injured | C46: An injury for which a person is detained in hospital as an “in-patient”, or any of the following injuries whether or not they are detained in hospital: fractures, concussion, internal injuries, crushing, burns, severe cuts and lacerations, severe general shock requiring medical treatment and injuries causing death 30 or more days after the collision.
B47: Severity | C47: Of a collision; the severity of the most injured casualty (fatal, serious or slight). Of a casualty; killed, seriously injured or slightly injured.
B48: Shunt collision | C48: A collision involving at least two vehicles moving in the same directions at point of impact, where one vehicles first point of impact was recorded as “Front” and the other vehicles as “Back”. For example, the front of vehicle 1 moving North to South collides with the back of vehicle 2 moving North to South. Vehicles that were parked, or where the vehicle movement was unknown are not included.
B49: Single vehicle collision | C49: A collision involving a single vehicle (includes collisions involving pedestrians).
B50: Single vehicle run off collision | C50: A collision involving a single vehicle recorded as leaving the carriageway (excludes collisions involving pedestrians).
B51: Slight collision | C51: Collision involving at least one casualty who is slightly injured with no casualties killed or seriously injured.
B52: Slightly injured | C52: An injury of a minor character such as a sprain (including neck whiplash injury), bruise or cut which are not judged to be severe, or slight shock requiring roadside attention. This definition includes injuries not requiring medical treatment.
B53: Traffic | C53: The number of vehicle-miles of traffic, measured in 100 million vehicle miles (100 MVM). Also referred to as hundred million vehicle miles (HMVM).
B54: Young motorist | C54: Drivers of vehicles aged between 17 and 24 years old whose vehicle is not powered two wheelers or pedal cycle.
B55: Young rider | C55: Rider of vehicles aged between 16 and 19 years old whose vehicle is a powered two wheelers.

Sheet B_DataSheet (hidden)
A7: Casualty report Appendix
A8: B_DataSheet
A12: Date updated
A13: =List!K2 -> 2020-02-12
A14: Input Year
A15: =Cover!$N$18 -> 2018
A17: Link to Contents
A21: BSL | AA21: Summary Years
A22: =Cover!$N$20 -> 2005 | AA22: =#REF! -> 
A23: =Cover!N21 -> 2009 | B23: 008_001_APP_B_HA Collisions by Road Types_Sev_Year | AA23: =#REF! -> 
A24: BSL | B24: RoadClass | C24: RoadType (TRL Grouping) | D24: RoadClassification | E24: AccidentSeverity | F24: 2005 | G24: 2006 | H24: 2007 | I24: 2008 | J24: 2009 | K24: 2010 | L24: 2011 | M24: 2012 | N24: 2013 | O24: 2014 | P24: 2015 | Q24: 2016 | R24: 2017 | S24: 2018
A25: =SUMIFS(B25:X25,$B$24:$X$24,">="&$A$22,$B$24:$X$24,"<="&$A$23)/($A$23-$A$22+1) -> 0 | B25: Other | C25: Dual Carriageway | D25: Built-up | E25: Slight | N25: 1 | AA25: =SUMIFS(B25:X25,$B$24:$X$24,">="&$AA$22,$B$24:$X$24,"<="&$AA$23) -> 0 | AD25: Collision Severity | AE25: BSL (2005-2009) | AF25: 2005 | AG25: 2006 | AH25: 2007 | AI25: 2008 | AJ25: 2009 | AK25: 2010 | AL25: 2011 | AM25: 2012 | AN25: 2013 | AO25: 2014 | AP25: 2015 | AQ25: 2016 | AR25: 2017 | AS25: 2018 | AT25: 2019 | AU25: 2020
A26: =SUMIFS(B26:X26,$B$24:$X$24,">="&$A$22,$B$24:$X$24,"<="&$A$23)/($A$23-$A$22+1) -> 0 | B26: Other | C26: Dual Carriageway | D26: Non Built-up | E26: Slight | N26: 1 | AA26: =SUMIFS(B26:X26,$B$24:$X$24,">="&$AA$22,$B$24:$X$24,"<="&$AA$23) -> 0 | AD26: Fatal | AE26: =AVERAGE(AF26:AJ26) -> 314 | AF26: =IF(OR($AD26="Fatal+Serious",$AD26="Total"),AF24+AF25,SUMIFS(F$25:F$60,$E$25:$E$60,$AD26)) -> 364 | AG26: =IF(OR($AD26="Fatal+Serious",$AD26="Total"),AG24+AG25,SUMIFS(G$25:G$60,$E$25:$E$60,$AD26)) -> 344 | AH26: 326 | AI26: 309 | AJ26: 227 | AK26: 231 | AL26: 226 | AM26: 201 | AN26: 226 | AO26: 192 | AP26: 202 | AQ26: 213 | AR26: 203 | AS26: 221 | AT26: 0 | AU26: 0
A27: =SUMIFS(B27:X27,$B$24:$X$24,">="&$A$22,$B$24:$X$24,"<="&$A$23)/($A$23-$A$22+1) -> 0 | B27: Other | C27: Single Carriageway | D27: Built-up | E27: Slight | N27: 2 | AA27: 0 | AD27: Serious | AE27: =AVERAGE(AF27:AJ27) -> 1570.6 | AF27: =IF(OR($AD27="Fatal+Serious",$AD27="Total"),AF25+AF26,SUMIFS(F$25:F$60,$E$25:$E$60,$AD27)) -> 1775 | AG27: =IF(OR($AD27="Fatal+Serious",$AD27="Total"),AG25+AG26,SUMIFS(G$25:G$60,$E$25:$E$60,$AD27)) -> 1628 | AH27: =IF(OR($AD27="Fatal+Serious",$AD27="Total"),AH25+AH26,SUMIFS(H$25:H$60,$E$25:$E$60,$AD27)) -> 1628 | AI27: =IF(OR($AD27="Fatal+Serious",$AD27="Total"),AI25+AI26,SUMIFS(I$25:I$60,$E$25:$E$60,$AD27)) -> 1423 | AJ27: =IF(OR($AD27="Fatal+Serious",$AD27="Total"),AJ25+AJ26,SUMIFS(J$25:J$60,$E$25:$E$60,$AD27)) -> 1399 | AK27: =IF(OR($AD27="Fatal+Serious",$AD27="Total"),AK25+AK26,SUMIFS(K$25:K$60,$E$25:$E$60,$AD27)) -> 1345 | AL27: =IF(OR($AD27="Fatal+Serious",$AD27="Total"),AL25+AL26,SUMIFS(L$25:L$60,$E$25:$E$60,$AD27)) -> 1278 | AM27: =IF(OR($AD27="Fatal+Serious",$AD27="Total"),AM25+AM26,SUMIFS(M$25:M$60,$E$25:$E$60,$AD27)) -> 1228 | AN27: =IF(OR($AD27="Fatal+Serious",$AD27="Total"),AN25+AN26,SUMIFS(N$25:N$60,$E$25:$E$60,$AD27)) -> 1209 | AO27: =IF(OR($AD27="Fatal+Serious",$AD27="Total"),AO25+AO26,SUMIFS(O$25:O$60,$E$25:$E$60,$AD27)) -> 1371 | AP27: =IF(OR($AD27="Fatal+Serious",$AD27="Total"),AP25+AP26,SUMIFS(P$25:P$60,$E$25:$E$60,$AD27)) -> 1320 | AQ27: =IF(OR($AD27="Fatal+Serious",$AD27="Total"),AQ25+AQ26,SUMIFS(Q$25:Q$60,$E$25:$E$60,$AD27)) -> 1482 | AR27: =IF(OR($AD27="Fatal+Serious",$AD27="Total"),AR25+AR26,SUMIFS(R$25:R$60,$E$25:$E$60,$AD27)) -> 1339 | AS27: =IF(OR($AD27="Fatal+Serious",$AD27="Total"),AS25+AS26,SUMIFS(S$25:S$60,$E$25:$E$60,$AD27)) -> 1453 | AT27: =IF(OR($AD27="Fatal+Serious",$AD27="Total"),AT25+AT26,SUMIFS(T$25:T$60,$E$25:$E$60,$AD27)) -> 0 | AU27: =IF(OR($AD27="Fatal+Serious",$AD27="Total"),AU25+AU26,SUMIFS(U$25:U$60,$E$25:$E$60,$AD27)) -> 0
A28: 0 | B28: Other | C28: Single Carriageway | D28: Non Built-up | E28: Serious | N28: 1 | AA28: 0 | AD28: Fatal+Serious | AE28: 1884.6 | AF28: 2139 | AG28: 1972 | AH28: 1954 | AI28: 1732 | AJ28: 1626 | AK28: 1576 | AL28: 1504 | AM28: 1429 | AN28: 1435 | AO28: 1563 | AP28: 1522 | AQ28: 1695 | AR28: 1542 | AS28: 1674 | AT28: 0 | AU28: 0
A29: 0.8 | B29: Motorway | C29: Dual Carriageway | D29: Built-up | E29: Fatal | G29: 2 | I29: 2 | K29: 1 | O29: 1 | P29: 3 | R29: 1 | S29: 1 | AA29: 0 | AD29: Slight | AE29: 11986.6 | AF29: 13214 | AG29: 12863 | AH29: 12311 | AI29: 11095 | AJ29: 10450 | AK29: 9838 | AL29: 9443 | AM29: 9091 | AN29: 8710 | AO29: 9026 | AP29: 8777 | AQ29: 8463 | AR29: 7301 | AS29: 6786 | AT29: 0 | AU29: 0
A30: =SUMIFS(B30:X30,$B$24:$X$24,">="&$A$22,$B$24:$X$24,"<="&$A$23)/($A$23-$A$22+1) -> 9 | B30: Motorway | C30: Dual Carriageway | D30: Built-up | E30: Serious | F30: 7 | G30: 13 | H30: 9 | I30: 6 | J30: 10 | K30: 8 | L30: 9 | M30: 5 | N30: 3 | O30: 2 | P30: 6 | Q30: 11 | R30: 6 | S30: 8 | AA30: 0 | AD30: Total | AE30: 13871.2 | AF30: 15353 | AG30: 14835 | AH30: 14265 | AI30: 12827 | AJ30: 12076 | AK30: 11414 | AL30: 10947 | AM30: 10520 | AN30: 10145 | AO30: 10589 | AP30: 10299 | AQ30: 10158 | AR30: =IF(OR($AD30="Fatal+Serious",$AD30="Total"),AR28+AR29,SUMIFS(R$25:R$60,$E$25:$E$60,$AD30)) -> 8843 | AS30: 8460 | AT30: 0 | AU30: 0
A31: =SUMIFS(B31:X31,$B$24:$X$24,">="&$A$22,$B$24:$X$24,"<="&$A$23)/($A$23-$A$22+1) -> 155.4 | B31: Motorway | C31: Dual Carriageway | D31: Built-up | E31: Slight | F31: 222 | G31: 162 | H31: 120 | I31: 138 | J31: 135 | K31: 115 | L31: 103 | M31: 66 | N31: 59 | O31: 72 | P31: 96 | Q31: 90 | R31: 108 | S31: 95 | AA31: 0
A32: 129.8 | B32: Motorway | C32: Dual Carriageway | D32: Non Built-up | E32: Fatal | F32: 156 | G32: 143 | H32: 132 | I32: 120 | J32: 98 | K32: 104 | L32: 78 | M32: 70 | N32: 85 | O32: 72 | P32: 79 | Q32: 74 | R32: 68 | S32: 73 | AA32: 0
A33: 673.6 | B33: Motorway | C33: Dual Carriageway | D33: Non Built-up | E33: Serious | F33: 721 | G33: 694 | H33: 726 | I33: 635 | J33: 592 | K33: 584 | L33: 527 | M33: 478 | N33: 483 | O33: 531 | P33: 532 | Q33: 605 | R33: 544 | S33: 608 | AA33: 0
A34: 5953 | B34: Motorway | C34: Dual Carriageway | D34: Non Built-up | E34: Slight | F34: 6600 | G34: 6463 | H34: 6119 | I34: 5533 | J34: 5050 | K34: 4992 | L34: 4412 | M34: 4350 | N34: 4151 | O34: 4254 | P34: 4092 | Q34: 3941 | R34: 3438 | S34: 3225 | AA34: 0
A35: 0.2 | B35: Motorway | C35: Single Carriageway | D35: Built-up | E35: Fatal | I35: 1 | AA35: 0
A36: 0.6 | B36: Motorway | C36: Single Carriageway | D36: Built-up | E36: Serious | F36: 1 | G36: 2 | L36: 1 | AA36: 0
A37: 12.4 | B37: Motorway | C37: Single Carriageway | D37: Built-up | E37: Slight | F37: 16 | G37: 17 | H37: 10 | I37: 5 | J37: 14 | K37: 9 | L37: 17 | M37: 13 | N37: 6 | O37: 4 | P37: 5 | Q37: 5 | R37: 8 | S37: 9 | AA37: 0
A38: 0.4 | B38: Motorway | C38: Single Carriageway | D38: Non Built-up | E38: Fatal | G38: 1 | J38: 1 | AA38: 0
A39: 1 | B39: Motorway | C39: Single Carriageway | D39: Non Built-up | E39: Serious | F39: 2 | G39: 1 | I39: 1 | J39: 1 | K39: 1 | N39: 1 | Q39: 2 | S39: 1 | AA39: 0
A40: 15 | B40: Motorway | C40: Single Carriageway | D40: Non Built-up | E40: Slight | F40: 12 | G40: 15 | H40: 12 | I40: 21 | J40: 15 | K40: 12 | L40: 6 | M40: 16 | N40: 8 | O40: 5 | P40: 13 | Q40: 10 | R40: 7 | S40: 9 | AA40: 0
A41: 5.4 | B41: A-road | C41: Dual Carriageway | D41: Built-up | E41: Fatal | F41: 8 | G41: 5 | H41: 6 | I41: 3 | J41: 5 | K41: 1 | L41: 4 | M41: 4 | N41: 2 | O41: 4 | P41: 3 | Q41: 4 | R41: 4 | S41: 6 | AA41: 0
A42: =SUMIFS(B42:X42,$B$24:$X$24,">="&$A$22,$B$24:$X$24,"<="&$A$23)/($A$23-$A$22+1) -> 50.8 | B42: A-road | C42: Dual Carriageway | D42: Built-up | E42: Serious | F42: 54 | G42: 42 | H42: 58 | I42: 50 | J42: 50 | K42: 45 | L42: 53 | M42: 50 | N42: 41 | O42: 58 | P42: 53 | Q42: 52 | R42: 43 | S42: 58 | AA42: 0
A43: 612.2 | B43: A-road | C43: Dual Carriageway | D43: Built-up | E43: Slight | F43: 659 | G43: 612 | H43: 637 | I43: 594 | J43: 559 | K43: 443 | L43: 617 | M43: 537 | N43: 493 | O43: 547 | P43: 498 | Q43: 493 | R43: 419 | S43: 375 | AA43: 0
A44: 114.4 | B44: A-road | C44: Dual Carriageway | D44: Non Built-up | E44: Fatal | F44: 125 | G44: 125 | H44: 124 | I44: 124 | J44: 74 | K44: 86 | L44: 92 | M44: 77 | N44: 80 | O44: 64 | P44: 73 | Q44: 87 | R44: 79 | S44: 85 | AA44: 0
A45: 543.4 | B45: A-road | C45: Dual Carriageway | D45: Non Built-up | E45: Serious | F45: 658 | G45: 579 | H45: 527 | I45: 490 | J45: 463 | K45: 490 | L45: 467 | M45: 458 | N45: 422 | O45: 506 | P45: 465 | Q45: 555 | R45: 479 | S45: 508 | AA45: 0
A46: 3753.8 | B46: A-road | C46: Dual Carriageway | D46: Non Built-up | E46: Slight | F46: 4092 | G46: 4010 | H46: 3865 | I46: 3468 | J46: 3334 | K46: 3083 | L46: 3176 | M46: 2998 | N46: 2934 | O46: 3042 | P46: 2993 | Q46: 2886 | R46: 2429 | S46: 2275 | AA46: 0
A47: 5.2 | B47: A-road | C47: Single Carriageway | D47: Built-up | E47: Fatal | F47: 4 | G47: 4 | H47: 6 | I47: 9 | J47: 3 | K47: 5 | L47: 7 | M47: 7 | N47: 9 | O47: 9 | P47: 6 | Q47: 3 | R47: 3 | S47: 1 | AA47: 0
A48: 57.2 | B48: A-road | C48: Single Carriageway | D48: Built-up | E48: Serious | F48: 66 | G48: 46 | H48: 66 | I48: 42 | J48: 66 | K48: 52 | L48: 57 | M48: 50 | N48: 44 | O48: 57 | P48: 59 | Q48: 55 | R48: 61 | S48: 67 | AA48: 0
A49: 397.4 | B49: A-road | C49: Single Carriageway | D49: Built-up | E49: Slight | F49: 395 | G49: 400 | H49: 397 | I49: 402 | J49: 393 | K49: 328 | L49: 309 | M49: 306 | N49: 314 | O49: 331 | P49: 319 | Q49: 315 | R49: 253 | S49: 228 | AA49: 0
A50: 57.8 | B50: A-road | C50: Single Carriageway | D50: Non Built-up | E50: Fatal | F50: 71 | G50: 64 | H50: 58 | I50: 50 | J50: 46 | K50: 34 | L50: 45 | M50: 43 | N50: 50 | O50: 42 | P50: 38 | Q50: 45 | R50: 48 | S50: 55 | AA50: 0
A51: 235 | B51: A-road | C51: Single Carriageway | D51: Non Built-up | E51: Serious | F51: 266 | G51: 251 | H51: 242 | I51: 199 | J51: 217 | K51: 165 | L51: 164 | M51: 187 | N51: 214 | O51: 217 | P51: 205 | Q51: 202 | R51: 206 | S51: 203 | AA51: 0
A52: 1087.4 | B52: A-road | C52: Single Carriageway | D52: Non Built-up | E52: Slight | F52: 1218 | G52: 1184 | H52: 1151 | I52: 934 | J52: 950 | K52: 856 | L52: 803 | M52: 805 | N52: 741 | O52: 771 | P52: 761 | Q52: 723 | R52: 639 | S52: 570 | AA52: 0
A53: 0 | AA53: 0
A54: 0 | AA54: 0
A55: 0 | AA55: 0
A56: 0 | AA56: 0
A57: 0 | AA57: 0
A58: 0 | AA58: 0
A59: 0 | AA59: 0
A60: 0 | AA60: 0
AA61: 0
AA62: 0
B323: 008_004_APP_B_HA Collisions by Month_Year
A324: BSL | B324: Quarter | C324: Month | D324: 2005 | E324: 2006 | F324: 2007 | G324: 2008 | H324: 2009 | I324: 2010 | J324: 2011 | K324: 2012 | L324: 2013 | M324: 2014 | N324: 2015 | O324: 2016 | P324: 2017 | Q324: 2018
A325: =SUMIFS(B325:X325,$B$324:$X$324,">="&$A$22,$B$324:$X$324,"<="&$A$23)/($A$23-$A$22+1) -> 1117.6 | B325: Q1 | C325: Jan | D325: 1205 | E325: 1053 | F325: 1173 | G325: 1116 | H325: 1041 | I325: 771 | J325: 894 | K325: 785 | L325: 709 | M325: 930 | N325: 862 | O325: 835 | P325: 755 | Q325: 698
A326: =SUMIFS(B326:X326,$B$324:$X$324,">="&$A$22,$B$324:$X$324,"<="&$A$23)/($A$23-$A$22+1) -> 1033 | B326: Q1 | C326: Feb | D326: 1133 | E326: 1158 | F326: 1025 | G326: 1072 | H326: 777 | I326: 882 | J326: 867 | K326: 772 | L326: 706 | M326: 795 | N326: 788 | O326: 791 | P326: 689 | Q326: 619
A327: 1080.6 | B327: Q1 | C327: Mar | D327: 1151 | E327: 1118 | F327: 1101 | G327: 1133 | H327: 900 | I327: 838 | J327: 842 | K327: 810 | L327: 775 | M327: 787 | N327: 778 | O327: 800 | P327: 648 | Q327: 627
A328: 1055.8 | B328: Q2 | C328: Apr | D328: 1121 | E328: 1074 | F328: 1095 | G328: 1076 | H328: 913 | I328: 946 | J328: 875 | K328: 837 | L328: 690 | M328: 792 | N328: 751 | O328: 787 | P328: 619 | Q328: 676
A329: 1103.6 | B329: Q2 | C329: May | D329: 1230 | E329: 1176 | F329: 1147 | G329: 1007 | H329: 958 | I329: 941 | J329: 823 | K329: 822 | L329: 827 | M329: 837 | N329: 806 | O329: 838 | P329: 749 | Q329: 766
A330: 1101.2 | B330: Q2 | C330: Jun | D330: 1237 | E330: 1221 | F330: 1129 | G330: 978 | H330: 941 | I330: 935 | J330: 929 | K330: 818 | L330: 828 | M330: 841 | N330: 830 | O330: 821 | P330: 721 | Q330: 702
A331: 1257.8 | B331: Q3 | C331: Jul | D331: 1336 | E331: 1404 | F331: 1340 | G331: 1128 | H331: 1081 | I331: 1015 | J331: 970 | K331: 981 | L331: 987 | M331: 962 | N331: 931 | O331: 841 | P331: 786 | Q331: 760
A332: =SUMIFS(B332:X332,$B$324:$X$324,">="&$A$22,$B$324:$X$324,"<="&$A$23)/($A$23-$A$22+1) -> 1227.4 | B332: Q3 | C332: Aug | D332: 1416 | E332: 1254 | F332: 1335 | G332: 1051 | H332: 1081 | I332: 1007 | J332: 947 | K332: 953 | L332: 918 | M332: 949 | N332: 903 | O332: 1009 | P332: 782 | Q332: 762
A333: 1164.4 | B333: Q3 | C333: Sep | D333: 1298 | E333: 1362 | F333: 1171 | G333: 1005 | H333: 986 | I333: 988 | J333: 941 | K333: 910 | L333: 813 | M333: 762 | N333: 882 | O333: 839 | P333: 711 | Q333: 704
A334: 1231 | B334: Q4 | C334: Oct | D334: 1419 | E334: 1347 | F334: 1249 | G334: 1109 | H334: 1031 | I334: 1046 | J334: 943 | K334: 909 | L334: 983 | M334: 992 | N334: 960 | O334: 863 | P334: 760 | Q334: 753
A335: 1284.6 | B335: Q4 | C335: Nov | D335: 1432 | E335: 1350 | F335: 1280 | G335: 1150 | H335: 1211 | I335: 1111 | J335: 973 | K335: 1006 | L335: 993 | M335: 1002 | N335: 944 | O335: 911 | P335: 805 | Q335: 737
A336: 1214.2 | B336: Q4 | C336: Dec | D336: 1375 | E336: 1318 | F336: 1220 | G336: 1002 | H336: 1156 | I336: 934 | J336: 943 | K336: 917 | L336: 916 | M336: 940 | N336: 864 | O336: 823 | P336: 818 | Q336: 656
A337: =SUMIFS(B337:X337,$B$324:$X$324,">="&$A$22,$B$324:$X$324,"<="&$A$23)/($A$23-$A$22+1) -> 0
A338: 0
A339: 0
A340: 0
A341: 0
A342: 0
A343: 0
A344: 0
A345: 0
B623: 008_005_APP_B_HA F_S Collisions by Month_Year
A624: BSL | B624: Quarter | C624: Month | D624: 2005 | E624: 2006 | F624: 2007 | G624: 2008 | H624: 2009 | I624: 2010 | J624: 2011 | K624: 2012 | L624: 2013 | M624: 2014 | N624: 2015 | O624: 2016 | P624: 2017 | Q624: 2018
A625: =SUMIFS(B625:X625,$B$624:$X$624,">="&$A$22,$B$624:$X$624,"<="&$A$23)/($A$23-$A$22+1) -> 145.4 | B625: Q1 | C625: Jan | D625: 169 | E625: 126 | F625: 165 | G625: 121 | H625: 146 | I625: 91 | J625: 118 | K625: 103 | L625: 85 | M625: 130 | N625: 108 | O625: 123 | P625: 122 | Q625: 126
A626: =SUMIFS(B626:X626,$B$624:$X$624,">="&$A$22,$B$624:$X$624,"<="&$A$23)/($A$23-$A$22+1) -> 135.2 | B626: Q1 | C626: Feb | D626: 176 | E626: 138 | F626: 121 | G626: 143 | H626: 98 | I626: 104 | J626: 103 | K626: 112 | L626: 87 | M626: 91 | N626: 121 | O626: 121 | P626: 97 | Q626: 112
A627: 144 | B627: Q1 | C627: Mar | D627: 172 | E627: 142 | F627: 144 | G627: 153 | H627: 109 | I627: 107 | J627: 108 | K627: 106 | L627: 97 | M627: 102 | N627: 92 | O627: 137 | P627: 107 | Q627: 117
A628: 155.8 | B628: Q2 | C628: Apr | D628: 155 | E628: 162 | F628: 178 | G628: 153 | H628: 131 | I628: 142 | J628: 115 | K628: 120 | L628: 99 | M628: 131 | N628: 109 | O628: 113 | P628: 122 | Q628: 133
A629: 158.4 | B629: Q2 | C629: May | D629: 173 | E629: 170 | F629: 144 | G629: 132 | H629: 173 | I629: 129 | J629: 123 | K629: 126 | L629: 126 | M629: 113 | N629: 143 | O629: 154 | P629: 151 | Q629: 171
A630: 161.4 | B630: Q2 | C630: Jun | D630: 186 | E630: 160 | F630: 156 | G630: 144 | H630: 161 | I630: 125 | J630: 123 | K630: 109 | L630: 113 | M630: 141 | N630: 130 | O630: 153 | P630: 130 | Q630: 135
A631: 178.4 | B631: Q3 | C631: Jul | D631: 200 | E631: 208 | F631: 188 | G631: 173 | H631: 123 | I631: 162 | J631: 147 | K631: 126 | L631: 155 | M631: 167 | N631: 149 | O631: 148 | P631: 156 | Q631: 162
A632: 177 | B632: Q3 | C632: Aug | D632: 198 | E632: 179 | F632: 182 | G632: 178 | H632: 148 | I632: 171 | J632: 152 | K632: 144 | L632: 152 | M632: 153 | N632: 147 | O632: 179 | P632: 145 | Q632: 162
A633: 163.2 | B633: Q3 | C633: Sep | D633: 181 | E633: 170 | F633: 174 | G633: 144 | H633: 147 | I633: 161 | J633: 151 | K633: 114 | L633: 136 | M633: 128 | N633: 119 | O633: 138 | P633: 117 | Q633: 149
A634: 153.6 | B634: Q4 | C634: Oct | D634: 181 | E634: 152 | F634: 167 | G634: 129 | H634: 139 | I634: 128 | J634: 117 | K634: 132 | L634: 146 | M634: 144 | N634: 129 | O634: 138 | P634: 118 | Q634: 143
A635: 159.2 | B635: Q4 | C635: Nov | D635: 184 | E635: 178 | F635: 170 | G635: 134 | H635: 130 | I635: 130 | J635: 124 | K635: 123 | L635: 119 | M635: 122 | N635: 135 | O635: 148 | P635: 124 | Q635: 141
A636: =SUMIFS(B636:X636,$B$624:$X$624,">="&$A$22,$B$624:$X$624,"<="&$A$23)/($A$23-$A$22+1) -> 153 | B636: Q4 | C636: Dec | D636: 164 | E636: 187 | F636: 165 | G636: 128 | H636: 121 | I636: 126 | J636: 123 | K636: 114 | L636: 120 | M636: 141 | N636: 140 | O636: 143 | P636: 153 | Q636: 123
A637: 0
A638: 0
A639: 0
A640: 0
A641: 0
A642: 0
A643: 0
A644: 0
A645: 0
A646: 0
B923: 008_006_APP_B_HA Collins by DayofWeek_TimePeriod_year
A924: BSL | B924: Weekday | C924: GroupedTime | D924: 2005 | E924: 2006 | F924: 2007 | G924: 2008 | H924: 2009 | I924: 2010 | J924: 2011 | K924: 2012 | L924: 2013 | M924: 2014 | N924: 2015 | O924: 2016 | P924: 2017 | Q924: 2018
A925: =SUMIFS(B925:X925,$B$924:$X$924,">="&$A$22,$B$924:$X$924,"<="&$A$23)/($A$23-$A$22+1) -> 210.8 | B925: Sunday | C925: 0 - 6am | D925: 226 | E925: 230 | F925: 215 | G925: 197 | H925: 186 | I925: 163 | J925: 164 | K925: 161 | L925: 128 | M925: 123 | N925: 125 | O925: 143 | P925: 111 | Q925: 128
A926: =SUMIFS(B926:X926,$B$924:$X$924,">="&$A$22,$B$924:$X$924,"<="&$A$23)/($A$23-$A$22+1) -> 442 | B926: Sunday | C926: 10am - 2pm | D926: 470 | E926: 466 | F926: 451 | G926: 417 | H926: 406 | I926: 363 | J926: 342 | K926: 337 | L926: 321 | M926: 346 | N926: 365 | O926: 331 | P926: 267 | Q926: 289
A927: =SUMIFS(B927:X927,$B$924:$X$924,">="&$A$22,$B$924:$X$924,"<="&$A$23)/($A$23-$A$22+1) -> 493.8 | B927: Sunday | C927: 2 - 6pm | D927: 564 | E927: 540 | F927: 488 | G927: 455 | H927: 422 | I927: 388 | J927: 384 | K927: 350 | L927: 326 | M927: 368 | N927: 381 | O927: 336 | P927: 325 | Q927: 313
A928: 215.8 | B928: Sunday | C928: 6 - 10am | D928: 208 | E928: 236 | F928: 217 | G928: 210 | H928: 208 | I928: 199 | J928: 198 | K928: 201 | L928: 150 | M928: 148 | N928: 136 | O928: 149 | P928: 126 | Q928: 125
A929: 423.8 | B929: Sunday | C929: 6pm - 0am | D929: 493 | E929: 455 | F929: 460 | G929: 381 | H929: 330 | I929: 326 | J929: 298 | K929: 281 | L929: 287 | M929: 282 | N929: 280 | O929: 291 | P929: 252 | Q929: 227
A930: 0.2 | B930: Sunday | C930: Error | D930: 1
A931: 145.8 | B931: Monday | C931: 0 - 6am | D931: 154 | E931: 176 | F931: 168 | G931: 107 | H931: 124 | I931: 105 | J931: 113 | K931: 89 | L931: 90 | M931: 130 | N931: 88 | O931: 99 | P931: 83 | Q931: 107
A932: 427.8 | B932: Monday | C932: 10am - 2pm | D932: 538 | E932: 433 | F932: 416 | G932: 389 | H932: 363 | I932: 351 | J932: 297 | K932: 316 | L932: 314 | M932: 350 | N932: 344 | O932: 300 | P932: 269 | Q932: 271
A933: 549 | B933: Monday | C933: 2 - 6pm | D933: 576 | E933: 559 | F933: 582 | G933: 519 | H933: 509 | I933: 458 | J933: 448 | K933: 454 | L933: 421 | M933: 461 | N933: 430 | O933: 440 | P933: 388 | Q933: 359
A934: 555.2 | B934: Monday | C934: 6 - 10am | D934: 633 | E934: 583 | F934: 568 | G934: 552 | H934: 440 | I934: 432 | J934: 435 | K934: 393 | L934: 415 | M934: 437 | N934: 393 | O934: 394 | P934: 318 | Q934: 341
A935: 346.2 | B935: Monday | C935: 6pm - 0am | D935: 375 | E935: 362 | F935: 375 | G935: 317 | H935: 302 | I935: 269 | J935: 301 | K935: 284 | L935: 244 | M935: 281 | N935: 265 | O935: 254 | P935: 206 | Q935: 210
A936: 129.8 | B936: Tuesday | C936: 0 - 6am | D936: 167 | E936: 119 | F936: 137 | G936: 123 | H936: 103 | I936: 106 | J936: 98 | K936: 92 | L936: 102 | M936: 88 | N936: 86 | O936: 69 | P936: 77 | Q936: 78
A937: 386.6 | B937: Tuesday | C937: 10am - 2pm | D937: 438 | E937: 400 | F937: 424 | G937: 351 | H937: 320 | I937: 324 | J937: 270 | K937: 282 | L937: 285 | M937: 280 | N937: 285 | O937: 274 | P937: 221 | Q937: 211
A938: 545.2 | B938: Tuesday | C938: 2 - 6pm | D938: 614 | E938: 589 | F938: 547 | G938: 520 | H938: 456 | I938: 423 | J938: 452 | K938: 423 | L938: 436 | M938: 453 | N938: 417 | O938: 434 | P938: 395 | Q938: 362
A939: 513.6 | B939: Tuesday | C939: 6 - 10am | D939: 538 | E939: 548 | F939: 534 | G939: 516 | H939: 432 | I939: 396 | J939: 426 | K939: 389 | L939: 402 | M939: 423 | N939: 420 | O939: 411 | P939: 364 | Q939: 312
A940: 376.8 | B940: Tuesday | C940: 6pm - 0am | D940: 396 | E940: 390 | F940: 404 | G940: 362 | H940: 332 | I940: 323 | J940: 299 | K940: 264 | L940: 290 | M940: 289 | N940: 284 | O940: 265 | P940: 253 | Q940: 218
A941: 117.6 | B941: Wednesday | C941: 0 - 6am | D941: 127 | E941: 105 | F941: 123 | G941: 115 | H941: 118 | I941: 91 | J941: 81 | K941: 71 | L941: 80 | M941: 88 | N941: 87 | O941: 93 | P941: 82 | Q941: 66
A942: 369.2 | B942: Wednesday | C942: 10am - 2pm | D942: 428 | E942: 397 | F942: 373 | G942: 354 | H942: 294 | I942: 291 | J942: 322 | K942: 315 | L942: 261 | M942: 285 | N942: 270 | O942: 273 | P942: 223 | Q942: 251
A943: 555 | B943: Wednesday | C943: 2 - 6pm | D943: 630 | E943: 572 | F943: 562 | G943: 538 | H943: 473 | I943: 465 | J943: 476 | K943: 494 | L943: 400 | M943: 444 | N943: 451 | O943: 420 | P943: 365 | Q943: 351
A944: 525 | B944: Wednesday | C944: 6 - 10am | D944: 566 | E944: 565 | F944: 535 | G944: 496 | H944: 463 | I944: 432 | J944: 375 | K944: 408 | L944: 380 | M944: 406 | N944: 405 | O944: 384 | P944: 334 | Q944: 326
A945: 392.8 | B945: Wednesday | C945: 6pm - 0am | D945: 449 | E945: 434 | F945: 386 | G945: 331 | H945: 364 | I945: 335 | J945: 311 | K945: 290 | L945: 301 | M945: 302 | N945: 265 | O945: 283 | P945: 254 | Q945: 237
A946: 134.2 | B946: Thursday | C946: 0 - 6am | D946: 125 | E946: 148 | F946: 147 | G946: 122 | H946: 129 | I946: 102 | J946: 87 | K946: 93 | L946: 71 | M946: 96 | N946: 89 | O946: 83 | P946: 82 | Q946: 75
A947: 392 | B947: Thursday | C947: 10am - 2pm | D947: 427 | E947: 437 | F947: 440 | G947: 330 | H947: 326 | I947: 292 | J947: 312 | K947: 286 | L947: 270 | M947: 269 | N947: 249 | O947: 280 | P947: 235 | Q947: 249
A948: 589.6 | B948: Thursday | C948: 2 - 6pm | D948: 639 | E948: 659 | F948: 598 | G948: 534 | H948: 518 | I948: 508 | J948: 529 | K948: 488 | L948: 442 | M948: 492 | N948: 476 | O948: 470 | P948: 420 | Q948: 373
A949: 482.4 | B949: Thursday | C949: 6 - 10am | D949: 500 | E949: 538 | F949: 528 | G949: 425 | H949: 421 | I949: 404 | J949: 398 | K949: 376 | L949: 378 | M949: 355 | N949: 361 | O949: 368 | P949: 302 | Q949: 293
A950: 413.4 | B950: Thursday | C950: 6pm - 0am | D950: 513 | E950: 421 | F950: 435 | G950: 343 | H950: 355 | I950: 333 | J950: 334 | K950: 321 | L950: 288 | M950: 289 | N950: 333 | O950: 330 | P950: 280 | Q950: 272
A951: =SUMIFS(B951:X951,$B$924:$X$924,">="&$A$22,$B$924:$X$924,"<="&$A$23)/($A$23-$A$22+1) -> 145.6 | B951: Friday | C951: 0 - 6am | D951: 166 | E951: 145 | F951: 152 | G951: 161 | H951: 104 | I951: 115 | J951: 83 | K951: 129 | L951: 95 | M951: 102 | N951: 101 | O951: 106 | P951: 97 | Q951: 86
A952: 522.4 | B952: Friday | C952: 10am - 2pm | D952: 576 | E952: 597 | F952: 513 | G952: 463 | H952: 463 | I952: 422 | J952: 431 | K952: 387 | L952: 384 | M952: 382 | N952: 397 | O952: 396 | P952: 326 | Q952: 321
A953: 779.6 | B953: Friday | C953: 2 - 6pm | D953: 860 | E953: 877 | F953: 724 | G953: 696 | H953: 741 | I953: 728 | J953: 659 | K953: 575 | L953: 573 | M953: 625 | N953: 622 | O953: 600 | P953: 498 | Q953: 460
A954: 387.4 | B954: Friday | C954: 6 - 10am | D954: 418 | E954: 427 | F954: 407 | G954: 357 | H954: 328 | I954: 322 | J954: 320 | K954: 279 | L954: 282 | M954: 318 | N954: 287 | O954: 253 | P954: 250 | Q954: 243
A955: 517.4 | B955: Friday | C955: 6pm - 0am | D955: 601 | E955: 562 | F955: 511 | G955: 460 | H955: 453 | I955: 454 | J955: 389 | K955: 396 | L955: 436 | M955: 372 | N955: 348 | O955: 390 | P955: 348 | Q955: 285
A956: 0 | B956: Friday | C956: Error | O956: 1
A957: 202.8 | B957: Saturday | C957: 0 - 6am | D957: 232 | E957: 226 | F957: 200 | G957: 181 | H957: 175 | I957: 173 | J957: 159 | K957: 137 | L957: 139 | M957: 132 | N957: 127 | O957: 139 | P957: 132 | Q957: 111
A958: 532.2 | B958: Saturday | C958: 10am - 2pm | D958: 570 | E958: 552 | F958: 573 | G958: 479 | H958: 487 | I958: 454 | J958: 415 | K958: 412 | L958: 380 | M958: 391 | N958: 395 | O958: 371 | P958: 325 | Q958: 298
A959: =SUMIFS(B959:X959,$B$924:$X$924,">="&$A$22,$B$924:$X$924,"<="&$A$23)/($A$23-$A$22+1) -> 444.8 | B959: Saturday | C959: 2 - 6pm | D959: 505 | E959: 469 | F959: 457 | G959: 412 | H959: 381 | I959: 360 | J959: 325 | K959: 341 | L959: 324 | M959: 303 | N959: 339 | O959: 316 | P959: 247 | Q959: 256
A960: 248 | B960: Saturday | C960: 6 - 10am | D960: 256 | E960: 275 | F960: 241 | G960: 234 | H960: 234 | I960: 238 | J960: 172 | K960: 167 | L960: 181 | M960: 230 | N960: 169 | O960: 153 | P960: 156 | Q960: 139
A961: 357.4 | B961: Saturday | C961: 6pm - 0am | D961: 374 | E961: 343 | F961: 374 | G961: 380 | H961: 316 | I961: 269 | J961: 244 | K961: 239 | L961: 269 | M961: 249 | N961: 229 | O961: 259 | P961: 232 | Q961: 217
A962: 0
A963: 0
A964: 0
A965: 0
A966: 0
A967: 0
A968: 0
A969: 0
A970: 0
B1223: 008_007_APP_B_HA F_S_Collisions by DayofWeek_TimePeriod_year
A1224: BSL | B1224: Weekday | C1224: GroupedTime | D1224: 2005 | E1224: 2006 | F1224: 2007 | G1224: 2008 | H1224: 2009 | I1224: 2010 | J1224: 2011 | K1224: 2012 | L1224: 2013 | M1224: 2014 | N1224: 2015 | O1224: 2016 | P1224: 2017 | Q1224: 2018
A1225: =SUMIFS(B1225:X1225,$B$1224:$X$1224,">="&$A$22,$B$1224:$X$1224,"<="&$A$23)/($A$23-$A$22+1) -> 62 | B1225: Sunday | C1225: 0 - 6am | D1225: 74 | E1225: 63 | F1225: 68 | G1225: 51 | H1225: 54 | I1225: 44 | J1225: 49 | K1225: 47 | L1225: 26 | M1225: 26 | N1225: 39 | O1225: 37 | P1225: 35 | Q1225: 38
A1226: =SUMIFS(B1226:X1226,$B$1224:$X$1224,">="&$A$22,$B$1224:$X$1224,"<="&$A$23)/($A$23-$A$22+1) -> 65 | B1226: Sunday | C1226: 10am - 2pm | D1226: 66 | E1226: 74 | F1226: 60 | G1226: 65 | H1226: 60 | I1226: 61 | J1226: 69 | K1226: 52 | L1226: 38 | M1226: 60 | N1226: 66 | O1226: 74 | P1226: 46 | Q1226: 59
A1227: 74.8 | B1227: Sunday | C1227: 2 - 6pm | D1227: 79 | E1227: 96 | F1227: 71 | G1227: 59 | H1227: 69 | I1227: 54 | J1227: 59 | K1227: 56 | L1227: 58 | M1227: 60 | N1227: 54 | O1227: 46 | P1227: 60 | Q1227: 55
A1228: 32.6 | B1228: Sunday | C1228: 6 - 10am | D1228: 38 | E1228: 30 | F1228: 29 | G1228: 31 | H1228: 35 | I1228: 43 | J1228: 42 | K1228: 39 | L1228: 26 | M1228: 27 | N1228: 26 | O1228: 30 | P1228: 31 | Q1228: 30
A1229: 67.8 | B1229: Sunday | C1229: 6pm - 0am | D1229: 84 | E1229: 67 | F1229: 64 | G1229: 64 | H1229: 60 | I1229: 40 | J1229: 52 | K1229: 42 | L1229: 42 | M1229: 45 | N1229: 41 | O1229: 49 | P1229: 60 | Q1229: 57
A1230: 0.2 | B1230: Sunday | C1230: Error | D1230: 1
A1231: 34 | B1231: Monday | C1231: 0 - 6am | D1231: 29 | E1231: 43 | F1231: 52 | G1231: 19 | H1231: 27 | I1231: 24 | J1231: 29 | K1231: 16 | L1231: 20 | M1231: 40 | N1231: 22 | O1231: 25 | P1231: 28 | Q1231: 30
A1232: 49.4 | B1232: Monday | C1232: 10am - 2pm | D1232: 64 | E1232: 46 | F1232: 56 | G1232: 39 | H1232: 42 | I1232: 44 | J1232: 37 | K1232: 44 | L1232: 41 | M1232: 39 | N1232: 53 | O1232: 42 | P1232: 57 | Q1232: 48
A1233: 66.2 | B1233: Monday | C1233: 2 - 6pm | D1233: 72 | E1233: 72 | F1233: 75 | G1233: 50 | H1233: 62 | I1233: 67 | J1233: 69 | K1233: 54 | L1233: 53 | M1233: 60 | N1233: 53 | O1233: 61 | P1233: 57 | Q1233: 72
A1234: 55.6 | B1234: Monday | C1234: 6 - 10am | D1234: 68 | E1234: 40 | F1234: 68 | G1234: 53 | H1234: 49 | I1234: 34 | J1234: 49 | K1234: 51 | L1234: 41 | M1234: 50 | N1234: 42 | O1234: 60 | P1234: 46 | Q1234: 52
A1235: 54 | B1235: Monday | C1235: 6pm - 0am | D1235: 55 | E1235: 56 | F1235: 54 | G1235: 61 | H1235: 44 | I1235: 45 | J1235: 40 | K1235: 43 | L1235: 51 | M1235: 44 | N1235: 43 | O1235: 60 | P1235: 40 | Q1235: 46
A1236: 27.6 | B1236: Tuesday | C1236: 0 - 6am | D1236: 34 | E1236: 22 | F1236: 35 | G1236: 31 | H1236: 16 | I1236: 20 | J1236: 15 | K1236: 19 | L1236: 24 | M1236: 24 | N1236: 22 | O1236: 20 | P1236: 22 | Q1236: 28
A1237: 45.8 | B1237: Tuesday | C1237: 10am - 2pm | D1237: 52 | E1237: 55 | F1237: 41 | G1237: 39 | H1237: 42 | I1237: 42 | J1237: 31 | K1237: 41 | L1237: 39 | M1237: 42 | N1237: 41 | O1237: 32 | P1237: 34 | Q1237: 42
A1238: 61.6 | B1238: Tuesday | C1238: 2 - 6pm | D1238: 74 | E1238: 64 | F1238: 66 | G1238: 52 | H1238: 52 | I1238: 51 | J1238: 49 | K1238: 51 | L1238: 53 | M1238: 47 | N1238: 58 | O1238: 48 | P1238: 74 | Q1238: 61
A1239: =SUMIFS(B1239:X1239,$B$1224:$X$1224,">="&$A$22,$B$1224:$X$1224,"<="&$A$23)/($A$23-$A$22+1) -> 59.6 | B1239: Tuesday | C1239: 6 - 10am | D1239: 61 | E1239: 63 | F1239: 61 | G1239: 55 | H1239: 58 | I1239: 42 | J1239: 54 | K1239: 42 | L1239: 51 | M1239: 50 | N1239: 50 | O1239: 58 | P1239: 42 | Q1239: 54
A1240: 57.2 | B1240: Tuesday | C1240: 6pm - 0am | D1240: 68 | E1240: 44 | F1240: 59 | G1240: 67 | H1240: 48 | I1240: 42 | J1240: 35 | K1240: 26 | L1240: 53 | M1240: 43 | N1240: 45 | O1240: 61 | P1240: 41 | Q1240: 53
A1241: 30 | B1241: Wednesday | C1241: 0 - 6am | D1241: 28 | E1241: 35 | F1241: 28 | G1241: 32 | H1241: 27 | I1241: 22 | J1241: 15 | K1241: 20 | L1241: 14 | M1241: 30 | N1241: 17 | O1241: 25 | P1241: 21 | Q1241: 17
A1242: 41.8 | B1242: Wednesday | C1242: 10am - 2pm | D1242: 55 | E1242: 48 | F1242: 38 | G1242: 40 | H1242: 28 | I1242: 34 | J1242: 32 | K1242: 37 | L1242: 35 | M1242: 41 | N1242: 39 | O1242: 44 | P1242: 27 | Q1242: 45
A1243: 58.6 | B1243: Wednesday | C1243: 2 - 6pm | D1243: 59 | E1243: 70 | F1243: 61 | G1243: 57 | H1243: 46 | I1243: 54 | J1243: 55 | K1243: 52 | L1243: 49 | M1243: 57 | N1243: 62 | O1243: 74 | P1243: 58 | Q1243: 58
A1244: 50.2 | B1244: Wednesday | C1244: 6 - 10am | D1244: 63 | E1244: 59 | F1244: 46 | G1244: 51 | H1244: 32 | I1244: 45 | J1244: 44 | K1244: 43 | L1244: 42 | M1244: 43 | N1244: 34 | O1244: 52 | P1244: 35 | Q1244: 45
A1245: 62.8 | B1245: Wednesday | C1245: 6pm - 0am | D1245: 84 | E1245: 56 | F1245: 75 | G1245: 46 | H1245: 53 | I1245: 53 | J1245: 34 | K1245: 35 | L1245: 39 | M1245: 44 | N1245: 37 | O1245: 50 | P1245: 48 | Q1245: 57
A1246: 32.6 | B1246: Thursday | C1246: 0 - 6am | D1246: 39 | E1246: 33 | F1246: 28 | G1246: 35 | H1246: 28 | I1246: 21 | J1246: 17 | K1246: 17 | L1246: 23 | M1246: 21 | N1246: 21 | O1246: 32 | P1246: 24 | Q1246: 21
A1247: 45 | B1247: Thursday | C1247: 10am - 2pm | D1247: 53 | E1247: 49 | F1247: 51 | G1247: 42 | H1247: 30 | I1247: 30 | J1247: 35 | K1247: 24 | L1247: 33 | M1247: 37 | N1247: 39 | O1247: 48 | P1247: 35 | Q1247: 41
A1248: 59.2 | B1248: Thursday | C1248: 2 - 6pm | D1248: 61 | E1248: 59 | F1248: 61 | G1248: 64 | H1248: 51 | I1248: 56 | J1248: 49 | K1248: 53 | L1248: 53 | M1248: 77 | N1248: 60 | O1248: 67 | P1248: 62 | Q1248: 60
A1249: 48.8 | B1249: Thursday | C1249: 6 - 10am | D1249: 46 | E1249: 59 | F1249: 59 | G1249: 34 | H1249: 46 | I1249: 50 | J1249: 24 | K1249: 46 | L1249: 45 | M1249: 36 | N1249: 47 | O1249: 46 | P1249: 44 | Q1249: 58
A1250: =SUMIFS(B1250:X1250,$B$1224:$X$1224,">="&$A$22,$B$1224:$X$1224,"<="&$A$23)/($A$23-$A$22+1) -> 68.2 | B1250: Thursday | C1250: 6pm - 0am | D1250: 78 | E1250: 75 | F1250: 74 | G1250: 61 | H1250: 53 | I1250: 46 | J1250: 59 | K1250: 42 | L1250: 36 | M1250: 51 | N1250: 62 | O1250: 62 | P1250: 52 | Q1250: 56
A1251: 34.6 | B1251: Friday | C1251: 0 - 6am | D1251: 43 | E1251: 33 | F1251: 35 | G1251: 30 | H1251: 32 | I1251: 31 | J1251: 15 | K1251: 28 | L1251: 23 | M1251: 23 | N1251: 27 | O1251: 24 | P1251: 30 | Q1251: 28
A1252: 57 | B1252: Friday | C1252: 10am - 2pm | D1252: 66 | E1252: 56 | F1252: 55 | G1252: 52 | H1252: 56 | I1252: 51 | J1252: 60 | K1252: 49 | L1252: 60 | M1252: 47 | N1252: 50 | O1252: 57 | P1252: 54 | Q1252: 58
A1253: 79 | B1253: Friday | C1253: 2 - 6pm | D1253: 90 | E1253: 84 | F1253: 78 | G1253: 77 | H1253: 66 | I1253: 89 | J1253: 77 | K1253: 63 | L1253: 65 | M1253: 81 | N1253: 82 | O1253: 70 | P1253: 70 | Q1253: 91
A1254: 40.4 | B1254: Friday | C1254: 6 - 10am | D1254: 39 | E1254: 52 | F1254: 38 | G1254: 35 | H1254: 38 | I1254: 40 | J1254: 39 | K1254: 30 | L1254: 41 | M1254: 40 | N1254: 35 | O1254: 40 | P1254: 45 | Q1254: 29
A1255: 76.2 | B1255: Friday | C1255: 6pm - 0am | D1255: 92 | E1255: 78 | F1255: 74 | G1255: 77 | H1255: 60 | I1255: 68 | J1255: 54 | K1255: 59 | L1255: 65 | M1255: 55 | N1255: 53 | O1255: 71 | P1255: 59 | Q1255: 55
A1256: 51.4 | B1256: Saturday | C1256: 0 - 6am | D1256: 62 | E1256: 52 | F1256: 59 | G1256: 41 | H1256: 43 | I1256: 44 | J1256: 41 | K1256: 34 | L1256: 34 | M1256: 37 | N1256: 35 | O1256: 36 | P1256: 35 | Q1256: 36
A1257: 60.2 | B1257: Saturday | C1257: 10am - 2pm | D1257: 58 | E1257: 61 | F1257: 61 | G1257: 52 | H1257: 69 | I1257: 53 | J1257: 50 | K1257: 46 | L1257: 46 | M1257: 50 | N1257: 48 | O1257: 48 | P1257: 49 | Q1257: 60
A1258: 69.8 | B1258: Saturday | C1258: 2 - 6pm | D1258: 85 | E1258: 73 | F1258: 72 | G1258: 63 | H1258: 56 | I1258: 49 | J1258: 55 | K1258: 53 | L1258: 52 | M1258: 41 | N1258: 42 | O1258: 59 | P1258: 42 | Q1258: 47
A1259: 37.6 | B1259: Saturday | C1259: 6 - 10am | D1259: 46 | E1259: 41 | F1259: 33 | G1259: 28 | H1259: 40 | I1259: 40 | J1259: 27 | K1259: 29 | L1259: 23 | M1259: 38 | N1259: 31 | O1259: 31 | P1259: 24 | Q1259: 29
A1260: =SUMIFS(B1260:X1260,$B$1224:$X$1224,">="&$A$22,$B$1224:$X$1224,"<="&$A$23)/($A$23-$A$22+1) -> 67.8 | B1260: Saturday | C1260: 6pm - 0am | D1260: 73 | E1260: 64 | F1260: 69 | G1260: 79 | H1260: 54 | I1260: 47 | J1260: 43 | K1260: 46 | L1260: 41 | M1260: 57 | N1260: 46 | O1260: 56 | P1260: 55 | Q1260: 58
A1261: 0
A1262: 0
A1263: 0
A1264: 0
A1265: 0
A1266: 0
A1267: 0
A1268: 0
A1269: 0
A1270: 0
B1523: 008_008_APP_B_HA LighWeather Collisions_Year
A1524: BSL | B1524: RoadSurfaceCondition | C1524: WeatherGroup | D1524: 2005 | E1524: 2006 | F1524: 2007 | G1524: 2008 | H1524: 2009 | I1524: 2010 | J1524: 2011 | K1524: 2012 | L1524: 2013 | M1524: 2014 | N1524: 2015 | O1524: 2016 | P1524: 2017 | Q1524: 2018
A1525: =SUMIFS(B1525:X1525,$B$1524:$X$1524,">="&$A$22,$B$1524:$X$1524,"<="&$A$23)/($A$23-$A$22+1) -> 0.6 | B1525: Data missing or out of range | C1525: Data missing or out of range | F1525: 1 | G1525: 2 | O1525: 1
A1526: =SUMIFS(B1526:X1526,$B$1524:$X$1524,">="&$A$22,$B$1524:$X$1524,"<="&$A$23)/($A$23-$A$22+1) -> 3.2 | B1526: Data missing or out of range | C1526: Fine | D1526: 3 | E1526: 3 | F1526: 1 | G1526: 4 | H1526: 5 | J1526: 1 | K1526: 4 | L1526: 8 | M1526: 3 | N1526: 10 | O1526: 10 | P1526: 8 | Q1526: 5
A1527: 0 | B1527: Data missing or out of range | C1527: Fog or mist | K1527: 1
A1528: =SUMIFS(B1528:X1528,$B$1524:$X$1524,">="&$A$22,$B$1524:$X$1524,"<="&$A$23)/($A$23-$A$22+1) -> 0 | B1528: Data missing or out of range | C1528: Other | J1528: 3 | K1528: 1 | N1528: 1 | P1528: 1 | Q1528: 1
A1529: 0.2 | B1529: Data missing or out of range | C1529: Rain | F1529: 1 | L1529: 1 | M1529: 1 | P1529: 2 | Q1529: 3
A1530: 16.2 | B1530: Data missing or out of range | C1530: Unknown | D1530: 23 | E1530: 16 | F1530: 21 | G1530: 13 | H1530: 8 | I1530: 9 | J1530: 6 | K1530: 15 | L1530: 13 | M1530: 6 | N1530: 11 | O1530: 14 | P1530: 9 | Q1530: 17
... 2098 more rows

Sheet C_DataSheet (hidden)
A7: Casualty report Appendix
A8: C_DataSheet
A12: Date updated
A13: =List!K2 -> 2020-02-12
A14: Input Year
A15: =Cover!$N$18 -> 2018
A17: Link to Contents
A21: BSL | AA21: Summary Years
A22: =Cover!$N$20 -> 2005 | AA22: =#REF! -> 
A23: =Cover!$N$21 -> 2009 | B23: 010_001_APP_C_HA Casualties by Road Types_Sev_Year | AA23: =#REF! -> 
A24: BSL | B24: RoadClass | C24: RoadType (TRL Grouping) | D24: RoadClassification | E24: CasualtySeverity | F24: 2005 | G24: 2006 | H24: 2007 | I24: 2008 | J24: 2009 | K24: 2010 | L24: 2011 | M24: 2012 | N24: 2013 | O24: 2014 | P24: 2015 | Q24: 2016 | R24: 2017 | S24: 2018
A25: =SUMIFS(F25:X25,$F$24:$X$24,">="&$A$22,$F$24:$X$24,"<="&$A$23)/($A$23-$A$22+1) -> 5.6 | B25: A-road | C25: Dual Carriageway | D25: Built-up | E25: Killed | F25: 8 | G25: 5 | H25: 6 | I25: 4 | J25: 5 | K25: 1 | L25: 6 | M25: 4 | N25: 2 | O25: 4 | P25: 3 | Q25: 5 | R25: 4 | S25: 7 | AA25: =SUMIFS(B25:X25,$B$24:$X$24,">="&$AA$22,$B$24:$X$24,"<="&$AA$23) -> 0 | AD25: Casualty Severity | AE25: BSL (2005-2009) | AF25: 2005 | AG25: 2006 | AH25: 2007 | AI25: 2008 | AJ25: 2009 | AK25: 2010 | AL25: 2011 | AM25: 2012 | AN25: 2013 | AO25: 2014 | AP25: 2015 | AQ25: 2016 | AR25: 2017 | AS25: 2018 | AT25: 2019 | AU25: 2020
A26: =SUMIFS(F26:X26,$F$24:$X$24,">="&$A$22,$F$24:$X$24,"<="&$A$23)/($A$23-$A$22+1) -> 60 | B26: A-road | C26: Dual Carriageway | D26: Built-up | E26: Seriously Injured | F26: 63 | G26: 54 | H26: 64 | I26: 58 | J26: 61 | K26: 48 | L26: 56 | M26: 52 | N26: 42 | O26: 59 | P26: 54 | Q26: 54 | R26: 47 | S26: 63 | AA26: =SUMIFS(B26:X26,$B$24:$X$24,">="&$AA$22,$B$24:$X$24,"<="&$AA$23) -> 0 | AD26: Killed | AE26: =AVERAGE(AF26:AJ26) -> 357.2 | AF26: =IF(OR($AD26="KSI",$AD26="Total"),AF24+AF25,SUMIFS(F$25:F$60,$E$25:$E$60,$AD26)) -> 422 | AG26: =IF(OR($AD26="KSI",$AD26="Total"),AG24+AG25,SUMIFS(G$25:G$60,$E$25:$E$60,$AD26)) -> 389 | AH26: 370 | AI26: 350 | AJ26: 255 | AK26: 249 | AL26: 251 | AM26: 217 | AN26: 244 | AO26: 211 | AP26: 224 | AQ26: 231 | AR26: =IF(OR($AD26="KSI",$AD26="Total"),AR24+AR25,SUMIFS(R$25:R$60,$E$25:$E$60,$AD26)) -> 236 | AS26: 250 | AT26: 0 | AU26: 0
A27: 839.2 | B27: A-road | C27: Dual Carriageway | D27: Built-up | E27: Slightly Injured | F27: 923 | G27: 808 | H27: 868 | I27: 840 | J27: 757 | K27: 632 | L27: 867 | M27: 771 | N27: 692 | O27: 753 | P27: 694 | Q27: 704 | R27: 554 | S27: 551 | AA27: 0 | AD27: Seriously Injured | AE27: =AVERAGE(AF27:AJ27) -> 1964 | AF27: =IF(OR($AD27="KSI",$AD27="Total"),AF25+AF26,SUMIFS(F$25:F$60,$E$25:$E$60,$AD27)) -> 2269 | AG27: =IF(OR($AD27="KSI",$AD27="Total"),AG25+AG26,SUMIFS(G$25:G$60,$E$25:$E$60,$AD27)) -> 2051 | AH27: =IF(OR($AD27="KSI",$AD27="Total"),AH25+AH26,SUMIFS(H$25:H$60,$E$25:$E$60,$AD27)) -> 2035 | AI27: =IF(OR($AD27="KSI",$AD27="Total"),AI25+AI26,SUMIFS(I$25:I$60,$E$25:$E$60,$AD27)) -> 1753 | AJ27: =IF(OR($AD27="KSI",$AD27="Total"),AJ25+AJ26,SUMIFS(J$25:J$60,$E$25:$E$60,$AD27)) -> 1712 | AK27: =IF(OR($AD27="KSI",$AD27="Total"),AK25+AK26,SUMIFS(K$25:K$60,$E$25:$E$60,$AD27)) -> 1637 | AL27: =IF(OR($AD27="KSI",$AD27="Total"),AL25+AL26,SUMIFS(L$25:L$60,$E$25:$E$60,$AD27)) -> 1578 | AM27: =IF(OR($AD27="KSI",$AD27="Total"),AM25+AM26,SUMIFS(M$25:M$60,$E$25:$E$60,$AD27)) -> 1479 | AN27: =IF(OR($AD27="KSI",$AD27="Total"),AN25+AN26,SUMIFS(N$25:N$60,$E$25:$E$60,$AD27)) -> 1465 | AO27: =IF(OR($AD27="KSI",$AD27="Total"),AO25+AO26,SUMIFS(O$25:O$60,$E$25:$E$60,$AD27)) -> 1642 | AP27: =IF(OR($AD27="KSI",$AD27="Total"),AP25+AP26,SUMIFS(P$25:P$60,$E$25:$E$60,$AD27)) -> 1560 | AQ27: =IF(OR($AD27="KSI",$AD27="Total"),AQ25+AQ26,SUMIFS(Q$25:Q$60,$E$25:$E$60,$AD27)) -> 1774 | AR27: =IF(OR($AD27="KSI",$AD27="Total"),AR25+AR26,SUMIFS(R$25:R$60,$E$25:$E$60,$AD27)) -> 1617 | AS27: =IF(OR($AD27="KSI",$AD27="Total"),AS25+AS26,SUMIFS(S$25:S$60,$E$25:$E$60,$AD27)) -> 1737 | AT27: =IF(OR($AD27="KSI",$AD27="Total"),AT25+AT26,SUMIFS(T$25:T$60,$E$25:$E$60,$AD27)) -> 0 | AU27: =IF(OR($AD27="KSI",$AD27="Total"),AU25+AU26,SUMIFS(U$25:U$60,$E$25:$E$60,$AD27)) -> 0
A28: 127.2 | B28: A-road | C28: Dual Carriageway | D28: Non Built-up | E28: Killed | F28: 145 | G28: 136 | H28: 138 | I28: 137 | J28: 80 | K28: 91 | L28: 97 | M28: 80 | N28: 88 | O28: 69 | P28: 79 | Q28: 94 | R28: 83 | S28: 95 | AA28: 0 | AD28: KSI | AE28: 2321.2 | AF28: 2691 | AG28: 2440 | AH28: 2405 | AI28: 2103 | AJ28: 1967 | AK28: 1886 | AL28: 1829 | AM28: 1696 | AN28: 1709 | AO28: 1853 | AP28: 1784 | AQ28: 2005 | AR28: 1853 | AS28: 1987 | AT28: 0 | AU28: 0
A29: 659.6 | B29: A-road | C29: Dual Carriageway | D29: Non Built-up | E29: Seriously Injured | F29: 819 | G29: 718 | H29: 628 | I29: 591 | J29: 542 | K29: 584 | L29: 566 | M29: 551 | N29: 494 | O29: 584 | P29: 529 | Q29: 661 | R29: 552 | S29: 589 | AA29: 0 | AD29: Slightly Injured | AE29: 19381.6 | AF29: 21493 | AG29: 20756 | AH29: 19786 | AI29: 17800 | AJ29: 17073 | AK29: 16136 | AL29: 15891 | AM29: 14977 | AN29: 14385 | AO29: 14961 | AP29: 14587 | AQ29: 14228 | AR29: 12372 | AS29: 11393 | AT29: 0 | AU29: 0
A30: =SUMIFS(F30:X30,$F$24:$X$24,">="&$A$22,$F$24:$X$24,"<="&$A$23)/($A$23-$A$22+1) -> 5812.2 | B30: A-road | C30: Dual Carriageway | D30: Non Built-up | E30: Slightly Injured | F30: 6426 | G30: 6187 | H30: 5873 | I30: 5326 | J30: 5249 | K30: 4907 | L30: 5041 | M30: 4674 | N30: 4677 | O30: 4778 | P30: 4746 | Q30: 4698 | R30: 3990 | S30: 3645 | AA30: 0 | AD30: Total | AE30: 21702.8 | AF30: 24184 | AG30: 23196 | AH30: 22191 | AI30: 19903 | AJ30: 19040 | AK30: 18022 | AL30: 17720 | AM30: 16673 | AN30: 16094 | AO30: 16814 | AP30: 16371 | AQ30: 16233 | AR30: 14225 | AS30: 13380 | AT30: 0 | AU30: 0
A31: 6 | B31: A-road | C31: Single Carriageway | D31: Built-up | E31: Killed | F31: 6 | G31: 6 | H31: 6 | I31: 9 | J31: 3 | K31: 5 | L31: 8 | M31: 8 | N31: 11 | O31: 9 | P31: 6 | Q31: 3 | R31: 4 | S31: 1 | AA31: 0
A32: 63.6 | B32: A-road | C32: Single Carriageway | D32: Built-up | E32: Seriously Injured | F32: 71 | G32: 52 | H32: 76 | I32: 48 | J32: 71 | K32: 55 | L32: 68 | M32: 54 | N32: 49 | O32: 70 | P32: 63 | Q32: 62 | R32: 72 | S32: 76 | AA32: 0
A33: 600.6 | B33: A-road | C33: Single Carriageway | D33: Built-up | E33: Slightly Injured | F33: 593 | G33: 610 | H33: 596 | I33: 615 | J33: 589 | K33: 475 | L33: 493 | M33: 500 | N33: 512 | O33: 524 | P33: 477 | Q33: 486 | R33: 418 | S33: 352 | AA33: 0
A34: 64.8 | B34: A-road | C34: Single Carriageway | D34: Non Built-up | E34: Killed | F34: 79 | G34: 73 | H34: 64 | I34: 57 | J34: 51 | K34: 42 | L34: 50 | M34: 47 | N34: 56 | O34: 45 | P34: 44 | Q34: 52 | R34: 54 | S34: 62 | AA34: 0
A35: =SUMIFS(F35:X35,$F$24:$X$24,">="&$A$22,$F$24:$X$24,"<="&$A$23)/($A$23-$A$22+1) -> 321.4 | B35: A-road | C35: Single Carriageway | D35: Non Built-up | E35: Seriously Injured | F35: 378 | G35: 351 | H35: 322 | I35: 273 | J35: 283 | K35: 234 | L35: 234 | M35: 245 | N35: 283 | O35: 293 | P35: 277 | Q35: 268 | R35: 285 | S35: 287 | AA35: 0
A36: 1943 | B36: A-road | C36: Single Carriageway | D36: Non Built-up | E36: Slightly Injured | F36: 2191 | G36: 2133 | H36: 2023 | I36: 1628 | J36: 1740 | K36: 1570 | L36: 1482 | M36: 1476 | N36: 1345 | O36: 1435 | P36: 1418 | Q36: 1354 | R36: 1232 | S36: 1145 | AA36: 0
A37: 0.8 | B37: Motorway | C37: Dual Carriageway | D37: Built-up | E37: Killed | G37: 2 | I37: 2 | K37: 1 | O37: 1 | P37: 3 | R37: 1 | S37: 1 | AA37: 0
A38: 10.8 | B38: Motorway | C38: Dual Carriageway | D38: Built-up | E38: Seriously Injured | F38: 7 | G38: 14 | H38: 10 | I38: 6 | J38: 17 | K38: 13 | L38: 9 | M38: 5 | N38: 4 | O38: 2 | P38: 6 | Q38: 13 | R38: 7 | S38: 8 | AA38: 0
A39: 225.2 | B39: Motorway | C39: Dual Carriageway | D39: Built-up | E39: Slightly Injured | F39: 310 | G39: 235 | H39: 191 | I39: 205 | J39: 185 | K39: 182 | L39: 156 | M39: 103 | N39: 78 | O39: 97 | P39: 139 | Q39: 143 | R39: 166 | S39: 160 | AA39: 0
A40: 152.2 | B40: Motorway | C40: Dual Carriageway | D40: Non Built-up | E40: Killed | F40: 184 | G40: 166 | H40: 156 | I40: 140 | J40: 115 | K40: 109 | L40: 90 | M40: 78 | N40: 87 | O40: 83 | P40: 89 | Q40: 77 | R40: 90 | S40: 84 | AA40: 0
A41: 846.4 | B41: Motorway | C41: Dual Carriageway | D41: Non Built-up | E41: Seriously Injured | F41: 928 | G41: 858 | H41: 935 | I41: 774 | J41: 737 | K41: 702 | L41: 644 | M41: 572 | N41: 591 | O41: 634 | P41: 631 | Q41: 713 | R41: 654 | S41: 713 | AA41: 0
A42: 9923 | B42: Motorway | C42: Dual Carriageway | D42: Non Built-up | E42: Slightly Injured | F42: 11009 | G42: 10738 | H42: 10204 | I42: 9148 | J42: 8516 | K42: 8337 | L42: 7820 | M42: 7417 | N42: 7053 | O42: 7358 | P42: 7091 | Q42: 6827 | R42: 5990 | S42: 5516 | AA42: 0
A43: 0.2 | B43: Motorway | C43: Single Carriageway | D43: Built-up | E43: Killed | I43: 1 | AA43: 0
A44: 0.6 | B44: Motorway | C44: Single Carriageway | D44: Built-up | E44: Seriously Injured | F44: 1 | G44: 2 | L44: 1 | AA44: 0
A45: 16.6 | B45: Motorway | C45: Single Carriageway | D45: Built-up | E45: Slightly Injured | F45: 23 | G45: 25 | H45: 12 | I45: 7 | J45: 16 | K45: 11 | L45: 21 | M45: 16 | N45: 8 | O45: 9 | P45: 7 | Q45: 5 | R45: 10 | S45: 12 | AA45: 0
A46: 0.4 | B46: Motorway | C46: Single Carriageway | D46: Non Built-up | E46: Killed | G46: 1 | J46: 1 | AA46: 0
A47: 1.6 | B47: Motorway | C47: Single Carriageway | D47: Non Built-up | E47: Seriously Injured | F47: 2 | G47: 2 | I47: 3 | J47: 1 | K47: 1 | N47: 1 | Q47: 3 | S47: 1 | AA47: 0
A48: 21.8 | B48: Motorway | C48: Single Carriageway | D48: Non Built-up | E48: Slightly Injured | F48: 18 | G48: 20 | H48: 19 | I48: 31 | J48: 21 | K48: 22 | L48: 11 | M48: 20 | N48: 15 | O48: 7 | P48: 15 | Q48: 11 | R48: 12 | S48: 12 | AA48: 0
A49: 0 | B49: Other | C49: Dual Carriageway | D49: Built-up | E49: Slightly Injured | N49: 1 | AA49: 0
A50: 0 | B50: Other | C50: Dual Carriageway | D50: Non Built-up | E50: Slightly Injured | N50: 1 | AA50: 0
A51: 0 | B51: Other | C51: Single Carriageway | D51: Built-up | E51: Slightly Injured | N51: 3 | AA51: 0
A52: 0 | B52: Other | C52: Single Carriageway | D52: Non Built-up | E52: Seriously Injured | N52: 1 | AA52: 0
A53: 0 | AA53: 0
A54: 0 | AA54: 0
A55: 0 | AA55: 0
A56: 0 | AA56: 0
A57: 0 | AA57: 0
A58: 0 | AA58: 0
A59: 0 | AA59: 0
A60: 0 | AA60: 0
A61: 0 | AA61: 0
A62: 0 | AA62: 0
A63: 0 | AA63: 0
A64: 0 | AA64: 0
A65: 0 | AA65: 0
A66: 0
A67: 0
A68: 0
A69: 0
A70: 0
B323: 010_002_APP_C_HA Casualties by Agegroup_Sev_Year
A324: BSL | B324: CasAgeBand A | C324: CasualtySeverity | D324: 2005 | E324: 2006 | F324: 2007 | G324: 2008 | H324: 2009 | I324: 2010 | J324: 2011 | K324: 2012 | L324: 2013 | M324: 2014 | N324: 2015 | O324: 2016 | P324: 2017 | Q324: 2018
A325: =SUMIFS(D325:X325,$D$324:$X$324,">="&$A$22,$D$324:$X$324,"<="&$A$23)/($A$23-$A$22+1) -> 11.8 | B325: Children (0-15) | C325: Killed | D325: 8 | E325: 10 | F325: 15 | G325: 16 | H325: 10 | I325: 10 | J325: 2 | K325: 7 | L325: 5 | M325: 6 | N325: 2 | O325: 9 | P325: 5 | Q325: 4
A326: =SUMIFS(D326:X326,$D$324:$X$324,">="&$A$22,$D$324:$X$324,"<="&$A$23)/($A$23-$A$22+1) -> 70.6 | B326: Children (0-15) | C326: Seriously Injured | D326: 79 | E326: 77 | F326: 63 | G326: 70 | H326: 64 | I326: 75 | J326: 62 | K326: 53 | L326: 33 | M326: 58 | N326: 38 | O326: 72 | P326: 55 | Q326: 53
A327: 1059.2 | B327: Children (0-15) | C327: Slightly Injured | D327: 1235 | E327: 1102 | F327: 1033 | G327: 938 | H327: 988 | I327: 850 | J327: 946 | K327: 802 | L327: 775 | M327: 908 | N327: 804 | O327: 825 | P327: 787 | Q327: 708
A328: 35.8 | B328: Elderly (70+) | C328: Killed | D328: 43 | E328: 36 | F328: 45 | G328: 32 | H328: 23 | I328: 30 | J328: 43 | K328: 34 | L328: 36 | M328: 26 | N328: 37 | O328: 31 | P328: 25 | Q328: 26
A329: 109.4 | B329: Elderly (70+) | C329: Seriously Injured | D329: 133 | E329: 119 | F329: 103 | G329: 91 | H329: 101 | I329: 108 | J329: 108 | K329: 107 | L329: 152 | M329: 133 | N329: 137 | O329: 162 | P329: 158 | Q329: 146
A330: 690.4 | B330: Elderly (70+) | C330: Slightly Injured | D330: 779 | E330: 679 | F330: 682 | G330: 660 | H330: 652 | I330: 606 | J330: 638 | K330: 578 | L330: 636 | M330: 622 | N330: 655 | O330: 659 | P330: 619 | Q330: 640
A331: 23.8 | B331: Older (60-69) | C331: Killed | D331: 18 | E331: 23 | F331: 34 | G331: 25 | H331: 19 | I331: 20 | J331: 22 | K331: 21 | L331: 21 | M331: 24 | N331: 21 | O331: 19 | P331: 27 | Q331: 31
A332: 136.4 | B332: Older (60-69) | C332: Seriously Injured | D332: 143 | E332: 122 | F332: 136 | G332: 137 | H332: 144 | I332: 146 | J332: 140 | K332: 130 | L332: 128 | M332: 175 | N332: 175 | O332: 149 | P332: 143 | Q332: 160
A333: 1101.4 | B333: Older (60-69) | C333: Slightly Injured | D333: 1128 | E333: 1159 | F333: 1137 | G333: 1065 | H333: 1018 | I333: 1017 | J333: 1063 | K333: 994 | L333: 1008 | M333: 1011 | N333: 1009 | O333: 1006 | P333: 891 | Q333: 786
A334: 258.4 | B334: Other (20-59) | C334: Killed | D334: 321 | E334: 290 | F334: 245 | G334: 255 | H334: 181 | I334: 173 | J334: 164 | K334: 151 | L334: 164 | M334: 147 | N334: 157 | O334: 163 | P334: 164 | Q334: 175
A335: 1455 | B335: Other (20-59) | C335: Seriously Injured | D335: 1656 | E335: 1535 | F335: 1541 | G335: 1301 | H335: 1242 | I335: 1174 | J335: 1153 | K335: 1102 | L335: 1059 | M335: 1182 | N335: 1110 | O335: 1269 | P335: 1160 | Q335: 1269
A336: 14705.8 | B336: Other (20-59) | C336: Slightly Injured | D336: 16328 | E336: 15864 | F336: 15000 | G336: 13470 | H336: 12867 | I336: 12307 | J336: 11990 | K336: 11466 | L336: 10936 | M336: 11429 | N336: 11132 | O336: 10815 | P336: 9283 | Q336: 8545
A337: 1 | B337: Unknown | C337: Killed | D337: 2 | E337: 2 | F337: 1 | O337: 1
A338: 20.4 | B338: Unknown | C338: Seriously Injured | D338: 32 | E338: 22 | F338: 21 | G338: 13 | H338: 14 | I338: 19 | J338: 8 | K338: 12 | L338: 8 | M338: 8 | N338: 15 | O338: 12 | P338: 11 | Q338: 14
A339: 273.8 | B339: Unknown | C339: Slightly Injured | D339: 366 | E339: 326 | F339: 298 | G339: 199 | H339: 180 | I339: 151 | J339: 169 | K339: 176 | L339: 179 | M339: 140 | N339: 129 | O339: 125 | P339: 109 | Q339: 129
A340: 26.4 | B340: Young (16-19) | C340: Killed | D340: 30 | E340: 28 | F340: 30 | G340: 22 | H340: 22 | I340: 16 | J340: 20 | K340: 4 | L340: 18 | M340: 8 | N340: 7 | O340: 8 | P340: 15 | Q340: 14
A341: 172.2 | B341: Young (16-19) | C341: Seriously Injured | D341: 226 | E341: 176 | F341: 171 | G341: 141 | H341: 147 | I341: 115 | J341: 107 | K341: 75 | L341: 85 | M341: 86 | N341: 85 | O341: 110 | P341: 90 | Q341: 95
A342: =SUMIFS(D342:X342,$D$324:$X$324,">="&$A$22,$D$324:$X$324,"<="&$A$23)/($A$23-$A$22+1) -> 1551 | B342: Young (16-19) | C342: Slightly Injured | D342: 1657 | E342: 1626 | F342: 1636 | G342: 1468 | H342: 1368 | I342: 1205 | J342: 1085 | K342: 961 | L342: 851 | M342: 851 | N342: 858 | O342: 798 | P342: 683 | Q342: 585
A343: 0
A344: 0
A345: 0
A346: 0
A347: 0
A348: 0
A349: 0
A350: 0
A351: 0
A352: 0
A353: 0
A354: 0
AA621: Summary Years
AA622: =#REF! -> 
B623: 010_003_APP_C_HA Casualties by Sev_CasType_Year | AA623: =#REF! -> 
A624: BSL | B624: CasType(HGV) | C624: CasualtySeverity | D624: 2005 | E624: 2006 | F624: 2007 | G624: 2008 | H624: 2009 | I624: 2010 | J624: 2011 | K624: 2012 | L624: 2013 | M624: 2014 | N624: 2015 | O624: 2016 | P624: 2017 | Q624: 2018
A625: =SUMIFS(D625:X625,$D$624:$X$624,">="&$A$22,$D$624:$X$624,"<="&$A$23)/($A$23-$A$22+1) -> 0.8 | B625: Bus / Coach occupant | C625: Killed | F625: 3 | H625: 1 | I625: 2 | J625: 1 | K625: 1 | L625: 1 | Q625: 2 | AA625: =SUMIFS(B625:X625,$B$624:$X$624,">="&$AA$622,$B$624:$X$624,"<="&$AA$623) -> 0 | AC625: CasType(HGV) | AD625: CasualtySeverity | AE625: 2005 | AF625: 2006 | AG625: 2007 | AH625: 2008 | AI625: 2009 | AJ625: 2010 | AK625: 2011 | AL625: 2012 | AM625: 2013 | AN625: 2014 | AO625: 2015 | AP625: 2016 | AQ625: 2017 | AR625: 2018 | AS625: 2019 | AT625: 2020
A626: =SUMIFS(D626:X626,$D$624:$X$624,">="&$A$22,$D$624:$X$624,"<="&$A$23)/($A$23-$A$22+1) -> 14.8 | B626: Bus / Coach occupant | C626: Seriously Injured | D626: 3 | E626: 10 | F626: 47 | G626: 8 | H626: 6 | I626: 28 | J626: 10 | K626: 6 | L626: 38 | M626: 10 | N626: 12 | O626: 4 | P626: 11 | Q626: 21 | AA626: =SUMIFS(B626:X626,$B$624:$X$624,">="&$AA$622,$B$624:$X$624,"<="&$AA$623) -> 0 | AB626: =SUMIFS(AE626:AV626,$AE$625:$AV$625,">="&$A$22,$AE$625:$AV$625,"<="&$A$23)/($A$23-$A$22+1) -> 0.8 | AC626: Bus / Coach occupant | AD626: Killed | AE626: =SUMIFS(D$625:D$657,$B$625:$B$657,$AC626,$C$625:$C$657,$AD626) -> 0 | AF626: =SUMIFS(E$625:E$657,$B$625:$B$657,$AC626,$C$625:$C$657,$AD626) -> 0 | AG626: 3 | AH626: 0 | AI626: 1 | AJ626: 2 | AK626: 1 | AL626: 1 | AM626: 1 | AN626: 0 | AO626: =SUMIFS(N$625:N$657,$B$625:$B$657,$AC626,$C$625:$C$657,$AD626) -> 0 | AP626: =SUMIFS(O$625:O$657,$B$625:$B$657,$AC626,$C$625:$C$657,$AD626) -> 0 | AQ626: =SUMIFS(P$625:P$657,$B$625:$B$657,$AC626,$C$625:$C$657,$AD626) -> 0 | AR626: 2 | AS626: 0 | AT626: =SUMIFS(S$625:S$657,$B$625:$B$657,$AC626,$C$625:$C$657,$AD626) -> 0
A627: 135.8 | B627: Bus / Coach occupant | C627: Slightly Injured | D627: 92 | E627: 125 | F627: 254 | G627: 134 | H627: 74 | I627: 106 | J627: 228 | K627: 130 | L627: 109 | M627: 129 | N627: 133 | O627: 60 | P627: 108 | Q627: 114 | AA627: 0 | AB627: =SUMIFS(AE627:AV627,$AE$625:$AV$625,">="&$A$22,$AE$625:$AV$625,"<="&$A$23)/($A$23-$A$22+1) -> 14.8 | AC627: Bus / Coach occupant | AD627: Seriously Injured | AE627: =SUMIFS(D$625:D$657,$B$625:$B$657,$AC627,$C$625:$C$657,$AD627) -> 3 | AF627: 10 | AG627: 47 | AH627: 8 | AI627: 6 | AJ627: 28 | AK627: 10 | AL627: 6 | AM627: 38 | AN627: 10 | AO627: 12 | AP627: =SUMIFS(O$625:O$657,$B$625:$B$657,$AC627,$C$625:$C$657,$AD627) -> 4 | AQ627: 11 | AR627: 21 | AS627: 0 | AT627: 0
A628: 221.4 | B628: Car occupants | C628: Killed | D628: 263 | E628: 255 | F628: 208 | G628: 220 | H628: 161 | I628: 133 | J628: 162 | K628: 122 | L628: 133 | M628: 115 | N628: 134 | O628: 136 | P628: 141 | Q628: 144 | AA628: 0 | AB628: 15.6 | AC628: Bus / Coach occupant | AD628: KSI | AE628: =SUM(AE626:AE627) -> 3 | AF628: =SUM(AF626:AF627) -> 10 | AG628: 50 | AH628: 8 | AI628: 7 | AJ628: 30 | AK628: 11 | AL628: 7 | AM628: 39 | AN628: 10 | AO628: 12 | AP628: =SUM(AP626:AP627) -> 4 | AQ628: 11 | AR628: 23 | AS628: 0 | AT628: 0
A629: 1293.2 | B629: Car occupants | C629: Seriously Injured | D629: 1510 | E629: 1368 | F629: 1302 | G629: 1139 | H629: 1147 | I629: 1088 | J629: 1027 | K629: 969 | L629: 931 | M629: 1044 | N629: 1022 | O629: 1165 | P629: 1057 | Q629: 1126 | AA629: 0 | AB629: 135.8 | AC629: Bus / Coach occupant | AD629: Slightly Injured | AE629: 92 | AF629: 125 | AG629: 254 | AH629: 134 | AI629: 74 | AJ629: 106 | AK629: =SUMIFS(J$625:J$657,$B$625:$B$657,$AC629,$C$625:$C$657,$AD629) -> 228 | AL629: 130 | AM629: 109 | AN629: 129 | AO629: 133 | AP629: =SUMIFS(O$625:O$657,$B$625:$B$657,$AC629,$C$625:$C$657,$AD629) -> 60 | AQ629: =SUMIFS(P$625:P$657,$B$625:$B$657,$AC629,$C$625:$C$657,$AD629) -> 108 | AR629: =SUMIFS(Q$625:Q$657,$B$625:$B$657,$AC629,$C$625:$C$657,$AD629) -> 114 | AS629: =SUMIFS(R$625:R$657,$B$625:$B$657,$AC629,$C$625:$C$657,$AD629) -> 0 | AT629: 0
A630: 16718.8 | B630: Car occupants | C630: Slightly Injured | D630: 18575 | E630: 17955 | F630: 16870 | G630: 15273 | H630: 14921 | I630: 13999 | J630: 13631 | K630: 12920 | L630: 12375 | M630: 12723 | N630: 12428 | O630: 12303 | P630: 10481 | Q630: 9733 | AA630: 0 | AB630: 151.4 | AC630: Bus / Coach occupant | AD630: Total | AE630: =SUM(AE628:AE629) -> 95 | AF630: =SUM(AF628:AF629) -> 135 | AG630: =SUM(AG628:AG629) -> 304 | AH630: =SUM(AH628:AH629) -> 142 | AI630: =SUM(AI628:AI629) -> 81 | AJ630: =SUM(AJ628:AJ629) -> 136 | AK630: =SUM(AK628:AK629) -> 239 | AL630: =SUM(AL628:AL629) -> 137 | AM630: =SUM(AM628:AM629) -> 148 | AN630: =SUM(AN628:AN629) -> 139 | AO630: =SUM(AO628:AO629) -> 145 | AP630: =SUM(AP628:AP629) -> 64 | AQ630: 119 | AR630: 137 | AS630: 0 | AT630: =SUM(AT628:AT629) -> 0
A631: 12.6 | B631: Goods vehicle occupant | C631: Killed | D631: 13 | E631: 11 | F631: 17 | G631: 10 | H631: 12 | I631: 11 | J631: 5 | K631: 11 | L631: 12 | M631: 11 | N631: 10 | O631: 14 | P631: 13 | Q631: 19 | AA631: 0 | AB631: 221.4 | AC631: Car occupants | AD631: Killed | AE631: =SUMIFS(D$625:D$657,$B$625:$B$657,$AC631,$C$625:$C$657,$AD631) -> 263 | AF631: 255 | AG631: 208 | AH631: 220 | AI631: 161 | AJ631: 133 | AK631: 162 | AL631: 122 | AM631: 133 | AN631: 115 | AO631: 134 | AP631: =SUMIFS(O$625:O$657,$B$625:$B$657,$AC631,$C$625:$C$657,$AD631) -> 136 | AQ631: =SUMIFS(P$625:P$657,$B$625:$B$657,$AC631,$C$625:$C$657,$AD631) -> 141 | AR631: =SUMIFS(Q$625:Q$657,$B$625:$B$657,$AC631,$C$625:$C$657,$AD631) -> 144 | AS631: =SUMIFS(R$625:R$657,$B$625:$B$657,$AC631,$C$625:$C$657,$AD631) -> 0 | AT631: 0
A632: 94 | B632: Goods vehicle occupant | C632: Seriously Injured | D632: 109 | E632: 105 | F632: 92 | G632: 82 | H632: 82 | I632: 66 | J632: 57 | K632: 67 | L632: 52 | M632: 76 | N632: 86 | O632: 87 | P632: 101 | Q632: 111 | AA632: 0 | AB632: 1293.2 | AC632: Car occupants | AD632: Seriously Injured | AE632: 1510 | AF632: 1368 | AG632: 1302 | AH632: 1139 | AI632: 1147 | AJ632: 1088 | AK632: 1027 | AL632: 969 | AM632: 931 | AN632: 1044 | AO632: 1022 | AP632: 1165 | AQ632: 1057 | AR632: 1126 | AS632: 0 | AT632: 0
A633: 930.4 | B633: Goods vehicle occupant | C633: Slightly Injured | D633: 1027 | E633: 1019 | F633: 916 | G633: 907 | H633: 783 | I633: 739 | J633: 774 | K633: 742 | L633: 719 | M633: 857 | N633: 901 | O633: 829 | P633: 818 | Q633: 681 | AA633: 0 | AB633: 1514.6 | AC633: Car occupants | AD633: KSI | AE633: =SUM(AE631:AE632) -> 1773 | AF633: =SUM(AF631:AF632) -> 1623 | AG633: =SUM(AG631:AG632) -> 1510 | AH633: =SUM(AH631:AH632) -> 1359 | AI633: =SUM(AI631:AI632) -> 1308 | AJ633: =SUM(AJ631:AJ632) -> 1221 | AK633: =SUM(AK631:AK632) -> 1189 | AL633: =SUM(AL631:AL632) -> 1091 | AM633: =SUM(AM631:AM632) -> 1064 | AN633: =SUM(AN631:AN632) -> 1159 | AO633: =SUM(AO631:AO632) -> 1156 | AP633: 1301 | AQ633: 1198 | AR633: 1270 | AS633: 0 | AT633: =SUM(AT631:AT632) -> 0
A634: 22.4 | B634: HGV occupant | C634: Killed | D634: 33 | E634: 21 | F634: 35 | G634: 16 | H634: 7 | I634: 19 | J634: 16 | K634: 16 | L634: 14 | M634: 10 | N634: 12 | O634: 10 | P634: 10 | Q634: 9 | AA634: 0 | AB634: 16718.8 | AC634: Car occupants | AD634: Slightly Injured | AE634: =SUMIFS(D$625:D$657,$B$625:$B$657,$AC634,$C$625:$C$657,$AD634) -> 18575 | AF634: 17955 | AG634: 16870 | AH634: 15273 | AI634: 14921 | AJ634: 13999 | AK634: 13631 | AL634: 12920 | AM634: 12375 | AN634: 12723 | AO634: 12428 | AP634: =SUMIFS(O$625:O$657,$B$625:$B$657,$AC634,$C$625:$C$657,$AD634) -> 12303 | AQ634: =SUMIFS(P$625:P$657,$B$625:$B$657,$AC634,$C$625:$C$657,$AD634) -> 10481 | AR634: =SUMIFS(Q$625:Q$657,$B$625:$B$657,$AC634,$C$625:$C$657,$AD634) -> 9733 | AS634: =SUMIFS(R$625:R$657,$B$625:$B$657,$AC634,$C$625:$C$657,$AD634) -> 0 | AT634: 0
A635: 122.4 | B635: HGV occupant | C635: Seriously Injured | D635: 166 | E635: 135 | F635: 136 | G635: 102 | H635: 73 | I635: 74 | J635: 66 | K635: 67 | L635: 66 | M635: 72 | N635: 69 | O635: 72 | P635: 56 | Q635: 63 | AA635: 0 | AB635: 18233.4 | AC635: Car occupants | AD635: Total | AE635: =SUM(AE633:AE634) -> 20348 | AF635: =SUM(AF633:AF634) -> 19578 | AG635: =SUM(AG633:AG634) -> 18380 | AH635: =SUM(AH633:AH634) -> 16632 | AI635: =SUM(AI633:AI634) -> 16229 | AJ635: =SUM(AJ633:AJ634) -> 15220 | AK635: =SUM(AK633:AK634) -> 14820 | AL635: =SUM(AL633:AL634) -> 14011 | AM635: =SUM(AM633:AM634) -> 13439 | AN635: =SUM(AN633:AN634) -> 13882 | AO635: =SUM(AO633:AO634) -> 13584 | AP635: 13604 | AQ635: 11679 | AR635: 11003 | AS635: 0 | AT635: =SUM(AT633:AT634) -> 0
A636: 639.2 | B636: HGV occupant | C636: Slightly Injured | D636: 786 | E636: 730 | F636: 712 | G636: 554 | H636: 414 | I636: 453 | J636: 373 | K636: 412 | L636: 382 | M636: 421 | N636: 354 | O636: 322 | P636: 321 | Q636: 254 | AA636: 0 | AB636: 12.6 | AC636: Goods vehicle occupant | AD636: Killed | AE636: =SUMIFS(D$625:D$657,$B$625:$B$657,$AC636,$C$625:$C$657,$AD636) -> 13 | AF636: 11 | AG636: 17 | AH636: 10 | AI636: 12 | AJ636: 11 | AK636: 5 | AL636: 11 | AM636: 12 | AN636: 11 | AO636: 10 | AP636: =SUMIFS(O$625:O$657,$B$625:$B$657,$AC636,$C$625:$C$657,$AD636) -> 14 | AQ636: =SUMIFS(P$625:P$657,$B$625:$B$657,$AC636,$C$625:$C$657,$AD636) -> 13 | AR636: =SUMIFS(Q$625:Q$657,$B$625:$B$657,$AC636,$C$625:$C$657,$AD636) -> 19 | AS636: =SUMIFS(R$625:R$657,$B$625:$B$657,$AC636,$C$625:$C$657,$AD636) -> 0 | AT636: 0
A637: 1.6 | B637: Other/Unknown | C637: Killed | D637: 2 | E637: 2 | F637: 1 | H637: 3 | J637: 3 | L637: 3 | N637: 4 | O637: 1 | P637: 1 | Q637: 1 | AA637: 0 | AB637: 94 | AC637: Goods vehicle occupant | AD637: Seriously Injured | AE637: 109 | AF637: 105 | AG637: 92 | AH637: 82 | AI637: 82 | AJ637: 66 | AK637: 57 | AL637: 67 | AM637: 52 | AN637: 76 | AO637: 86 | AP637: 87 | AQ637: 101 | AR637: 111 | AS637: 0 | AT637: 0
A638: 13.6 | B638: Other/Unknown | C638: Seriously Injured | D638: 17 | E638: 12 | F638: 13 | G638: 11 | H638: 15 | I638: 4 | J638: 16 | K638: 6 | L638: 21 | M638: 11 | N638: 5 | O638: 6 | P638: 10 | Q638: 7 | AA638: 0 | AB638: 106.6 | AC638: Goods vehicle occupant | AD638: KSI | AE638: =SUM(AE636:AE637) -> 122 | AF638: =SUM(AF636:AF637) -> 116 | AG638: =SUM(AG636:AG637) -> 109 | AH638: =SUM(AH636:AH637) -> 92 | AI638: =SUM(AI636:AI637) -> 94 | AJ638: =SUM(AJ636:AJ637) -> 77 | AK638: =SUM(AK636:AK637) -> 62 | AL638: =SUM(AL636:AL637) -> 78 | AM638: =SUM(AM636:AM637) -> 64 | AN638: =SUM(AN636:AN637) -> 87 | AO638: =SUM(AO636:AO637) -> 96 | AP638: 101 | AQ638: 114 | AR638: 130 | AS638: 0 | AT638: =SUM(AT636:AT637) -> 0
A639: 89.8 | B639: Other/Unknown | C639: Slightly Injured | D639: 79 | E639: 81 | F639: 104 | G639: 94 | H639: 91 | I639: 91 | J639: 66 | K639: 74 | L639: 60 | M639: 57 | N639: 43 | O639: 58 | P639: 47 | Q639: 59 | AA639: 0 | AB639: 930.4 | AC639: Goods vehicle occupant | AD639: Slightly Injured | AE639: =SUMIFS(D$625:D$657,$B$625:$B$657,$AC639,$C$625:$C$657,$AD639) -> 1027 | AF639: 1019 | AG639: 916 | AH639: 907 | AI639: 783 | AJ639: 739 | AK639: 774 | AL639: 742 | AM639: 719 | AN639: 857 | AO639: 901 | AP639: =SUMIFS(O$625:O$657,$B$625:$B$657,$AC639,$C$625:$C$657,$AD639) -> 829 | AQ639: =SUMIFS(P$625:P$657,$B$625:$B$657,$AC639,$C$625:$C$657,$AD639) -> 818 | AR639: =SUMIFS(Q$625:Q$657,$B$625:$B$657,$AC639,$C$625:$C$657,$AD639) -> 681 | AS639: =SUMIFS(R$625:R$657,$B$625:$B$657,$AC639,$C$625:$C$657,$AD639) -> 0 | AT639: 0
A640: 8 | B640: Pedal Cyclist | C640: Killed | D640: 12 | E640: 8 | F640: 5 | G640: 7 | H640: 8 | I640: 12 | J640: 5 | K640: 8 | L640: 6 | M640: 4 | N640: 6 | O640: 3 | P640: 2 | Q640: 1 | AA640: 0 | AB640: 1037 | AC640: Goods vehicle occupant | AD640: Total | AE640: =SUM(AE638:AE639) -> 1149 | AF640: =SUM(AF638:AF639) -> 1135 | AG640: =SUM(AG638:AG639) -> 1025 | AH640: =SUM(AH638:AH639) -> 999 | AI640: =SUM(AI638:AI639) -> 877 | AJ640: =SUM(AJ638:AJ639) -> 816 | AK640: =SUM(AK638:AK639) -> 836 | AL640: =SUM(AL638:AL639) -> 820 | AM640: =SUM(AM638:AM639) -> 783 | AN640: =SUM(AN638:AN639) -> 944 | AO640: =SUM(AO638:AO639) -> 997 | AP640: 930 | AQ640: 932 | AR640: 811 | AS640: 0 | AT640: =SUM(AT638:AT639) -> 0
A641: 33 | B641: Pedal Cyclist | C641: Seriously Injured | D641: 45 | E641: 30 | F641: 31 | G641: 29 | H641: 30 | I641: 40 | J641: 37 | K641: 46 | L641: 28 | M641: 47 | N641: 34 | O641: 41 | P641: 38 | Q641: 34 | AA641: 0 | AB641: 22.4 | AC641: HGV occupant | AD641: Killed | AE641: =SUMIFS(D$625:D$657,$B$625:$B$657,$AC641,$C$625:$C$657,$AD641) -> 33 | AF641: 21 | AG641: 35 | AH641: 16 | AI641: 7 | AJ641: 19 | AK641: 16 | AL641: 16 | AM641: 14 | AN641: 10 | AO641: 12 | AP641: =SUMIFS(O$625:O$657,$B$625:$B$657,$AC641,$C$625:$C$657,$AD641) -> 10 | AQ641: =SUMIFS(P$625:P$657,$B$625:$B$657,$AC641,$C$625:$C$657,$AD641) -> 10 | AR641: =SUMIFS(Q$625:Q$657,$B$625:$B$657,$AC641,$C$625:$C$657,$AD641) -> 9 | AS641: =SUMIFS(R$625:R$657,$B$625:$B$657,$AC641,$C$625:$C$657,$AD641) -> 0 | AT641: 0
A642: 109.2 | B642: Pedal Cyclist | C642: Slightly Injured | D642: 120 | E642: 121 | F642: 103 | G642: 105 | H642: 97 | I642: 96 | J642: 131 | K642: 116 | L642: 115 | M642: 128 | N642: 113 | O642: 104 | P642: 97 | Q642: 68 | AA642: 0 | AB642: 122.4 | AC642: HGV occupant | AD642: Seriously Injured | AE642: 166 | AF642: 135 | AG642: 136 | AH642: 102 | AI642: 73 | AJ642: 74 | AK642: 66 | AL642: 67 | AM642: 66 | AN642: 72 | AO642: 69 | AP642: 72 | AQ642: 56 | AR642: 63 | AS642: 0 | AT642: 0
A643: 46.4 | B643: Pedestrian | C643: Killed | D643: 44 | E643: 46 | F643: 62 | G643: 45 | H643: 35 | I643: 42 | J643: 36 | K643: 36 | L643: 38 | M643: 41 | N643: 29 | O643: 40 | P643: 44 | Q643: 42 | AA643: 0 | AB643: 144.8 | AC643: HGV occupant | AD643: KSI | AE643: =SUM(AE641:AE642) -> 199 | AF643: =SUM(AF641:AF642) -> 156 | AG643: =SUM(AG641:AG642) -> 171 | AH643: =SUM(AH641:AH642) -> 118 | AI643: =SUM(AI641:AI642) -> 80 | AJ643: =SUM(AJ641:AJ642) -> 93 | AK643: =SUM(AK641:AK642) -> 82 | AL643: =SUM(AL641:AL642) -> 83 | AM643: =SUM(AM641:AM642) -> 80 | AN643: =SUM(AN641:AN642) -> 82 | AO643: =SUM(AO641:AO642) -> 81 | AP643: 82 | AQ643: 66 | AR643: 72 | AS643: 0 | AT643: =SUM(AT641:AT642) -> 0
A644: 62.6 | B644: Pedestrian | C644: Seriously Injured | D644: 67 | E644: 53 | F644: 60 | G644: 71 | H644: 62 | I644: 64 | J644: 58 | K644: 46 | L644: 52 | M644: 67 | N644: 43 | O644: 54 | P644: 43 | Q644: 54 | AA644: 0 | AB644: 639.2 | AC644: HGV occupant | AD644: Slightly Injured | AE644: =SUMIFS(D$625:D$657,$B$625:$B$657,$AC644,$C$625:$C$657,$AD644) -> 786 | AF644: 730 | AG644: 712 | AH644: 554 | AI644: 414 | AJ644: 453 | AK644: 373 | AL644: 412 | AM644: 382 | AN644: 421 | AO644: 354 | AP644: =SUMIFS(O$625:O$657,$B$625:$B$657,$AC644,$C$625:$C$657,$AD644) -> 322 | AQ644: =SUMIFS(P$625:P$657,$B$625:$B$657,$AC644,$C$625:$C$657,$AD644) -> 321 | AR644: =SUMIFS(Q$625:Q$657,$B$625:$B$657,$AC644,$C$625:$C$657,$AD644) -> 254 | AS644: =SUMIFS(R$625:R$657,$B$625:$B$657,$AC644,$C$625:$C$657,$AD644) -> 0 | AT644: 0
A645: 107.2 | B645: Pedestrian | C645: Slightly Injured | D645: 112 | E645: 90 | F645: 115 | G645: 117 | H645: 102 | I645: 93 | J645: 88 | K645: 66 | L645: 93 | M645: 74 | N645: 84 | O645: 60 | P645: 66 | Q645: 52 | AA645: 0 | AB645: 784 | AC645: HGV occupant | AD645: Total | AE645: =SUM(AE643:AE644) -> 985 | AF645: =SUM(AF643:AF644) -> 886 | AG645: =SUM(AG643:AG644) -> 883 | AH645: =SUM(AH643:AH644) -> 672 | AI645: =SUM(AI643:AI644) -> 494 | AJ645: =SUM(AJ643:AJ644) -> 546 | AK645: =SUM(AK643:AK644) -> 455 | AL645: =SUM(AL643:AL644) -> 495 | AM645: =SUM(AM643:AM644) -> 462 | AN645: =SUM(AN643:AN644) -> 503 | AO645: =SUM(AO643:AO644) -> 435 | AP645: 404 | AQ645: 387 | AR645: 326 | AS645: 0 | AT645: =SUM(AT643:AT644) -> 0
A646: 44 | B646: PTW users | C646: Killed | D646: 55 | E646: 46 | F646: 39 | G646: 52 | H646: 28 | I646: 30 | J646: 23 | K646: 23 | L646: 37 | M646: 30 | N646: 29 | O646: 27 | P646: 25 | Q646: 32 | AA646: 0 | AB646: 1.6 | AC646: Other/Unknown | AD646: Killed | AE646: =SUMIFS(D$625:D$657,$B$625:$B$657,$AC646,$C$625:$C$657,$AD646) -> 2 | AF646: 2 | AG646: 1 | AH646: 0 | AI646: 3 | AJ646: 0 | AK646: 3 | AL646: 0 | AM646: 3 | AN646: 0 | AO646: 4 | AP646: =SUMIFS(O$625:O$657,$B$625:$B$657,$AC646,$C$625:$C$657,$AD646) -> 1 | AQ646: =SUMIFS(P$625:P$657,$B$625:$B$657,$AC646,$C$625:$C$657,$AD646) -> 1 | AR646: =SUMIFS(Q$625:Q$657,$B$625:$B$657,$AC646,$C$625:$C$657,$AD646) -> 1 | AS646: =SUMIFS(R$625:R$657,$B$625:$B$657,$AC646,$C$625:$C$657,$AD646) -> 0 | AT646: 0
A647: 330.4 | B647: PTW users | C647: Seriously Injured | D647: 352 | E647: 338 | F647: 354 | G647: 311 | H647: 297 | I647: 273 | J647: 307 | K647: 272 | L647: 277 | M647: 315 | N647: 289 | O647: 345 | P647: 301 | Q647: 321 | AA647: 0 | AB647: 13.6 | AC647: Other/Unknown | AD647: Seriously Injured | AE647: 17 | AF647: 12 | AG647: 13 | AH647: 11 | AI647: 15 | AJ647: 4 | AK647: 16 | AL647: 6 | AM647: 21 | AN647: 11 | AO647: 5 | AP647: 6 | AQ647: 10 | AR647: 7 | AS647: 0 | AT647: 0
A648: 651.2 | B648: PTW users | C648: Slightly Injured | D648: 702 | E648: 635 | F648: 712 | G648: 616 | H648: 591 | I648: 559 | J648: 600 | K648: 517 | L648: 532 | M648: 572 | N648: 531 | O648: 492 | P648: 434 | Q648: 432 | AA648: 0 | AB648: 15.2 | AC648: Other/Unknown | AD648: KSI | AE648: =SUM(AE646:AE647) -> 19 | AF648: =SUM(AF646:AF647) -> 14 | AG648: =SUM(AG646:AG647) -> 14 | AH648: =SUM(AH646:AH647) -> 11 | AI648: =SUM(AI646:AI647) -> 18 | AJ648: =SUM(AJ646:AJ647) -> 4 | AK648: =SUM(AK646:AK647) -> 19 | AL648: =SUM(AL646:AL647) -> 6 | AM648: =SUM(AM646:AM647) -> 24 | AN648: =SUM(AN646:AN647) -> 11 | AO648: =SUM(AO646:AO647) -> 9 | AP648: 7 | AQ648: 11 | AR648: 8 | AS648: 0 | AT648: =SUM(AT646:AT647) -> 0
A649: 0 | AA649: 0 | AB649: 89.8 | AC649: Other/Unknown | AD649: Slightly Injured | AE649: =SUMIFS(D$625:D$657,$B$625:$B$657,$AC649,$C$625:$C$657,$AD649) -> 79 | AF649: 81 | AG649: 104 | AH649: 94 | AI649: 91 | AJ649: 91 | AK649: 66 | AL649: 74 | AM649: 60 | AN649: 57 | AO649: 43 | AP649: =SUMIFS(O$625:O$657,$B$625:$B$657,$AC649,$C$625:$C$657,$AD649) -> 58 | AQ649: =SUMIFS(P$625:P$657,$B$625:$B$657,$AC649,$C$625:$C$657,$AD649) -> 47 | AR649: =SUMIFS(Q$625:Q$657,$B$625:$B$657,$AC649,$C$625:$C$657,$AD649) -> 59 | AS649: =SUMIFS(R$625:R$657,$B$625:$B$657,$AC649,$C$625:$C$657,$AD649) -> 0 | AT649: 0
A650: 0 | AA650: 0 | AB650: 105 | AC650: Other/Unknown | AD650: Total | AE650: =SUM(AE648:AE649) -> 98 | AF650: =SUM(AF648:AF649) -> 95 | AG650: =SUM(AG648:AG649) -> 118 | AH650: =SUM(AH648:AH649) -> 105 | AI650: =SUM(AI648:AI649) -> 109 | AJ650: =SUM(AJ648:AJ649) -> 95 | AK650: =SUM(AK648:AK649) -> 85 | AL650: =SUM(AL648:AL649) -> 80 | AM650: =SUM(AM648:AM649) -> 84 | AN650: =SUM(AN648:AN649) -> 68 | AO650: =SUM(AO648:AO649) -> 52 | AP650: 65 | AQ650: 58 | AR650: 67 | AS650: 0 | AT650: =SUM(AT648:AT649) -> 0
A651: 0 | AA651: 0 | AB651: 8 | AC651: Pedal Cyclist | AD651: Killed | AE651: =SUMIFS(D$625:D$657,$B$625:$B$657,$AC651,$C$625:$C$657,$AD651) -> 12 | AF651: 8 | AG651: 5 | AH651: 7 | AI651: 8 | AJ651: 12 | AK651: 5 | AL651: 8 | AM651: 6 | AN651: 4 | AO651: 6 | AP651: =SUMIFS(O$625:O$657,$B$625:$B$657,$AC651,$C$625:$C$657,$AD651) -> 3 | AQ651: =SUMIFS(P$625:P$657,$B$625:$B$657,$AC651,$C$625:$C$657,$AD651) -> 2 | AR651: =SUMIFS(Q$625:Q$657,$B$625:$B$657,$AC651,$C$625:$C$657,$AD651) -> 1 | AS651: =SUMIFS(R$625:R$657,$B$625:$B$657,$AC651,$C$625:$C$657,$AD651) -> 0 | AT651: 0
A652: 0 | AA652: 0 | AB652: 33 | AC652: Pedal Cyclist | AD652: Seriously Injured | AE652: 45 | AF652: 30 | AG652: 31 | AH652: 29 | AI652: 30 | AJ652: 40 | AK652: 37 | AL652: 46 | AM652: 28 | AN652: 47 | AO652: 34 | AP652: 41 | AQ652: 38 | AR652: 34 | AS652: 0 | AT652: 0
A653: 0 | AA653: 0 | AB653: 41 | AC653: Pedal Cyclist | AD653: KSI | AE653: =SUM(AE651:AE652) -> 57 | AF653: =SUM(AF651:AF652) -> 38 | AG653: =SUM(AG651:AG652) -> 36 | AH653: =SUM(AH651:AH652) -> 36 | AI653: =SUM(AI651:AI652) -> 38 | AJ653: =SUM(AJ651:AJ652) -> 52 | AK653: =SUM(AK651:AK652) -> 42 | AL653: =SUM(AL651:AL652) -> 54 | AM653: =SUM(AM651:AM652) -> 34 | AN653: =SUM(AN651:AN652) -> 51 | AO653: =SUM(AO651:AO652) -> 40 | AP653: 44 | AQ653: 40 | AR653: 35 | AS653: 0 | AT653: =SUM(AT651:AT652) -> 0
A654: 0 | AA654: 0 | AB654: 109.2 | AC654: Pedal Cyclist | AD654: Slightly Injured | AE654: =SUMIFS(D$625:D$657,$B$625:$B$657,$AC654,$C$625:$C$657,$AD654) -> 120 | AF654: 121 | AG654: 103 | AH654: 105 | AI654: 97 | AJ654: 96 | AK654: 131 | AL654: 116 | AM654: 115 | AN654: 128 | AO654: 113 | AP654: =SUMIFS(O$625:O$657,$B$625:$B$657,$AC654,$C$625:$C$657,$AD654) -> 104 | AQ654: =SUMIFS(P$625:P$657,$B$625:$B$657,$AC654,$C$625:$C$657,$AD654) -> 97 | AR654: =SUMIFS(Q$625:Q$657,$B$625:$B$657,$AC654,$C$625:$C$657,$AD654) -> 68 | AS654: =SUMIFS(R$625:R$657,$B$625:$B$657,$AC654,$C$625:$C$657,$AD654) -> 0 | AT654: 0
A655: 0 | AA655: 0 | AB655: 150.2 | AC655: Pedal Cyclist | AD655: Total | AE655: =SUM(AE653:AE654) -> 177 | AF655: =SUM(AF653:AF654) -> 159 | AG655: =SUM(AG653:AG654) -> 139 | AH655: =SUM(AH653:AH654) -> 141 | AI655: =SUM(AI653:AI654) -> 135 | AJ655: =SUM(AJ653:AJ654) -> 148 | AK655: =SUM(AK653:AK654) -> 173 | AL655: =SUM(AL653:AL654) -> 170 | AM655: =SUM(AM653:AM654) -> 149 | AN655: =SUM(AN653:AN654) -> 179 | AO655: =SUM(AO653:AO654) -> 153 | AP655: 148 | AQ655: 137 | AR655: 103 | AS655: 0 | AT655: =SUM(AT653:AT654) -> 0
A656: 0 | AA656: 0 | AB656: 46.4 | AC656: Pedestrian | AD656: Killed | AE656: =SUMIFS(D$625:D$657,$B$625:$B$657,$AC656,$C$625:$C$657,$AD656) -> 44 | AF656: 46 | AG656: 62 | AH656: 45 | AI656: 35 | AJ656: 42 | AK656: 36 | AL656: 36 | AM656: 38 | AN656: 41 | AO656: 29 | AP656: =SUMIFS(O$625:O$657,$B$625:$B$657,$AC656,$C$625:$C$657,$AD656) -> 40 | AQ656: =SUMIFS(P$625:P$657,$B$625:$B$657,$AC656,$C$625:$C$657,$AD656) -> 44 | AR656: =SUMIFS(Q$625:Q$657,$B$625:$B$657,$AC656,$C$625:$C$657,$AD656) -> 42 | AS656: =SUMIFS(R$625:R$657,$B$625:$B$657,$AC656,$C$625:$C$657,$AD656) -> 0 | AT656: 0
A657: 0 | AA657: 0 | AB657: 62.6 | AC657: Pedestrian | AD657: Seriously Injured | AE657: 67 | AF657: 53 | AG657: 60 | AH657: 71 | AI657: 62 | AJ657: 64 | AK657: 58 | AL657: 46 | AM657: 52 | AN657: 67 | AO657: 43 | AP657: 54 | AQ657: 43 | AR657: 54 | AS657: 0 | AT657: 0
A658: 0 | AA658: 0 | AB658: 109 | AC658: Pedestrian | AD658: KSI | AE658: =SUM(AE656:AE657) -> 111 | AF658: =SUM(AF656:AF657) -> 99 | AG658: =SUM(AG656:AG657) -> 122 | AH658: =SUM(AH656:AH657) -> 116 | AI658: =SUM(AI656:AI657) -> 97 | AJ658: =SUM(AJ656:AJ657) -> 106 | AK658: =SUM(AK656:AK657) -> 94 | AL658: =SUM(AL656:AL657) -> 82 | AM658: =SUM(AM656:AM657) -> 90 | AN658: =SUM(AN656:AN657) -> 108 | AO658: =SUM(AO656:AO657) -> 72 | AP658: 94 | AQ658: 87 | AR658: 96 | AS658: 0 | AT658: =SUM(AT656:AT657) -> 0
A659: 0 | AA659: 0 | AB659: 107.2 | AC659: Pedestrian | AD659: Slightly Injured | AE659: =SUMIFS(D$625:D$657,$B$625:$B$657,$AC659,$C$625:$C$657,$AD659) -> 112 | AF659: 90 | AG659: 115 | AH659: 117 | AI659: 102 | AJ659: 93 | AK659: 88 | AL659: 66 | AM659: 93 | AN659: 74 | AO659: 84 | AP659: =SUMIFS(O$625:O$657,$B$625:$B$657,$AC659,$C$625:$C$657,$AD659) -> 60 | AQ659: =SUMIFS(P$625:P$657,$B$625:$B$657,$AC659,$C$625:$C$657,$AD659) -> 66 | AR659: =SUMIFS(Q$625:Q$657,$B$625:$B$657,$AC659,$C$625:$C$657,$AD659) -> 52 | AS659: =SUMIFS(R$625:R$657,$B$625:$B$657,$AC659,$C$625:$C$657,$AD659) -> 0 | AT659: 0
A660: 0 | AA660: 0 | AB660: 216.2 | AC660: Pedestrian | AD660: Total | AE660: =SUM(AE658:AE659) -> 223 | AF660: =SUM(AF658:AF659) -> 189 | AG660: =SUM(AG658:AG659) -> 237 | AH660: =SUM(AH658:AH659) -> 233 | AI660: =SUM(AI658:AI659) -> 199 | AJ660: =SUM(AJ658:AJ659) -> 199 | AK660: =SUM(AK658:AK659) -> 182 | AL660: =SUM(AL658:AL659) -> 148 | AM660: =SUM(AM658:AM659) -> 183 | AN660: =SUM(AN658:AN659) -> 182 | AO660: =SUM(AO658:AO659) -> 156 | AP660: 154 | AQ660: 153 | AR660: 148 | AS660: 0 | AT660: =SUM(AT658:AT659) -> 0
AA661: 0 | AB661: 44 | AC661: PTW users | AD661: Killed | AE661: =SUMIFS(D$625:D$657,$B$625:$B$657,$AC661,$C$625:$C$657,$AD661) -> 55 | AF661: 46 | AG661: 39 | AH661: 52 | AI661: 28 | AJ661: 30 | AK661: 23 | AL661: 23 | AM661: 37 | AN661: 30 | AO661: 29 | AP661: =SUMIFS(O$625:O$657,$B$625:$B$657,$AC661,$C$625:$C$657,$AD661) -> 27 | AQ661: =SUMIFS(P$625:P$657,$B$625:$B$657,$AC661,$C$625:$C$657,$AD661) -> 25 | AR661: =SUMIFS(Q$625:Q$657,$B$625:$B$657,$AC661,$C$625:$C$657,$AD661) -> 32 | AS661: =SUMIFS(R$625:R$657,$B$625:$B$657,$AC661,$C$625:$C$657,$AD661) -> 0 | AT661: 0
AA662: 0 | AB662: 330.4 | AC662: PTW users | AD662: Seriously Injured | AE662: 352 | AF662: 338 | AG662: 354 | AH662: 311 | AI662: 297 | AJ662: 273 | AK662: 307 | AL662: 272 | AM662: 277 | AN662: 315 | AO662: 289 | AP662: 345 | AQ662: 301 | AR662: 321 | AS662: 0 | AT662: 0
AA663: 0 | AB663: 374.4 | AC663: PTW users | AD663: KSI | AE663: =SUM(AE661:AE662) -> 407 | AF663: =SUM(AF661:AF662) -> 384 | AG663: =SUM(AG661:AG662) -> 393 | AH663: =SUM(AH661:AH662) -> 363 | AI663: =SUM(AI661:AI662) -> 325 | AJ663: =SUM(AJ661:AJ662) -> 303 | AK663: =SUM(AK661:AK662) -> 330 | AL663: =SUM(AL661:AL662) -> 295 | AM663: =SUM(AM661:AM662) -> 314 | AN663: =SUM(AN661:AN662) -> 345 | AO663: =SUM(AO661:AO662) -> 318 | AP663: 372 | AQ663: 326 | AR663: 353 | AS663: 0 | AT663: =SUM(AT661:AT662) -> 0
AA664: 0 | AB664: 651.2 | AC664: PTW users | AD664: Slightly Injured | AE664: =SUMIFS(D$625:D$657,$B$625:$B$657,$AC664,$C$625:$C$657,$AD664) -> 702 | AF664: 635 | AG664: 712 | AH664: 616 | AI664: 591 | AJ664: 559 | AK664: 600 | AL664: 517 | AM664: 532 | AN664: 572 | AO664: 531 | AP664: =SUMIFS(O$625:O$657,$B$625:$B$657,$AC664,$C$625:$C$657,$AD664) -> 492 | AQ664: =SUMIFS(P$625:P$657,$B$625:$B$657,$AC664,$C$625:$C$657,$AD664) -> 434 | AR664: =SUMIFS(Q$625:Q$657,$B$625:$B$657,$AC664,$C$625:$C$657,$AD664) -> 432 | AS664: =SUMIFS(R$625:R$657,$B$625:$B$657,$AC664,$C$625:$C$657,$AD664) -> 0 | AT664: 0
AA665: 0 | AB665: 1025.6 | AC665: PTW users | AD665: Total | AE665: =SUM(AE663:AE664) -> 1109 | AF665: =SUM(AF663:AF664) -> 1019 | AG665: =SUM(AG663:AG664) -> 1105 | AH665: =SUM(AH663:AH664) -> 979 | AI665: =SUM(AI663:AI664) -> 916 | AJ665: =SUM(AJ663:AJ664) -> 862 | AK665: =SUM(AK663:AK664) -> 930 | AL665: =SUM(AL663:AL664) -> 812 | AM665: =SUM(AM663:AM664) -> 846 | AN665: =SUM(AN663:AN664) -> 917 | AO665: =SUM(AO663:AO664) -> 849 | AP665: =SUM(AP663:AP664) -> 864 | AQ665: 760 | AR665: 785 | AS665: 0 | AT665: =SUM(AT663:AT664) -> 0
AA666: 0 | AB666: 0
AA667: 0 | AB667: 0
AA668: 0 | AB668: 0
B923: 010_004_APP_C_HA Casualties by CasType_Agegroup_2012
A924: BSL | B924: CasType(HGV) | C924: CasAgeBand A | D924: CasualtySeverity | E924: 2005 | F924: 2006 | G924: 2007 | H924: 2008 | I924: 2009 | J924: 2010 | K924: 2011 | L924: 2012 | M924: 2013 | N924: 2014 | O924: 2015 | P924: 2016 | Q924: 2017 | R924: 2018
A925: =SUMIFS(E925:X925,$E$924:$X$924,">="&$A$22,$E$924:$X$924,"<="&$A$23)/($A$23-$A$22+1) -> 0 | B925: Bus / Coach occupant | C925: Children (0-15) | D925: Killed | J925: 1
A926: =SUMIFS(E926:X926,$E$924:$X$924,">="&$A$22,$E$924:$X$924,"<="&$A$23)/($A$23-$A$22+1) -> 1.4 | B926: Bus / Coach occupant | C926: Children (0-15) | D926: Seriously Injured | E926: 1 | F926: 2 | G926: 3 | H926: 1 | J926: 14 | K926: 1 | N926: 3 | O926: 1 | Q926: 1 | R926: 1
A927: 16.6 | B927: Bus / Coach occupant | C927: Children (0-15) | D927: Slightly Injured | E927: 12 | F927: 44 | G927: 10 | H927: 12 | I927: 5 | J927: 27 | K927: 97 | L927: 23 | M927: 18 | N927: 33 | O927: 31 | P927: 25 | Q927: 49 | R927: 47
A928: 0.2 | B928: Bus / Coach occupant | C928: Elderly (70+) | D928: Killed | G928: 1 | R928: 1
A929: 2.4 | B929: Bus / Coach occupant | C929: Elderly (70+) | D929: Seriously Injured | F929: 2 | G929: 8 | H929: 1 | I929: 1 | K929: 3 | M929: 6 | N929: 1 | O929: 2 | Q929: 3
A930: 15.4 | B930: Bus / Coach occupant | C930: Elderly (70+) | D930: Slightly Injured | E930: 9 | F930: 8 | G930: 14 | H930: 37 | I930: 9 | J930: 9 | K930: 26 | L930: 1 | M930: 3 | N930: 16 | O930: 8 | P930: 5 | Q930: 15 | R930: 12
A931: 0 | B931: Bus / Coach occupant | C931: Older (60-69) | D931: Killed | K931: 1
A932: 0.6 | B932: Bus / Coach occupant | C932: Older (60-69) | D932: Seriously Injured | G932: 2 | H932: 1 | J932: 3 | M932: 3 | N932: 2 | O932: 3 | P932: 2 | Q932: 3 | R932: 3
A933: 13.2 | B933: Bus / Coach occupant | C933: Older (60-69) | D933: Slightly Injured | E933: 12 | F933: 5 | G933: 19 | H933: 21 | I933: 9 | J933: 8 | K933: 27 | L933: 10 | M933: 2 | N933: 15 | O933: 24 | P933: 7 | Q933: 6 | R933: 8
A934: 0.6 | B934: Bus / Coach occupant | C934: Other (20-59) | D934: Killed | G934: 2 | I934: 1 | L934: 1 | R934: 1
A935: 9 | B935: Bus / Coach occupant | C935: Other (20-59) | D935: Seriously Injured | E935: 2 | F935: 6 | G935: 29 | H935: 4 | I935: 4 | J935: 8 | K935: 6 | L935: 5 | M935: 29 | N935: 2 | O935: 5 | P935: 2 | Q935: 4 | R935: 15
A936: 71.2 | B936: Bus / Coach occupant | C936: Other (20-59) | D936: Slightly Injured | E936: 50 | F936: 51 | G936: 162 | H936: 57 | I936: 36 | J936: 50 | K936: 64 | L936: 70 | M936: 66 | N936: 60 | O936: 51 | P936: 21 | Q936: 31 | R936: 43
A937: 6.8 | B937: Bus / Coach occupant | C937: Unknown | D937: Slightly Injured | E937: 3 | F937: 7 | G937: 9 | H937: 2 | I937: 13 | J937: 3 | K937: 10 | L937: 5 | M937: 13 | N937: 4 | O937: 6 | P937: 2 | Q937: 3 | R937: 3
A938: 0 | B938: Bus / Coach occupant | C938: Young (16-19) | D938: Killed | J938: 1 | M938: 1
A939: 1.4 | B939: Bus / Coach occupant | C939: Young (16-19) | D939: Seriously Injured | G939: 5 | H939: 1 | I939: 1 | J939: 3 | L939: 1 | N939: 2 | O939: 1 | R939: 2
A940: 12.6 | B940: Bus / Coach occupant | C940: Young (16-19) | D940: Slightly Injured | E940: 6 | F940: 10 | G940: 40 | H940: 5 | I940: 2 | J940: 9 | K940: 4 | L940: 21 | M940: 7 | N940: 1 | O940: 13 | Q940: 4 | R940: 1
A941: 8.8 | B941: Car occupants | C941: Children (0-15) | D941: Killed | E941: 6 | F941: 9 | G941: 8 | H941: 14 | I941: 7 | J941: 7 | K941: 1 | L941: 7 | M941: 2 | N941: 5 | O941: 2 | P941: 8 | Q941: 4 | R941: 3
A942: 55 | B942: Car occupants | C942: Children (0-15) | D942: Seriously Injured | E942: 59 | F942: 60 | G942: 47 | H942: 55 | I942: 54 | J942: 49 | K942: 51 | L942: 48 | M942: 29 | N942: 47 | O942: 30 | P942: 57 | Q942: 42 | R942: 44
A943: 989.4 | B943: Car occupants | C943: Children (0-15) | D943: Slightly Injured | E943: 1157 | F943: 998 | G943: 969 | H943: 881 | I943: 942 | J943: 789 | K943: 802 | L943: 751 | M943: 730 | N943: 828 | O943: 741 | P943: 767 | Q943: 694 | R943: 636
A944: 28.2 | B944: Car occupants | C944: Elderly (70+) | D944: Killed | E944: 33 | F944: 27 | G944: 31 | H944: 31 | I944: 19 | J944: 27 | K944: 33 | L944: 28 | M944: 28 | N944: 20 | O944: 30 | P944: 26 | Q944: 23 | R944: 20
A945: 93.8 | B945: Car occupants | C945: Elderly (70+) | D945: Seriously Injured | E945: 115 | F945: 108 | G945: 78 | H945: 73 | I945: 95 | J945: 98 | K945: 95 | L945: 90 | M945: 129 | N945: 114 | O945: 121 | P945: 139 | Q945: 131 | R945: 124
A946: 645.2 | B946: Car occupants | C946: Elderly (70+) | D946: Slightly Injured | E946: 736 | F946: 640 | G946: 639 | H946: 595 | I946: 616 | J946: 569 | K946: 573 | L946: 549 | M946: 606 | N946: 570 | O946: 614 | P946: 622 | Q946: 567 | R946: 592
A947: 15 | B947: Car occupants | C947: Older (60-69) | D947: Killed | E947: 8 | F947: 16 | G947: 25 | H947: 17 | I947: 9 | J947: 10 | K947: 10 | L947: 11 | M947: 13 | N947: 14 | O947: 14 | P947: 13 | Q947: 20 | R947: 19
A948: 98.2 | B948: Car occupants | C948: Older (60-69) | D948: Seriously Injured | E948: 98 | F948: 100 | G948: 101 | H948: 94 | I948: 98 | J948: 101 | K948: 99 | L948: 91 | M948: 81 | N948: 118 | O948: 120 | P948: 101 | Q948: 85 | R948: 112
A949: 967.4 | B949: Car occupants | C949: Older (60-69) | D949: Slightly Injured | E949: 1000 | F949: 1038 | G949: 984 | H949: 924 | I949: 891 | J949: 869 | K949: 916 | L949: 867 | M949: 899 | N949: 846 | O949: 861 | P949: 869 | Q949: 741 | R949: 661
A950: 152.2 | B950: Car occupants | C950: Other (20-59) | D950: Killed | E950: 190 | F950: 190 | G950: 125 | H950: 147 | I950: 109 | J950: 78 | K950: 100 | L950: 73 | M950: 80 | N950: 69 | O950: 82 | P950: 86 | Q950: 82 | R950: 94
A951: 896.8 | B951: Car occupants | C951: Other (20-59) | D951: Seriously Injured | E951: 1041 | F951: 947 | G951: 932 | H951: 803 | I951: 761 | J951: 742 | K951: 704 | L951: 676 | M951: 633 | N951: 700 | O951: 678 | P951: 782 | Q951: 720 | R951: 767
A952: 12493 | B952: Car occupants | C952: Other (20-59) | D952: Slightly Injured | E952: 13880 | F952: 13548 | G952: 12580 | H952: 11373 | I952: 11084 | J952: 10512 | K952: 10256 | L952: 9765 | M952: 9246 | N952: 9610 | O952: 9360 | P952: 9218 | Q952: 7784 | R952: 7204
A953: 0.2 | B953: Car occupants | C953: Unknown | D953: Killed | E953: 1
A954: 16 | B954: Car occupants | C954: Unknown | D954: Seriously Injured | E954: 24 | F954: 15 | G954: 19 | H954: 9 | I954: 13 | J954: 14 | K954: 5 | L954: 11 | M954: 5 | N954: 3 | O954: 14 | P954: 10 | Q954: 9 | R954: 11
A955: 236.8 | B955: Car occupants | C955: Unknown | D955: Slightly Injured | E955: 331 | F955: 278 | G955: 249 | H955: 177 | I955: 149 | J955: 141 | K955: 138 | L955: 153 | M955: 146 | N955: 124 | O955: 108 | P955: 104 | Q955: 86 | R955: 113
A956: 17 | B956: Car occupants | C956: Young (16-19) | D956: Killed | E956: 25 | F956: 13 | G956: 19 | H956: 11 | I956: 17 | J956: 11 | K956: 18 | L956: 3 | M956: 10 | N956: 7 | O956: 6 | P956: 3 | Q956: 12 | R956: 8
A957: 133.4 | B957: Car occupants | C957: Young (16-19) | D957: Seriously Injured | E957: 173 | F957: 138 | G957: 125 | H957: 105 | I957: 126 | J957: 84 | K957: 73 | L957: 53 | M957: 54 | N957: 62 | O957: 59 | P957: 76 | Q957: 70 | R957: 68
A958: 1387 | B958: Car occupants | C958: Young (16-19) | D958: Slightly Injured | E958: 1471 | F958: 1453 | G958: 1449 | H958: 1323 | I958: 1239 | J958: 1119 | K958: 946 | L958: 835 | M958: 748 | N958: 745 | O958: 744 | P958: 723 | Q958: 609 | R958: 527
A959: 0 | B959: Goods vehicle occupant | C959: Children (0-15) | D959: Killed | M959: 1
A960: 1.8 | B960: Goods vehicle occupant | C960: Children (0-15) | D960: Seriously Injured | E960: 2 | F960: 2 | G960: 2 | H960: 1 | I960: 2 | J960: 1 | O960: 1 | P960: 2 | Q960: 3 | R960: 3
A961: 10 | B961: Goods vehicle occupant | C961: Children (0-15) | D961: Slightly Injured | E961: 13 | F961: 12 | G961: 9 | H961: 8 | I961: 8 | J961: 4 | K961: 13 | L961: 5 | M961: 10 | N961: 22 | O961: 20 | P961: 6 | Q961: 19 | R961: 9
A962: 0 | B962: Goods vehicle occupant | C962: Elderly (70+) | D962: Killed | J962: 1 | M962: 1 | Q962: 1
A963: 1.2 | B963: Goods vehicle occupant | C963: Elderly (70+) | D963: Seriously Injured | E963: 3 | G963: 1 | H963: 2 | K963: 1 | L963: 1 | M963: 1 | N963: 1 | O963: 4 | P963: 6 | Q963: 4 | R963: 3
A964: 6.6 | B964: Goods vehicle occupant | C964: Elderly (70+) | D964: Slightly Injured | E964: 9 | F964: 7 | G964: 3 | H964: 8 | I964: 6 | J964: 8 | K964: 16 | L964: 9 | M964: 4 | N964: 6 | O964: 10 | P964: 11 | Q964: 9 | R964: 12
A965: 0.8 | B965: Goods vehicle occupant | C965: Older (60-69) | D965: Killed | E965: 1 | H965: 2 | I965: 1 | K965: 1 | L965: 1 | M965: 1 | N965: 1 | O965: 1 | P965: 2 | Q965: 1
A966: 6.4 | B966: Goods vehicle occupant | C966: Older (60-69) | D966: Seriously Injured | E966: 15 | F966: 4 | G966: 3 | H966: 4 | I966: 6 | J966: 4 | K966: 6 | L966: 3 | M966: 4 | N966: 7 | O966: 4 | P966: 3 | Q966: 7 | R966: 5
A967: 37 | B967: Goods vehicle occupant | C967: Older (60-69) | D967: Slightly Injured | E967: 39 | F967: 40 | G967: 39 | H967: 34 | I967: 33 | J967: 46 | K967: 37 | L967: 33 | M967: 34 | N967: 60 | O967: 43 | P967: 50 | Q967: 48 | R967: 49
A968: 10.6 | B968: Goods vehicle occupant | C968: Other (20-59) | D968: Killed | E968: 10 | F968: 9 | G968: 16 | H968: 7 | I968: 11 | J968: 10 | K968: 4 | L968: 10 | M968: 9 | N968: 10 | O968: 9 | P968: 12 | Q968: 11 | R968: 18
A969: 79.2 | B969: Goods vehicle occupant | C969: Other (20-59) | D969: Seriously Injured | E969: 80 | F969: 94 | G969: 79 | H969: 72 | I969: 71 | J969: 58 | K969: 50 | L969: 59 | M969: 46 | N969: 64 | O969: 76 | P969: 76 | Q969: 84 | R969: 98
A970: 821.4 | B970: Goods vehicle occupant | C970: Other (20-59) | D970: Slightly Injured | E970: 907 | F970: 891 | G970: 817 | H970: 800 | I970: 692 | J970: 655 | K970: 666 | L970: 669 | M970: 642 | N970: 739 | O970: 797 | P970: 741 | Q970: 712 | R970: 588
A971: 0.2 | B971: Goods vehicle occupant | C971: Unknown | D971: Killed | E971: 1
A972: 0.8 | B972: Goods vehicle occupant | C972: Unknown | D972: Seriously Injured | E972: 1 | F972: 1 | G972: 1 | H972: 1 | N972: 3 | O972: 1 | Q972: 1 | R972: 1
A973: 10.8 | B973: Goods vehicle occupant | C973: Unknown | D973: Slightly Injured | E973: 6 | F973: 20 | G973: 10 | H973: 10 | I973: 8 | K973: 6 | L973: 6 | M973: 6 | N973: 5 | O973: 7 | P973: 5 | Q973: 8 | R973: 7
A974: 1 | B974: Goods vehicle occupant | C974: Young (16-19) | D974: Killed | E974: 1 | F974: 2 | G974: 1 | H974: 1 | R974: 1
A975: 4.6 | B975: Goods vehicle occupant | C975: Young (16-19) | D975: Seriously Injured | E975: 8 | F975: 4 | G975: 6 | H975: 2 | I975: 3 | J975: 3 | L975: 4 | M975: 1 | N975: 1 | Q975: 2 | R975: 1
A976: 44.6 | B976: Goods vehicle occupant | C976: Young (16-19) | D976: Slightly Injured | E976: 53 | F976: 49 | G976: 38 | H976: 47 | I976: 36 | J976: 26 | K976: 36 | L976: 20 | M976: 23 | N976: 25 | O976: 24 | P976: 16 | Q976: 22 | R976: 16
A977: 0.4 | B977: HGV occupant | C977: Children (0-15) | D977: Seriously Injured | E977: 1 | G977: 1 | N977: 1 | O977: 1 | P977: 8 | Q977: 2 | R977: 1
A978: 7.8 | B978: HGV occupant | C978: Children (0-15) | D978: Slightly Injured | E978: 12 | F978: 12 | G978: 5 | H978: 5 | I978: 5 | J978: 4 | K978: 4 | L978: 2 | N978: 3 | O978: 1 | P978: 13 | Q978: 1 | R978: 2
A979: 0.2 | B979: HGV occupant | C979: Elderly (70+) | D979: Killed | G979: 1 | R979: 1
A980: 0.8 | B980: HGV occupant | C980: Elderly (70+) | D980: Seriously Injured | F980: 2 | G980: 1 | I980: 1 | J980: 1 | L980: 2 | M980: 2 | N980: 1 | P980: 3 | Q980: 2 | R980: 1
A981: 4.2 | B981: HGV occupant | C981: Elderly (70+) | D981: Slightly Injured | E981: 9 | F981: 2 | G981: 5 | H981: 4 | I981: 1 | J981: 3 | K981: 2 | L981: 3 | M981: 5 | N981: 2 | O981: 3 | Q981: 5 | R981: 3
A982: 2 | B982: HGV occupant | C982: Older (60-69) | D982: Killed | E982: 4 | F982: 2 | G982: 2 | H982: 1 | I982: 1 | J982: 1 | K982: 3 | L982: 2 | M982: 2 | N982: 3 | Q982: 2 | R982: 1
A983: 10.4 | B983: HGV occupant | C983: Older (60-69) | D983: Seriously Injured | E983: 11 | F983: 7 | G983: 10 | H983: 16 | I983: 8 | J983: 8 | K983: 8 | L983: 8 | M983: 6 | N983: 11 | O983: 9 | P983: 12 | Q983: 12 | R983: 13
A984: 47.8 | B984: HGV occupant | C984: Older (60-69) | D984: Slightly Injured | E984: 42 | F984: 44 | G984: 59 | H984: 53 | I984: 41 | J984: 38 | K984: 28 | L984: 48 | M984: 28 | N984: 42 | O984: 37 | P984: 25 | Q984: 38 | R984: 22
A985: 19.6 | B985: HGV occupant | C985: Other (20-59) | D985: Killed | E985: 29 | F985: 18 | G985: 31 | H985: 14 | I985: 6 | J985: 17 | K985: 13 | L985: 14 | M985: 12 | N985: 7 | O985: 12 | P985: 10 | Q985: 8 | R985: 7
... 2373 more rows

Sheet D_DataSheet (hidden)
A7: Casualty report Appendix
A8: D_DataSheet
A12: Date updated
A13: =List!K2 -> 2020-02-12
A14: Input Year
A15: =Cover!$N$18 -> 2018
A17: Link to Contents
A21: BSL | BA21: Tab_D.6 Ranking | BG21: Tab_D.7 Ranking | BM21: Tab_D.8 Ranking | BR21: Tab_D.9 Ranking | BW21: Tab_D.10 Ranking | CB21: Tab_D.11 Ranking | CG21: Tab_D.12 Ranking | CM21: Tab_D.15 Ranking | CS21: Tab_D.16 Ranking | CX21: Tab_D.17 Ranking | DC21: Tab_D.18 Ranking | DH21: Tab_D.19 Ranking | DM21: Tab_D.20 Ranking
A22: =Cover!$N$20 -> 2005 | Z22: HMVM | AA22: =10^8 -> 100000000
A23: =Cover!$N$21 -> 2009 | B23: 016_001_Traffic_Volumes_Rname_Year | AW23: =AX23-1 ->  | AX23: =AY23-1 ->  | AY23: =#REF! ->  | AZ23: 3yr Rank No. | BA23: Abs Rank No. | BC23: =BD23-1 ->  | BD23: =BE23-1 ->  | BE23: =#REF! ->  | BF23: 3yr Rank No. | BG23: Abs Rank No. | BI23: =BJ23-1 ->  | BJ23: =BK23-1 ->  | BK23: =#REF! ->  | BL23: 3yr Rank No. | BM23: Abs Rank No. | BO23: Mway | BP23: =#REF! ->  | BQ23: Rank No. | BR23: Abs Rank No. | BT23: Mway | BU23: =#REF! ->  | BV23: Rank No. | BW23: Abs Rank No. | BY23: Mway | BZ23: =#REF! ->  | CA23: Rank No. | CB23: Abs Rank No. | CD23: Mway | CE23: =#REF! ->  | CF23: Rank No. | CG23: Abs Rank No. | CI23: =CJ23-1 ->  | CJ23: =CK23-1 ->  | CK23: =#REF! ->  | CL23: 3yr Rank No. | CM23: Abs Rank No. | CO23: =CP23-1 ->  | CP23: =CQ23-1 ->  | CQ23: =#REF! ->  | CR23: 3yr Rank No. | CS23: Abs Rank No. | CU23: Mway | CV23: =#REF! ->  | CW23: Rank No. | CX23: Abs Rank No. | CZ23: Mway | DA23: =#REF! ->  | DB23: Rank No. | DC23: Abs Rank No. | DE23: Mway | DF23: =#REF! ->  | DG23: Rank No. | DH23: Abs Rank No. | DJ23: Mway | DK23: =#REF! ->  | DL23: Rank No. | DM23: Abs Rank No.
A24: BSL | B24: Road_2010 Network | C24: Length | D24: 2005 | E24: 2006 | F24: 2007 | G24: 2008 | H24: 2009 | I24: 2010 | J24: 2011 | K24: 2012 | L24: 2013 | M24: 2014 | N24: 2015 | O24: 2016 | P24: 2017 | Q24: 2018 | Z24: BSL | AA24: Road_2010 Network | AB24: 2005 | AC24: 2006 | AD24: 2007 | AE24: 2008 | AF24: 2009 | AG24: 2010 | AH24: 2011 | AI24: 2012 | AJ24: 2013 | AK24: 2014 | AL24: 2015 | AM24: 2016 | AN24: 2017 | AO24: 2018 | AP24: 2019 | AQ24: 2020 | AR24: 2021 | AS24: 2022
B25: A1 | C25: 206.04 | D25: 2477467664 | E25: 2741824980 | F25: 2732526446 | G25: 2739314993 | H25: 2774034223 | I25: 2766022496 | J25: 2841593393 | K25: 2773879214 | L25: 2807237118 | M25: 2953416603 | N25: 3036530700 | O25: 2876418910 | P25: 3043880135 | Q25: 3039580982 | Z25: =SUMIFS(AB25:AS25,$AB$24:$AS$24,">="&$A$22,$AB$24:$AS$24,"<="&$A$23)/($A$23-$A$22+1) -> 26.93033661 | AA25: =B25 -> A1 | AB25: =INDEX($D$25:$W$200,MATCH($AA25,$B$25:$B$200,0),MATCH(AB$24,$D$24:$W$24,0))/$AA$22 -> 24.77467664 | AC25: =INDEX($D$25:$W$200,MATCH($AA25,$B$25:$B$200,0),MATCH(AC$24,$D$24:$W$24,0))/$AA$22 -> 27.4182498 | AD25: =INDEX($D$25:$W$200,MATCH($AA25,$B$25:$B$200,0),MATCH(AD$24,$D$24:$W$24,0))/$AA$22 -> 27.32526446 | AE25: 27.39314993 | AF25: 27.74034223 | AG25: 27.66022496 | AH25: 28.41593393 | AI25: 27.73879214 | AJ25: 28.07237118 | AK25: =INDEX($D$25:$W$200,MATCH($AA25,$B$25:$B$200,0),MATCH(AK$24,$D$24:$W$24,0))/$AA$22 -> 29.53416603 | AL25: 30.365307 | AM25: 28.7641891 | AN25: 30.43880135 | AO25: 30.39580982 | AW25: =INDEX($AB25:$AS25,1,MATCH(AW$23,$AB$24:$AS$24,0)) ->  | AX25: =INDEX($AB25:$AS25,1,MATCH(AX$23,$AB$24:$AS$24,0)) ->  | AY25: =INDEX($AB25:$AS25,1,MATCH(AY$23,$AB$24:$AS$24,0)) ->  | AZ25: =COUNTIF($AY$25:$AY$200,">"&AY25)+1+COUNTIFS($AY$25:$AY$200,AY25,$AX$25:$AX$200,">"&AX25)+COUNTIFS($AY$25:$AY$200,AY25,$AX$25:$AX$200,">"&AX25,$AW$25:$AW$200,">"&AW25) -> 529 | BA25: =IF(COUNTIF($AZ$23:$AZ23,AZ25)>=1,AZ25+COUNTIF($AZ$23:$AZ23,AZ25),AZ25) -> 529 | BC25: =INDEX($AB25:$AS25,1,MATCH(BC$23,$AB$24:$AS$24,0)) ->  | BF25: =COUNTIF($BE$25:$BE$200,">"&BE25)+1+COUNTIFS($BE$25:$BE$200,BE25,$BD$25:$BD$200,">"&BD25)+COUNTIFS($BE$25:$BE$200,BE25,$BD$25:$BD$200,">"&BD25,$BC$25:$BC$200,">"&BC25) -> 529 | BG25: =IF(COUNTIF($BF$23:$BF23,BF25)>=1,BF25+COUNTIF($BF$23:$BF23,BF25),BF25) -> 529 | BI25: =INDEX($AB25:$AS25,1,MATCH(BI$23,$AB$24:$AS$24,0)) ->  | BL25: =COUNTIF($BK$25:$BK$200,">"&BK25)+1+COUNTIFS($BK$25:$BK$200,BK25,$BJ$25:$BJ$200,">"&BJ25)+COUNTIFS($BK$25:$BK$200,BK25,$BJ$25:$BJ$200,">"&BJ25,$BI$25:$BI$200,">"&BI25) -> 529 | BM25: =IF(COUNTIF($BL$23:$BL23,BL25)>=1,BL25+COUNTIF($BL$23:$BL23,BL25),BL25) -> 529 | BO25: =IF(IFERROR(FIND("M",B25,1),0)>0,1,0) -> 0 | BP25: =IFERROR(INDEX(INDIRECT(#REF!&#REF!&#REF!&":"&#REF!&#REF!),MATCH(AA25,INDIRECT(#REF!&#REF!&#REF!&":"&#REF!&#REF!),0),1)/SUMIFS(INDIRECT(#REF!&#REF!&#REF!&":"&#REF!&#REF!),INDIRECT(#REF!&#REF!&#REF!&":"&#REF!&#REF!),AA25),-1) -> -1 | BQ25: =IF(BO25=1,COUNTIFS($BP$25:$BP$200,">"&BP25,$BO$25:$BO$200,1)+1,-1) -> -1 | BR25: =IF(BO25=0,-1,IF(COUNTIFS($BQ$23:$BQ24,BQ25,$BO$23:$BO24,1)>=1,BQ25+COUNTIFS($BQ$23:$BQ24,BQ25,$BO$23:$BO24,1),BQ25)) -> -1 | BT25: =IF(IFERROR(FIND("M",B25,1),0)>0,1,0) -> 0 | BU25: =IFERROR(INDEX(INDIRECT(#REF!&#REF!&#REF!&":"&#REF!&#REF!),MATCH(AA25,INDIRECT(#REF!&#REF!&#REF!&":"&#REF!&#REF!),0),1)/SUMIFS(INDIRECT(#REF!&#REF!&#REF!&":"&#REF!&#REF!),INDIRECT(#REF!&#REF!&#REF!&":"&#REF!&#REF!),AA25),-1) -> -1 | BV25: =IF(BT25=1,COUNTIFS($BU$25:$BU$200,">"&BU25,$BT$25:$BT$200,1)+1,-1) -> -1 | BW25: =IF(BT25=0,-1,IF(COUNTIFS($BV$23:$BV24,BV25,$BT$23:$BT24,1)>=1,BV25+COUNTIFS($BV$23:$BV24,BV25,$BT$23:$BT24,1),BV25)) -> -1 | BY25: =IF(IFERROR(FIND("M",$B25,1),0)>0,1,0) -> 0 | BZ25: =IFERROR(INDEX(INDIRECT(#REF!&#REF!&#REF!&":"&#REF!&#REF!),MATCH(AA25,INDIRECT(#REF!&#REF!&#REF!&":"&#REF!&#REF!),0),1)/SUMIFS(INDIRECT(#REF!&#REF!&#REF!&":"&#REF!&#REF!),INDIRECT(#REF!&#REF!&#REF!&":"&#REF!&#REF!),AA25),-1) -> -1 | CA25: =IF(BY25=0,COUNTIFS(BZ$25:BZ$200,">"&BZ25,BY$25:BY$200,0)+1,-1) -> 1 | CB25: =IF(BY25=1,-1,IF(COUNTIFS(CA$23:CA24,CA25,BY$23:BY24,0)>=1,CA25+COUNTIFS(CA$23:CA24,CA25,BY$23:BY24,0),CA25)) -> 1 | CD25: =IF(IFERROR(FIND("M",$B25,1),0)>0,1,0) -> 0 | CE25: =IFERROR(INDEX(INDIRECT(#REF!&#REF!&#REF!&":"&#REF!&#REF!),MATCH(AA25,INDIRECT(#REF!&#REF!&#REF!&":"&#REF!&#REF!),0),1)/SUMIFS(INDIRECT(#REF!&#REF!&#REF!&":"&#REF!&#REF!),INDIRECT(#REF!&#REF!&#REF!&":"&#REF!&#REF!),AA25),-1) -> -1 | CF25: =IF(CD25=0,COUNTIFS(CE$25:CE$200,">"&CE25,CD$25:CD$200,0)+1,-1) -> 1 | CG25: =IF(CD25=1,-1,IF(COUNTIFS(CF$23:CF24,CF25,CD$23:CD24,0)>=1,CF25+COUNTIFS(CF$23:CF24,CF25,CD$23:CD24,0),CF25)) -> 1 | CI25: =INDEX($AB25:$AS25,1,MATCH(CI$23,$AB$24:$AS$24,0)) ->  | CK25: =INDEX($AB25:$AS25,1,MATCH(CK$23,$AB$24:$AS$24,0)) ->  | CL25: =COUNTIF(CK$25:CK$200,">"&CK25)+1+COUNTIFS(CK$25:CK$200,CK25,CJ$25:CJ$200,">"&CJ25)+COUNTIFS(CK$25:CK$200,CK25,CJ$25:CJ$200,">"&CJ25,CI$25:CI$200,">"&CI25) -> 529 | CM25: =IF(COUNTIF(CL$23:CL24,CL25)>=1,CL25+COUNTIF(CL$23:CL24,CL25),CL25) -> 529 | CO25: =INDEX($AB25:$AS25,1,MATCH(CO$23,$AB$24:$AS$24,0)) ->  | CQ25: =INDEX($AB25:$AS25,1,MATCH(CQ$23,$AB$24:$AS$24,0)) ->  | CR25: =COUNTIF(CQ$25:CQ$200,">"&CQ25)+1+COUNTIFS(CQ$25:CQ$200,CQ25,CP$25:CP$200,">"&CP25)+COUNTIFS(CQ$25:CQ$200,CQ25,CP$25:CP$200,">"&CP25,CO$25:CO$200,">"&CO25) -> 529 | CS25: =IF(COUNTIF(CR$23:CR24,CR25)>=1,CR25+COUNTIF(CR$23:CR24,CR25),CR25) -> 529 | CU25: =IF(IFERROR(FIND("M",$B25,1),0)>0,1,0) -> 0 | CV25: =IFERROR(INDEX(INDIRECT(#REF!&#REF!&#REF!&":"&#REF!&#REF!),MATCH(AA25,INDIRECT(#REF!&#REF!&#REF!&":"&#REF!&#REF!),0),1)/SUMIFS(INDIRECT(#REF!&#REF!&#REF!&":"&#REF!&#REF!),INDIRECT(#REF!&#REF!&#REF!&":"&#REF!&#REF!),AA25),-1) -> -1 | CW25: =IF(CU25=1,COUNTIFS(CV$25:CV$200,">"&CV25,CU$25:CU$200,1)+1,-1) -> -1 | CX25: =IF(CU25=0,-1,IF(COUNTIFS(CW$23:CW24,CW25,CU$23:CU24,1)>=1,CW25+COUNTIFS(CW$23:CW24,CW25,CU$23:CU24,1),CW25)) -> -1 | CZ25: =IF(IFERROR(FIND("M",$B25,1),0)>0,1,0) -> 0 | DA25: =IFERROR(INDEX(INDIRECT(#REF!&#REF!&#REF!&":"&#REF!&#REF!),MATCH($AA25,INDIRECT(#REF!&#REF!&#REF!&":"&#REF!&#REF!),0),1)/SUMIFS(INDIRECT(#REF!&#REF!&#REF!&":"&#REF!&#REF!),INDIRECT(#REF!&#REF!&#REF!&":"&#REF!&#REF!),$AA25),-1) -> -1 | DB25: =IF(CZ25=1,COUNTIFS(DA$25:DA$200,">"&DA25,CZ$25:CZ$200,1)+1,-1) -> -1 | DC25: =IF(CZ25=0,-1,IF(COUNTIFS(DB$23:DB24,DB25,CZ$23:CZ24,1)>=1,DB25+COUNTIFS(DB$23:DB24,DB25,CZ$23:CZ24,1),DB25)) -> -1 | DE25: =IF(IFERROR(FIND("M",$B25,1),0)>0,1,0) -> 0 | DF25: =IFERROR(INDEX(INDIRECT(#REF!&#REF!&#REF!&":"&#REF!&#REF!),MATCH($AA25,INDIRECT(#REF!&#REF!&#REF!&":"&#REF!&#REF!),0),1)/SUMIFS(INDIRECT(#REF!&#REF!&#REF!&":"&#REF!&#REF!),INDIRECT(#REF!&#REF!&#REF!&":"&#REF!&#REF!),$AA25),-1) -> -1 | DG25: =IF(DE25=0,COUNTIFS(DF$25:DF$200,">"&DF25,DE$25:DE$200,0)+1,-1) -> 1 | DH25: =IF(DE25=1,-1,IF(COUNTIFS(DG$23:DG24,DG25,DE$23:DE24,0)>=1,DG25+COUNTIFS(DG$23:DG24,DG25,DE$23:DE24,0),DG25)) -> 1 | DJ25: =IF(IFERROR(FIND("M",$B25,1),0)>0,1,0) -> 0 | DK25: =IFERROR(INDEX(INDIRECT(#REF!&#REF!&#REF!&":"&#REF!&#REF!),MATCH($AA25,INDIRECT(#REF!&#REF!&#REF!&":"&#REF!&#REF!),0),1)/SUMIFS(INDIRECT(#REF!&#REF!&#REF!&":"&#REF!&#REF!),INDIRECT(#REF!&#REF!&#REF!&":"&#REF!&#REF!),$AA25),-1) -> -1 | DL25: =IF(DJ25=0,COUNTIFS(DK$25:DK$200,">"&DK25,DJ$25:DJ$200,0)+1,-1) -> 1 | DM25: =IF(DJ25=1,-1,IF(COUNTIFS(DL$23:DL24,DL25,DJ$23:DJ24,0)>=1,DL25+COUNTIFS(DL$23:DL24,DL25,DJ$23:DJ24,0),DL25)) -> 1
B26: A1(M) | C26: 143.1 | D26: 2526646348 | E26: 2847254095 | F26: 3059984191 | G26: 3017698601 | H26: 2960374908 | I26: 2928506900 | J26: 2990746691 | K26: 3001438206 | L26: 3031207246 | M26: 3109655273 | N26: 3218805556 | O26: 3510236442 | P26: 3617909835 | Q26: 3548432169 | Z26: =SUMIFS(AB26:AS26,$AB$24:$AS$24,">="&$A$22,$AB$24:$AS$24,"<="&$A$23)/($A$23-$A$22+1) -> 28.82391629 | AA26: =B26 -> A1(M) | AB26: =INDEX($D$25:$W$200,MATCH($AA26,$B$25:$B$200,0),MATCH(AB$24,$D$24:$W$24,0))/$AA$22 -> 25.26646348 | AC26: 28.47254095 | AD26: 30.59984191 | AE26: 30.17698601 | AF26: 29.60374908 | AG26: 29.285069 | AH26: 29.90746691 | AI26: 30.01438206 | AJ26: 30.31207246 | AK26: 31.09655273 | AL26: 32.18805556 | AM26: 35.10236442 | AN26: 36.17909835 | AO26: 35.48432169 | AZ26: =COUNTIF($AY$25:$AY$200,">"&AY26)+1+COUNTIFS($AY$25:$AY$200,AY26,$AX$25:$AX$200,">"&AX26)+COUNTIFS($AY$25:$AY$200,AY26,$AX$25:$AX$200,">"&AX26,$AW$25:$AW$200,">"&AW26) -> 529 | BA26: =IF(COUNTIF($AZ$23:$AZ25,AZ26)>=1,AZ26+COUNTIF($AZ$23:$AZ25,AZ26),AZ26) -> 530 | BF26: =COUNTIF($BE$25:$BE$200,">"&BE26)+1+COUNTIFS($BE$25:$BE$200,BE26,$BD$25:$BD$200,">"&BD26)+COUNTIFS($BE$25:$BE$200,BE26,$BD$25:$BD$200,">"&BD26,$BC$25:$BC$200,">"&BC26) -> 529 | BG26: =IF(COUNTIF($BF$23:$BF25,BF26)>=1,BF26+COUNTIF($BF$23:$BF25,BF26),BF26) -> 530 | BL26: =COUNTIF($BK$25:$BK$200,">"&BK26)+1+COUNTIFS($BK$25:$BK$200,BK26,$BJ$25:$BJ$200,">"&BJ26)+COUNTIFS($BK$25:$BK$200,BK26,$BJ$25:$BJ$200,">"&BJ26,$BI$25:$BI$200,">"&BI26) -> 529 | BM26: =IF(COUNTIF($BL$23:$BL25,BL26)>=1,BL26+COUNTIF($BL$23:$BL25,BL26),BL26) -> 530 | BO26: 1 | BP26: =IFERROR(INDEX(INDIRECT(#REF!&#REF!&#REF!&":"&#REF!&#REF!),MATCH(AA26,INDIRECT(#REF!&#REF!&#REF!&":"&#REF!&#REF!),0),1)/SUMIFS(INDIRECT(#REF!&#REF!&#REF!&":"&#REF!&#REF!),INDIRECT(#REF!&#REF!&#REF!&":"&#REF!&#REF!),AA26),-1) -> -1 | BQ26: 1 | BR26: =IF(BO26=0,-1,IF(COUNTIFS($BQ$23:$BQ25,BQ26,$BO$23:$BO25,1)>=1,BQ26+COUNTIFS($BQ$23:$BQ25,BQ26,$BO$23:$BO25,1),BQ26)) -> 1 | BT26: =IF(IFERROR(FIND("M",B26,1),0)>0,1,0) -> 1 | BU26: =IFERROR(INDEX(INDIRECT(#REF!&#REF!&#REF!&":"&#REF!&#REF!),MATCH(AA26,INDIRECT(#REF!&#REF!&#REF!&":"&#REF!&#REF!),0),1)/SUMIFS(INDIRECT(#REF!&#REF!&#REF!&":"&#REF!&#REF!),INDIRECT(#REF!&#REF!&#REF!&":"&#REF!&#REF!),AA26),-1) -> -1 | BV26: =IF(BT26=1,COUNTIFS($BU$25:$BU$200,">"&BU26,$BT$25:$BT$200,1)+1,-1) -> 1 | BW26: =IF(BT26=0,-1,IF(COUNTIFS($BV$23:$BV25,BV26,$BT$23:$BT25,1)>=1,BV26+COUNTIFS($BV$23:$BV25,BV26,$BT$23:$BT25,1),BV26)) -> 1 | BY26: =IF(IFERROR(FIND("M",$B26,1),0)>0,1,0) -> 1 | BZ26: =IFERROR(INDEX(INDIRECT(#REF!&#REF!&#REF!&":"&#REF!&#REF!),MATCH(AA26,INDIRECT(#REF!&#REF!&#REF!&":"&#REF!&#REF!),0),1)/SUMIFS(INDIRECT(#REF!&#REF!&#REF!&":"&#REF!&#REF!),INDIRECT(#REF!&#REF!&#REF!&":"&#REF!&#REF!),AA26),-1) -> -1 | CA26: =IF(BY26=0,COUNTIFS(BZ$25:BZ$200,">"&BZ26,BY$25:BY$200,0)+1,-1) -> -1 | CB26: =IF(BY26=1,-1,IF(COUNTIFS(CA$23:CA25,CA26,BY$23:BY25,0)>=1,CA26+COUNTIFS(CA$23:CA25,CA26,BY$23:BY25,0),CA26)) -> -1 | CD26: =IF(IFERROR(FIND("M",$B26,1),0)>0,1,0) -> 1 | CE26: =IFERROR(INDEX(INDIRECT(#REF!&#REF!&#REF!&":"&#REF!&#REF!),MATCH(AA26,INDIRECT(#REF!&#REF!&#REF!&":"&#REF!&#REF!),0),1)/SUMIFS(INDIRECT(#REF!&#REF!&#REF!&":"&#REF!&#REF!),INDIRECT(#REF!&#REF!&#REF!&":"&#REF!&#REF!),AA26),-1) -> -1 | CF26: =IF(CD26=0,COUNTIFS(CE$25:CE$200,">"&CE26,CD$25:CD$200,0)+1,-1) -> -1 | CG26: =IF(CD26=1,-1,IF(COUNTIFS(CF$23:CF25,CF26,CD$23:CD25,0)>=1,CF26+COUNTIFS(CF$23:CF25,CF26,CD$23:CD25,0),CF26)) -> -1 | CL26: =COUNTIF(CK$25:CK$200,">"&CK26)+1+COUNTIFS(CK$25:CK$200,CK26,CJ$25:CJ$200,">"&CJ26)+COUNTIFS(CK$25:CK$200,CK26,CJ$25:CJ$200,">"&CJ26,CI$25:CI$200,">"&CI26) -> 529 | CM26: =IF(COUNTIF(CL$23:CL25,CL26)>=1,CL26+COUNTIF(CL$23:CL25,CL26),CL26) -> 530 | CR26: =COUNTIF(CQ$25:CQ$200,">"&CQ26)+1+COUNTIFS(CQ$25:CQ$200,CQ26,CP$25:CP$200,">"&CP26)+COUNTIFS(CQ$25:CQ$200,CQ26,CP$25:CP$200,">"&CP26,CO$25:CO$200,">"&CO26) -> 529 | CS26: =IF(COUNTIF(CR$23:CR25,CR26)>=1,CR26+COUNTIF(CR$23:CR25,CR26),CR26) -> 530 | CU26: =IF(IFERROR(FIND("M",$B26,1),0)>0,1,0) -> 1 | CV26: =IFERROR(INDEX(INDIRECT(#REF!&#REF!&#REF!&":"&#REF!&#REF!),MATCH(AA26,INDIRECT(#REF!&#REF!&#REF!&":"&#REF!&#REF!),0),1)/SUMIFS(INDIRECT(#REF!&#REF!&#REF!&":"&#REF!&#REF!),INDIRECT(#REF!&#REF!&#REF!&":"&#REF!&#REF!),AA26),-1) -> -1 | CW26: =IF(CU26=1,COUNTIFS(CV$25:CV$200,">"&CV26,CU$25:CU$200,1)+1,-1) -> 1 | CX26: =IF(CU26=0,-1,IF(COUNTIFS(CW$23:CW25,CW26,CU$23:CU25,1)>=1,CW26+COUNTIFS(CW$23:CW25,CW26,CU$23:CU25,1),CW26)) -> 1 | CZ26: =IF(IFERROR(FIND("M",$B26,1),0)>0,1,0) -> 1 | DA26: =IFERROR(INDEX(INDIRECT(#REF!&#REF!&#REF!&":"&#REF!&#REF!),MATCH($AA26,INDIRECT(#REF!&#REF!&#REF!&":"&#REF!&#REF!),0),1)/SUMIFS(INDIRECT(#REF!&#REF!&#REF!&":"&#REF!&#REF!),INDIRECT(#REF!&#REF!&#REF!&":"&#REF!&#REF!),$AA26),-1) -> -1 | DB26: =IF(CZ26=1,COUNTIFS(DA$25:DA$200,">"&DA26,CZ$25:CZ$200,1)+1,-1) -> 1 | DC26: =IF(CZ26=0,-1,IF(COUNTIFS(DB$23:DB25,DB26,CZ$23:CZ25,1)>=1,DB26+COUNTIFS(DB$23:DB25,DB26,CZ$23:CZ25,1),DB26)) -> 1 | DE26: =IF(IFERROR(FIND("M",$B26,1),0)>0,1,0) -> 1 | DF26: =IFERROR(INDEX(INDIRECT(#REF!&#REF!&#REF!&":"&#REF!&#REF!),MATCH($AA26,INDIRECT(#REF!&#REF!&#REF!&":"&#REF!&#REF!),0),1)/SUMIFS(INDIRECT(#REF!&#REF!&#REF!&":"&#REF!&#REF!),INDIRECT(#REF!&#REF!&#REF!&":"&#REF!&#REF!),$AA26),-1) -> -1 | DG26: =IF(DE26=0,COUNTIFS(DF$25:DF$200,">"&DF26,DE$25:DE$200,0)+1,-1) -> -1 | DH26: =IF(DE26=1,-1,IF(COUNTIFS(DG$23:DG25,DG26,DE$23:DE25,0)>=1,DG26+COUNTIFS(DG$23:DG25,DG26,DE$23:DE25,0),DG26)) -> -1 | DJ26: =IF(IFERROR(FIND("M",$B26,1),0)>0,1,0) -> 1 | DK26: =IFERROR(INDEX(INDIRECT(#REF!&#REF!&#REF!&":"&#REF!&#REF!),MATCH($AA26,INDIRECT(#REF!&#REF!&#REF!&":"&#REF!&#REF!),0),1)/SUMIFS(INDIRECT(#REF!&#REF!&#REF!&":"&#REF!&#REF!),INDIRECT(#REF!&#REF!&#REF!&":"&#REF!&#REF!),$AA26),-1) -> -1 | DL26: =IF(DJ26=0,COUNTIFS(DK$25:DK$200,">"&DK26,DJ$25:DJ$200,0)+1,-1) -> -1 | DM26: =IF(DJ26=1,-1,IF(COUNTIFS(DL$23:DL25,DL26,DJ$23:DJ25,0)>=1,DL26+COUNTIFS(DL$23:DL25,DL26,DJ$23:DJ25,0),DL26)) -> -1
B27: A1033 | C27: 3.23 | D27: 41091326.32 | E27: 44969988.84 | F27: 43993737.49 | G27: 41296331.28 | H27: 41099309.7 | I27: 41924840.78 | J27: 42020527.91 | K27: 42238188.33 | L27: 42050057.33 | M27: 43685821.81 | N27: 43835884.35 | O27: 43559241.12 | P27: 35519472.84 | Q27: 40194694.25 | Z27: 0.4249013873 | AA27: A1033 | AB27: 0.4109132632 | AC27: 0.4496998884 | AD27: 0.4399373749 | AE27: 0.4129633128 | AF27: 0.410993097 | AG27: 0.4192484078 | AH27: 0.4202052791 | AI27: 0.4223818833 | AJ27: 0.4205005733 | AK27: 0.4368582181 | AL27: 0.4383588435 | AM27: 0.4355924112 | AN27: 0.3551947284 | AO27: 0.4019469425 | AZ27: 529 | BA27: =IF(COUNTIF($AZ$23:$AZ26,AZ27)>=1,AZ27+COUNTIF($AZ$23:$AZ26,AZ27),AZ27) -> 531 | BF27: 529 | BG27: =IF(COUNTIF($BF$23:$BF26,BF27)>=1,BF27+COUNTIF($BF$23:$BF26,BF27),BF27) -> 531 | BL27: 529 | BM27: =IF(COUNTIF($BL$23:$BL26,BL27)>=1,BL27+COUNTIF($BL$23:$BL26,BL27),BL27) -> 531 | BO27: 0 | BP27: =IFERROR(INDEX(INDIRECT(#REF!&#REF!&#REF!&":"&#REF!&#REF!),MATCH(AA27,INDIRECT(#REF!&#REF!&#REF!&":"&#REF!&#REF!),0),1)/SUMIFS(INDIRECT(#REF!&#REF!&#REF!&":"&#REF!&#REF!),INDIRECT(#REF!&#REF!&#REF!&":"&#REF!&#REF!),AA27),-1) -> -1 | BQ27: -1 | BR27: =IF(BO27=0,-1,IF(COUNTIFS($BQ$23:$BQ26,BQ27,$BO$23:$BO26,1)>=1,BQ27+COUNTIFS($BQ$23:$BQ26,BQ27,$BO$23:$BO26,1),BQ27)) -> -1 | BT27: =IF(IFERROR(FIND("M",B27,1),0)>0,1,0) -> 0 | BU27: =IFERROR(INDEX(INDIRECT(#REF!&#REF!&#REF!&":"&#REF!&#REF!),MATCH(AA27,INDIRECT(#REF!&#REF!&#REF!&":"&#REF!&#REF!),0),1)/SUMIFS(INDIRECT(#REF!&#REF!&#REF!&":"&#REF!&#REF!),INDIRECT(#REF!&#REF!&#REF!&":"&#REF!&#REF!),AA27),-1) -> -1 | BV27: =IF(BT27=1,COUNTIFS($BU$25:$BU$200,">"&BU27,$BT$25:$BT$200,1)+1,-1) -> -1 | BW27: =IF(BT27=0,-1,IF(COUNTIFS($BV$23:$BV26,BV27,$BT$23:$BT26,1)>=1,BV27+COUNTIFS($BV$23:$BV26,BV27,$BT$23:$BT26,1),BV27)) -> -1 | BY27: 0 | BZ27: =IFERROR(INDEX(INDIRECT(#REF!&#REF!&#REF!&":"&#REF!&#REF!),MATCH(AA27,INDIRECT(#REF!&#REF!&#REF!&":"&#REF!&#REF!),0),1)/SUMIFS(INDIRECT(#REF!&#REF!&#REF!&":"&#REF!&#REF!),INDIRECT(#REF!&#REF!&#REF!&":"&#REF!&#REF!),AA27),-1) -> -1 | CA27: =IF(BY27=0,COUNTIFS(BZ$25:BZ$200,">"&BZ27,BY$25:BY$200,0)+1,-1) -> 1 | CB27: =IF(BY27=1,-1,IF(COUNTIFS(CA$23:CA26,CA27,BY$23:BY26,0)>=1,CA27+COUNTIFS(CA$23:CA26,CA27,BY$23:BY26,0),CA27)) -> 2 | CD27: 0 | CE27: =IFERROR(INDEX(INDIRECT(#REF!&#REF!&#REF!&":"&#REF!&#REF!),MATCH(AA27,INDIRECT(#REF!&#REF!&#REF!&":"&#REF!&#REF!),0),1)/SUMIFS(INDIRECT(#REF!&#REF!&#REF!&":"&#REF!&#REF!),INDIRECT(#REF!&#REF!&#REF!&":"&#REF!&#REF!),AA27),-1) -> -1 | CF27: =IF(CD27=0,COUNTIFS(CE$25:CE$200,">"&CE27,CD$25:CD$200,0)+1,-1) -> 1 | CG27: =IF(CD27=1,-1,IF(COUNTIFS(CF$23:CF26,CF27,CD$23:CD26,0)>=1,CF27+COUNTIFS(CF$23:CF26,CF27,CD$23:CD26,0),CF27)) -> 2 | CL27: 529 | CM27: =IF(COUNTIF(CL$23:CL26,CL27)>=1,CL27+COUNTIF(CL$23:CL26,CL27),CL27) -> 531 | CR27: 529 | CS27: =IF(COUNTIF(CR$23:CR26,CR27)>=1,CR27+COUNTIF(CR$23:CR26,CR27),CR27) -> 531 | CU27: 0 | CV27: =IFERROR(INDEX(INDIRECT(#REF!&#REF!&#REF!&":"&#REF!&#REF!),MATCH(AA27,INDIRECT(#REF!&#REF!&#REF!&":"&#REF!&#REF!),0),1)/SUMIFS(INDIRECT(#REF!&#REF!&#REF!&":"&#REF!&#REF!),INDIRECT(#REF!&#REF!&#REF!&":"&#REF!&#REF!),AA27),-1) -> -1 | CW27: -1 | CX27: =IF(CU27=0,-1,IF(COUNTIFS(CW$23:CW26,CW27,CU$23:CU26,1)>=1,CW27+COUNTIFS(CW$23:CW26,CW27,CU$23:CU26,1),CW27)) -> -1 | CZ27: 0 | DA27: =IFERROR(INDEX(INDIRECT(#REF!&#REF!&#REF!&":"&#REF!&#REF!),MATCH($AA27,INDIRECT(#REF!&#REF!&#REF!&":"&#REF!&#REF!),0),1)/SUMIFS(INDIRECT(#REF!&#REF!&#REF!&":"&#REF!&#REF!),INDIRECT(#REF!&#REF!&#REF!&":"&#REF!&#REF!),$AA27),-1) -> -1 | DB27: -1 | DC27: =IF(CZ27=0,-1,IF(COUNTIFS(DB$23:DB26,DB27,CZ$23:CZ26,1)>=1,DB27+COUNTIFS(DB$23:DB26,DB27,CZ$23:CZ26,1),DB27)) -> -1 | DE27: 0 | DF27: =IFERROR(INDEX(INDIRECT(#REF!&#REF!&#REF!&":"&#REF!&#REF!),MATCH($AA27,INDIRECT(#REF!&#REF!&#REF!&":"&#REF!&#REF!),0),1)/SUMIFS(INDIRECT(#REF!&#REF!&#REF!&":"&#REF!&#REF!),INDIRECT(#REF!&#REF!&#REF!&":"&#REF!&#REF!),$AA27),-1) -> -1 | DG27: 1 | DH27: =IF(DE27=1,-1,IF(COUNTIFS(DG$23:DG26,DG27,DE$23:DE26,0)>=1,DG27+COUNTIFS(DG$23:DG26,DG27,DE$23:DE26,0),DG27)) -> 2 | DJ27: 0 | DK27: =IFERROR(INDEX(INDIRECT(#REF!&#REF!&#REF!&":"&#REF!&#REF!),MATCH($AA27,INDIRECT(#REF!&#REF!&#REF!&":"&#REF!&#REF!),0),1)/SUMIFS(INDIRECT(#REF!&#REF!&#REF!&":"&#REF!&#REF!),INDIRECT(#REF!&#REF!&#REF!&":"&#REF!&#REF!),$AA27),-1) -> -1 | DL27: 1 | DM27: =IF(DJ27=1,-1,IF(COUNTIFS(DL$23:DL26,DL27,DJ$23:DJ26,0)>=1,DL27+COUNTIFS(DL$23:DL26,DL27,DJ$23:DJ26,0),DL27)) -> 2
B28: A1053 | C28: 1.3 | D28: 6357217.59 | E28: 6233838.13 | F28: 6159901.17 | G28: 6853457.05 | H28: 6945084.45 | I28: 6967764.5 | J28: 7084339.95 | K28: 6997248.56 | L28: 7005866.98 | M28: 7200915.4 | N28: 7344706.9 | O28: 7610896.8 | P28: 6587487.6 | Q28: 6494007 | Z28: 0.06509899678 | AA28: A1053 | AB28: 0.0635721759 | AC28: 0.0623383813 | AD28: 0.0615990117 | AE28: 0.0685345705 | AF28: 0.0694508445 | AG28: 0.069677645 | AH28: 0.0708433995 | AI28: 0.0699724856 | AJ28: 0.0700586698 | AK28: 0.072009154 | AL28: 0.073447069 | AM28: 0.076108968 | AN28: 0.065874876 | AO28: 0.06494007 | AZ28: 529 | BA28: =IF(COUNTIF($AZ$23:$AZ27,AZ28)>=1,AZ28+COUNTIF($AZ$23:$AZ27,AZ28),AZ28) -> 532 | BF28: 529 | BG28: =IF(COUNTIF($BF$23:$BF27,BF28)>=1,BF28+COUNTIF($BF$23:$BF27,BF28),BF28) -> 532 | BL28: 529 | BM28: =IF(COUNTIF($BL$23:$BL27,BL28)>=1,BL28+COUNTIF($BL$23:$BL27,BL28),BL28) -> 532 | BO28: 0 | BP28: =IFERROR(INDEX(INDIRECT(#REF!&#REF!&#REF!&":"&#REF!&#REF!),MATCH(AA28,INDIRECT(#REF!&#REF!&#REF!&":"&#REF!&#REF!),0),1)/SUMIFS(INDIRECT(#REF!&#REF!&#REF!&":"&#REF!&#REF!),INDIRECT(#REF!&#REF!&#REF!&":"&#REF!&#REF!),AA28),-1) -> -1 | BQ28: -1 | BR28: =IF(BO28=0,-1,IF(COUNTIFS($BQ$23:$BQ27,BQ28,$BO$23:$BO27,1)>=1,BQ28+COUNTIFS($BQ$23:$BQ27,BQ28,$BO$23:$BO27,1),BQ28)) -> -1 | BT28: 0 | BU28: =IFERROR(INDEX(INDIRECT(#REF!&#REF!&#REF!&":"&#REF!&#REF!),MATCH(AA28,INDIRECT(#REF!&#REF!&#REF!&":"&#REF!&#REF!),0),1)/SUMIFS(INDIRECT(#REF!&#REF!&#REF!&":"&#REF!&#REF!),INDIRECT(#REF!&#REF!&#REF!&":"&#REF!&#REF!),AA28),-1) -> -1 | BV28: -1 | BW28: =IF(BT28=0,-1,IF(COUNTIFS($BV$23:$BV27,BV28,$BT$23:$BT27,1)>=1,BV28+COUNTIFS($BV$23:$BV27,BV28,$BT$23:$BT27,1),BV28)) -> -1 | BY28: 0 | BZ28: =IFERROR(INDEX(INDIRECT(#REF!&#REF!&#REF!&":"&#REF!&#REF!),MATCH(AA28,INDIRECT(#REF!&#REF!&#REF!&":"&#REF!&#REF!),0),1)/SUMIFS(INDIRECT(#REF!&#REF!&#REF!&":"&#REF!&#REF!),INDIRECT(#REF!&#REF!&#REF!&":"&#REF!&#REF!),AA28),-1) -> -1 | CA28: 1 | CB28: =IF(BY28=1,-1,IF(COUNTIFS(CA$23:CA27,CA28,BY$23:BY27,0)>=1,CA28+COUNTIFS(CA$23:CA27,CA28,BY$23:BY27,0),CA28)) -> 3 | CD28: 0 | CE28: =IFERROR(INDEX(INDIRECT(#REF!&#REF!&#REF!&":"&#REF!&#REF!),MATCH(AA28,INDIRECT(#REF!&#REF!&#REF!&":"&#REF!&#REF!),0),1)/SUMIFS(INDIRECT(#REF!&#REF!&#REF!&":"&#REF!&#REF!),INDIRECT(#REF!&#REF!&#REF!&":"&#REF!&#REF!),AA28),-1) -> -1 | CF28: 1 | CG28: =IF(CD28=1,-1,IF(COUNTIFS(CF$23:CF27,CF28,CD$23:CD27,0)>=1,CF28+COUNTIFS(CF$23:CF27,CF28,CD$23:CD27,0),CF28)) -> 3 | CL28: 529 | CM28: =IF(COUNTIF(CL$23:CL27,CL28)>=1,CL28+COUNTIF(CL$23:CL27,CL28),CL28) -> 532 | CR28: 529 | CS28: =IF(COUNTIF(CR$23:CR27,CR28)>=1,CR28+COUNTIF(CR$23:CR27,CR28),CR28) -> 532 | CU28: 0 | CV28: =IFERROR(INDEX(INDIRECT(#REF!&#REF!&#REF!&":"&#REF!&#REF!),MATCH(AA28,INDIRECT(#REF!&#REF!&#REF!&":"&#REF!&#REF!),0),1)/SUMIFS(INDIRECT(#REF!&#REF!&#REF!&":"&#REF!&#REF!),INDIRECT(#REF!&#REF!&#REF!&":"&#REF!&#REF!),AA28),-1) -> -1 | CW28: -1 | CX28: =IF(CU28=0,-1,IF(COUNTIFS(CW$23:CW27,CW28,CU$23:CU27,1)>=1,CW28+COUNTIFS(CW$23:CW27,CW28,CU$23:CU27,1),CW28)) -> -1 | CZ28: 0 | DA28: =IFERROR(INDEX(INDIRECT(#REF!&#REF!&#REF!&":"&#REF!&#REF!),MATCH($AA28,INDIRECT(#REF!&#REF!&#REF!&":"&#REF!&#REF!),0),1)/SUMIFS(INDIRECT(#REF!&#REF!&#REF!&":"&#REF!&#REF!),INDIRECT(#REF!&#REF!&#REF!&":"&#REF!&#REF!),$AA28),-1) -> -1 | DB28: -1 | DC28: =IF(CZ28=0,-1,IF(COUNTIFS(DB$23:DB27,DB28,CZ$23:CZ27,1)>=1,DB28+COUNTIFS(DB$23:DB27,DB28,CZ$23:CZ27,1),DB28)) -> -1 | DE28: 0 | DF28: =IFERROR(INDEX(INDIRECT(#REF!&#REF!&#REF!&":"&#REF!&#REF!),MATCH($AA28,INDIRECT(#REF!&#REF!&#REF!&":"&#REF!&#REF!),0),1)/SUMIFS(INDIRECT(#REF!&#REF!&#REF!&":"&#REF!&#REF!),INDIRECT(#REF!&#REF!&#REF!&":"&#REF!&#REF!),$AA28),-1) -> -1 | DG28: 1 | DH28: =IF(DE28=1,-1,IF(COUNTIFS(DG$23:DG27,DG28,DE$23:DE27,0)>=1,DG28+COUNTIFS(DG$23:DG27,DG28,DE$23:DE27,0),DG28)) -> 3 | DJ28: 0 | DK28: =IFERROR(INDEX(INDIRECT(#REF!&#REF!&#REF!&":"&#REF!&#REF!),MATCH($AA28,INDIRECT(#REF!&#REF!&#REF!&":"&#REF!&#REF!),0),1)/SUMIFS(INDIRECT(#REF!&#REF!&#REF!&":"&#REF!&#REF!),INDIRECT(#REF!&#REF!&#REF!&":"&#REF!&#REF!),$AA28),-1) -> -1 | DL28: 1 | DM28: =IF(DJ28=1,-1,IF(COUNTIFS(DL$23:DL27,DL28,DJ$23:DJ27,0)>=1,DL28+COUNTIFS(DL$23:DL27,DL28,DJ$23:DJ27,0),DL28)) -> 3
B29: A1089 | C29: 3.54 | D29: 25741923.09 | E29: 26221855.6 | F29: 26829363.38 | G29: 26690788.28 | H29: 26344509.3 | I29: 25984576.93 | J29: 26932716.36 | K29: 26993566.93 | L29: 27164733.25 | M29: 27805195.14 | N29: 29048855.6 | O29: 29205500.7 | P29: 30208417.56 | Q29: 27250469.3 | Z29: 0.2636568793 | AA29: A1089 | AB29: 0.2574192309 | AC29: 0.262218556 | AD29: 0.2682936338 | AE29: 0.2669078828 | AF29: 0.263445093 | AG29: 0.2598457693 | AH29: 0.2693271636 | AI29: 0.2699356693 | AJ29: 0.2716473325 | AK29: 0.2780519514 | AL29: 0.290488556 | AM29: 0.292055007 | AN29: 0.3020841756 | AO29: 0.272504693 | AZ29: 529 | BA29: =IF(COUNTIF($AZ$23:$AZ28,AZ29)>=1,AZ29+COUNTIF($AZ$23:$AZ28,AZ29),AZ29) -> 533 | BF29: 529 | BG29: =IF(COUNTIF($BF$23:$BF28,BF29)>=1,BF29+COUNTIF($BF$23:$BF28,BF29),BF29) -> 533 | BL29: 529 | BM29: =IF(COUNTIF($BL$23:$BL28,BL29)>=1,BL29+COUNTIF($BL$23:$BL28,BL29),BL29) -> 533 | BO29: 0 | BP29: =IFERROR(INDEX(INDIRECT(#REF!&#REF!&#REF!&":"&#REF!&#REF!),MATCH(AA29,INDIRECT(#REF!&#REF!&#REF!&":"&#REF!&#REF!),0),1)/SUMIFS(INDIRECT(#REF!&#REF!&#REF!&":"&#REF!&#REF!),INDIRECT(#REF!&#REF!&#REF!&":"&#REF!&#REF!),AA29),-1) -> -1 | BQ29: -1 | BR29: =IF(BO29=0,-1,IF(COUNTIFS($BQ$23:$BQ28,BQ29,$BO$23:$BO28,1)>=1,BQ29+COUNTIFS($BQ$23:$BQ28,BQ29,$BO$23:$BO28,1),BQ29)) -> -1 | BT29: 0 | BU29: =IFERROR(INDEX(INDIRECT(#REF!&#REF!&#REF!&":"&#REF!&#REF!),MATCH(AA29,INDIRECT(#REF!&#REF!&#REF!&":"&#REF!&#REF!),0),1)/SUMIFS(INDIRECT(#REF!&#REF!&#REF!&":"&#REF!&#REF!),INDIRECT(#REF!&#REF!&#REF!&":"&#REF!&#REF!),AA29),-1) -> -1 | BV29: =IF(BT29=1,COUNTIFS($BU$25:$BU$200,">"&BU29,$BT$25:$BT$200,1)+1,-1) -> -1 | BW29: =IF(BT29=0,-1,IF(COUNTIFS($BV$23:$BV28,BV29,$BT$23:$BT28,1)>=1,BV29+COUNTIFS($BV$23:$BV28,BV29,$BT$23:$BT28,1),BV29)) -> -1 | BY29: 0 | BZ29: =IFERROR(INDEX(INDIRECT(#REF!&#REF!&#REF!&":"&#REF!&#REF!),MATCH(AA29,INDIRECT(#REF!&#REF!&#REF!&":"&#REF!&#REF!),0),1)/SUMIFS(INDIRECT(#REF!&#REF!&#REF!&":"&#REF!&#REF!),INDIRECT(#REF!&#REF!&#REF!&":"&#REF!&#REF!),AA29),-1) -> -1 | CA29: 1 | CB29: =IF(BY29=1,-1,IF(COUNTIFS(CA$23:CA28,CA29,BY$23:BY28,0)>=1,CA29+COUNTIFS(CA$23:CA28,CA29,BY$23:BY28,0),CA29)) -> 4 | CD29: 0 | CE29: =IFERROR(INDEX(INDIRECT(#REF!&#REF!&#REF!&":"&#REF!&#REF!),MATCH(AA29,INDIRECT(#REF!&#REF!&#REF!&":"&#REF!&#REF!),0),1)/SUMIFS(INDIRECT(#REF!&#REF!&#REF!&":"&#REF!&#REF!),INDIRECT(#REF!&#REF!&#REF!&":"&#REF!&#REF!),AA29),-1) -> -1 | CF29: 1 | CG29: =IF(CD29=1,-1,IF(COUNTIFS(CF$23:CF28,CF29,CD$23:CD28,0)>=1,CF29+COUNTIFS(CF$23:CF28,CF29,CD$23:CD28,0),CF29)) -> 4 | CL29: 529 | CM29: =IF(COUNTIF(CL$23:CL28,CL29)>=1,CL29+COUNTIF(CL$23:CL28,CL29),CL29) -> 533 | CR29: 529 | CS29: =IF(COUNTIF(CR$23:CR28,CR29)>=1,CR29+COUNTIF(CR$23:CR28,CR29),CR29) -> 533 | CU29: 0 | CV29: =IFERROR(INDEX(INDIRECT(#REF!&#REF!&#REF!&":"&#REF!&#REF!),MATCH(AA29,INDIRECT(#REF!&#REF!&#REF!&":"&#REF!&#REF!),0),1)/SUMIFS(INDIRECT(#REF!&#REF!&#REF!&":"&#REF!&#REF!),INDIRECT(#REF!&#REF!&#REF!&":"&#REF!&#REF!),AA29),-1) -> -1 | CW29: -1 | CX29: =IF(CU29=0,-1,IF(COUNTIFS(CW$23:CW28,CW29,CU$23:CU28,1)>=1,CW29+COUNTIFS(CW$23:CW28,CW29,CU$23:CU28,1),CW29)) -> -1 | CZ29: 0 | DA29: =IFERROR(INDEX(INDIRECT(#REF!&#REF!&#REF!&":"&#REF!&#REF!),MATCH($AA29,INDIRECT(#REF!&#REF!&#REF!&":"&#REF!&#REF!),0),1)/SUMIFS(INDIRECT(#REF!&#REF!&#REF!&":"&#REF!&#REF!),INDIRECT(#REF!&#REF!&#REF!&":"&#REF!&#REF!),$AA29),-1) -> -1 | DB29: -1 | DC29: =IF(CZ29=0,-1,IF(COUNTIFS(DB$23:DB28,DB29,CZ$23:CZ28,1)>=1,DB29+COUNTIFS(DB$23:DB28,DB29,CZ$23:CZ28,1),DB29)) -> -1 | DE29: 0 | DF29: =IFERROR(INDEX(INDIRECT(#REF!&#REF!&#REF!&":"&#REF!&#REF!),MATCH($AA29,INDIRECT(#REF!&#REF!&#REF!&":"&#REF!&#REF!),0),1)/SUMIFS(INDIRECT(#REF!&#REF!&#REF!&":"&#REF!&#REF!),INDIRECT(#REF!&#REF!&#REF!&":"&#REF!&#REF!),$AA29),-1) -> -1 | DG29: 1 | DH29: =IF(DE29=1,-1,IF(COUNTIFS(DG$23:DG28,DG29,DE$23:DE28,0)>=1,DG29+COUNTIFS(DG$23:DG28,DG29,DE$23:DE28,0),DG29)) -> 4 | DJ29: 0 | DK29: =IFERROR(INDEX(INDIRECT(#REF!&#REF!&#REF!&":"&#REF!&#REF!),MATCH($AA29,INDIRECT(#REF!&#REF!&#REF!&":"&#REF!&#REF!),0),1)/SUMIFS(INDIRECT(#REF!&#REF!&#REF!&":"&#REF!&#REF!),INDIRECT(#REF!&#REF!&#REF!&":"&#REF!&#REF!),$AA29),-1) -> -1 | DL29: 1 | DM29: =IF(DJ29=1,-1,IF(COUNTIFS(DL$23:DL28,DL29,DJ$23:DJ28,0)>=1,DL29+COUNTIFS(DL$23:DL28,DL29,DJ$23:DJ28,0),DL29)) -> 4
B30: A11 | C30: 57.47 | D30: 547870569.1 | E30: 536466065.5 | F30: 534020770.7 | G30: 544607273 | H30: 538814652.5 | I30: 542602379.4 | J30: 561704242 | K30: 575347130.4 | L30: 582281804.7 | M30: 575753352.7 | N30: 597893978.9 | O30: 651589423 | P30: 702858329.7 | Q30: 749978505 | Z30: 5.403558662 | AA30: A11 | AB30: 5.478705691 | AC30: 5.364660655 | AD30: 5.340207707 | AE30: 5.44607273 | AF30: 5.388146525 | AG30: 5.426023794 | AH30: 5.61704242 | AI30: 5.753471304 | AJ30: 5.822818047 | AK30: 5.757533527 | AL30: 5.978939789 | AM30: 6.51589423 | AN30: 7.028583297 | AO30: 7.49978505 | AZ30: 529 | BA30: =IF(COUNTIF($AZ$23:$AZ29,AZ30)>=1,AZ30+COUNTIF($AZ$23:$AZ29,AZ30),AZ30) -> 534 | BF30: 529 | BG30: =IF(COUNTIF($BF$23:$BF29,BF30)>=1,BF30+COUNTIF($BF$23:$BF29,BF30),BF30) -> 534 | BL30: 529 | BM30: =IF(COUNTIF($BL$23:$BL29,BL30)>=1,BL30+COUNTIF($BL$23:$BL29,BL30),BL30) -> 534 | BO30: 0 | BP30: =IFERROR(INDEX(INDIRECT(#REF!&#REF!&#REF!&":"&#REF!&#REF!),MATCH(AA30,INDIRECT(#REF!&#REF!&#REF!&":"&#REF!&#REF!),0),1)/SUMIFS(INDIRECT(#REF!&#REF!&#REF!&":"&#REF!&#REF!),INDIRECT(#REF!&#REF!&#REF!&":"&#REF!&#REF!),AA30),-1) -> -1 | BQ30: -1 | BR30: =IF(BO30=0,-1,IF(COUNTIFS($BQ$23:$BQ29,BQ30,$BO$23:$BO29,1)>=1,BQ30+COUNTIFS($BQ$23:$BQ29,BQ30,$BO$23:$BO29,1),BQ30)) -> -1 | BT30: 0 | BU30: =IFERROR(INDEX(INDIRECT(#REF!&#REF!&#REF!&":"&#REF!&#REF!),MATCH(AA30,INDIRECT(#REF!&#REF!&#REF!&":"&#REF!&#REF!),0),1)/SUMIFS(INDIRECT(#REF!&#REF!&#REF!&":"&#REF!&#REF!),INDIRECT(#REF!&#REF!&#REF!&":"&#REF!&#REF!),AA30),-1) -> -1 | BV30: -1 | BW30: =IF(BT30=0,-1,IF(COUNTIFS($BV$23:$BV29,BV30,$BT$23:$BT29,1)>=1,BV30+COUNTIFS($BV$23:$BV29,BV30,$BT$23:$BT29,1),BV30)) -> -1 | BY30: 0 | BZ30: =IFERROR(INDEX(INDIRECT(#REF!&#REF!&#REF!&":"&#REF!&#REF!),MATCH(AA30,INDIRECT(#REF!&#REF!&#REF!&":"&#REF!&#REF!),0),1)/SUMIFS(INDIRECT(#REF!&#REF!&#REF!&":"&#REF!&#REF!),INDIRECT(#REF!&#REF!&#REF!&":"&#REF!&#REF!),AA30),-1) -> -1 | CA30: 1 | CB30: =IF(BY30=1,-1,IF(COUNTIFS(CA$23:CA29,CA30,BY$23:BY29,0)>=1,CA30+COUNTIFS(CA$23:CA29,CA30,BY$23:BY29,0),CA30)) -> 5 | CD30: 0 | CE30: =IFERROR(INDEX(INDIRECT(#REF!&#REF!&#REF!&":"&#REF!&#REF!),MATCH(AA30,INDIRECT(#REF!&#REF!&#REF!&":"&#REF!&#REF!),0),1)/SUMIFS(INDIRECT(#REF!&#REF!&#REF!&":"&#REF!&#REF!),INDIRECT(#REF!&#REF!&#REF!&":"&#REF!&#REF!),AA30),-1) -> -1 | CF30: 1 | CG30: =IF(CD30=1,-1,IF(COUNTIFS(CF$23:CF29,CF30,CD$23:CD29,0)>=1,CF30+COUNTIFS(CF$23:CF29,CF30,CD$23:CD29,0),CF30)) -> 5 | CL30: 529 | CM30: =IF(COUNTIF(CL$23:CL29,CL30)>=1,CL30+COUNTIF(CL$23:CL29,CL30),CL30) -> 534 | CR30: 529 | CS30: =IF(COUNTIF(CR$23:CR29,CR30)>=1,CR30+COUNTIF(CR$23:CR29,CR30),CR30) -> 534 | CU30: 0 | CV30: =IFERROR(INDEX(INDIRECT(#REF!&#REF!&#REF!&":"&#REF!&#REF!),MATCH(AA30,INDIRECT(#REF!&#REF!&#REF!&":"&#REF!&#REF!),0),1)/SUMIFS(INDIRECT(#REF!&#REF!&#REF!&":"&#REF!&#REF!),INDIRECT(#REF!&#REF!&#REF!&":"&#REF!&#REF!),AA30),-1) -> -1 | CW30: -1 | CX30: =IF(CU30=0,-1,IF(COUNTIFS(CW$23:CW29,CW30,CU$23:CU29,1)>=1,CW30+COUNTIFS(CW$23:CW29,CW30,CU$23:CU29,1),CW30)) -> -1 | CZ30: 0 | DA30: =IFERROR(INDEX(INDIRECT(#REF!&#REF!&#REF!&":"&#REF!&#REF!),MATCH($AA30,INDIRECT(#REF!&#REF!&#REF!&":"&#REF!&#REF!),0),1)/SUMIFS(INDIRECT(#REF!&#REF!&#REF!&":"&#REF!&#REF!),INDIRECT(#REF!&#REF!&#REF!&":"&#REF!&#REF!),$AA30),-1) -> -1 | DB30: -1 | DC30: =IF(CZ30=0,-1,IF(COUNTIFS(DB$23:DB29,DB30,CZ$23:CZ29,1)>=1,DB30+COUNTIFS(DB$23:DB29,DB30,CZ$23:CZ29,1),DB30)) -> -1 | DE30: 0 | DF30: =IFERROR(INDEX(INDIRECT(#REF!&#REF!&#REF!&":"&#REF!&#REF!),MATCH($AA30,INDIRECT(#REF!&#REF!&#REF!&":"&#REF!&#REF!),0),1)/SUMIFS(INDIRECT(#REF!&#REF!&#REF!&":"&#REF!&#REF!),INDIRECT(#REF!&#REF!&#REF!&":"&#REF!&#REF!),$AA30),-1) -> -1 | DG30: 1 | DH30: =IF(DE30=1,-1,IF(COUNTIFS(DG$23:DG29,DG30,DE$23:DE29,0)>=1,DG30+COUNTIFS(DG$23:DG29,DG30,DE$23:DE29,0),DG30)) -> 5 | DJ30: 0 | DK30: =IFERROR(INDEX(INDIRECT(#REF!&#REF!&#REF!&":"&#REF!&#REF!),MATCH($AA30,INDIRECT(#REF!&#REF!&#REF!&":"&#REF!&#REF!),0),1)/SUMIFS(INDIRECT(#REF!&#REF!&#REF!&":"&#REF!&#REF!),INDIRECT(#REF!&#REF!&#REF!&":"&#REF!&#REF!),$AA30),-1) -> -1 | DL30: 1 | DM30: =IF(DJ30=1,-1,IF(COUNTIFS(DL$23:DL29,DL30,DJ$23:DJ29,0)>=1,DL30+COUNTIFS(DL$23:DL29,DL30,DJ$23:DJ29,0),DL30)) -> 5
B31: A12 | C31: 54.43 | D31: 1227444565 | E31: 1270126738 | F31: 1240656578 | G31: 1261754353 | H31: 1326505778 | I31: 1240773721 | J31: 1243582100 | K31: 1277906653 | L31: 1293377099 | M31: 1317883051 | N31: 1331737566 | O31: 1367896573 | P31: 1408583175 | Q31: 1320698111 | Z31: 12.65297603 | AA31: A12 | AB31: 12.27444565 | AC31: 12.70126738 | AD31: 12.40656578 | AE31: 12.61754353 | AF31: 13.26505778 | AG31: 12.40773721 | AH31: 12.435821 | AI31: 12.77906653 | AJ31: 12.93377099 | AK31: 13.17883051 | AL31: 13.31737566 | AM31: 13.67896573 | AN31: 14.08583175 | AO31: 13.20698111 | AZ31: 529 | BA31: =IF(COUNTIF($AZ$23:$AZ30,AZ31)>=1,AZ31+COUNTIF($AZ$23:$AZ30,AZ31),AZ31) -> 535 | BF31: 529 | BG31: =IF(COUNTIF($BF$23:$BF30,BF31)>=1,BF31+COUNTIF($BF$23:$BF30,BF31),BF31) -> 535 | BL31: 529 | BM31: =IF(COUNTIF($BL$23:$BL30,BL31)>=1,BL31+COUNTIF($BL$23:$BL30,BL31),BL31) -> 535 | BO31: 0 | BP31: =IFERROR(INDEX(INDIRECT(#REF!&#REF!&#REF!&":"&#REF!&#REF!),MATCH(AA31,INDIRECT(#REF!&#REF!&#REF!&":"&#REF!&#REF!),0),1)/SUMIFS(INDIRECT(#REF!&#REF!&#REF!&":"&#REF!&#REF!),INDIRECT(#REF!&#REF!&#REF!&":"&#REF!&#REF!),AA31),-1) -> -1 | BQ31: -1 | BR31: =IF(BO31=0,-1,IF(COUNTIFS($BQ$23:$BQ30,BQ31,$BO$23:$BO30,1)>=1,BQ31+COUNTIFS($BQ$23:$BQ30,BQ31,$BO$23:$BO30,1),BQ31)) -> -1 | BT31: 0 | BU31: =IFERROR(INDEX(INDIRECT(#REF!&#REF!&#REF!&":"&#REF!&#REF!),MATCH(AA31,INDIRECT(#REF!&#REF!&#REF!&":"&#REF!&#REF!),0),1)/SUMIFS(INDIRECT(#REF!&#REF!&#REF!&":"&#REF!&#REF!),INDIRECT(#REF!&#REF!&#REF!&":"&#REF!&#REF!),AA31),-1) -> -1 | BV31: -1 | BW31: =IF(BT31=0,-1,IF(COUNTIFS($BV$23:$BV30,BV31,$BT$23:$BT30,1)>=1,BV31+COUNTIFS($BV$23:$BV30,BV31,$BT$23:$BT30,1),BV31)) -> -1 | BY31: 0 | BZ31: =IFERROR(INDEX(INDIRECT(#REF!&#REF!&#REF!&":"&#REF!&#REF!),MATCH(AA31,INDIRECT(#REF!&#REF!&#REF!&":"&#REF!&#REF!),0),1)/SUMIFS(INDIRECT(#REF!&#REF!&#REF!&":"&#REF!&#REF!),INDIRECT(#REF!&#REF!&#REF!&":"&#REF!&#REF!),AA31),-1) -> -1 | CA31: 1 | CB31: =IF(BY31=1,-1,IF(COUNTIFS(CA$23:CA30,CA31,BY$23:BY30,0)>=1,CA31+COUNTIFS(CA$23:CA30,CA31,BY$23:BY30,0),CA31)) -> 6 | CD31: 0 | CE31: =IFERROR(INDEX(INDIRECT(#REF!&#REF!&#REF!&":"&#REF!&#REF!),MATCH(AA31,INDIRECT(#REF!&#REF!&#REF!&":"&#REF!&#REF!),0),1)/SUMIFS(INDIRECT(#REF!&#REF!&#REF!&":"&#REF!&#REF!),INDIRECT(#REF!&#REF!&#REF!&":"&#REF!&#REF!),AA31),-1) -> -1 | CF31: 1 | CG31: =IF(CD31=1,-1,IF(COUNTIFS(CF$23:CF30,CF31,CD$23:CD30,0)>=1,CF31+COUNTIFS(CF$23:CF30,CF31,CD$23:CD30,0),CF31)) -> 6 | CL31: 529 | CM31: =IF(COUNTIF(CL$23:CL30,CL31)>=1,CL31+COUNTIF(CL$23:CL30,CL31),CL31) -> 535 | CR31: 529 | CS31: =IF(COUNTIF(CR$23:CR30,CR31)>=1,CR31+COUNTIF(CR$23:CR30,CR31),CR31) -> 535 | CU31: 0 | CV31: =IFERROR(INDEX(INDIRECT(#REF!&#REF!&#REF!&":"&#REF!&#REF!),MATCH(AA31,INDIRECT(#REF!&#REF!&#REF!&":"&#REF!&#REF!),0),1)/SUMIFS(INDIRECT(#REF!&#REF!&#REF!&":"&#REF!&#REF!),INDIRECT(#REF!&#REF!&#REF!&":"&#REF!&#REF!),AA31),-1) -> -1 | CW31: -1 | CX31: =IF(CU31=0,-1,IF(COUNTIFS(CW$23:CW30,CW31,CU$23:CU30,1)>=1,CW31+COUNTIFS(CW$23:CW30,CW31,CU$23:CU30,1),CW31)) -> -1 | CZ31: 0 | DA31: =IFERROR(INDEX(INDIRECT(#REF!&#REF!&#REF!&":"&#REF!&#REF!),MATCH($AA31,INDIRECT(#REF!&#REF!&#REF!&":"&#REF!&#REF!),0),1)/SUMIFS(INDIRECT(#REF!&#REF!&#REF!&":"&#REF!&#REF!),INDIRECT(#REF!&#REF!&#REF!&":"&#REF!&#REF!),$AA31),-1) -> -1 | DB31: -1 | DC31: =IF(CZ31=0,-1,IF(COUNTIFS(DB$23:DB30,DB31,CZ$23:CZ30,1)>=1,DB31+COUNTIFS(DB$23:DB30,DB31,CZ$23:CZ30,1),DB31)) -> -1 | DE31: 0 | DF31: =IFERROR(INDEX(INDIRECT(#REF!&#REF!&#REF!&":"&#REF!&#REF!),MATCH($AA31,INDIRECT(#REF!&#REF!&#REF!&":"&#REF!&#REF!),0),1)/SUMIFS(INDIRECT(#REF!&#REF!&#REF!&":"&#REF!&#REF!),INDIRECT(#REF!&#REF!&#REF!&":"&#REF!&#REF!),$AA31),-1) -> -1 | DG31: 1 | DH31: =IF(DE31=1,-1,IF(COUNTIFS(DG$23:DG30,DG31,DE$23:DE30,0)>=1,DG31+COUNTIFS(DG$23:DG30,DG31,DE$23:DE30,0),DG31)) -> 6 | DJ31: 0 | DK31: =IFERROR(INDEX(INDIRECT(#REF!&#REF!&#REF!&":"&#REF!&#REF!),MATCH($AA31,INDIRECT(#REF!&#REF!&#REF!&":"&#REF!&#REF!),0),1)/SUMIFS(INDIRECT(#REF!&#REF!&#REF!&":"&#REF!&#REF!),INDIRECT(#REF!&#REF!&#REF!&":"&#REF!&#REF!),$AA31),-1) -> -1 | DL31: 1 | DM31: =IF(DJ31=1,-1,IF(COUNTIFS(DL$23:DL30,DL31,DJ$23:DJ30,0)>=1,DL31+COUNTIFS(DL$23:DL30,DL31,DJ$23:DJ30,0),DL31)) -> 6
B32: A120 | C32: 45.54 | D32: 391818567.5 | E32: 402406997.7 | F32: 448135327.9 | G32: 444611211.3 | H32: 445896353.6 | I32: 445444317.5 | J32: 443050937.4 | K32: 448422911 | L32: 453296309.1 | M32: 444505658.3 | N32: 495752566.1 | O32: 511097911.1 | P32: 521437927.1 | Q32: 525586911.1 | Z32: 4.265736916 | AA32: A120 | AB32: 3.918185675 | AC32: 4.024069977 | AD32: 4.481353279 | AE32: 4.446112113 | AF32: 4.458963536 | AG32: 4.454443175 | AH32: 4.430509374 | AI32: 4.48422911 | AJ32: 4.532963091 | AK32: 4.445056583 | AL32: 4.957525661 | AM32: 5.110979111 | AN32: 5.214379271 | AO32: 5.255869111 | AZ32: 529 | BA32: =IF(COUNTIF($AZ$23:$AZ31,AZ32)>=1,AZ32+COUNTIF($AZ$23:$AZ31,AZ32),AZ32) -> 536 | BF32: 529 | BG32: =IF(COUNTIF($BF$23:$BF31,BF32)>=1,BF32+COUNTIF($BF$23:$BF31,BF32),BF32) -> 536 | BL32: 529 | BM32: =IF(COUNTIF($BL$23:$BL31,BL32)>=1,BL32+COUNTIF($BL$23:$BL31,BL32),BL32) -> 536 | BO32: 0 | BP32: =IFERROR(INDEX(INDIRECT(#REF!&#REF!&#REF!&":"&#REF!&#REF!),MATCH(AA32,INDIRECT(#REF!&#REF!&#REF!&":"&#REF!&#REF!),0),1)/SUMIFS(INDIRECT(#REF!&#REF!&#REF!&":"&#REF!&#REF!),INDIRECT(#REF!&#REF!&#REF!&":"&#REF!&#REF!),AA32),-1) -> -1 | BQ32: -1 | BR32: =IF(BO32=0,-1,IF(COUNTIFS($BQ$23:$BQ31,BQ32,$BO$23:$BO31,1)>=1,BQ32+COUNTIFS($BQ$23:$BQ31,BQ32,$BO$23:$BO31,1),BQ32)) -> -1 | BT32: 0 | BU32: =IFERROR(INDEX(INDIRECT(#REF!&#REF!&#REF!&":"&#REF!&#REF!),MATCH(AA32,INDIRECT(#REF!&#REF!&#REF!&":"&#REF!&#REF!),0),1)/SUMIFS(INDIRECT(#REF!&#REF!&#REF!&":"&#REF!&#REF!),INDIRECT(#REF!&#REF!&#REF!&":"&#REF!&#REF!),AA32),-1) -> -1 | BV32: -1 | BW32: =IF(BT32=0,-1,IF(COUNTIFS($BV$23:$BV31,BV32,$BT$23:$BT31,1)>=1,BV32+COUNTIFS($BV$23:$BV31,BV32,$BT$23:$BT31,1),BV32)) -> -1 | BY32: 0 | BZ32: =IFERROR(INDEX(INDIRECT(#REF!&#REF!&#REF!&":"&#REF!&#REF!),MATCH(AA32,INDIRECT(#REF!&#REF!&#REF!&":"&#REF!&#REF!),0),1)/SUMIFS(INDIRECT(#REF!&#REF!&#REF!&":"&#REF!&#REF!),INDIRECT(#REF!&#REF!&#REF!&":"&#REF!&#REF!),AA32),-1) -> -1 | CA32: 1 | CB32: =IF(BY32=1,-1,IF(COUNTIFS(CA$23:CA31,CA32,BY$23:BY31,0)>=1,CA32+COUNTIFS(CA$23:CA31,CA32,BY$23:BY31,0),CA32)) -> 7 | CD32: 0 | CE32: =IFERROR(INDEX(INDIRECT(#REF!&#REF!&#REF!&":"&#REF!&#REF!),MATCH(AA32,INDIRECT(#REF!&#REF!&#REF!&":"&#REF!&#REF!),0),1)/SUMIFS(INDIRECT(#REF!&#REF!&#REF!&":"&#REF!&#REF!),INDIRECT(#REF!&#REF!&#REF!&":"&#REF!&#REF!),AA32),-1) -> -1 | CF32: 1 | CG32: =IF(CD32=1,-1,IF(COUNTIFS(CF$23:CF31,CF32,CD$23:CD31,0)>=1,CF32+COUNTIFS(CF$23:CF31,CF32,CD$23:CD31,0),CF32)) -> 7 | CL32: 529 | CM32: =IF(COUNTIF(CL$23:CL31,CL32)>=1,CL32+COUNTIF(CL$23:CL31,CL32),CL32) -> 536 | CR32: 529 | CS32: =IF(COUNTIF(CR$23:CR31,CR32)>=1,CR32+COUNTIF(CR$23:CR31,CR32),CR32) -> 536 | CU32: 0 | CV32: =IFERROR(INDEX(INDIRECT(#REF!&#REF!&#REF!&":"&#REF!&#REF!),MATCH(AA32,INDIRECT(#REF!&#REF!&#REF!&":"&#REF!&#REF!),0),1)/SUMIFS(INDIRECT(#REF!&#REF!&#REF!&":"&#REF!&#REF!),INDIRECT(#REF!&#REF!&#REF!&":"&#REF!&#REF!),AA32),-1) -> -1 | CW32: -1 | CX32: =IF(CU32=0,-1,IF(COUNTIFS(CW$23:CW31,CW32,CU$23:CU31,1)>=1,CW32+COUNTIFS(CW$23:CW31,CW32,CU$23:CU31,1),CW32)) -> -1 | CZ32: 0 | DA32: =IFERROR(INDEX(INDIRECT(#REF!&#REF!&#REF!&":"&#REF!&#REF!),MATCH($AA32,INDIRECT(#REF!&#REF!&#REF!&":"&#REF!&#REF!),0),1)/SUMIFS(INDIRECT(#REF!&#REF!&#REF!&":"&#REF!&#REF!),INDIRECT(#REF!&#REF!&#REF!&":"&#REF!&#REF!),$AA32),-1) -> -1 | DB32: -1 | DC32: =IF(CZ32=0,-1,IF(COUNTIFS(DB$23:DB31,DB32,CZ$23:CZ31,1)>=1,DB32+COUNTIFS(DB$23:DB31,DB32,CZ$23:CZ31,1),DB32)) -> -1 | DE32: 0 | DF32: =IFERROR(INDEX(INDIRECT(#REF!&#REF!&#REF!&":"&#REF!&#REF!),MATCH($AA32,INDIRECT(#REF!&#REF!&#REF!&":"&#REF!&#REF!),0),1)/SUMIFS(INDIRECT(#REF!&#REF!&#REF!&":"&#REF!&#REF!),INDIRECT(#REF!&#REF!&#REF!&":"&#REF!&#REF!),$AA32),-1) -> -1 | DG32: 1 | DH32: =IF(DE32=1,-1,IF(COUNTIFS(DG$23:DG31,DG32,DE$23:DE31,0)>=1,DG32+COUNTIFS(DG$23:DG31,DG32,DE$23:DE31,0),DG32)) -> 7 | DJ32: 0 | DK32: =IFERROR(INDEX(INDIRECT(#REF!&#REF!&#REF!&":"&#REF!&#REF!),MATCH($AA32,INDIRECT(#REF!&#REF!&#REF!&":"&#REF!&#REF!),0),1)/SUMIFS(INDIRECT(#REF!&#REF!&#REF!&":"&#REF!&#REF!),INDIRECT(#REF!&#REF!&#REF!&":"&#REF!&#REF!),$AA32),-1) -> -1 | DL32: 1 | DM32: =IF(DJ32=1,-1,IF(COUNTIFS(DL$23:DL31,DL32,DJ$23:DJ31,0)>=1,DL32+COUNTIFS(DL$23:DL31,DL32,DJ$23:DJ31,0),DL32)) -> 7
B33: A126 | D33: 729980.04 | E33: 745221.03 | F33: 769828.88 | G33: 766018.63 | H33: 750618.88 | I33: 739505.66 | J33: 759826.98 | K33: 762208.39 | L33: 766653.67 | M33: 785387.39 | N33: 821584.75 | O33: 824041.68 | P33: 849808.08 | Z33: 0.00752333492 | AA33: A126 | AB33: 0.0072998004 | AC33: 0.0074522103 | AD33: 0.0076982888 | AE33: 0.0076601863 | AF33: 0.0075061888 | AG33: 0.0073950566 | AH33: 0.0075982698 | AI33: 0.0076220839 | AJ33: 0.0076665367 | AK33: 0.0078538739 | AL33: 0.0082158475 | AM33: 0.0082404168 | AN33: 0.0084980808 | AO33: 0 | AZ33: 529 | BA33: =IF(COUNTIF($AZ$23:$AZ32,AZ33)>=1,AZ33+COUNTIF($AZ$23:$AZ32,AZ33),AZ33) -> 537 | BF33: 529 | BG33: =IF(COUNTIF($BF$23:$BF32,BF33)>=1,BF33+COUNTIF($BF$23:$BF32,BF33),BF33) -> 537 | BL33: 529 | BM33: =IF(COUNTIF($BL$23:$BL32,BL33)>=1,BL33+COUNTIF($BL$23:$BL32,BL33),BL33) -> 537 | BO33: 0 | BP33: =IFERROR(INDEX(INDIRECT(#REF!&#REF!&#REF!&":"&#REF!&#REF!),MATCH(AA33,INDIRECT(#REF!&#REF!&#REF!&":"&#REF!&#REF!),0),1)/SUMIFS(INDIRECT(#REF!&#REF!&#REF!&":"&#REF!&#REF!),INDIRECT(#REF!&#REF!&#REF!&":"&#REF!&#REF!),AA33),-1) -> -1 | BQ33: -1 | BR33: =IF(BO33=0,-1,IF(COUNTIFS($BQ$23:$BQ32,BQ33,$BO$23:$BO32,1)>=1,BQ33+COUNTIFS($BQ$23:$BQ32,BQ33,$BO$23:$BO32,1),BQ33)) -> -1 | BT33: 0 | BU33: =IFERROR(INDEX(INDIRECT(#REF!&#REF!&#REF!&":"&#REF!&#REF!),MATCH(AA33,INDIRECT(#REF!&#REF!&#REF!&":"&#REF!&#REF!),0),1)/SUMIFS(INDIRECT(#REF!&#REF!&#REF!&":"&#REF!&#REF!),INDIRECT(#REF!&#REF!&#REF!&":"&#REF!&#REF!),AA33),-1) -> -1 | BV33: -1 | BW33: =IF(BT33=0,-1,IF(COUNTIFS($BV$23:$BV32,BV33,$BT$23:$BT32,1)>=1,BV33+COUNTIFS($BV$23:$BV32,BV33,$BT$23:$BT32,1),BV33)) -> -1 | BY33: 0 | BZ33: =IFERROR(INDEX(INDIRECT(#REF!&#REF!&#REF!&":"&#REF!&#REF!),MATCH(AA33,INDIRECT(#REF!&#REF!&#REF!&":"&#REF!&#REF!),0),1)/SUMIFS(INDIRECT(#REF!&#REF!&#REF!&":"&#REF!&#REF!),INDIRECT(#REF!&#REF!&#REF!&":"&#REF!&#REF!),AA33),-1) -> -1 | CA33: 1 | CB33: =IF(BY33=1,-1,IF(COUNTIFS(CA$23:CA32,CA33,BY$23:BY32,0)>=1,CA33+COUNTIFS(CA$23:CA32,CA33,BY$23:BY32,0),CA33)) -> 8 | CD33: 0 | CE33: =IFERROR(INDEX(INDIRECT(#REF!&#REF!&#REF!&":"&#REF!&#REF!),MATCH(AA33,INDIRECT(#REF!&#REF!&#REF!&":"&#REF!&#REF!),0),1)/SUMIFS(INDIRECT(#REF!&#REF!&#REF!&":"&#REF!&#REF!),INDIRECT(#REF!&#REF!&#REF!&":"&#REF!&#REF!),AA33),-1) -> -1 | CF33: 1 | CG33: =IF(CD33=1,-1,IF(COUNTIFS(CF$23:CF32,CF33,CD$23:CD32,0)>=1,CF33+COUNTIFS(CF$23:CF32,CF33,CD$23:CD32,0),CF33)) -> 8 | CL33: 529 | CM33: =IF(COUNTIF(CL$23:CL32,CL33)>=1,CL33+COUNTIF(CL$23:CL32,CL33),CL33) -> 537 | CR33: 529 | CS33: =IF(COUNTIF(CR$23:CR32,CR33)>=1,CR33+COUNTIF(CR$23:CR32,CR33),CR33) -> 537 | CU33: 0 | CV33: =IFERROR(INDEX(INDIRECT(#REF!&#REF!&#REF!&":"&#REF!&#REF!),MATCH(AA33,INDIRECT(#REF!&#REF!&#REF!&":"&#REF!&#REF!),0),1)/SUMIFS(INDIRECT(#REF!&#REF!&#REF!&":"&#REF!&#REF!),INDIRECT(#REF!&#REF!&#REF!&":"&#REF!&#REF!),AA33),-1) -> -1 | CW33: -1 | CX33: =IF(CU33=0,-1,IF(COUNTIFS(CW$23:CW32,CW33,CU$23:CU32,1)>=1,CW33+COUNTIFS(CW$23:CW32,CW33,CU$23:CU32,1),CW33)) -> -1 | CZ33: 0 | DA33: =IFERROR(INDEX(INDIRECT(#REF!&#REF!&#REF!&":"&#REF!&#REF!),MATCH($AA33,INDIRECT(#REF!&#REF!&#REF!&":"&#REF!&#REF!),0),1)/SUMIFS(INDIRECT(#REF!&#REF!&#REF!&":"&#REF!&#REF!),INDIRECT(#REF!&#REF!&#REF!&":"&#REF!&#REF!),$AA33),-1) -> -1 | DB33: -1 | DC33: =IF(CZ33=0,-1,IF(COUNTIFS(DB$23:DB32,DB33,CZ$23:CZ32,1)>=1,DB33+COUNTIFS(DB$23:DB32,DB33,CZ$23:CZ32,1),DB33)) -> -1 | DE33: 0 | DF33: =IFERROR(INDEX(INDIRECT(#REF!&#REF!&#REF!&":"&#REF!&#REF!),MATCH($AA33,INDIRECT(#REF!&#REF!&#REF!&":"&#REF!&#REF!),0),1)/SUMIFS(INDIRECT(#REF!&#REF!&#REF!&":"&#REF!&#REF!),INDIRECT(#REF!&#REF!&#REF!&":"&#REF!&#REF!),$AA33),-1) -> -1 | DG33: 1 | DH33: =IF(DE33=1,-1,IF(COUNTIFS(DG$23:DG32,DG33,DE$23:DE32,0)>=1,DG33+COUNTIFS(DG$23:DG32,DG33,DE$23:DE32,0),DG33)) -> 8 | DJ33: 0 | DK33: =IFERROR(INDEX(INDIRECT(#REF!&#REF!&#REF!&":"&#REF!&#REF!),MATCH($AA33,INDIRECT(#REF!&#REF!&#REF!&":"&#REF!&#REF!),0),1)/SUMIFS(INDIRECT(#REF!&#REF!&#REF!&":"&#REF!&#REF!),INDIRECT(#REF!&#REF!&#REF!&":"&#REF!&#REF!),$AA33),-1) -> -1 | DL33: 1 | DM33: =IF(DJ33=1,-1,IF(COUNTIFS(DL$23:DL32,DL33,DJ$23:DJ32,0)>=1,DL33+COUNTIFS(DL$23:DL32,DL33,DJ$23:DJ32,0),DL33)) -> 8
B34: A13 | C34: 8.26 | D34: 173243818.5 | E34: 179701735.5 | F34: 184412676.5 | G34: 195283495.9 | H34: 189194152.3 | I34: 192391063.9 | J34: 198254945.1 | K34: 196241228.9 | L34: 190331193.9 | M34: 197941370.8 | N34: 195273698.1 | O34: 201086702.5 | P34: 201979167.9 | Q34: 216714315.2 | Z34: 1.843671757 | AA34: A13 | AB34: 1.732438185 | AC34: 1.797017355 | AD34: 1.844126765 | AE34: 1.952834959 | AF34: 1.891941523 | AG34: 1.923910639 | AH34: 1.982549451 | AI34: 1.962412289 | AJ34: 1.903311939 | AK34: 1.979413708 | AL34: 1.952736981 | AM34: 2.010867025 | AN34: 2.019791679 | AO34: 2.167143153 | AZ34: 529 | BA34: =IF(COUNTIF($AZ$23:$AZ33,AZ34)>=1,AZ34+COUNTIF($AZ$23:$AZ33,AZ34),AZ34) -> 538 | BF34: 529 | BG34: =IF(COUNTIF($BF$23:$BF33,BF34)>=1,BF34+COUNTIF($BF$23:$BF33,BF34),BF34) -> 538 | BL34: 529 | BM34: =IF(COUNTIF($BL$23:$BL33,BL34)>=1,BL34+COUNTIF($BL$23:$BL33,BL34),BL34) -> 538 | BO34: 0 | BP34: =IFERROR(INDEX(INDIRECT(#REF!&#REF!&#REF!&":"&#REF!&#REF!),MATCH(AA34,INDIRECT(#REF!&#REF!&#REF!&":"&#REF!&#REF!),0),1)/SUMIFS(INDIRECT(#REF!&#REF!&#REF!&":"&#REF!&#REF!),INDIRECT(#REF!&#REF!&#REF!&":"&#REF!&#REF!),AA34),-1) -> -1 | BQ34: -1 | BR34: =IF(BO34=0,-1,IF(COUNTIFS($BQ$23:$BQ33,BQ34,$BO$23:$BO33,1)>=1,BQ34+COUNTIFS($BQ$23:$BQ33,BQ34,$BO$23:$BO33,1),BQ34)) -> -1 | BT34: 0 | BU34: =IFERROR(INDEX(INDIRECT(#REF!&#REF!&#REF!&":"&#REF!&#REF!),MATCH(AA34,INDIRECT(#REF!&#REF!&#REF!&":"&#REF!&#REF!),0),1)/SUMIFS(INDIRECT(#REF!&#REF!&#REF!&":"&#REF!&#REF!),INDIRECT(#REF!&#REF!&#REF!&":"&#REF!&#REF!),AA34),-1) -> -1 | BV34: -1 | BW34: =IF(BT34=0,-1,IF(COUNTIFS($BV$23:$BV33,BV34,$BT$23:$BT33,1)>=1,BV34+COUNTIFS($BV$23:$BV33,BV34,$BT$23:$BT33,1),BV34)) -> -1 | BY34: 0 | BZ34: =IFERROR(INDEX(INDIRECT(#REF!&#REF!&#REF!&":"&#REF!&#REF!),MATCH(AA34,INDIRECT(#REF!&#REF!&#REF!&":"&#REF!&#REF!),0),1)/SUMIFS(INDIRECT(#REF!&#REF!&#REF!&":"&#REF!&#REF!),INDIRECT(#REF!&#REF!&#REF!&":"&#REF!&#REF!),AA34),-1) -> -1 | CA34: 1 | CB34: =IF(BY34=1,-1,IF(COUNTIFS(CA$23:CA33,CA34,BY$23:BY33,0)>=1,CA34+COUNTIFS(CA$23:CA33,CA34,BY$23:BY33,0),CA34)) -> 9 | CD34: 0 | CE34: =IFERROR(INDEX(INDIRECT(#REF!&#REF!&#REF!&":"&#REF!&#REF!),MATCH(AA34,INDIRECT(#REF!&#REF!&#REF!&":"&#REF!&#REF!),0),1)/SUMIFS(INDIRECT(#REF!&#REF!&#REF!&":"&#REF!&#REF!),INDIRECT(#REF!&#REF!&#REF!&":"&#REF!&#REF!),AA34),-1) -> -1 | CF34: 1 | CG34: =IF(CD34=1,-1,IF(COUNTIFS(CF$23:CF33,CF34,CD$23:CD33,0)>=1,CF34+COUNTIFS(CF$23:CF33,CF34,CD$23:CD33,0),CF34)) -> 9 | CL34: 529 | CM34: =IF(COUNTIF(CL$23:CL33,CL34)>=1,CL34+COUNTIF(CL$23:CL33,CL34),CL34) -> 538 | CR34: 529 | CS34: =IF(COUNTIF(CR$23:CR33,CR34)>=1,CR34+COUNTIF(CR$23:CR33,CR34),CR34) -> 538 | CU34: 0 | CV34: =IFERROR(INDEX(INDIRECT(#REF!&#REF!&#REF!&":"&#REF!&#REF!),MATCH(AA34,INDIRECT(#REF!&#REF!&#REF!&":"&#REF!&#REF!),0),1)/SUMIFS(INDIRECT(#REF!&#REF!&#REF!&":"&#REF!&#REF!),INDIRECT(#REF!&#REF!&#REF!&":"&#REF!&#REF!),AA34),-1) -> -1 | CW34: -1 | CX34: =IF(CU34=0,-1,IF(COUNTIFS(CW$23:CW33,CW34,CU$23:CU33,1)>=1,CW34+COUNTIFS(CW$23:CW33,CW34,CU$23:CU33,1),CW34)) -> -1 | CZ34: 0 | DA34: =IFERROR(INDEX(INDIRECT(#REF!&#REF!&#REF!&":"&#REF!&#REF!),MATCH($AA34,INDIRECT(#REF!&#REF!&#REF!&":"&#REF!&#REF!),0),1)/SUMIFS(INDIRECT(#REF!&#REF!&#REF!&":"&#REF!&#REF!),INDIRECT(#REF!&#REF!&#REF!&":"&#REF!&#REF!),$AA34),-1) -> -1 | DB34: -1 | DC34: =IF(CZ34=0,-1,IF(COUNTIFS(DB$23:DB33,DB34,CZ$23:CZ33,1)>=1,DB34+COUNTIFS(DB$23:DB33,DB34,CZ$23:CZ33,1),DB34)) -> -1 | DE34: 0 | DF34: =IFERROR(INDEX(INDIRECT(#REF!&#REF!&#REF!&":"&#REF!&#REF!),MATCH($AA34,INDIRECT(#REF!&#REF!&#REF!&":"&#REF!&#REF!),0),1)/SUMIFS(INDIRECT(#REF!&#REF!&#REF!&":"&#REF!&#REF!),INDIRECT(#REF!&#REF!&#REF!&":"&#REF!&#REF!),$AA34),-1) -> -1 | DG34: 1 | DH34: =IF(DE34=1,-1,IF(COUNTIFS(DG$23:DG33,DG34,DE$23:DE33,0)>=1,DG34+COUNTIFS(DG$23:DG33,DG34,DE$23:DE33,0),DG34)) -> 9 | DJ34: 0 | DK34: =IFERROR(INDEX(INDIRECT(#REF!&#REF!&#REF!&":"&#REF!&#REF!),MATCH($AA34,INDIRECT(#REF!&#REF!&#REF!&":"&#REF!&#REF!),0),1)/SUMIFS(INDIRECT(#REF!&#REF!&#REF!&":"&#REF!&#REF!),INDIRECT(#REF!&#REF!&#REF!&":"&#REF!&#REF!),$AA34),-1) -> -1 | DL34: 1 | DM34: =IF(DJ34=1,-1,IF(COUNTIFS(DL$23:DL33,DL34,DJ$23:DJ33,0)>=1,DL34+COUNTIFS(DL$23:DL33,DL34,DJ$23:DJ33,0),DL34)) -> 9
B35: A14 | C35: 137.38 | D35: 2260065369 | E35: 2300538616 | F35: 2314004566 | G35: 2282013038 | H35: 2203366826 | I35: 2228488427 | J35: 2254918576 | K35: 2254147802 | L35: 2288159768 | M35: 2299321466 | N35: 2407147697 | O35: 2473667342 | P35: 2586740015 | Q35: 2600491633 | Z35: 22.71997683 | AA35: A14 | AB35: 22.60065369 | AC35: 23.00538616 | AD35: 23.14004566 | AE35: 22.82013038 | AF35: 22.03366826 | AG35: 22.28488427 | AH35: 22.54918576 | AI35: 22.54147802 | AJ35: 22.88159768 | AK35: 22.99321466 | AL35: 24.07147697 | AM35: =INDEX($D$25:$W$200,MATCH($AA35,$B$25:$B$200,0),MATCH(AM$24,$D$24:$W$24,0))/$AA$22 -> 24.73667342 | AN35: 25.86740015 | AO35: 26.00491633 | AZ35: 529 | BA35: =IF(COUNTIF($AZ$23:$AZ34,AZ35)>=1,AZ35+COUNTIF($AZ$23:$AZ34,AZ35),AZ35) -> 539 | BF35: 529 | BG35: =IF(COUNTIF($BF$23:$BF34,BF35)>=1,BF35+COUNTIF($BF$23:$BF34,BF35),BF35) -> 539 | BL35: 529 | BM35: =IF(COUNTIF($BL$23:$BL34,BL35)>=1,BL35+COUNTIF($BL$23:$BL34,BL35),BL35) -> 539 | BO35: 0 | BP35: =IFERROR(INDEX(INDIRECT(#REF!&#REF!&#REF!&":"&#REF!&#REF!),MATCH(AA35,INDIRECT(#REF!&#REF!&#REF!&":"&#REF!&#REF!),0),1)/SUMIFS(INDIRECT(#REF!&#REF!&#REF!&":"&#REF!&#REF!),INDIRECT(#REF!&#REF!&#REF!&":"&#REF!&#REF!),AA35),-1) -> -1 | BQ35: -1 | BR35: =IF(BO35=0,-1,IF(COUNTIFS($BQ$23:$BQ34,BQ35,$BO$23:$BO34,1)>=1,BQ35+COUNTIFS($BQ$23:$BQ34,BQ35,$BO$23:$BO34,1),BQ35)) -> -1 | BT35: 0 | BU35: =IFERROR(INDEX(INDIRECT(#REF!&#REF!&#REF!&":"&#REF!&#REF!),MATCH(AA35,INDIRECT(#REF!&#REF!&#REF!&":"&#REF!&#REF!),0),1)/SUMIFS(INDIRECT(#REF!&#REF!&#REF!&":"&#REF!&#REF!),INDIRECT(#REF!&#REF!&#REF!&":"&#REF!&#REF!),AA35),-1) -> -1 | BV35: -1 | BW35: =IF(BT35=0,-1,IF(COUNTIFS($BV$23:$BV34,BV35,$BT$23:$BT34,1)>=1,BV35+COUNTIFS($BV$23:$BV34,BV35,$BT$23:$BT34,1),BV35)) -> -1 | BY35: 0 | BZ35: =IFERROR(INDEX(INDIRECT(#REF!&#REF!&#REF!&":"&#REF!&#REF!),MATCH(AA35,INDIRECT(#REF!&#REF!&#REF!&":"&#REF!&#REF!),0),1)/SUMIFS(INDIRECT(#REF!&#REF!&#REF!&":"&#REF!&#REF!),INDIRECT(#REF!&#REF!&#REF!&":"&#REF!&#REF!),AA35),-1) -> -1 | CA35: 1 | CB35: =IF(BY35=1,-1,IF(COUNTIFS(CA$23:CA34,CA35,BY$23:BY34,0)>=1,CA35+COUNTIFS(CA$23:CA34,CA35,BY$23:BY34,0),CA35)) -> 10 | CD35: 0 | CE35: =IFERROR(INDEX(INDIRECT(#REF!&#REF!&#REF!&":"&#REF!&#REF!),MATCH(AA35,INDIRECT(#REF!&#REF!&#REF!&":"&#REF!&#REF!),0),1)/SUMIFS(INDIRECT(#REF!&#REF!&#REF!&":"&#REF!&#REF!),INDIRECT(#REF!&#REF!&#REF!&":"&#REF!&#REF!),AA35),-1) -> -1 | CF35: 1 | CG35: =IF(CD35=1,-1,IF(COUNTIFS(CF$23:CF34,CF35,CD$23:CD34,0)>=1,CF35+COUNTIFS(CF$23:CF34,CF35,CD$23:CD34,0),CF35)) -> 10 | CL35: 529 | CM35: =IF(COUNTIF(CL$23:CL34,CL35)>=1,CL35+COUNTIF(CL$23:CL34,CL35),CL35) -> 539 | CR35: 529 | CS35: =IF(COUNTIF(CR$23:CR34,CR35)>=1,CR35+COUNTIF(CR$23:CR34,CR35),CR35) -> 539 | CU35: 0 | CV35: =IFERROR(INDEX(INDIRECT(#REF!&#REF!&#REF!&":"&#REF!&#REF!),MATCH(AA35,INDIRECT(#REF!&#REF!&#REF!&":"&#REF!&#REF!),0),1)/SUMIFS(INDIRECT(#REF!&#REF!&#REF!&":"&#REF!&#REF!),INDIRECT(#REF!&#REF!&#REF!&":"&#REF!&#REF!),AA35),-1) -> -1 | CW35: -1 | CX35: =IF(CU35=0,-1,IF(COUNTIFS(CW$23:CW34,CW35,CU$23:CU34,1)>=1,CW35+COUNTIFS(CW$23:CW34,CW35,CU$23:CU34,1),CW35)) -> -1 | CZ35: 0 | DA35: =IFERROR(INDEX(INDIRECT(#REF!&#REF!&#REF!&":"&#REF!&#REF!),MATCH($AA35,INDIRECT(#REF!&#REF!&#REF!&":"&#REF!&#REF!),0),1)/SUMIFS(INDIRECT(#REF!&#REF!&#REF!&":"&#REF!&#REF!),INDIRECT(#REF!&#REF!&#REF!&":"&#REF!&#REF!),$AA35),-1) -> -1 | DB35: -1 | DC35: =IF(CZ35=0,-1,IF(COUNTIFS(DB$23:DB34,DB35,CZ$23:CZ34,1)>=1,DB35+COUNTIFS(DB$23:DB34,DB35,CZ$23:CZ34,1),DB35)) -> -1 | DE35: 0 | DF35: =IFERROR(INDEX(INDIRECT(#REF!&#REF!&#REF!&":"&#REF!&#REF!),MATCH($AA35,INDIRECT(#REF!&#REF!&#REF!&":"&#REF!&#REF!),0),1)/SUMIFS(INDIRECT(#REF!&#REF!&#REF!&":"&#REF!&#REF!),INDIRECT(#REF!&#REF!&#REF!&":"&#REF!&#REF!),$AA35),-1) -> -1 | DG35: 1 | DH35: =IF(DE35=1,-1,IF(COUNTIFS(DG$23:DG34,DG35,DE$23:DE34,0)>=1,DG35+COUNTIFS(DG$23:DG34,DG35,DE$23:DE34,0),DG35)) -> 10 | DJ35: 0 | DK35: =IFERROR(INDEX(INDIRECT(#REF!&#REF!&#REF!&":"&#REF!&#REF!),MATCH($AA35,INDIRECT(#REF!&#REF!&#REF!&":"&#REF!&#REF!),0),1)/SUMIFS(INDIRECT(#REF!&#REF!&#REF!&":"&#REF!&#REF!),INDIRECT(#REF!&#REF!&#REF!&":"&#REF!&#REF!),$AA35),-1) -> -1 | DL35: 1 | DM35: =IF(DJ35=1,-1,IF(COUNTIFS(DL$23:DL34,DL35,DJ$23:DJ34,0)>=1,DL35+COUNTIFS(DL$23:DL34,DL35,DJ$23:DJ34,0),DL35)) -> 10
B36: A14(M) | C36: 1.42 | O36: 21795636.72 | P36: 23486677.5 | Q36: 23462174.45 | Z36: =SUMIFS(AB36:AS36,$AB$24:$AS$24,">="&$A$22,$AB$24:$AS$24,"<="&$A$23)/($A$23-$A$22+1) -> 0 | AA36: A14(M) | AB36: 0 | AC36: 0 | AD36: 0 | AE36: 0 | AF36: 0 | AG36: 0 | AH36: 0 | AI36: 0 | AJ36: 0 | AK36: 0 | AL36: 0 | AM36: 0.2179563672 | AN36: 0.234866775 | AO36: 0.2346217445 | AW36: =INDEX($AB36:$AS36,1,MATCH(AW$23,$AB$24:$AS$24,0)) ->  | AZ36: 529 | BA36: =IF(COUNTIF($AZ$23:$AZ35,AZ36)>=1,AZ36+COUNTIF($AZ$23:$AZ35,AZ36),AZ36) -> 540 | BF36: 529 | BG36: =IF(COUNTIF($BF$23:$BF35,BF36)>=1,BF36+COUNTIF($BF$23:$BF35,BF36),BF36) -> 540 | BL36: 529 | BM36: =IF(COUNTIF($BL$23:$BL35,BL36)>=1,BL36+COUNTIF($BL$23:$BL35,BL36),BL36) -> 540 | BO36: 1 | BP36: =IFERROR(INDEX(INDIRECT(#REF!&#REF!&#REF!&":"&#REF!&#REF!),MATCH(AA36,INDIRECT(#REF!&#REF!&#REF!&":"&#REF!&#REF!),0),1)/SUMIFS(INDIRECT(#REF!&#REF!&#REF!&":"&#REF!&#REF!),INDIRECT(#REF!&#REF!&#REF!&":"&#REF!&#REF!),AA36),-1) -> -1 | BQ36: 1 | BR36: =IF(BO36=0,-1,IF(COUNTIFS($BQ$23:$BQ35,BQ36,$BO$23:$BO35,1)>=1,BQ36+COUNTIFS($BQ$23:$BQ35,BQ36,$BO$23:$BO35,1),BQ36)) -> 2 | BT36: 1 | BU36: =IFERROR(INDEX(INDIRECT(#REF!&#REF!&#REF!&":"&#REF!&#REF!),MATCH(AA36,INDIRECT(#REF!&#REF!&#REF!&":"&#REF!&#REF!),0),1)/SUMIFS(INDIRECT(#REF!&#REF!&#REF!&":"&#REF!&#REF!),INDIRECT(#REF!&#REF!&#REF!&":"&#REF!&#REF!),AA36),-1) -> -1 | BV36: 1 | BW36: =IF(BT36=0,-1,IF(COUNTIFS($BV$23:$BV35,BV36,$BT$23:$BT35,1)>=1,BV36+COUNTIFS($BV$23:$BV35,BV36,$BT$23:$BT35,1),BV36)) -> 2 | BY36: 1 | BZ36: =IFERROR(INDEX(INDIRECT(#REF!&#REF!&#REF!&":"&#REF!&#REF!),MATCH(AA36,INDIRECT(#REF!&#REF!&#REF!&":"&#REF!&#REF!),0),1)/SUMIFS(INDIRECT(#REF!&#REF!&#REF!&":"&#REF!&#REF!),INDIRECT(#REF!&#REF!&#REF!&":"&#REF!&#REF!),AA36),-1) -> -1 | CA36: -1 | CB36: =IF(BY36=1,-1,IF(COUNTIFS(CA$23:CA35,CA36,BY$23:BY35,0)>=1,CA36+COUNTIFS(CA$23:CA35,CA36,BY$23:BY35,0),CA36)) -> -1 | CD36: 1 | CE36: =IFERROR(INDEX(INDIRECT(#REF!&#REF!&#REF!&":"&#REF!&#REF!),MATCH(AA36,INDIRECT(#REF!&#REF!&#REF!&":"&#REF!&#REF!),0),1)/SUMIFS(INDIRECT(#REF!&#REF!&#REF!&":"&#REF!&#REF!),INDIRECT(#REF!&#REF!&#REF!&":"&#REF!&#REF!),AA36),-1) -> -1 | CF36: -1 | CG36: =IF(CD36=1,-1,IF(COUNTIFS(CF$23:CF35,CF36,CD$23:CD35,0)>=1,CF36+COUNTIFS(CF$23:CF35,CF36,CD$23:CD35,0),CF36)) -> -1 | CL36: 529 | CM36: =IF(COUNTIF(CL$23:CL35,CL36)>=1,CL36+COUNTIF(CL$23:CL35,CL36),CL36) -> 540 | CR36: 529 | CS36: =IF(COUNTIF(CR$23:CR35,CR36)>=1,CR36+COUNTIF(CR$23:CR35,CR36),CR36) -> 540 | CU36: 1 | CV36: =IFERROR(INDEX(INDIRECT(#REF!&#REF!&#REF!&":"&#REF!&#REF!),MATCH(AA36,INDIRECT(#REF!&#REF!&#REF!&":"&#REF!&#REF!),0),1)/SUMIFS(INDIRECT(#REF!&#REF!&#REF!&":"&#REF!&#REF!),INDIRECT(#REF!&#REF!&#REF!&":"&#REF!&#REF!),AA36),-1) -> -1 | CW36: 1 | CX36: =IF(CU36=0,-1,IF(COUNTIFS(CW$23:CW35,CW36,CU$23:CU35,1)>=1,CW36+COUNTIFS(CW$23:CW35,CW36,CU$23:CU35,1),CW36)) -> 2 | CZ36: 1 | DA36: =IFERROR(INDEX(INDIRECT(#REF!&#REF!&#REF!&":"&#REF!&#REF!),MATCH($AA36,INDIRECT(#REF!&#REF!&#REF!&":"&#REF!&#REF!),0),1)/SUMIFS(INDIRECT(#REF!&#REF!&#REF!&":"&#REF!&#REF!),INDIRECT(#REF!&#REF!&#REF!&":"&#REF!&#REF!),$AA36),-1) -> -1 | DB36: 1 | DC36: =IF(CZ36=0,-1,IF(COUNTIFS(DB$23:DB35,DB36,CZ$23:CZ35,1)>=1,DB36+COUNTIFS(DB$23:DB35,DB36,CZ$23:CZ35,1),DB36)) -> 2 | DE36: 1 | DF36: =IFERROR(INDEX(INDIRECT(#REF!&#REF!&#REF!&":"&#REF!&#REF!),MATCH($AA36,INDIRECT(#REF!&#REF!&#REF!&":"&#REF!&#REF!),0),1)/SUMIFS(INDIRECT(#REF!&#REF!&#REF!&":"&#REF!&#REF!),INDIRECT(#REF!&#REF!&#REF!&":"&#REF!&#REF!),$AA36),-1) -> -1 | DG36: =IF(DE36=0,COUNTIFS(DF$25:DF$200,">"&DF36,DE$25:DE$200,0)+1,-1) -> -1 | DH36: =IF(DE36=1,-1,IF(COUNTIFS(DG$23:DG35,DG36,DE$23:DE35,0)>=1,DG36+COUNTIFS(DG$23:DG35,DG36,DE$23:DE35,0),DG36)) -> -1 | DJ36: 1 | DK36: =IFERROR(INDEX(INDIRECT(#REF!&#REF!&#REF!&":"&#REF!&#REF!),MATCH($AA36,INDIRECT(#REF!&#REF!&#REF!&":"&#REF!&#REF!),0),1)/SUMIFS(INDIRECT(#REF!&#REF!&#REF!&":"&#REF!&#REF!),INDIRECT(#REF!&#REF!&#REF!&":"&#REF!&#REF!),$AA36),-1) -> -1 | DL36: -1 | DM36: =IF(DJ36=1,-1,IF(COUNTIFS(DL$23:DL35,DL36,DJ$23:DJ35,0)>=1,DL36+COUNTIFS(DL$23:DL35,DL36,DJ$23:DJ35,0),DL36)) -> -1
B37: A160 | C37: 3.35 | D37: 12409569.98 | E37: 12807400.71 | F37: 13199561.43 | G37: 12843620.74 | H37: 12259201.25 | I37: 12069119.77 | J37: 13383768.78 | K37: 13163205.31 | L37: 13288353.82 | M37: 13700813.18 | N37: 13817887.59 | O37: 13891687.38 | P37: 14590945.02 | Q37: 14246066.8 | Z37: 0.1270387082 | AA37: A160 | AB37: 0.1240956998 | AC37: 0.1280740071 | AD37: 0.1319956143 | AE37: 0.1284362074 | AF37: 0.1225920125 | AG37: 0.1206911977 | AH37: 0.1338376878 | AI37: 0.1316320531 | AJ37: 0.1328835382 | AK37: 0.1370081318 | AL37: 0.1381788759 | AM37: 0.1389168738 | AN37: 0.1459094502 | AO37: 0.142460668 | AZ37: 529 | BA37: =IF(COUNTIF($AZ$23:$AZ36,AZ37)>=1,AZ37+COUNTIF($AZ$23:$AZ36,AZ37),AZ37) -> 541 | BF37: 529 | BG37: =IF(COUNTIF($BF$23:$BF36,BF37)>=1,BF37+COUNTIF($BF$23:$BF36,BF37),BF37) -> 541 | BL37: 529 | BM37: =IF(COUNTIF($BL$23:$BL36,BL37)>=1,BL37+COUNTIF($BL$23:$BL36,BL37),BL37) -> 541 | BO37: 0 | BP37: =IFERROR(INDEX(INDIRECT(#REF!&#REF!&#REF!&":"&#REF!&#REF!),MATCH(AA37,INDIRECT(#REF!&#REF!&#REF!&":"&#REF!&#REF!),0),1)/SUMIFS(INDIRECT(#REF!&#REF!&#REF!&":"&#REF!&#REF!),INDIRECT(#REF!&#REF!&#REF!&":"&#REF!&#REF!),AA37),-1) -> -1 | BQ37: -1 | BR37: =IF(BO37=0,-1,IF(COUNTIFS($BQ$23:$BQ36,BQ37,$BO$23:$BO36,1)>=1,BQ37+COUNTIFS($BQ$23:$BQ36,BQ37,$BO$23:$BO36,1),BQ37)) -> -1 | BT37: 0 | BU37: =IFERROR(INDEX(INDIRECT(#REF!&#REF!&#REF!&":"&#REF!&#REF!),MATCH(AA37,INDIRECT(#REF!&#REF!&#REF!&":"&#REF!&#REF!),0),1)/SUMIFS(INDIRECT(#REF!&#REF!&#REF!&":"&#REF!&#REF!),INDIRECT(#REF!&#REF!&#REF!&":"&#REF!&#REF!),AA37),-1) -> -1 | BV37: -1 | BW37: =IF(BT37=0,-1,IF(COUNTIFS($BV$23:$BV36,BV37,$BT$23:$BT36,1)>=1,BV37+COUNTIFS($BV$23:$BV36,BV37,$BT$23:$BT36,1),BV37)) -> -1 | BY37: 0 | BZ37: =IFERROR(INDEX(INDIRECT(#REF!&#REF!&#REF!&":"&#REF!&#REF!),MATCH(AA37,INDIRECT(#REF!&#REF!&#REF!&":"&#REF!&#REF!),0),1)/SUMIFS(INDIRECT(#REF!&#REF!&#REF!&":"&#REF!&#REF!),INDIRECT(#REF!&#REF!&#REF!&":"&#REF!&#REF!),AA37),-1) -> -1 | CA37: 1 | CB37: =IF(BY37=1,-1,IF(COUNTIFS(CA$23:CA36,CA37,BY$23:BY36,0)>=1,CA37+COUNTIFS(CA$23:CA36,CA37,BY$23:BY36,0),CA37)) -> 11 | CD37: 0 | CE37: =IFERROR(INDEX(INDIRECT(#REF!&#REF!&#REF!&":"&#REF!&#REF!),MATCH(AA37,INDIRECT(#REF!&#REF!&#REF!&":"&#REF!&#REF!),0),1)/SUMIFS(INDIRECT(#REF!&#REF!&#REF!&":"&#REF!&#REF!),INDIRECT(#REF!&#REF!&#REF!&":"&#REF!&#REF!),AA37),-1) -> -1 | CF37: 1 | CG37: =IF(CD37=1,-1,IF(COUNTIFS(CF$23:CF36,CF37,CD$23:CD36,0)>=1,CF37+COUNTIFS(CF$23:CF36,CF37,CD$23:CD36,0),CF37)) -> 11 | CL37: 529 | CM37: =IF(COUNTIF(CL$23:CL36,CL37)>=1,CL37+COUNTIF(CL$23:CL36,CL37),CL37) -> 541 | CR37: 529 | CS37: =IF(COUNTIF(CR$23:CR36,CR37)>=1,CR37+COUNTIF(CR$23:CR36,CR37),CR37) -> 541 | CU37: 0 | CV37: =IFERROR(INDEX(INDIRECT(#REF!&#REF!&#REF!&":"&#REF!&#REF!),MATCH(AA37,INDIRECT(#REF!&#REF!&#REF!&":"&#REF!&#REF!),0),1)/SUMIFS(INDIRECT(#REF!&#REF!&#REF!&":"&#REF!&#REF!),INDIRECT(#REF!&#REF!&#REF!&":"&#REF!&#REF!),AA37),-1) -> -1 | CW37: -1 | CX37: =IF(CU37=0,-1,IF(COUNTIFS(CW$23:CW36,CW37,CU$23:CU36,1)>=1,CW37+COUNTIFS(CW$23:CW36,CW37,CU$23:CU36,1),CW37)) -> -1 | CZ37: 0 | DA37: =IFERROR(INDEX(INDIRECT(#REF!&#REF!&#REF!&":"&#REF!&#REF!),MATCH($AA37,INDIRECT(#REF!&#REF!&#REF!&":"&#REF!&#REF!),0),1)/SUMIFS(INDIRECT(#REF!&#REF!&#REF!&":"&#REF!&#REF!),INDIRECT(#REF!&#REF!&#REF!&":"&#REF!&#REF!),$AA37),-1) -> -1 | DB37: -1 | DC37: =IF(CZ37=0,-1,IF(COUNTIFS(DB$23:DB36,DB37,CZ$23:CZ36,1)>=1,DB37+COUNTIFS(DB$23:DB36,DB37,CZ$23:CZ36,1),DB37)) -> -1 | DE37: 0 | DF37: =IFERROR(INDEX(INDIRECT(#REF!&#REF!&#REF!&":"&#REF!&#REF!),MATCH($AA37,INDIRECT(#REF!&#REF!&#REF!&":"&#REF!&#REF!),0),1)/SUMIFS(INDIRECT(#REF!&#REF!&#REF!&":"&#REF!&#REF!),INDIRECT(#REF!&#REF!&#REF!&":"&#REF!&#REF!),$AA37),-1) -> -1 | DG37: 1 | DH37: =IF(DE37=1,-1,IF(COUNTIFS(DG$23:DG36,DG37,DE$23:DE36,0)>=1,DG37+COUNTIFS(DG$23:DG36,DG37,DE$23:DE36,0),DG37)) -> 11 | DJ37: 0 | DK37: =IFERROR(INDEX(INDIRECT(#REF!&#REF!&#REF!&":"&#REF!&#REF!),MATCH($AA37,INDIRECT(#REF!&#REF!&#REF!&":"&#REF!&#REF!),0),1)/SUMIFS(INDIRECT(#REF!&#REF!&#REF!&":"&#REF!&#REF!),INDIRECT(#REF!&#REF!&#REF!&":"&#REF!&#REF!),$AA37),-1) -> -1 | DL37: 1 | DM37: =IF(DJ37=1,-1,IF(COUNTIFS(DL$23:DL36,DL37,DJ$23:DJ36,0)>=1,DL37+COUNTIFS(DL$23:DL36,DL37,DJ$23:DJ36,0),DL37)) -> 11
B38: A162 | C38: 1.98 | D38: 261410.23 | E38: 5017348.37 | F38: 4848064.48 | G38: 4709874.95 | H38: 4615457.91 | I38: 4562590.71 | J38: 4679574.4 | K38: 4629927.78 | L38: 4621059.88 | M38: 5697885.9 | N38: 5769645.58 | O38: 5484876 | P38: 5749618.44 | Q38: 11552417.9 | Z38: 0.03890431188 | AA38: A162 | AB38: 0.0026141023 | AC38: 0.0501734837 | AD38: 0.0484806448 | AE38: 0.0470987495 | AF38: 0.0461545791 | AG38: 0.0456259071 | AH38: 0.046795744 | AI38: 0.0462992778 | AJ38: 0.0462105988 | AK38: 0.056978859 | AL38: 0.0576964558 | AM38: 0.05484876 | AN38: 0.0574961844 | AO38: 0.115524179 | AZ38: 529 | BA38: =IF(COUNTIF($AZ$23:$AZ37,AZ38)>=1,AZ38+COUNTIF($AZ$23:$AZ37,AZ38),AZ38) -> 542 | BF38: 529 | BG38: =IF(COUNTIF($BF$23:$BF37,BF38)>=1,BF38+COUNTIF($BF$23:$BF37,BF38),BF38) -> 542 | BL38: 529 | BM38: =IF(COUNTIF($BL$23:$BL37,BL38)>=1,BL38+COUNTIF($BL$23:$BL37,BL38),BL38) -> 542 | BO38: 0 | BP38: =IFERROR(INDEX(INDIRECT(#REF!&#REF!&#REF!&":"&#REF!&#REF!),MATCH(AA38,INDIRECT(#REF!&#REF!&#REF!&":"&#REF!&#REF!),0),1)/SUMIFS(INDIRECT(#REF!&#REF!&#REF!&":"&#REF!&#REF!),INDIRECT(#REF!&#REF!&#REF!&":"&#REF!&#REF!),AA38),-1) -> -1 | BQ38: -1 | BR38: =IF(BO38=0,-1,IF(COUNTIFS($BQ$23:$BQ37,BQ38,$BO$23:$BO37,1)>=1,BQ38+COUNTIFS($BQ$23:$BQ37,BQ38,$BO$23:$BO37,1),BQ38)) -> -1 | BT38: 0 | BU38: =IFERROR(INDEX(INDIRECT(#REF!&#REF!&#REF!&":"&#REF!&#REF!),MATCH(AA38,INDIRECT(#REF!&#REF!&#REF!&":"&#REF!&#REF!),0),1)/SUMIFS(INDIRECT(#REF!&#REF!&#REF!&":"&#REF!&#REF!),INDIRECT(#REF!&#REF!&#REF!&":"&#REF!&#REF!),AA38),-1) -> -1 | BV38: -1 | BW38: =IF(BT38=0,-1,IF(COUNTIFS($BV$23:$BV37,BV38,$BT$23:$BT37,1)>=1,BV38+COUNTIFS($BV$23:$BV37,BV38,$BT$23:$BT37,1),BV38)) -> -1 | BY38: 0 | BZ38: =IFERROR(INDEX(INDIRECT(#REF!&#REF!&#REF!&":"&#REF!&#REF!),MATCH(AA38,INDIRECT(#REF!&#REF!&#REF!&":"&#REF!&#REF!),0),1)/SUMIFS(INDIRECT(#REF!&#REF!&#REF!&":"&#REF!&#REF!),INDIRECT(#REF!&#REF!&#REF!&":"&#REF!&#REF!),AA38),-1) -> -1 | CA38: 1 | CB38: =IF(BY38=1,-1,IF(COUNTIFS(CA$23:CA37,CA38,BY$23:BY37,0)>=1,CA38+COUNTIFS(CA$23:CA37,CA38,BY$23:BY37,0),CA38)) -> 12 | CD38: 0 | CE38: =IFERROR(INDEX(INDIRECT(#REF!&#REF!&#REF!&":"&#REF!&#REF!),MATCH(AA38,INDIRECT(#REF!&#REF!&#REF!&":"&#REF!&#REF!),0),1)/SUMIFS(INDIRECT(#REF!&#REF!&#REF!&":"&#REF!&#REF!),INDIRECT(#REF!&#REF!&#REF!&":"&#REF!&#REF!),AA38),-1) -> -1 | CF38: 1 | CG38: =IF(CD38=1,-1,IF(COUNTIFS(CF$23:CF37,CF38,CD$23:CD37,0)>=1,CF38+COUNTIFS(CF$23:CF37,CF38,CD$23:CD37,0),CF38)) -> 12 | CL38: 529 | CM38: =IF(COUNTIF(CL$23:CL37,CL38)>=1,CL38+COUNTIF(CL$23:CL37,CL38),CL38) -> 542 | CR38: 529 | CS38: =IF(COUNTIF(CR$23:CR37,CR38)>=1,CR38+COUNTIF(CR$23:CR37,CR38),CR38) -> 542 | CU38: 0 | CV38: =IFERROR(INDEX(INDIRECT(#REF!&#REF!&#REF!&":"&#REF!&#REF!),MATCH(AA38,INDIRECT(#REF!&#REF!&#REF!&":"&#REF!&#REF!),0),1)/SUMIFS(INDIRECT(#REF!&#REF!&#REF!&":"&#REF!&#REF!),INDIRECT(#REF!&#REF!&#REF!&":"&#REF!&#REF!),AA38),-1) -> -1 | CW38: -1 | CX38: =IF(CU38=0,-1,IF(COUNTIFS(CW$23:CW37,CW38,CU$23:CU37,1)>=1,CW38+COUNTIFS(CW$23:CW37,CW38,CU$23:CU37,1),CW38)) -> -1 | CZ38: 0 | DA38: =IFERROR(INDEX(INDIRECT(#REF!&#REF!&#REF!&":"&#REF!&#REF!),MATCH($AA38,INDIRECT(#REF!&#REF!&#REF!&":"&#REF!&#REF!),0),1)/SUMIFS(INDIRECT(#REF!&#REF!&#REF!&":"&#REF!&#REF!),INDIRECT(#REF!&#REF!&#REF!&":"&#REF!&#REF!),$AA38),-1) -> -1 | DB38: -1 | DC38: =IF(CZ38=0,-1,IF(COUNTIFS(DB$23:DB37,DB38,CZ$23:CZ37,1)>=1,DB38+COUNTIFS(DB$23:DB37,DB38,CZ$23:CZ37,1),DB38)) -> -1 | DE38: 0 | DF38: =IFERROR(INDEX(INDIRECT(#REF!&#REF!&#REF!&":"&#REF!&#REF!),MATCH($AA38,INDIRECT(#REF!&#REF!&#REF!&":"&#REF!&#REF!),0),1)/SUMIFS(INDIRECT(#REF!&#REF!&#REF!&":"&#REF!&#REF!),INDIRECT(#REF!&#REF!&#REF!&":"&#REF!&#REF!),$AA38),-1) -> -1 | DG38: 1 | DH38: =IF(DE38=1,-1,IF(COUNTIFS(DG$23:DG37,DG38,DE$23:DE37,0)>=1,DG38+COUNTIFS(DG$23:DG37,DG38,DE$23:DE37,0),DG38)) -> 12 | DJ38: 0 | DK38: =IFERROR(INDEX(INDIRECT(#REF!&#REF!&#REF!&":"&#REF!&#REF!),MATCH($AA38,INDIRECT(#REF!&#REF!&#REF!&":"&#REF!&#REF!),0),1)/SUMIFS(INDIRECT(#REF!&#REF!&#REF!&":"&#REF!&#REF!),INDIRECT(#REF!&#REF!&#REF!&":"&#REF!&#REF!),$AA38),-1) -> -1 | DL38: 1 | DM38: =IF(DJ38=1,-1,IF(COUNTIFS(DL$23:DL37,DL38,DJ$23:DJ37,0)>=1,DL38+COUNTIFS(DL$23:DL37,DL38,DJ$23:DJ37,0),DL38)) -> 12
